Workbook

Sheet Design Converter
A1: LM5175 DC/DC Controller Design Tool
O2: http://www.ti.com/product/lm5175
A3: About | C3: xx | F3: = Input Box | O3: TERMS OF USE
A5: Step 1: Operating Specifications
D6: Input Voltage - Min, VIN(min) | E6: 13.3 | F6: V
D7: Input Voltage - Nom, VIN(nom) | E7: 14.2 | F7: V
D8: Input Voltage - Max, VIN(max) | E8: 16 | F8: V
D9: Output Voltage, VOUT | E9: 43.2 | F9: V
D10: Full Load Output Current, IOUT(max) | E10: 10 | F10: A
D11: Switching Frequency | E11: 200 | F11: kHz
D12: Frequency Set Resistor, RT | E12: =IF('Standard Value Calculator'!O4/1000>288,"N/A",'Standard Value Calculator'!O4/1000) -> 130 | F12: kΩ
A14: Step 2: Filter Inductor
D15: Recommended Filter Inductance | E15: =Lopt*1000000 -> 3.386578789 | F15: µH
D16: Inductance, LF | E16: 3.3 | F16: µH
D17: Inductor DCR | E17: 2.3 | F17: mΩ
D18: Pk-to-Pk Ripple Current at VIN(min), DIL1 | E18: ='Variable Management'!B78 -> 13.99746488 | F18: Apk-pk
D19: Pk-to-Pk Ripple Current at VIN(nom), DIL2 | E19: ='Variable Management'!B79 -> 14.4926312 | F19: Apk-pk
D20: Pk-to-Pk Ripple Current at VIN(max), DIL3 | E20: ='Variable Management'!B80 -> 15.31251046 | F20: Apk-pk
D21: DIL as a % at VIN(min) | E21: ='Variable Management'!B90*100 -> 41.3702851 | F21: %
D22: DIL as a % at VIN(nom) | E22: ='Variable Management'!B91*100 -> 45.73230288 | F22: %
D23: DIL as a % at VIN(max) | E23: ='Variable Management'!B92*100 -> 54.44448162 | F23: %
A25: Step 3: OCP, Sense Resistors, Slope Comp
D26: Required IOCP(MIN) Setpoint at VIN(nom) | E26: 35 | F26: A
D27: Recommended Sense Resistance | E27: =Rs_ideal*1000 -> 1.315717267 | F27: mΩ
D28: Sense Resistance, RS | E28: 1.25 | F28: mΩ
D29: Peak Inductor Current, ILPK | E29: ='Variable Management'!B135 -> 128 | F29: A
D30: =IF('Variable Management'!B85>'Variable Management'!B83,"Power Loss in Rs at Full Load (Max VIN)","Power Loss in Rs at Full Load (Min VIN)") -> Power Loss in Rs at Full Load (Min VIN) | E30: ='Variable Management'!B86 -> 1.00814688 | F30: W
D31: Recommended SLOPE Capacitance | E31: ='Standard Value Calculator'!O14 -> 680 | F31: pF
D32: SLOPE Capacitance, CSLOPE | E32: 680 | F32: pF
D33: VIN(min) | E33: ='Variable Management'!B127 -> 36.95245135 | F33: A
C34: IOUT(typ) at OCP Inception: | D34: VIN(nom) | E34: ='Variable Management'!B128 -> 39.41386152 | F34: A
D35: VIN(max) | E35: ='Variable Management'!B129 -> 44.32969471 | F35: A
D36: Required Const Current Loop Setpoint | E36: N/A | F36: A
D37: Output Leg Shunt Resistance, RCS(out) | E37: =Rshunt -> 0 | F37: mΩ
A39: Step 4: Output Capacitor
D40: Output Voltage Ripple Spec | E40: 30 | F40: mVpk-pk
D41: Minimum Output Capacitance | E41: ='Variable Management'!B168 -> 1157.685065 | F41: µF
D42: Output Capacitance, COUT | E42: 1100 | F42: µF
D43: Maximum Permitted ESR | E43: ='Variable Management'!B172 -> N/A | F43: mΩ
D44: Output Capacitor ESR | E44: 10 | F44: mΩ
D45: Resulting Output Voltage Ripple (max) | E45: =Vripple2*1000 -> 131.5732291 | F45: mVpk-pk
D46: Output Capacitor RMS Current (max) | E46: ='Variable Management'!B163 -> 14.99373303 | F46: A (rms)
M47: VIN(nom) | N47: =VIN_nom&"V" -> 14.2V
A48: Step 5: Input Capacitor
D49: Input Voltage Ripple Spec | E49: 20 | F49: mVpk-pk
D50: Minimum Input Capacitance | E50: ='Variable Management'!B188 -> 478.5159517 | F50: µF
D51: Input Capacitance, CIN | E51: 900 | F51: µF
D52: Maximum Permitted ESR | E52: ='Variable Management'!B193 -> 1.106209942 | F52: mΩ
D53: Input Capacitor ESR | E53: 10 | F53: mΩ
D54: Resulting Input Voltage Ripple (max) | E54: =Vinripple2*1000 -> 153.4938857 | F54: mVpk-pk
D55: Input Capacitor RMS Current (max) | E55: ='Variable Management'!B181 -> 4.420341017 | F55: A (rms)
A57: Step 6: Soft-start, Dither, UVLO
D58: Soft-Start Time, tSS | E58: 16 | F58: ms
D59: Soft-Start Capacitance, CSS | E59: =IF(Tss>1.28/1000,Css_u*1000000000,"N/A") -> 100 | F59: nF
D60: Modulating Frequency | E60: 1 | F60: =IF(DITHER=1,"kHz","") -> kHz
D61: =IF(DITHER=1,"DITH Capacitance, Cd","*Short DITH pin to GND") -> DITH Capacitance, Cd | E61: =IF(DITHER=1,IF(E60>0,'Standard Value Calculator'!O19*1000000000,"N/A"),"") -> 39 | F61: =IF(DITHER=1,"nF","") -> nF
D62: Required Input Voltage UVLO On | E62: 13.8 | F62: V
D63: Input Voltage UVLO Off | E63: ='Variable Management'!B216 -> 13.00663874 | F63: V
D64: Upper UVLO Resistor, RUV1 | E64: 200 | F64: kΩ
D65: Lower UVLO Resistor, RUV2 | E65: ='Variable Management'!E213 -> 19.1 | F65: kΩ
A67: Step 7: Compensation Design
D68: Load Pole Frequency | E68: =Fp_dominant -> 147.3247336 | F68: Hz
D69: COUT ESR Zero Frequency | E69: =Fesr/1000 -> 14.46863121 | F69: kHz
D70: Boost RHP Zero Frequency | E70: =Frhp/1000 -> 22.19663448 | F70: kHz
D71: Desired Crossover Frequency | E71: 8 | F71: =" kHz " -> kHz
D72: Error Amp Pole Frequency | E72: =Fp1_u -> 7.940991671 | F72: Hz
D73: Upper Feedback Resistor, RFB1 | E73: 100 | F73: kΩ
D74: Lower Feedback Resistor, RFB2 | E74: =IF(Vout=Vref,"OPEN",Rfb2_u/1000) -> 1.87 | F74: =IF(Vout=Vref,"","kΩ") -> kΩ
A76: Compensation Components
B77: Calculated / | C77: Std Values | D77: =" Selected" -> Selected | F77: Actual P/Z Frequencies
A78: RC | B78: =Rcea1/1000 -> 42.35105114 | C78: ='Standard Value Calculator'!O27 -> 42.2 | D78: =C78 -> 42.2 | E78: kΩ | F78: =Fp1_u -> 7.940991671 | G78: Hz (FPEA) | I78: Min COMP Voltage | J78: =ROUND('Variable Management'!B269,2)&"V" -> 1.92V
A79: CC1 | B79: =Cc1ea*1000000000 -> 0.9394981883 | C79: ='Standard Value Calculator'!O28 -> 1 | D79: =C79 -> 1 | E79: nF | F79: =Fz1_u/1000 -> 3.771444153 | G79: kHz (FZCOMP) | I79: Max COMP Voltage | J79: =ROUND('Variable Management'!B270,2)&"V" -> 2.18V
A80: CC2 | B80: =IF(Cc2ea*1000000000000<0,0,Cc2ea*1000000000000) -> 234.4679658 | C80: ='Standard Value Calculator'!O29 -> 220 | D80: =C80 -> 220 | E80: pF | F80: =Fp2_u/1000 -> 15.3769642 | G80: kHz (FPCOMP)
A82: Efficiency / Power Loss Analyzer
A84: Step 8: Efficiency
D85: Buck-Leg Power MOSFETs (Q1, Q2) | E85: CSD18563Q5A
E86: Hi-side | F86: Low-side
D87: On-State Resistance, RDS(on) | E87: 3.4 | F87: 3.4 | G87: mΩ
D88: Total Gate Charge, QG | E88: 90 | F88: 90 | G88: nC
D89: Gate-Drain Charge, QGD | E89: 32 | F89: 32 | G89: nC
D90: Gate-Source Charge, QGS | E90: 24 | F90: 24 | G90: nC
D91: Gate Resistance, RG | E91: 0.7 | F91: 0.7 | G91: Ω
D92: Transconductance, gFS | E92: 60 | F92: 60 | G92: S
D93: Gate-Source Threshold Voltage, VTH | E93: 3 | F93: 3 | G93: V
D94: Body Diode Forward Voltage, VBD | E94: 0.5 | F94: 0.5 | G94: V
D95: Body Diode Rev Recovery Charge, QRR | F95: 180 | G95: nC
D96: Thermal Resistance, θJA | E96: 50 | F96: 50 | G96: °C/W
D98: Boost-Leg Power MOSFETs (Q3, Q4) | E98: CSD16321Q5
E99: Hi-side | F99: Low-side
D100: On-State Resistance, RDS(on) | E100: 3.4 | F100: 3.4 | G100: mΩ
D101: Total Gate Charge, QG | E101: 90 | F101: 90 | G101: nC
D102: Gate-Drain Charge, QGD | E102: 32 | F102: 32 | G102: nC
D103: Gate-Source Charge, QGS | E103: 24 | F103: 24 | G103: nC
D104: Gate Resistance, RG | E104: 0.7 | F104: 0.7 | G104: Ω
D105: Transconductance, gFS | E105: 150 | F105: 150 | G105: S
D106: Gate-Source Threshold Voltage, VTH | E106: 3 | F106: 3 | G106: V
D107: Body Diode Forward Voltage, VBD | E107: 0.5 | F107: 0.5 | G107: V
D108: Body Diode Rev Recovery Charge, QRR | E108: 180 | G108: nC
D109: Thermal Resistance, θJA | E109: 50 | F109: 50 | G109: °C/W
A111: External Schottky Diode (if applicable) | E111: Buck Leg | F111: Boost Leg
D112: Schottky Fwd Voltage, VFWDsch | E112: 0 | F112: 0 | G112: V
D113: Schottky Rev Recovery Charge, QRRsch | E113: 0 | F113: 0 | G113: nC

Sheet BOM & Schematic
B45: ** Tie MODE to VCC (or voltage > 2.4V) for CCM, GND for DCM **
A46: ="VIN = "&VIN_min&" V to "&VIN_max&" V, VOUT = "&Vout&" V, IOUT = "&Iout&" A, Fsw = "&Fsw/1000&" kHz, Current Limit = "&ROUNDUP(Ilimit_DC,0)&" A" -> VIN = 13.3 V to 16 V, VOUT = 43.2 V, IOUT = 10 A, Fsw = 200 kHz, Current Limit = 35 A
A47: High Efficiency Synchronous Buck-Boost Regulator BOM
A48: Count | B48: Ref Des | C48: Value | D48: Description | H48: Size | I48: Part Number | J48: MFR
A49: 2 | B49: CBOOT1, CBOOT2 | C49: 0.1 | D49: =C49 -> 0.1 | H49: 0603 | I49: Std | J49: Std
A50: 1 | B50: CC1 | C50: ='Design Converter'!D79 -> 1 | D50: 1 | H50: 0603 | I50: Std | J50: Std
A51: 1 | B51: CC2 | C51: ='Design Converter'!D80 -> 220 | D51: 220 | H51: 0603 | I51: Std | J51: Std
A52: 1 | B52: CSLOPE | C52: =Cslope -> 680 | D52: 680 | H52: 0603 | I52: Std | J52: Std
A53: 1 | B53: CCS | C53: 100 | D53: 100 | H53: 0603 | I53: Std | J53: Std
A54: 1 | B54: CDITH | C54: =Cdither*1000000000 -> 39 | D54: 39 | H54: 0603 | I54: Std | J54: Std
A55: =ROUNDUP('Design Converter'!E51/10,0) -> 90 | B55: CIN | C55: 10 | D55: 10 | H55: 1210 | I55: Std | J55: Std
A56: =ROUNDUP('Design Converter'!E42/22,0) -> 50 | B56: COUT | C56: 22 | D56: 22 | H56: 1210 | I56: Std | J56: Std
A57: 1 | B57: CSS | C57: ='Design Converter'!E59 -> 100 | D57: 100 | H57: 0603 | I57: Std | J57: Std
A58: 1 | B58: CVCC | C58: 1 | D58: 1 | H58: 0603 | I58: Std | J58: Std
A59: 1 | B59: CVIN | C59: 0.1 | D59: 0.1 | H59: 0603 | I59: Std | J59: Std
A60: 3 | B60: DBOOT1, DBOOT2, DVIN | C60: See description | D60: Schottky Diode, 200mA | H60: - | I60: - | J60: Various
A61: 1 | B61: LF | C61: ='Design Converter'!E16 -> 3.3 | D61: ="Inductor, "&Lf*1000000&"µH, "&Rdcr*1000&"mΩ, >"&ROUNDUP(IL_peak_OCP*1.1,0)&"A" -> Inductor, 3.3µH, 2.3mΩ, >141A | H61: - | I61: - | J61: Various
A62: 2 | B62: Q1, Q2 | C62: See description | D62: ='Design Converter'!E87 -> 3.4 | H62: Std | I62: ='Design Converter'!E85 -> CSD18563Q5A | J62: -
A63: 2 | B63: Q3, Q4 | C63: See description | D63: ='Design Converter'!E100 -> 3.4 | H63: Std | I63: ='Design Converter'!E98 -> CSD16321Q5 | J63: -
A64: 1 | B64: RC1 | C64: ='Design Converter'!D78 -> 42.2 | D64: =C64 -> 42.2 | H64: 0603 | I64: Std | J64: Std
A65: 1 | B65: RS | C65: =Rs*1000 -> 1.25 | D65: 1.25 | H65: 2512 | I65: Std | J65: Std
A66: 1 | B66: RCS(out) | C66: ='Standard Value Calculator'!O21 -> 0 | D66: 0 | H66: 2512 | I66: Std | J66: Std
A67: 1 | B67: RT | C67: ='Design Converter'!E12 -> 130 | D67: 130 | H67: 0603 | I67: Std | J67: Std
A68: 1 | B68: RFB1 | C68: ='Design Converter'!E73 -> 100 | D68: 100 | H68: 0603 | I68: Std | J68: Std
A69: 1 | B69: RFB2 | C69: ='Design Converter'!E74 -> 1.87 | D69: 1.87 | H69: 0603 | I69: Std | J69: Std
A70: 1 | B70: RPGOOD | C70: 20 | D70: 20 | H70: 0603 | I70: Std | J70: Std
A71: 2 | B71: RCS, RCSG | C71: 100 | D71: 100 | H71: 0603 | I71: Std | J71: Std
A72: 1 | B72: RUV1 | C72: ='Design Converter'!E64 -> 200 | D72: 200 | H72: 0603 | I72: Std | J72: Std
A73: 1 | B73: RUV2 | C73: ='Design Converter'!E65 -> 19.1 | D73: 19.1 | H73: 0603 | I73: Std | J73: Std
A74: 1 | B74: RVIN | C74: 2.2 | D74: 2.2 | H74: 0603 | I74: Std | J74: Std
A75: 1 | B75: U1 | C75: LM5175 | D75: IC, LM5175, Buck-Boost PWM Controller, 3.5V–42V Input | H75: QFN-28 | I75: LM5175RHF | J75: TI
H76: TSSOP-28 | I76: LM5175PWP
A78: NOTES:
A79: ** For information on TI NexFETTM MOSFETs, see ** | D79: http://www.ti.com/nexfet | E79: **
A80: ** Inductor saturation current should be higher than the peak inductor current at the OCP setpoint for all input voltages and operating temperatures **
A81: ** Effective input and output capacitances should be appropriately derated for applied voltage and temperature, particularly with ceramics **

Sheet EVMs
A1: LM5175 Quickstart Design Tool
B6: LM5175EVM-HD PCB Layout | M6: LM5175EVM-HP PCB Layout | W6: LM5175EVM PCB Layout

Sheet Variable Management (hidden)
A1: EXCEL Variables Names/Calculations
B2: Input from user =
B3: Output =
B4: Constant
A5: Variable Name | B5: Value | C5: STD Units | E5: Notes | I5: Iteration
A6: Step 1: Operational Specs
A7: VIN_min | B7: ='Design Converter'!E6 -> 13.3 | C7: V | D7: Minimum input voltage | I7: 1
B8: ='Design Converter'!E7 -> 14.2 | C8: V | D8: Nominal input voltage | K8: Efficiency vs IOUT Plot | L8: 1 | M8: DITHER Enabled | O8: 1
A9: VIN_max | B9: ='Design Converter'!E8 -> 16 | C9: V | D9: Maximum input voltage | K9: Efficiency vs VIN Plot | L9: 2 | M9: DITHER Disabled | O9: 2
A10: VIN_edgebuckboost | B10: =B40 -> 39.19175258 | C10: V | K10: PLOT_TYPE | L10: 1 | M10: DITHER Yes/No | O10: 1 | P10: 1 = Yes, 2 = No
A12: Vout | B12: ='Design Converter'!E9 -> 43.2 | C12: V | D12: Output Voltage | I12: 1
A13: Iout | B13: ='Design Converter'!E10 -> 10 | C13: A | D13: Maximum Output Current | I13: 1
A14: Rout | B14: =Vout/Iout -> 4.32 | C14: W | D14: Load resistance
A15: Pout | B15: =Vout*Iout -> 432 | C15: W | D15: Output power
A16: Efficiency | B16: 0.96 | D16: Estimate of efficiency
A17: Pin | B17: =Pout/Efficiency -> 450 | C17: W | D17: Calculate input power assuming 90% efficiency
A18: Iin_Vinmin | B18: =Pin/VIN_min -> 33.83458647 | C18: A
A19: Iin_Vinnom | B19: =Pin/VIN_nom -> 31.69014085 | C19: A | D19: Input currents at min, nom, max Vin
A20: Iin_Vinmax | B20: =Pin/VIN_max -> 28.125 | C20: A
A22: Fsw | B22: ='Design Converter'!E11*1000 -> 200000 | C22: Hz | D22: Nominal Switching Frequency | I22: 1
A23: Ts | B23: =1/Fsw -> 5e-06 | C23: sec | D23: Period
A24: Vref | B24: 0.8 | C24: V | D24: Reference Voltage
A25: Rt | B25: =((1/Fsw)-200*10^-9)/(37*10^-12) -> 129729.7297 | C25: W | D25: Frequency Set Resistor
A28: Toff_min_buck | B28: 3e-07 | C28: sec | D28: 200ns | E28: buck min timer
A29: Ton_min_boost | B29: =0.0000003 -> 3e-07 | C29: sec | D29: 300ns | E29: boost min timer
A30: T_max_BB | B30: 1.2e-06 | C30: sec | E30: max timer before transition from BB
A32: D_min_boost | B32: =Ton_min_boost/Ts -> 0.06
A33: D_max_exitBB_to_boost | B33: =B30/(2*Ts) -> 0.12
A34: D_max_buck_BB | B34: =1-B28/(2*Ts) -> 0.97
A36: D_min_boost_exitBB_to_buck | B36: =Ton_min_boost/(2*Ts) -> 0.03
A37: D_max_exitBB_to_buck | B37: =1-B30/(2*Ts) -> 0.88
A38: D_max_buck_enterBB | B38: =1-Toff_min_buck/Ts -> 0.94
A40: VIN_BB_to_boost | B40: =Vout*(1-B33)/B34 -> 39.19175258 | C40: V
A41: VIN_boost_to_BB | B41: =Vout*(1-B32) -> 40.608 | C41: V
A42: VIN_buck_to_BB | B42: =Vout/B38 -> 45.95744681 | C42: V
A43: VIN_BB_to_buck | B43: =Vout/B37*(1-B36) -> 47.61818182 | C43: V
A47: Step 2: Filter Inductor
A48: Don1 | B48: =Vout/VIN_nom -> 3.042253521 | C48: =(Vout-VIN_nom)/Vout -> 0.6712962963 | E48: Ideal Duty Cycle at VIN(nom) | I48: 1
A49: Doff1 | B49: =1-48:48 -> -2.042253521 | E49: Ideal 1- Duty Cycle at VIN(nom) | I49: 1
A51: Don_Vinmin | B51: =IF(VIN_min>Vout,Vout/VIN_min,(Vout-VIN_min)/Vout) -> 0.6921296296 | C51: =IF(VIN_min>Vout,"BUCK","BOOST") -> BOOST
A52: Don_Vinnom | B52: =IF(VIN_nom>Vout,Vout/VIN_nom,(Vout-VIN_nom)/Vout) -> 0.6712962963 | C52: =IF(VIN_nom>Vout,"BUCK","BOOST") -> BOOST
A53: Don_Vinmax | B53: =IF(VIN_max>Vout,Vout/VIN_max,(Vout-VIN_max)/Vout) -> 0.6296296296 | C53: =IF(VIN_max>Vout,"BUCK","BOOST") -> BOOST
A54: Don_buckboost | B54: =B33 -> 0.12 | C54: lower edge of BUCK-BOOST
A56: Lf_Vinmin | B56: =(VIN_min-Vout)*Don_Vinmin/(Fsw*Iout*0.3) -> -3.449112654e-05 | C56: =VIN_min/(Iin_Vinmin*0.3*Fsw)*(1-VIN_min/Vout) -> 4.534474451e-06 | D56: H
A57: Lf_Vinnom | B57: =(VIN_nom-Vout)*Don_Vinnom/(Fsw*Iout*0.4) -> -2.433449074e-05 | C57: =VIN_nom/(Iin_Vinnom*0.4*Fsw)*(1-VIN_nom/Vout) -> 3.760005144e-06 | D57: H | I57: 1
A58: Lf_Vinmax | B58: =(VIN_max-Vout)*Don_Vinmax/(Fsw*Iout*0.8) -> -1.07037037e-05 | C58: =VIN_max/(Iin_Vinmax*0.3*Fsw)*(1-VIN_max/Vout) -> 5.969821674e-06 | D58: H
A60: L_Vinmin | B60: =IF(VIN_min>Vout,(VIN_min-Vout)*Don_Vinmin/(Fsw*Iout*0.3),VIN_min/(Iin_Vinmin*0.3*Fsw)*(1-VIN_min/Vout)) -> 4.534474451e-06 | C60: H | D60: =IF(VIN_min>Vout,"BUCK","BOOST") -> BOOST | E60: Calculated inductance for 30% ripple at VIN(min)
A61: L_Vinnom | B61: =IF(VIN_nom>Vout,(VIN_nom-Vout)*Don_Vinnom/(Fsw*Iout*0.4),VIN_nom/(Iin_Vinnom*0.4*Fsw)*(1-VIN_nom/Vout)) -> 3.760005144e-06 | C61: H | D61: =IF(VIN_nom>Vout,"BUCK","BOOST") -> BOOST | E61: Calculated inductance for 40% ripple at VIN(nom)
A62: L_Vinmax | B62: =IF(VIN_max>Vout,(VIN_max-Vout)*Don_Vinmax/(Fsw*Iout*0.8),VIN_max/(Iin_Vinmax*0.8*Fsw)*(1-VIN_max/Vout)) -> 2.238683128e-06 | C62: H | D62: =IF(VIN_max>Vout,"BUCK","BOOST") -> BOOST | E62: Calculated inductance for 80% ripple at VIN(max)
A64: Lopt | B64: =AVERAGE(B60,B62) -> 3.386578789e-06 | C64: H | D64: min of calculated inductances at VIN(min) and VIN(nom)
A66: Lf | B66: ='Design Converter'!E16/1000000 -> 3.3e-06 | C66: H | E66: Chosen inductance | I66: 2
A67: Rdcr | B67: ='Design Converter'!E17/1000 -> 0.0023 | C67: W | E67: Chosen inductor DCR | I67: 1
A69: Don2 | B69: =(Vout+Iout*(Rdcr+Rs))/(Vin+Iout*Rs) -> 3.042075638 | I69: 2
A70: Doff2 | B70: =1-_Don2 -> -2.042075638 | I70: 2
A72: Don_Vinmin_2 | B72: =IF(VIN_min>Vout,(Vout+Iout*(Rdcr+Rs))/(VIN_min+Iout*Rs),(Vout-VIN_min+Iin_Vinmin*(Rdcr))/(Vout-Iin_Vinmin*Rs)) -> 0.6946110392 | C72: =IF(VIN_min>Vout,"BUCK","BOOST") -> BOOST | E72: Duty cycles adjusted for DCR and shunt voltage drops | I72: 2
A73: Don_Vinnom_2 | B73: =IF(VIN_nom>Vout,(Vout+Iout*(Rdcr+Rs))/(VIN_nom+Iout*Rs),(Vout-VIN_nom+Iin_Vinnom*(Rdcr))/(Vout-Iin_Vinnom*Rs)) -> 0.6736011683 | C73: =IF(VIN_nom>Vout,"BUCK","BOOST") -> BOOST | E73: need to include RDS(on) later
A74: Don_Vinmax_2 | B74: =IF(VIN_max>Vout,(Vout+Iout*(Rdcr+Rs))/(VIN_max+Iout*Rs),(Vout-VIN_max+Iin_Vinmax*(Rdcr))/(Vout-Iin_Vinmax*Rs)) -> 0.6316410563 | C74: =IF(VIN_max>Vout,"BUCK","BOOST") -> BOOST
A76: Vripple1 | B76: ='Design Converter'!E40/1000 -> 0.03 | C76: V | E76: Output voltage ripple spec(pk-pk) | I76: 1
A78: Iripple_Vinmin | B78: =IF(VIN_min>Vout,(VIN_min-Vout)*Don_Vinmin_2/(Fsw*Lf),VIN_min*Don_Vinmin_2/(Lf*Fsw)) -> 13.99746488 | C78: =(VIN_min-Vout)*Don_Vinmin_2/(Fsw*Lf) -> -31.46798496 | D78: A | E78: =IF(VIN_min>Vout,"BUCK","BOOST") -> BOOST | H78: =VIN_min*Don_Vinmin_2/(Lopt*Fsw) -> 13.63961596
A79: Iripple_Vinnom | B79: =IF(VIN_nom>Vout,(VIN_nom-Vout)*Don_Vinnom_2/(Fsw*Lf),VIN_nom*Don_Vinnom_2/(Lf*Fsw)) -> 14.4926312 | C79: =(VIN_nom-Vout)*Don_Vinnom_2/(Fsw*Lf) -> -29.59762709 | D79: A | E79: =IF(VIN_nom>Vout,"BUCK","BOOST") -> BOOST
A80: Iripple_Vinmax | B80: =IF(VIN_max>Vout,(VIN_max-Vout)*Don_Vinmax_2/(Fsw*Lf),VIN_max*Don_Vinmax_2/(Lf*Fsw)) -> 15.31251046 | C80: =(VIN_max-Vout)*Don_Vinmax_2/(Fsw*Lf) -> -26.03126777 | D80: A | E80: =IF(VIN_max>Vout,"BUCK","BOOST") -> BOOST
A81: Iripple_edgebuckboost | B81: =VIN_edgebuckboost*Don_buckboost/(Lf*Fsw/2) -> 14.25154639 | D81: A | E81: BUCK-BOOST
A83: Ishunt_rms_Vinmin | B83: =IF(VIN_min>Vout,SQRT(1-Don_Vinmin_2)*SQRT(Iout^2+(Iripple_Vinmin^2)/12),SQRT(Don_Vinmin_2)*SQRT(Iin_Vinmin^2+(Iripple_Vinmin^2)/12)) -> 28.39925182 | C83: A | E83: =SQRT(1-Don_Vinmin_2)*SQRT(Iout^2+(Iripple_Vinmin^2)/12) -> 5.960294411 | F83: =SQRT(Don_Vinmin_2)*SQRT(Iout^2+(Iripple_Vinmin^2)/12) -> 8.989010464
A84: Ishunt_rms_Vinnom | B84: =IF(VIN_nom>Vout,SQRT(1-Don_Vinnom_2)*SQRT(Iout^2+(Iripple_Vinnom^2)/12),SQRT(Don_Vinnom_2)*SQRT(Iin_Vinnom^2+(Iripple_Vinnom^2)/12)) -> 26.23478905 | C84: A | E84: =SQRT(1-Don_Vinnom_2)*SQRT(Iout^2+(Iripple_Vinnom^2)/12) -> 6.192967923 | F84: =SQRT(Don_Vinnom_2)*SQRT(Iout^2+(Iripple_Vinnom^2)/12) -> 8.896638591
A85: Ishunt_rms_Vinmax | B85: =IF(VIN_max>Vout,SQRT(1-Don_Vinmax_2)*SQRT(Iout^2+(Iripple_Vinmax^2)/12),SQRT(Don_Vinmax_2)*SQRT(Iin_Vinmax^2+(Iripple_Vinmax^2)/12)) -> 22.62697155 | C85: A | E85: =SQRT(1-Don_Vinmax_2)*SQRT(Iout^2+(Iripple_Vinmax^2)/12) -> 6.635767667 | F85: =SQRT(Don_Vinmax_2)*SQRT(Iout^2+(Iripple_Vinmax^2)/12) -> 8.689418978
A86: Max shunt power loss at full load | B86: =MAX(B83,B85)^2*Rs -> 1.00814688 | C86: W | D86: =IF(B85>B83,"BUCK","BOOST") -> BOOST
A88: Max inductor ripple current | B88: =MAX(B78:B80) -> 15.31251046 | C88: A
F89: Ripple I | G89: Iin
A90: % Ripple Current | B90: =IF(VIN_min>Vout,B78/Iout,B78/Iin_Vinmin) -> 0.413702851 | C90: =IF(VIN_min>Vout,"BUCK","BOOST") -> BOOST | F90: =B78 -> 13.99746488 | G90: =Iin_Vinmin -> 33.83458647
B91: =IF(VIN_nom>Vout,B79/Iout,B79/Iin_Vinnom) -> 0.4573230288 | C91: =IF(VIN_nom>Vout,"BUCK","BOOST") -> BOOST | F91: =B79 -> 14.4926312 | G91: =Iin_Vinnom -> 31.69014085
B92: =IF(VIN_max>Vout,B80/Iout,B80/Iin_Vinmax) -> 0.5444448162 | C92: =IF(VIN_max>Vout,"BUCK","BOOST") -> BOOST | F92: =B80 -> 15.31251046 | G92: =Iin_Vinmax -> 28.125
A94: Temp | B94: 100
A95: DCR at hot | B95: =Rdcr*(1+0.0039*(B94-25)) -> 0.00297275 | C95: W
A98: Step 3: Sense Resistors, Slope Comp, Current Limit
A100: Ilimit_DC | B100: ='Design Converter'!E26 -> 35 | C100: A | E100: Chosen OCP level - based on output current | K100: At Iout = Ilimit_DC: | N100: Shunt
K101: I_valley BUCK | L101: I_peak BOOST
A102: Ilimit_inductor_Vinmin | B102: =IF(VIN_min>Vout,Ilimit_DC-Iripple_Vinmin/2,Ilimit_DC/(1-Don_Vinmin_2)+Iripple_Vinmin/2) -> 121.6066735 | C102: A | D102: =IF(VIN_min>Vout,"BUCK","BOOST") -> BOOST | E102: Valley inductor current at current limit inception (if operating in buck) | K102: =Ilimit_DC-Iripple_Vinmin/2 -> 28.00126756 | L102: =Ilimit_DC/(1-Don_Vinmin_2)+Iripple_Vinmin/2 -> 121.6066735 | M102: =IF(VIN_min>Vout,"BUCK","BOOST") -> BOOST | N102: =IF(VIN_min>Vout,Buck_CS_threshold/K102,Boost_CS_Threshold/L102) -> 0.001315717267 | P102: =Boost_CS_Threshold/L102 -> 0.001315717267
A103: Ilimit_inductor_Vinnom | B103: =IF(VIN_nom>Vout,Ilimit_DC-Iripple_Vinnom/2,Ilimit_DC/(1-Don_Vinnom_2)+Iripple_Vinnom/2) -> 114.4770916 | C103: A | D103: =IF(VIN_nom>Vout,"BUCK","BOOST") -> BOOST | E103: or | K103: =Ilimit_DC-Iripple_Vinnom/2 -> 27.7536844 | L103: =Ilimit_DC/(1-Don_Vinnom_2)+Iripple_Vinnom/2 -> 114.4770916 | M103: =IF(VIN_nom>Vout,"BUCK","BOOST") -> BOOST | N103: =IF(VIN_nom>Vout,Buck_CS_threshold/K103,Boost_CS_Threshold/L103) -> 0.001397659548 | P103: =Boost_CS_Threshold/L103 -> 0.001397659548
A104: Ilimit_inductor_Vinmax | B104: =IF(VIN_max>Vout,Ilimit_DC-Iripple_Vinmax/2,Ilimit_DC/(1-Don_Vinmax_2)+Iripple_Vinmax/2) -> 102.6722732 | C104: A | D104: =IF(VIN_max>Vout,"BUCK","BOOST") -> BOOST | E104: Peak inductor current at current limit inception (if operating in boost) | K104: =Ilimit_DC-Iripple_Vinmax/2 -> 27.34374477 | L104: =Ilimit_DC/(1-Don_Vinmax_2)+Iripple_Vinmax/2 -> 102.6722732 | M104: =IF(VIN_max>Vout,"BUCK","BOOST") -> BOOST | N104: =IF(VIN_max>Vout,Buck_CS_threshold/K104,Boost_CS_Threshold/L104) -> 0.001558356459 | P104: =Boost_CS_Threshold/L104 -> 0.001558356459
A105: Ilimit_inductor_buckboost | B105: =Ilimit_DC/(1-Don_buckboost)+Iripple_edgebuckboost/2 -> 46.89850047 | C105: A | D105: edge of buck-boost
A107: Buck CS threshold_min | B107: 0.064 | C107: V
A108: Buck CS threshold | B108: 0.08 | C108: V | D108: 80mV ± 20%
A109: Buck CS threshold_max | B109: 0.096 | C109: V
A111: Boost CS Threshold_min | B111: 0.128 | C111: V
A112: Boost CS Threshold | B112: 0.16 | C112: V | D112: 160mV ± 20%
A113: Boost CS Threshold_max | B113: 0.192 | C113: V
A115: Assume we'd like to achieve current limit particularly at VIN(min) and boost side of buck-boost region; accept inevitable variation over line thereafter
A116: Shunt required to get OCP at VIN(min) | B116: =IF(VIN_min>Vout,Buck_CS_threshold/B102,Boost_CS_Threshold/B102) -> 0.001315717267 | C116: W | D116: =IF(VIN_min>Vout,"BUCK","BOOST") -> BOOST
A117: Shunt required to get OCP at VIN(nom) | B117: =IF(VIN_nom>Vout,Buck_CS_threshold/B103,Boost_CS_Threshold/B103) -> 0.001397659548 | C117: W | D117: =IF(VIN_nom>Vout,"BUCK","BOOST") -> BOOST
A118: Shunt required to get OCP at VIN(max) | B118: =IF(VIN_max>Vout,Buck_CS_threshold/B104,Boost_CS_Threshold/B104) -> 0.001558356459 | C118: W | D118: =IF(VIN_max>Vout,"BUCK","BOOST") -> BOOST
A119: Shunt required to get OCP at VIN(edge-bb) | B119: =IF(VIN_min<VIN_edgebuckboost,Buck_CS_threshold/B105,10) -> 0.001705811469 | C119: W | D119: Edge of B-B
A121: Rs_ideal | B121: =MIN(B116:B119) -> 0.001315717267 | C121: W | E121: Ideal Rs for the required OCP -- based on 80mV or 160mV CL threshold
A122: Rs | B122: ='Design Converter'!E28/1000 -> 0.00125 | C122: W | E122: Selected (starndard value) current limit sense resistor
A124: BOOST current limit - peak | B124: =Boost_CS_Threshold/Rs -> 128 | C124: A | E124: Peak inductor current limit in BOOST
A125: BUCK current limit - valley | B125: =Buck_CS_threshold/Rs -> 64 | C125: A | E125: Valley inductor current limit in BUCK
A127: Iout_OCP_Vinmin | B127: =IF(VIN_min>Vout,Buck_CS_threshold/Rs+Iripple_Vinmin/2,(Boost_CS_Threshold/Rs-Iripple_Vinmin/2)*(1-Don_Vinmin_2)) -> 36.95245135 | C127: A | D127: =IF(VIN_min>Vout,"BUCK","BOOST") -> BOOST | E127: Current limit setpoints (i.e. IOUT) after standard components are selected
A128: Iout_OCP_Vinnom | B128: =IF(VIN_nom>Vout,Buck_CS_threshold/Rs+Iripple_Vinnom/2,IF(VIN_nom<VIN_edgebuckboost,(Boost_CS_Threshold/Rs-Iripple_Vinnom/2)*(1-Don_Vinnom_2),(Buck_CS_threshold/Rs-Iripple_Vinnom/2)*(1-Don_Vinnom_2))) -> 39.41386152 | C128: A | D128: =IF(VIN_nom>Vout,"BUCK",IF(VIN_nom<VIN_edgebuckboost,"BOOST","BUCK-BOOST")) -> BOOST
A129: Iout_OCP_Vinmax | B129: =IF(VIN_max>Vout,Buck_CS_threshold/Rs+Iripple_Vinmax/2,(Boost_CS_Threshold/Rs-Iripple_Vinmax/2)*(1-Don_Vinmax_2)) -> 44.32969471 | C129: A | D129: =IF(VIN_max>Vout,"BUCK","BOOST") -> BOOST
A130: Iout_edgebuckboost | B130: =(Buck_CS_threshold/Rs-Iripple_edgebuckboost/2)*(1-Don_buckboost) -> 50.04931959 | C130: A | D130: lower edge of buck-boost window | K130: RMS current in Rs | M130: Power diss in Rs
A132: ILpeak_OCP_Vinmin | B132: =IF(VIN_min>Vout,Buck_CS_threshold/Rs+Iripple_Vinmin,Boost_CS_Threshold/Rs) -> 128 | C132: A | D132: =IF(VIN_min>Vout,"BUCK","BOOST") -> BOOST | E132: Peak inductor currents in OCP | H132: =SQRT(Don_Vinmin_2)*SQRT(Iin_Vinmin^2+(Iripple_Vinmin^2)/12) -> 28.39925182 | K132: =IF(VIN_min>Vout,SQRT(1-Don_Vinmin_2)*SQRT(Iout_OCP_Vinmin^2+(Iripple_Vinmin^2)/12),SQRT(Don_Vinmin_2)*SQRT(Iin_Vinmin^2+(Iripple_Vinmin^2)/12)) -> 28.39925182 | L132: A | M132: =K132^2*Rs -> 1.00814688 | N132: W
A133: ILpeak_OCP_Vinnom | B133: =IF(VIN_nom>Vout,Buck_CS_threshold/Rs+Iripple_Vinnom,IF(VIN_nom<VIN_edgebuckboost,Boost_CS_Threshold/Rs,Buck_CS_threshold/Rs)) -> 128 | C133: A | D133: =IF(VIN_nom>Vout,"BUCK",IF(VIN_nom<VIN_edgebuckboost,"BOOST","BUCK-BOOST")) -> BOOST | H133: =SQRT(1-Don_Vinnom_2)*SQRT(Iout_OCP_Vinnom^2+(Iripple_Vinnom^2)/12) -> 22.64416135 | K133: =IF(VIN_nom>Vout,SQRT(1-Don_Vinnom_2)*SQRT(Iout_OCP_Vinnom^2+(Iripple_Vinnom^2)/12),SQRT(Don_Vinnom_2)*SQRT(Iin_Vinnom^2+(Iripple_Vinnom^2)/12)) -> 26.23478905 | L133: A | M133: =K133^2*Rs -> 0.8603301959 | N133: W
A134: ILpeak_OCP_Vinmax | B134: =IF(VIN_max>Vout,Buck_CS_threshold/Rs+Iripple_Vinmax,Boost_CS_Threshold/Rs) -> 128 | C134: A | D134: =IF(VIN_max>Vout,"BUCK","BOOST") -> BOOST | H134: =SQRT(1-Don_Vinmax_2)*SQRT(Iout_OCP_Vinmax^2+(Iripple_Vinmax^2)/12) -> 27.03826401 | K134: =IF(VIN_max>Vout,SQRT(1-Don_Vinmax_2)*SQRT(Iout_OCP_Vinmax^2+(Iripple_Vinmax^2)/12),SQRT(Don_Vinmax_2)*SQRT(Iin_Vinmax^2+(Iripple_Vinmax^2)/12)) -> 22.62697155 | L134: A | M134: =K134^2*Rs -> 0.6399748018 | N134: W
A135: Worst case peak inductor current | B135: =MAX(B132:B134) -> 128 | C135: A
A137: IL_peak_OCP | B137: =MAX(B132:B134) -> 128 | C137: A | E137: Peak inductor current over the full input range
A139: Cslope_ideal | B139: =Lf/Rs*0.4*10^6*0.7 -> 739.2 | C139: pF | E139: Ideal slope capacitor - actually derated to 70% of nom to provide more slope comp
A140: Cslope_recommended | B140: ='Standard Value Calculator'!O14 -> 680 | C140: pF | E140: Standard size based on Csideal slope capacitor
A141: Cslope_selected | B141: ='Design Converter'!E32 -> 680 | C141: pF | E141: Selected SLOPE cap
A143: Islope_fixed | B143: 4e-06 | C143: A
G144: =Islope_fixed/(Cslope*10^-12) -> 5882.352941
A145: SLOPE comp dv/dt = I_slope_total/Cslope | B145: =(ABS((VIN_min-Vout))*2*10^-6+Islope_fixed)/(Cslope*10^-12) -> 93823.52941 | C145: V/s | E145: at VIN_min
A146: SLOPE comp dv/dt = I_slope_total/Cslope | B146: =(ABS((VIN_nom-Vout))*2*10^-6+Islope_fixed)/(Cslope*10^-12) -> 91176.47059 | C146: V/s | E146: at VIN_nom
A147: SLOPE comp dv/dt = I_slope_total/Cslope | B147: =(ABS((VIN_max-Vout))*2*10^-6+Islope_fixed)/(Cslope*10^-12) -> 85882.35294 | C147: V/s | E147: at VIN_max
K148: BUCK | L148: BOOST
A149: DV_SLOPEcomp at Vinmin | B149: =IF(D149="BUCK",K149,L149) -> 0.3258542964 | C149: V | D149: =IF(VIN_min>Vout,"BUCK","BOOST") -> BOOST | E149: at VIN_min | K149: =B145*(1-Don_Vinmin_2)/Fsw -> 0.1432633507 | L149: =B145*Don_Vinmin_2/Fsw -> 0.3258542964 | N149: =IF(VIN_min>Vout,"BUCK","BOOST") -> BOOST
A150: DV_SLOPEcomp at Vinnom | B150: =IF(D150="BUCK",K150,L150) -> 0.3070828855 | C150: V | D150: =IF(VIN_nom>Vout,"BUCK",IF(VIN_nom<VIN_edgebuckboost,"BOOST","BUCK-BOOST")) -> BOOST | E150: at VIN_nom | K150: =B146*(1-Don_Vinnom_2)/Fsw -> 0.1487994674 | L150: =B146*Don_Vinnom_2/Fsw -> 0.3070828855 | N150: =IF(VIN_nom>Vout,"BUCK","BOOST") -> BOOST
A151: DV_SLOPEcomp at Vinmax | B151: =IF(D151="BUCK",K151,L151) -> 0.2712341006 | C151: V | D151: =IF(VIN_max>Vout,"BUCK","BOOST") -> BOOST | E151: at VIN_max | K151: =B147*(1-Don_Vinmax_2)/Fsw -> 0.1581776641 | L151: =B147*Don_Vinmax_2/Fsw -> 0.2712341006 | N151: =IF(VIN_max>Vout,"BUCK","BOOST") -> BOOST
A154: Required Constant Current Loop Setpoint | B154: ='Design Converter'!E36 -> N/A | C154: A
A155: Current Limit Threshold | B155: 50 | C155: mV
A156: Shunt Resistor in Output Leg | B156: =IF(Constant_Current_Loop_Setpoint="N/A",0,Iout_threshold/Constant_Current_Loop_Setpoint) -> 0 | C156: mΩ
A159: Step 4: Output Capacitor
A160: Icoutrms_VINmin | B160: =IF(D160="BUCK",Iripple_Vinmin/SQRT(12),Iout*SQRT((Vout-VIN_min)/VIN_min)) -> 14.99373303 | C160: A | D160: =IF(VIN_min>Vout,"BUCK","BOOST") -> BOOST | E160: Output Cap RMS current
A161: Icoutrms_VINnom | B161: =IF(D161="BUCK",Iripple_Vinnom/SQRT(12),Iout*SQRT((Vout-VIN_nom)/VIN_nom)) -> 14.29074358 | C161: A | D161: =IF(VIN_nom>Vout,"BUCK",IF(VIN_nom<VIN_edgebuckboost,"BOOST","BUCK-BOOST")) -> BOOST
A162: Icoutrms_VINmax | B162: =IF(D162="BUCK",Iripple_Vinmax/SQRT(12),Iout*SQRT((Vout-VIN_max)/VIN_max)) -> 13.03840481 | C162: A | D162: =IF(VIN_max>Vout,"BUCK","BOOST") -> BOOST
A163: Max Cout rms current | B163: =MAX(B160:B162) -> 14.99373303 | C163: A
A165: Output Ripple Spec (pk-pk) | B165: =Vripple1*1000 -> 30 | C165: mV | E165: Vout ripple spec at Vin(nom)
A167: Coutmin | B167: =IF(VIN_min>Vout,Iripple_Vinmin/(Fsw*8*Vripple1),Iout*Don_Vinmin_2/(Vripple1*Fsw)) -> 0.001157685065 | C167: F | E167: Minimum Output Capacitnace | H167: =Vripple2 -> 0.1315732291 | I167: 1 | K167: =Coutmin -> 0.001157685065
A168: Reported Coutmin | B168: =IF(Coutmin*1000000<22,22,Coutmin*1000000) -> 1157.685065 | C168: uF | K168: =Coutmin*1000000 -> 1157.685065
A169: Cout | B169: ='Design Converter'!E42/1000000 -> 0.0011 | C169: F | E169: Chosen Output Capacitance | I169: 1
A170: Resrmax | B170: =IF(VIN_min>Vout,SQRT((Vripple1/Iripple_Vinmin)^2-(1/(Fsw*Cout*8))^2),(Vripple1-Iout*Don_Vinmin_2/(Fsw*Cout))/Iout) -> -0.0001573229057 | C170: W | E170: Max ESR before ripple exceeds Vripple1 | I170: 1
A172: Reported Cout ESR max | B172: =IF(OR(CoutEsrMax>0.3,CoutEsrMax<0,(ISERROR(CoutEsrMax))),"N/A",CoutEsrMax*1000) -> N/A | C172: mΩ
A173: CoutEsr | B173: ='Design Converter'!E44/1000 -> 0.01 | C173: W | E173: Chosen ESR | I173: 1 | K173: =ISERROR(CoutEsrMax) -> FALSE | L173: =ISERROR(B172) -> FALSE
A174: Vripple | B174: =IF(VIN_min>Vout,Iripple_Vinmax*SQRT(CoutEsr^2+(1/(8*Fsw*Cout))^2),CoutEsr*Iout+Iout*Don_Vinmin_2/(Fsw*Cout)) -> 0.1315732291 | C174: Vp-p | L174: =OR(CoutEsrMax>0.3,CoutEsrMax<0) -> TRUE
K175: =OR(TRUE,FALSE,TRUE) -> TRUE
A176: Step 5: Input Capacitor
A178: Icinrms_VINmin | B178: =IF(D178="BUCK",Iout*SQRT(Don_Vinmin_2*(1-Don_Vinmax_2)),Iripple_Vinmin/SQRT(12)) -> 4.040720059 | C178: A | D178: =IF(VIN_min>Vout,"BUCK","BOOST") -> BOOST | F178: =Iripple_Vinmin/SQRT(12) -> 4.040720059 | G178: =Iout*SQRT(Don_Vinmax_2*(1-Don_Vinmax_2)) -> 4.823594431 | H178: =Iout*0.25 -> 2.5
A179: Icinrms_VINnom | B179: =IF(D179="BUCK",Iout*SQRT(Don_Vinnom_2*(1-Don_Vinnom_2)),Iripple_Vinnom/SQRT(12)) -> 4.183662261 | C179: A | D179: =IF(VIN_nom>Vout,"BUCK",IF(VIN_nom<VIN_edgebuckboost,"BOOST","BUCK-BOOST")) -> BOOST
A180: Icinrms_VINmiax | B180: =IF(D180="BUCK",Iout*SQRT(Don_Vinmax_2*(1-Don_Vinmax_2)),Iripple_Vinmax/SQRT(12)) -> 4.420341017 | C180: A | D180: =IF(VIN_max>Vout,"BUCK","BOOST") -> BOOST
A181: Max Cin rms current | B181: =MAX(B178:B180) -> 4.420341017 | C181: A | D181: …report this
A183: Vinripple1 | B183: ='Design Converter'!E49/1000 -> 0.02 | C183: Vp-p | D183: Input voltage ripple spec (pk-pk)
A185: Cinmin_Vinmax | B185: =IF(VIN_max>Vout,Iout*Don_Vinmax_2*(1-Don_Vinmax_2)/(Vinripple1*Fsw),Iripple_Vinmax/(Fsw*8*Vinripple1)) -> 0.0004785159517 | C185: F | D185: Calculate cap at Vinmax and 50% duty cycle (Vin = 2*Vout) | K185: =Iripple_Vinnom/(Fsw*8*Vinripple1) -> 0.0004528947249
A186: Cinmin_50%D | B186: =IF(VIN_max>Vout,Iout*0.5*(1-0.5)/(Vinripple1*Fsw),Iripple_Vinmax/(Fsw*8*Vinripple1)) -> 0.0004785159517 | D186: Buck 50% typically worst case
A187: Cinmin | B187: =IF(VIN_max<2*Vout,B185,B186) -> 0.0004785159517
A188: Reported Cinmin | B188: =IF(Cinmin*1000000<10,10,Cinmin*1000000) -> 478.5159517 | C188: uF | D188: …report this
A189: Cin | B189: ='Design Converter'!E51/1000000 -> 0.0009 | C189: F | D189: Input capacitance
A190: CinEsrMax_Vinmax | B190: =IF(VIN_max>Vout,-(Iout*Don_Vinmax_2*(1-Don_Vinmax_2)/(Cin*Fsw)-Vinripple1)/(Iout+Iripple_Vinmax/2),SQRT((Vinripple1/Iripple_Vinmax)^2-(1/(Fsw*Cin*8))^2)) -> 0.001106209942 | C190: W
A191: CinEsrMax_50%D | B191: =IF(VIN_max>Vout,-(Iout*0.5*(1-0.5)/(Cin*Fsw)-Vinripple1)/(Iout+Iripple_Vinmax/2),SQRT((Vinripple1/Iripple_Vinmax)^2-(1/(Fsw*Cin*8))^2)) -> 0.001106209942 | C191: W | D191: Calculate ESR at Vinmax and 50% duty cycle (Vin = 2*Vout)
A192: CinEsrMax | B192: =IF(VIN_max<2*Vout,B190,B191) -> 0.001106209942 | C192: W
A193: Reported Cin ESR max | B193: =IF(OR(CinEsrMax>0.3,CinEsrMax<0),"N/A",CinEsrMax*1000) -> 1.106209942 | C193: mΩ | D193: …report this
A194: RCinEsr | B194: ='Design Converter'!E53/1000 -> 0.01 | C194: W | D194: Input capacitance series resistance (ESR)
K195: =CinEsrMax -> 0.001106209942
A196: Vinripple2_Vinmax | B196: =IF(VIN_max>Vout,Iout*Don_Vinmax_2*(1-Don_Vinmax_2)/(Cin*Fsw)+(Iout+Iripple_Vinmax/2)*RCinEsr,Iripple_Vinmax*SQRT(RCinEsr^2+(1/(8*Fsw*Cin))^2)) -> 0.1534938857 | C196: Vp-p
A197: Vinripple2_50%D | B197: =IF(VIN_max>Vout,Iout*0.5*(1-0.5)/(Cin*Fsw)+(Iout+Iripple_Vinmax/2)*RCinEsr,Iripple_Vinmax*SQRT(RCinEsr^2+(1/(8*Fsw*Cin))^2)) -> 0.1534938857 | C197: Vp-p | D197: Calculate ripple at Vinmax and 50% duty cycle (Vin = 2*Vout)
A198: Vinripple2 | B198: =IF(VIN_max<2*Vout,B196,B197) -> 0.1534938857 | C198: Vp-p | D198: …report highest of these
B200: =Iout*Don_Vinmax_2*(1-Don_Vinmax_2)/(Cin*Fsw) -> 0.01292614624 | C200: Vp-p
A202: Step 6a: Soft Start
A203: Tss | B203: ='Design Converter'!E58/1000 -> 0.016 | C203: s | D203: Soft-start time
A204: Iss | B204: =Cout*Vout/Tss -> 2.97 | C204: A | D204: Load cap current during soft start
A205: Css | B205: =0.000005*Tss/0.8 -> 1e-07 | C205: F
A206: Css_u | B206: ='Standard Value Calculator'!B4 -> 1e-07 | C206: F
A208: Step 6b: Other Components - UVLO, Dither, MODE
A210: VINUVLO_ON | B210: ='Design Converter'!E62 -> 13.8 | C210: V
A212: RUV1 | B212: ='Design Converter'!E64 -> 200 | C212: kΩ | E212: ='Standard Value Calculator'!O16 -> 200 | F212: kΩ | G212: =IF(Ruvlo1<0,"N/A",E212) -> 200 | H212: =IF(Ruvlo1<0,"N/A",E212&"kΩ") -> 200kΩ
A213: RUV2 | B213: =Vuvlo_on/((VINuvlo_on-Vuvlo_on)/Ruvlo1+Iuvlo1) -> 18.96232242 | C213: kΩ | E213: ='Standard Value Calculator'!O17 -> 19.1 | F213: kΩ | G213: =IF(G212="N/A","N/A",E213) -> 19.1 | H213: =IF(H212="N/A","N/A",E213&"kΩ") -> 19.1kΩ
A215: VINUVLO_ON_ACTUAL | B215: =(E212+E213)/E213*Vuvlo_on-Iuvlo1*E212 -> 13.70663874
A216: VINUVLO_OFF_ACTUAL | B216: =(E212+E213)/E213*Vuvlo_off-Iuvlo2*E212 -> 13.00663874
A218: Rising UVLO/EN Threshold | B218: 1.228 | C218: V
A219: Falling UVLO/EN Threshold | B219: 1.228 | C219: V
A220: Voltage Hysteresis | B220: =B218-B219 -> 0 | C220: V
A221: Rising UVLO/EN Current | B221: 0.0019 | C221: mA
A222: Falling UVLO/EN Current | B222: 0.0054 | C222: mA | E222: 5.4uA if UVLO > 2V
A223: UVLO/EN Current Hysteresis | B223: =B222-B221 -> 0.0035 | C223: mA | E223: 3.5uA hysteresis current
A225: RPG | B225: 20 | C225: kΩ
A226: RSB | C226: W
A227: Rh | B227: 0 | C227: W
A228: Rmode | C228: W | D228: TBD | E228: Tie to GND or VCC for DCM/CCM, respectively. Use 93.1k or 200k for hiccup in DCM, CCM, respectively.
A230: Dither Modulation Frequency | B230: ='Design Converter'!E60*1000 -> 1000 | C230: Hz
A231: Cdither_calculated | B231: =10*10^-6/Fdither/0.24 -> 4.166666667e-08 | C231: F
A232: Cdither_stdvalue | B232: ='Standard Value Calculator'!O19 -> 3.9e-08 | C232: F
A235: Step 7: Compensation
A236: Pi | B236: 3.14159265 | D236: p
A237: CS Amp Gain | B237: 5
A238: Ri | B238: =Rs*CSAmp_gain -> 0.00625 | C238: W | D238: Current Sense effective resistance = shunt resistor Rs * CS amp gain
A239: gm | B239: 0.00127 | C239: S | D239: Error Amp Transconductance
A241: gm_slopecomp | B241: 2e-06 | C241: S | D241: adaptive slope comp gm amplifier transconductance
A242: Isc_const | B242: 4e-06 | C242: A | D242: slope comp constant current source
A244: Se_fixed | B244: =Isc_const/(Cslope*10^-12) -> 5882.352941 | C244: V/s
A245: Se_proportional | B245: =(ABS((Vin-Vout))*gm_slopecomp)/(Cslope*10^-12) -> 85294.11765 | C245: V/s
A246: Se | B246: =Se_fixed+Se_proportional -> 91176.47059 | C246: V/s | D246: Slope comp slope - internal
A248: V_sc_fixed | B248: =Se_fixed/Fsw -> 0.02941176471 | C248: V/s | D248: Fixed slope comp amplitude over full period
A249: V_sc_proportional | B249: =Se_proportional/Fsw -> 0.4264705882 | C249: V/s | D249: Proportional slope comp amplitude over full period
A250: V_sc_total | B250: =Se/Fsw -> 0.4558823529 | C250: V/s | D250: Total slope comp amplitude over full period
A251: K_SL | B251: =gm_slopecomp/(Cslope*10^-12*Fsw) -> 0.01470588235 | D251: Proportional slope comp factor, where Vslope= Abs(Vin-Vout)*KSL
D252: KSL = gm/(Cslope*Fsw)
A254: Se_ext | B254: =(ABS((Vin-Vout))*gm_slopecomp+0.000004)/(Cslope*10^-12)/Ri -> 14588235.29 | C254: A/s | D254: Slope Comp Slope - referred to inductor current
A255: Sn | B255: =IF(VIN_nom>Vout,(Vin-Vout)/Lf,Vin/Lf) -> 4303030.303 | C255: A/s | D255: On-time Slope | I255: =Cslope -> 680
A256: Sf | B256: =IF(VIN_nom>Vout,Vout/Lf,(Vout-Vin)/Lf) -> 8787878.788 | C256: A/s | D256: Off-time Slope
A258: Se_int | B258: =Se/1000 -> 91.17647059 | C258: mV/μs | D258: Slope Comp Slope - referred to IC
A259: Sn_int | B259: =Sn*Ri/1000 -> 26.89393939 | C259: mV/μs | D259: etc
A260: Sf_int | B260: =Sf*Ri/1000 -> 54.92424242 | C260: mV/μs | D260: etc
A262: Toff_Vinmax | B262: =(1-Don_Vinmax_2)/Fsw -> 1.841794719e-06 | C262: sec
... 190 more rows

Sheet Schematic Management (hidden)
A2: =IF(DITHER=1,"SCH_WITH_DITH","SCH_NO_DITH") -> SCH_WITH_DITH

Sheet Efficiency Plot Management (hidden)
A2: =IF(PLOT_TYPE=1,"EFF_IOUT","EFF_VIN") -> EFF_IOUT

Sheet Efficiency vs VIN Calculations (hidden)
A1: BUCK-BOOST CONTROLLER POWER TOOL
H2: =BD9 -> 0.8791427515 | I2: Low VIN
H3: =BD109 -> 0.9109734965 | I3: Nom VIN
H4: =BD209 -> 0.9257369294 | I4: High VIN
A6: Enter the values of your design and MOSFET datasheet specifications below. Note that thermal resistance (θJA) will change when components are placed on the PCB | BU6: 80 | BV6: 100 | BW6: 120 | BX6: 140 | BY6: 160 | BZ6: 180 | CA6: 20 | CB6: 30 | CC6: 40 | CD6: 50
G7: Operating Point Condtions | Q7: Filter Inductor | U7: Cout | X7: Cin | AA7: High-side BUCK "Control" MOSFET Losses | AF7: Low-side BUCK "Sync" MOSFET Losses | AJ7: Low-side BOOST "Control" MOSFET Losses | AO7: High-side BOOST "Sync" MOSFET Losses | AS7: Pass FET | AT7: External Diode | AU7: Diode/FET | AV7: Sense Rs | AW7: Output Rs | AX7: Controller IC Losses | BB7: RESULTS | BH7: Consolidated Buck/Boost Efficiency & Losses
A8: Input Parameters | G8: Step | H8: Vin | I8: Mode | J8: Mode Digit | K8: Iout | L8: Iin | M8: Avg IL | N8: Actual Duty Cycle BUCK Leg | O8: Actual Duty Cycle BOOST Leg | P8: Ripple Current pk-pk | Q8: Irms Lf | R8: DCR Loss | S8: Core Loss | T8: Total Inductor Loss | U8: Irms Cout | V8: Cout ESR Loss | W8: Total Cout Loss | X8: Irms Cin | Y8: Cin ESR Loss | Z8: Total Cin Loss | AA8: Irms | AB8: RDS(on) Loss | AC8: Transition Loss | AD8: Dead Time Loss | AE8: Total Control MOSFET Loss | AF8: Irms | AG8: RDS(on) Loss | AH8: Deadtime Loss | AI8: Total Sync MOSFET Loss | AJ8: Irms | AK8: RDS(on) Loss | AL8: Transition Loss | AM8: Dead Time Loss | AN8: Total Control MOSFET Loss | AO8: Irms | AP8: RDS(on) Loss | AQ8: Deadtime Loss | AR8: Total Sync MOSFET Loss | AS8: Q1/Q3 RDS(on) Loss @ D = 100% | AT8: Deadtime Loss | AU8: Reverse Recovery Loss | AV8: Isense Shunt Loss | AW8: Iout Shunt Loss | AX8: IQ Loss | AY8: Switching Current Loss | AZ8: Switching Current Diss | BA8: Total IC Loss | BB8: Total Loss | BC8: Pout | BD8: EFF, h | BE8: Control FET Temp Rise | BF8: Sync FET Temp Rise | BH8: h | BI8: Inductor Cu & Core Loss | BJ8: Total MOSFET Loss | BK8: Total Sync MOSFET Loss | BL8: Shunt Loss | BS8: Qg | BU8: θJA=80 | BV8: θJA=100 | BW8: θJA=120 | BX8: θJA=140 | BY8: θJA=160 | BZ8: θJA=180 | CA8: θJA=20 | CB8: θJA=30 | CC8: θJA=40 | CD8: θJA=50
A9: Design | B9: Input Value | C9: Units | D9: Description | G9: 0 | H9: =VIN_min+(VIN_max-VIN_min)*(G9/200) -> 13.3 | I9: =IF(H9>VIN_BB_to_buck,"BUCK",IF(H9<VIN_boost_to_BB,"BOOST","BUCK-BST")) -> BOOST | J9: =IF(I9="BOOST",2,IF(I9="BUCK",1,3)) -> 2 | K9: =Iout -> 10 | L9: =Vout*K9/(H9*Efficiency) -> 33.83458647 | M9: =Iout/(1-O9) -> 33.03345083 | N9: =CHOOSE(J9,(Vout+(Rdson2+Rs+Rdcr)*K9)/(H9+(Rs+Rdson2-Rdson1)*K9),1,IF(H9<Vout,D_max_buck_BB,Vout/H9*(1-D_min_boost_exitBB_to_buck))) -> 1 | O9: =CHOOSE(J9,0,(Vout+(Rdson3+Rdcr)*L9-H9)/(Vout+(Rdson3-Rdson4-Rs)*L9),IF(H9>Vout,D_min_boost_exitBB_to_buck,(Vout-H9*D_max_buck_BB)/Vout)) -> 0.6972765561 | P9: =MAX(0,CHOOSE(J9,(H9-(Rdson1+Rdcr)*K9-Vout)*N9/(Fsw*Lf),(H9-(Rdson4+Rdcr+Rs)*L9)*O9/(Fsw*Lf),IF(H9<Vout,(H9-(Rdson4+Rdcr+Rs)*L9)*O9/(0.5*Fsw*Lf),(H9-(Rdson1+Rdcr)*K9-Vout)*N9/(0.5*Fsw*Lf)))) -> 13.8027475 | Q9: =CHOOSE(J9,SQRT(K9^2+(P9^2)/12),SQRT(L9^2+(P9^2)/12),SQRT(M9^2+(P9^2)/12)) -> 34.06839534 | R9: =(Q9^2*Rdcr*(1+Ltc*Ta-Ltc*25))/(1-Q9^2*Rdcr*Ltc*ThetaCa) -> 3.39442285 | S9: =ABS(7.759*10^-3*Fsw^0.9458*(0.00787*P9)^2.304) -> 4.812007738 | T9: =R9+S9 -> 8.206430589 | U9: =IF(H9>Vout,P9/SQRT(12),SQRT(O9/(1-O9))*SQRT(K9^2+(P9^2)/12)) -> 16.33717086 | V9: =RCoutEsr*U9^2 -> 2.669031517 | W9: =V9 -> 2.669031517 | X9: =IF(H9>Vout,SQRT(N9*(1-N9))*SQRT(K9^2+(P9^2)/12),P9/SQRT(12)) -> 3.984509993 | Y9: =RCinEsr*X9^2 -> 0.1587631988 | Z9: =Y9 -> 0.1587631988 | AA9: =CHOOSE(J9,SQRT(N9)*SQRT(K9^2+(P9^2)/12),SQRT(L9^2+(P9^2)/12),SQRT(N9)*SQRT(M9^2+(P9^2)/12)) -> 34.06839534 | AB9: =Rdson1*AA9^2 -> 3.946228908 | AC9: =CHOOSE(J9,(H9*K9/2)*(Fsw)*(Tr_buck+Tf_buck),0,(H9*M9/2)*(Fsw/2)*(Tr_buck+Tf_buck)) -> 0 | AD9: =IF(H9>Vout,IF(K9>P9/2,0,ABS(K9-P9/2)*Vsd_Q1*Deadtime*Fsw),0) -> 0 | AE9: =(AD9+AC9+AB9*(1+RdsonTopTc*Ta-RdsonTopTc*25))/(1-AB9*RdsonTopTc*ThetaJA_Q1) -> 18.72431754 | AF9: =CHOOSE(J9,SQRT((1-N9))*SQRT(K9^2+(P9^2)/12),0,SQRT((1-N9))*SQRT(M9^2+(P9^2)/12)) -> 0 | AG9: =Rdson2*AF9^2 -> 0 | AH9: =CHOOSE(J9,IF(K9<P9/2,Deadtime*Fsw*IF(VfdSky_Q2>0,0,Vsd_Q2)*(K9+P9/2),2*Deadtime*Fsw*IF(VfdSky_Q2>0,0,Vsd_Q2)*K9),0,IF(K9<P9/2,Deadtime*Fsw/2*IF(VfdSky_Q2>0,0,Vsd_Q2)*(K9+P9/2),2*Deadtime*Fsw/2*IF(VfdSky_Q2>0,0,Vsd_Q2)*K9)) -> 0 | AI9: =(AH9+AG9*(1+RdsonBotTc*Ta-RdsonBotTc*25))/(1-AG9*RdsonBotTc*ThetaJA_Q2) -> 0 | AJ9: =CHOOSE(J9,0,SQRT(O9)*SQRT(L9^2+(P9^2)/12),SQRT(O9)*SQRT(M9^2+(P9^2)/12)) -> 28.44816185 | AK9: =Rdson4*AJ9^2 -> 2.751612903 | AL9: =CHOOSE(J9,0,(Vout*L9/2)*(Fsw)*(Tr_boost+Tf_boost),(Vout*Iout/2)*(Fsw/2)*(Tr_boost+Tf_boost)) -> 7.754384042 | AM9: =IF(H9>Vout,0,IF(L9>P9/2,0,ABS(L9-P9/2)*Vsd_Q4*Deadtime*Fsw)) -> 0 | AN9: =(AM9+AL9+AK9*(1+RdsonTopTc*Ta-RdsonTopTc*25))/(1-AK9*RdsonTopTc*ThetaJA_Q4) -> 23.36340783 | AO9: =CHOOSE(J9,SQRT(Iout^2+(P9^2)/12),SQRT(1-O9)*SQRT(L9^2+(P9^2)/12),SQRT(1-O9)*SQRT(M9^2+(P9^2)/12)) -> 18.7445365 | AP9: =Rdson3*AO9^2 -> 1.194616006 | AQ9: =CHOOSE(J9,0,IF(L9<P9/2,Deadtime*Fsw*IF(VfdSky_Q3>0,0,Vsd_Q3)*(L9+P9/2),2*Deadtime*Fsw*IF(VfdSky_Q3>0,0,Vsd_Q3)*L9),IF(L9<P9/2,Deadtime*Fsw/2*IF(VfdSky_Q3>0,0,Vsd_Q3)*(L9+P9/2),2*Deadtime*Fsw/2*IF(VfdSky_Q3>0,0,Vsd_Q3)*L9)) -> 0.3383458647 | AR9: =(AQ9+AP9*(1+RdsonBotTc*Ta-RdsonBotTc*25))/(1-AP9*RdsonBotTc*ThetaJA_Q3) -> 2.01420129 | AS9: =CHOOSE(J9,Rdson3*Q9^2,Rdson1*Q9^2,0) -> 3.946228908 | AT9: =CHOOSE(J9,2*Deadtime*Fsw*IF(VfdSky_Q2>0,VfdSky_Q2,0)*K9,2*Deadtime*Fsw*IF(VfdSky_Q3>0,VfdSky_Q3,0)*L9,2*Deadtime*Fsw/2*IF(VfdSky_Q2>0,VfdSky_Q2,0)*K9+2*Deadtime*Fsw/2*IF(VfdSky_Q3>0,VfdSky_Q3,0)*L9) -> 0 | AU9: =CHOOSE(J9,IF(QrrSky_Q2>0,QrrSky_Q2,Qrr_Q2)*Fsw*(H9-K9*Rdson1),IF(QrrSky_Q3>0,QrrSky_Q3,Qrr_Q3)*Fsw*Vout,IF(QrrSky_Q2>0,QrrSky_Q2,Qrr_Q2)*Fsw/2*(H9-K9*Rdson1)+IF(QrrSky_Q3>0,QrrSky_Q3,Qrr_Q3)*Fsw/2*Vout) -> 1.5552 | AV9: =CHOOSE(J9,Rs*AF9^2,Rs*AJ9^2,Rs*(AF9^2+AJ9^2)) -> 1.011622391 | AW9: =Rshunt_std/1000*Iout^2 -> 0 | AX9: =IF(Vout>8,Iq*Vout,Iq*H9) -> 0.1296 | AY9: =CHOOSE(J9,(Qg_Q1+Qg_Q2)*Fsw,(Qg_Q3+Qg_Q4)*Fsw,(Qg_Q1+Qg_Q2+Qg_Q3+Qg_Q4)*Fsw/2)*IF(Vout>8,Vout,H9) -> 1.5552 | AZ9: =(Vin-Vdd)*Fsw*(Qg_Q1+Qg_Q2)+(RdsonDRT+RdsonDRT2)*Fsw*Qg_Q1*Vdd/(RdsonDRT+2*Rgate1+RdsonDRT2)+(RdsonDRB+RdsonDRB2)*Fsw*Qg_Q2*Vdd/(RdsonDRB+2*Rgate2+RdsonDRB2) -> 0.4142769231 | BA9: =SUM(AX9:AY9) -> 1.6848 | BB9: =SUM(T9,W9,Z9,AE9,AI9,AN9,AR9,AT9,AU9,BA9,AV9,AW9) -> 59.38777436 | BC9: =Vout*K9 -> 432 | BD9: =BC9/(BC9+BB9) -> 0.8791427515 | BE9: =IF(H9>Vout,ThetaJA_Q1*(AE9+AU9),ThetaJA_Q4*(AN9+AU9)) -> 1245.930392 | BF9: =IF(H9>Vout,AI9*ThetaJA_Q2,ThetaJA_Q3*AR9) -> 100.7100645 | BH9: =BD9*100 -> 87.91427515 | BI9: =T9 -> 8.206430589 | BJ9: =AE9+AI9+AN9+AR9+AU9 -> 45.65712666 | BK9: =AI9+AU9*0.33 -> 0.513216 | BL9: =AV9 -> 1.011622391 | BP9: 250kHz / 5-1.2V /25A | BQ9: 70 | BR9: 70 | BS9: 70 | BT9: =250000*(5-Vdd)*BS9/1000000000+((250000*BS9/1000000000*Vdd)*2.5/(2*4)) -> -0.002734375 | BU9: =BU$6*$BT9 -> -0.21875 | BV9: -0.2734375 | BW9: -0.328125 | BX9: -0.3828125 | BY9: -0.4375 | BZ9: -0.4921875 | CA9: -0.0546875 | CB9: -0.08203125 | CC9: -0.109375 | CD9: -0.13671875
G10: 1 | H10: 13.3135 | I10: BOOST | J10: =IF(I10="BOOST",2,IF(I10="BUCK",1,3)) -> 2 | K10: 10 | L10: 33.80027791 | M10: 32.99878353 | N10: 1 | O10: =CHOOSE(J10,0,(Vout+(Rdson3+Rdcr)*L10-H10)/(Vout+(Rdson3-Rdson4-Rs)*L10),IF(H10>Vout,D_min_boost_exitBB_to_buck,(Vout-H10*D_max_buck_BB)/Vout)) -> 0.696958526 | P10: 13.81095979 | Q10: 34.03460011 | R10: 3.385868536 | S10: =7.759*10^-3*Fsw^0.9458*(0.00787*P10)^2.304 -> 4.818606705 | T10: =R10+S10 -> 8.204475241 | U10: 16.32620293 | V10: 2.66544902 | W10: =V10 -> 2.66544902 | X10: 3.986880677 | Y10: 0.1589521753 | Z10: =Y10 -> 0.1589521753 | AA10: 34.03460011 | AB10: 3.938403615 | AC10: 0 | AD10: 0 | AE10: 18.54943966 | AF10: 0 | AG10: 0 | AH10: 0 | AI10: 0 | AJ10: 28.41345983 | AK10: 2.744903979 | AL10: 7.746521031 | AM10: 0 | AN10: 23.26159266 | AO10: 18.73577607 | AP10: 1.193499637 | AQ10: 0.3380027791 | AR10: 2.011693511 | AS10: 3.938403615 | AT10: 0 | AU10: 1.5552 | AV10: 1.009155875 | AW10: 0 | AX10: 0.1296 | AY10: 1.5552 | AZ10: 0.4142769231 | BA10: =SUM(AX10:AY10) -> 1.6848 | BB10: =SUM(T10,W10,Z10,AE10,AI10,AN10,AR10,AT10,AU10,BA10,AV10,AW10) -> 59.10075814 | BC10: 432 | BD10: =BC10/(BC10+BB10) -> 0.8796565528 | BE10: 1240.839633 | BF10: 100.5846755 | BH10: =BD10*100 -> 87.96565528 | BI10: =T10 -> 8.204475241 | BJ10: =AE10+AI10+AN10+AR10+AU10 -> 45.37792583 | BK10: =AI10+AU10*0.33 -> 0.513216 | BL10: =AV10 -> 1.009155875
A11: Vin | B11: =Vin -> 14.2 | C11: V | D11: Vin | G11: 2 | H11: 13.327 | I11: BOOST | J11: 2 | K11: 10 | L11: 33.76603887 | M11: 32.96419013 | N11: 1 | O11: 0.6966405072 | P11: 13.81915855 | Q11: 34.00087464 | R11: 3.377349504 | S11: 4.825199908 | T11: 8.202549413 | U11: 16.31524846 | V11: 2.661873323 | W11: 2.661873323 | X11: 3.989247455 | Y11: 0.1591409526 | Z11: 0.1591409526 | AA11: 34.00087464 | AB11: 3.930602219 | AC11: 0 | AD11: 0 | AE11: 18.37764342 | AF11: 0 | AG11: 0 | AH11: 0 | AI11: 0 | AJ11: 28.37882767 | AK11: 2.738216723 | AL11: 7.738673952 | AM11: 0 | AN11: 23.16068649 | AO11: 18.72702903 | AP11: 1.192385496 | AQ11: 0.3376603887 | AR11: 2.009192215 | AS11: 3.930602219 | AT11: 0 | AU11: 1.5552 | AV11: 1.006697325 | AW11: 0 | AX11: 0.1296 | AY11: 1.5552 | AZ11: 0.4142769231 | BA11: =SUM(AX11:AY11) -> 1.6848 | BB11: =SUM(T11,W11,Z11,AE11,AI11,AN11,AR11,AT11,AU11,BA11,AV11,AW11) -> 58.81778313 | BC11: 432 | BD11: 0.8801637081 | BE11: 1235.794324 | BF11: 100.4596108 | BH11: 88.01637081 | BI11: 8.202549413 | BJ11: 45.10272212 | BK11: 0.513216 | BL11: 1.006697325 | BP11: 250kHz / 12-5V / 30A | BQ11: 90 | BR11: 90 | BS11: 90 | BT11: =250000*(12-Vdd)*BS11/1000000000+((250000*BS9/1000000000*Vdd)*2.5/(2*4)) -> 0.142265625 | BU11: 11.38125 | BV11: 14.2265625 | BW11: 17.071875 | BX11: 19.9171875 | BY11: 22.7625 | BZ11: 25.6078125 | CA11: 2.8453125 | CB11: 4.26796875 | CC11: 5.690625 | CD11: 7.11328125
A12: Vout | B12: =Vout -> 43.2 | C12: V | D12: Vout | G12: 3 | H12: 13.3405 | I12: BOOST | J12: 2 | K12: 10 | L12: 33.73186912 | M12: 32.9296704 | N12: 1 | O12: 0.6963224995 | P12: 13.82734379 | Q12: 33.96721872 | R12: 3.368865551 | S12: 4.831787325 | T12: 8.200652876 | U12: 16.30430741 | V12: 2.658304402 | W12: 2.658304402 | X12: 3.99161033 | Y12: 0.1593295302 | Z12: 0.1593295302 | AA12: 33.96721872 | AB12: 3.922824621 | AC12: 0 | AD12: 0 | AE12: 18.20884834 | AF12: 0 | AG12: 0 | AH12: 0 | AI12: 0 | AJ12: 28.34426514 | AK12: 2.731551045 | AL12: 7.730842753 | AM12: 0 | AN12: 23.06067716 | AO12: 18.71829536 | AP12: 1.191273576 | AQ12: 0.3373186912 | AR12: 2.00669738 | AS12: 3.922824621 | AT12: 0 | AU12: 1.5552 | AV12: 1.004246708 | AW12: 0 | AX12: 0.1296 | AY12: 1.5552 | AZ12: 0.4142769231 | BA12: 1.6848 | BB12: 58.53875639 | BC12: 432 | BD12: 0.8806643601 | BE12: 1230.793858 | BF12: 100.334869 | BH12: 88.06643601 | BI12: 8.200652876 | BJ12: 44.83142287 | BK12: 0.513216 | BL12: 1.004246708 | BP12: 250kHz / 18-1.2V / 20A | BQ12: 60 | BR12: 60 | BS12: 60 | BT12: =250000*(18-Vdd)*BS12/1000000000+((250000*BS9/1000000000*Vdd)*2.5/(2*4)) -> 0.198515625 | BU12: 15.88125 | BV12: 19.8515625 | BW12: 23.821875 | BX12: 27.7921875 | BY12: 31.7625 | BZ12: 35.7328125 | CA12: 3.9703125 | CB12: 5.95546875 | CC12: 7.940625 | CD12: 9.92578125
A13: Fsw | B13: =Fsw/1000 -> 200 | C13: kHz | D13: Switching Frequency | G13: 4 | H13: 13.354 | I13: BOOST | J13: 2 | K13: 10 | L13: 33.69776846 | M13: 32.8952241 | N13: 1 | O13: 0.696004503 | P13: 13.8355155 | Q13: 33.93363214 | R13: 3.360416474 | S13: 4.838368932 | T13: 8.198785406 | U13: 16.29337974 | V13: 2.654742234 | W13: 2.654742234 | X13: 3.9939693 | Y13: 0.1595179077 | Z13: 0.1595179077 | AA13: 33.93363214 | AB13: 3.915070726 | AC13: 0 | AD13: 0 | AE13: 18.04297671 | AF13: 0 | AG13: 0 | AH13: 0 | AI13: 0 | AJ13: 28.30977203 | AK13: 2.724906854 | AL13: 7.723027389 | AM13: 0 | AN13: 22.96155273 | AO13: 18.70957502 | AP13: 1.190163871 | AQ13: 0.3369776846 | AR13: 2.004208979 | AS13: 3.915070726 | AT13: 0 | AU13: 1.5552 | AV13: 1.001803991 | AW13: 0 | AX13: 0.1296 | AY13: 1.5552 | AZ13: 0.4142769231 | BA13: 1.6848 | BB13: 58.26358795 | BC13: 432 | BD13: 0.8811586473 | BE13: 1225.837636 | BF13: 100.210449 | BH13: 88.11586473 | BI13: 8.198785406 | BJ13: 44.56393841 | BK13: 0.513216 | BL13: 1.001803991 | BP13: 500kHz / 5-1.2V / 15A | BQ13: 30 | BR13: 30 | BS13: 30 | BT13: =500000*(5-Vdd)*BS13/1000000000+((500000*BS9/1000000000*Vdd)*2.5/(2*4)) -> 0.04453125 | BU13: 3.5625 | BV13: 4.453125 | BW13: 5.34375 | BX13: 6.234375 | BY13: 7.125 | BZ13: 8.015625 | CA13: 0.890625 | CB13: 1.3359375 | CC13: 1.78125 | CD13: 2.2265625
A14: Iout | B14: =Iout -> 10 | C14: A | D14: Max Output Current | G14: 5 | H14: 13.3675 | I14: BOOST | J14: 2 | K14: 10 | L14: 33.66373667 | M14: 32.86085099 | N14: 1 | O14: 0.6956865176 | P14: 13.8436737 | Q14: 33.90011468 | R14: 3.35200207 | S14: 4.844944708 | T14: 8.196946778 | U14: 16.28246541 | V14: 2.651186799 | W14: 2.651186799 | X14: 3.996324368 | Y14: 0.1597060845 | Z14: 0.1597060845 | AA14: 33.90011468 | AB14: 3.907340436 | AC14: 0 | AD14: 0 | AE14: 17.87995349 | AF14: 0 | AG14: 0 | AH14: 0 | AI14: 0 | AJ14: 28.27534813 | AK14: 2.718284061 | AL14: 7.71522781 | AM14: 0 | AN14: 22.86330146 | AO14: 18.70086798 | AP14: 1.189056375 | AQ14: 0.3366373667 | AR14: 2.00172699 | AS14: 3.907340436 | AT14: 0 | AU14: 1.5552 | AV14: 0.9993691401 | AW14: 0 | AX14: 0.1296 | AY14: 1.5552 | AZ14: 0.4142769231 | BA14: 1.6848 | BB14: 57.99219074 | BC14: 432 | BD14: 0.8816467041 | BE14: 1220.925073 | BF14: 100.0863495 | BH14: 88.16467041 | BI14: 8.196946778 | BJ14: 44.30018194 | BK14: 0.513216 | BL14: 0.9993691401 | BP14: 500kHz / 12-5V / 15A | BQ14: 45 | BR14: 45 | BS14: 45 | BT14: =500000*(12-Vdd)*BS14/1000000000+((500000*BS9/1000000000*Vdd)*2.5/(2*4)) -> 0.18328125 | BU14: 14.6625 | BV14: 18.328125 | BW14: 21.99375 | BX14: 25.659375 | BY14: 29.325 | BZ14: 32.990625 | CA14: 3.665625 | CB14: 5.4984375 | CC14: 7.33125 | CD14: 9.1640625
A15: Ta | B15: =Ta -> 25 | C15: °C | D15: Ambient Temperature | G15: 6 | H15: 13.381 | I15: BOOST | J15: 2 | K15: 10 | L15: 33.62977356 | M15: 32.82655083 | N15: 1 | O15: 0.6953685432 | P15: 13.85181837 | Q15: 33.86666614 | R15: 3.34362214 | S15: 4.851514631 | T15: 8.19513677 | U15: 16.27156438 | V15: 2.647638072 | W15: 2.647638072 | X15: 3.998675533 | Y15: 0.1598940601 | Z15: 0.1598940601 | AA15: 33.86666614 | AB15: 3.899633657 | AC15: 0 | AD15: 0 | AE15: 17.71970618 | AF15: 0 | AG15: 0 | AH15: 0 | AI15: 0 | AJ15: 28.24099323 | AK15: 2.711682575 | AL15: 7.707443969 | AM15: 0 | AN15: 22.76591183 | AO15: 18.69217422 | AP15: 1.187951082 | AQ15: 0.3362977356 | AR15: 1.999251387 | AS15: 3.899633657 | AT15: 0 | AU15: 1.5552 | AV15: 0.9969421233 | AW15: 0 | AX15: 0.1296 | AY15: 1.5552 | AZ15: 0.4142769231 | BA15: 1.6848 | BB15: 57.72448042 | BC15: 432 | BD15: 0.8821286606 | BE15: 1216.055591 | BF15: 99.96256936 | BH15: 88.21286606 | BI15: 8.19513677 | BJ15: 44.0400694 | BK15: 0.513216 | BL15: 0.9969421233 | BP15: 1Mhz / 5-1.2V / 10A | BQ15: 20 | BR15: 20 | BS15: 20 | BT15: =1000000*(5-Vdd)*BS15/1000000000+((1000000*BS9/1000000000*Vdd)*2.5/(2*4)) -> 0.1140625 | BU15: 9.125 | BV15: 11.40625 | BW15: 13.6875 | BX15: 15.96875 | BY15: 18.25 | BZ15: 20.53125 | CA15: 2.28125 | CB15: 3.421875 | CC15: 4.5625 | CD15: 5.703125
A16: Vcc | B16: =Vdd -> 7.5 | C16: V | D16: Subregulated VCC Voltage | G16: 7 | H16: 13.3945 | I16: BOOST | J16: 2 | K16: 10 | L16: 33.59587891 | M16: 32.79232339 | N16: 1 | O16: 0.6950505799 | P16: 13.85994953 | Q16: 33.83328631 | R16: 3.335276485 | S16: 4.858078677 | T16: 8.193355162 | U16: 16.26067659 | V16: 2.644096032 | W16: 2.644096032 | X16: 4.001022796 | Y16: 0.1600818341 | Z16: 0.1600818341 | AA16: 33.83328631 | AB16: 3.891950294 | AC16: 0 | AD16: 0 | AE16: 17.56216473 | AF16: 0 | AG16: 0 | AH16: 0 | AI16: 0 | AJ16: 28.20670711 | AK16: 2.705102309 | AL16: 7.699675819 | AM16: 0 | AN16: 22.66937251 | AO16: 18.6834937 | AP16: 1.186847985 | AQ16: 0.3359587891 | AR16: 1.996782148 | AS16: 3.891950294 | AT16: 0 | AU16: 1.5552 | AV16: 0.9945229076 | AW16: 0 | AX16: 0.1296 | AY16: 1.5552 | AZ16: 0.4142769231 | BA16: 1.6848 | BB16: 57.46037532 | BC16: 432 | BD16: 0.8826046434 | BE16: 1211.228626 | BF16: 99.83910738 | BH16: 88.26046434 | BI16: 8.193355162 | BJ16: 43.78351939 | BK16: 0.513216 | BL16: 0.9945229076 | BP16: 1Mhz / 12-1.2V/ 10A | BQ16: 25 | BR16: 25 | BS16: 25 | BT16: =1000000*(12-Vdd)*BS16/1000000000+((1000000*BS9/1000000000*Vdd)*2.5/(2*4)) -> 0.2765625 | BU16: 22.125 | BV16: 27.65625 | BW16: 33.1875 | BX16: 38.71875 | BY16: 44.25 | BZ16: 49.78125 | CA16: 5.53125 | CB16: 8.296875 | CC16: 11.0625 | CD16: 13.828125
A17: Components | B17: Input Value | C17: Units | D17: Description | G17: 8 | H17: 13.408 | I17: BOOST | J17: 2 | K17: 10 | L17: 33.56205251 | M17: 32.75816843 | N17: 1 | O17: 0.6947326277 | P17: 13.86806717 | Q17: 33.79997499 | R17: 3.326964909 | S17: 4.864636824 | T17: 8.191601733 | U17: 16.24980202 | V17: 2.640560657 | W17: 2.640560657 | X17: 4.003366158 | Y17: 0.1602694059 | Z17: 0.1602694059 | AA17: 33.79997499 | AB17: 3.884290251 | AC17: 0 | AD17: 0 | AE17: 17.4072614 | AF17: 0 | AG17: 0 | AH17: 0 | AI17: 0 | AJ17: 28.17248957 | AK17: 2.698543172 | AL17: 7.691923311 | AM17: 0 | AN17: 22.57367238 | AO17: 18.67482639 | AP17: 1.185747078 | AQ17: 0.3356205251 | AR17: 1.994319247 | AS17: 3.884290251 | AT17: 0 | AU17: 1.5552 | AV17: 0.9921114605 | AW17: 0 | AX17: 0.1296 | AY17: 1.5552 | AZ17: 0.4142769231 | BA17: 1.6848 | BB17: 57.19979628 | BC17: 432 | BD17: 0.8830747749 | BE17: 1206.443619 | BF17: 99.71596237 | BH17: 88.30747749 | BI17: 8.191601733 | BJ17: 43.53045302 | BK17: 0.513216 | BL17: 0.9921114605 | BP17: 500kHz / 18-1.2V / 20A | BQ17: 50 | BR17: 50 | BS17: 50 | BT17: =500000*(18-Vdd)*BS17/1000000000+((500000*BS15/1000000000*Vdd)*2.5/(2*4)) -> 0.2859375 | BU17: 22.875 | BV17: 28.59375 | BW17: 34.3125 | BX17: 40.03125 | BY17: 45.75 | BZ17: 51.46875 | CA17: 5.71875 | CB17: 8.578125 | CC17: 11.4375 | CD17: 14.296875
A18: L | B18: =Lf*1000000 -> 3.3 | C18: uH | D18: Filter Inductance | G18: 9 | H18: 13.4215 | I18: BOOST | J18: 2 | K18: 10 | L18: 33.52829415 | M18: 32.72408573 | N18: 1 | O18: 0.6944146864 | P18: 13.8761713 | Q18: 33.76673195 | R18: 3.318687216 | S18: 4.871189051 | T18: 8.189876267 | U18: 16.23894062 | V18: 2.637031924 | W18: 2.637031924 | X18: 4.005705619 | Y18: 0.1604567751 | Z18: 0.1604567751 | AA18: 33.76673195 | AB18: 3.876653434 | AC18: 0 | AD18: 0 | AE18: 17.25493072 | AF18: 0 | AG18: 0 | AH18: 0 | AI18: 0 | AJ18: 28.13834038 | AK18: 2.692005079 | AL18: 7.684186399 | AM18: 0 | AN18: 22.4788005 | AO18: 18.66617226 | AP18: 1.184648355 | AQ18: 0.3352829415 | AR18: 1.991862662 | AS18: 3.876653434 | AT18: 0 | AU18: 1.5552 | AV18: 0.9897077494 | AW18: 0 | AX18: 0.1296 | AY18: 1.5552 | AZ18: 0.4142769231 | BA18: 1.6848 | BB18: 56.94266659 | BC18: 432 | BD18: 0.8835391745 | BE18: 1201.700025 | BF18: 99.59313312 | BH18: 88.35391745 | BI18: 8.189876267 | BJ18: 43.28079388 | BK18: 0.513216 | BL18: 0.9897077494 | BP18: θJA=120°C/W - 160°C/W
A19: Rdcr | B19: =Rdcr*1000 -> 2.3 | C19: mW | D19: Inductor DCR at 25°C | G19: 10 | H19: 13.435 | I19: BOOST | J19: 2 | K19: 10 | L19: 33.49460365 | M19: 32.69007504 | N19: 1 | O19: 0.694096756 | P19: 13.88426193 | Q19: 33.733557 | R19: 3.310443211 | S19: 4.877735335 | T19: 8.188178546 | U19: 16.22809234 | V19: 2.633509812 | W19: 2.633509812 | X19: 4.008041181 | Y19: 0.1606439411 | Z19: 0.1606439411 | AA19: 33.733557 | AB19: 3.86903975 | AC19: 0 | AD19: 0 | AE19: 17.10510935 | AF19: 0 | AG19: 0 | AH19: 0 | AI19: 0 | AJ19: 28.10425936 | AK19: 2.685487939 | AL19: 7.676465036 | AM19: 0 | AN19: 22.38474612 | AO19: 18.65753129 | AP19: 1.183551811 | AQ19: 0.3349460365 | AR19: 1.989412369 | AS19: 3.86903975 | AT19: 0 | AU19: 1.5552 | AV19: 0.9873117424 | AW19: 0 | AX19: 0.1296 | AY19: 1.5552 | AZ19: 0.4142769231 | BA19: 1.6848 | BB19: 56.68891188 | BC19: 432 | BD19: 0.8839979576 | BE19: 1196.997306 | BF19: 99.47061846 | BH19: 88.39979576 | BI19: 8.188178546 | BJ19: 43.03446784 | BK19: 0.513216 | BL19: 0.9873117424 | BP19: θJA=30°C/W - 50°C/W
A20: LTc | B20: =Ltc*1000000 -> 4000 | C20: ppm | D20: Inductor Series Resistance Temp Co | G20: 11 | H20: 13.4485 | I20: BOOST | J20: 2 | K20: 10 | L20: 33.46098078 | M20: 32.65613614 | N20: 1 | O20: 0.6937788366 | P20: 13.89233904 | Q20: 33.70044992 | R20: 3.302232702 | S20: 4.884275653 | T20: 8.186508355 | U20: 16.21725716 | V20: 2.629994298 | W20: 2.629994298 | X20: 4.010372843 | Y20: 0.1608309034 | Z20: 0.1608309034 | AA20: 33.70044992 | AB20: 3.861449105 | AC20: 0 | AD20: 0 | AE20: 16.95773602 | AF20: 0 | AG20: 0 | AH20: 0 | AI20: 0 | AJ20: 28.07024627 | AK20: 2.678991668 | AL20: 7.668759174 | AM20: 0 | AN20: 22.29149869 | AO20: 18.64890343 | AP20: 1.182457437 | AQ20: 0.3346098078 | AR20: 1.986968345 | AS20: 3.861449105 | AT20: 0 | AU20: 1.5552 | AV20: 0.9849234072 | AW20: 0 | AX20: 0.1296 | AY20: 1.5552 | AZ20: 0.4142769231 | BA20: 1.6848 | BB20: 56.43846002 | BC20: 432 | BD20: 0.8844512367 | BE20: 1192.334935 | BF20: 99.34841723 | BH20: 88.44512367 | BI20: 8.186508355 | BJ20: 42.79140306 | BK20: 0.513216 | BL20: 0.9849234072
A21: ThetaCa | B21: =ThetaCa -> 20 | C21: °C/W | D21: Core to Ambient Thermal Resistance | G21: 12 | H21: 13.462 | I21: BOOST | J21: 2 | K21: 10 | L21: 33.42742535 | M21: 32.62226879 | N21: 1 | O21: 0.693460928 | P21: 13.90040265 | Q21: 33.66741052 | R21: 3.294055499 | S21: 4.890809983 | T21: 8.184865482 | U21: 16.20643502 | V21: 2.626485361 | W21: 2.626485361 | X21: 4.012700606 | Y21: 0.1610176616 | Z21: 0.1610176616 | AA21: 33.66741052 | AB21: 3.853881407 | AC21: 0 | AD21: 0 | AE21: 16.81275144 | AF21: 0 | AG21: 0 | AH21: 0 | AI21: 0 | AJ21: 28.03630093 | AK21: 2.672516177 | AL21: 7.661068768 | AM21: 0 | AN21: 22.19904783 | AO21: 18.64028867 | AP21: 1.18136523 | AQ21: 0.3342742535 | AR21: 1.984530565 | AS21: 3.853881407 | AT21: 0 | AU21: 1.5552 | AV21: 0.9825427121 | AW21: 0 | AX21: 0.1296 | AY21: 1.5552 | AZ21: 0.4142769231 | BA21: 1.6848 | BB21: 56.19124106 | BC21: 432 | BD21: 0.8848991208 | BE21: 1187.712392 | BF21: 99.22652823 | BH21: 88.48991208 | BI21: 8.184865482 | BJ21: 42.55152984 | BK21: 0.513216 | BL21: 0.9825427121
A22: Cin | B22: =Cin*1000000 -> 900 | C22: μF | D22: Input Capacitance | G22: 13 | H22: 13.4755 | I22: BOOST | J22: 2 | K22: 10 | L22: 33.39393715 | M22: 32.58847277 | N22: 1 | O22: 0.6931430303 | P22: 13.90845276 | Q22: 33.63443859 | R22: 3.28591141 | S22: 4.897338304 | T22: 8.183249714 | U22: 16.19562589 | V22: 2.622982979 | W22: 2.622982979 | X22: 4.015024472 | Y22: 0.1612042151 | Z22: 0.1612042151 | AA22: 33.63443859 | AB22: 3.846336563 | AC22: 0 | AD22: 0 | AE22: 16.67009822 | AF22: 0 | AG22: 0 | AH22: 0 | AI22: 0 | AJ22: 28.00242311 | AK22: 2.666061381 | AL22: 7.65339377 | AM22: 0 | AN22: 22.10738334 | AO22: 18.63168697 | AP22: 1.180275182 | AQ22: 0.3339393715 | AR22: 1.982099006 | AS22: 3.846336563 | AT22: 0 | AU22: 1.5552 | AV22: 0.9801696252 | AW22: 0 | AX22: 0.1296 | AY22: 1.5552 | AZ22: 0.4142769231 | BA22: 1.6848 | BB22: 55.9471871 | BC22: 432 | BD22: 0.8853417161 | BE22: 1183.129167 | BF22: 99.10495032 | BH22: 88.53417161 | BI22: 8.183249714 | BJ22: 42.31478057 | BK22: 0.513216 | BL22: 0.9801696252
A23: RCinEsr | B23: =RCinEsr*1000 -> 10 | C23: mW | D23: Input Capacitor ESR | G23: 14 | H23: 13.489 | I23: BOOST | J23: 2 | K23: 10 | L23: 33.36051598 | M23: 32.55474785 | N23: 1 | O23: 0.6928251434 | P23: 13.91648936 | Q23: 33.60153393 | R23: 3.277800248 | S23: 4.903860593 | T23: 8.181660841 | U23: 16.18482972 | V23: 2.619487131 | W23: 2.619487131 | X23: 4.01734444 | Y23: 0.1613905635 | Z23: 0.1613905635 | AA23: 33.60153393 | AB23: 3.838814481 | AC23: 0 | AD23: 0 | AE23: 16.52972077 | AF23: 0 | AG23: 0 | AH23: 0 | AI23: 0 | AJ23: 27.96861262 | AK23: 2.659627193 | AL23: 7.645734135 | AM23: 0 | AN23: 22.01649519 | AO23: 18.6230983 | AP23: 1.179187287 | AQ23: 0.3336051598 | AR23: 1.979673647 | AS23: 3.838814481 | AT23: 0 | AU23: 1.5552 | AV23: 0.9778041151 | AW23: 0 | AX23: 0.1296 | AY23: 1.5552 | AZ23: 0.4142769231 | BA23: 1.6848 | BB23: 55.70623226 | BC23: 432 | BD23: 0.8857791257 | BE23: 1178.584759 | BF23: 98.98368234 | BH23: 88.57791257 | BI23: 8.181660841 | BJ23: 42.08108961 | BK23: 0.513216 | BL23: 0.9778041151
A24: Cout | B24: =Cout*1000000 -> 1100 | C24: μF | D24: Output Capcitance | G24: 15 | H24: 13.5025 | I24: BOOST | J24: 2 | K24: 10 | L24: 33.32716164 | M24: 32.52109379 | N24: 1 | O24: 0.6925072673 | P24: 13.92451247 | Q24: 33.56869633 | R24: 3.269721826 | S24: 4.910376827 | T24: 8.180098653 | U24: 16.17404648 | V24: 2.615997795 | W24: 2.615997795 | X24: 4.019660512 | Y24: 0.1615767063 | Z24: 0.1615767063 | AA24: 33.56869633 | AB24: 3.83131507 | AC24: 0 | AD24: 0 | AE24: 16.3915653 | AF24: 0 | AG24: 0 | AH24: 0 | AI24: 0 | AJ24: 27.93486926 | AK24: 2.653213529 | AL24: 7.638089817 | AM24: 0 | AN24: 21.92637352 | AO24: 18.61452264 | AP24: 1.17810154 | AQ24: 0.3332716164 | AR24: 1.977254462 | AS24: 3.83131507 | AT24: 0 | AU24: 1.5552 | AV24: 0.9754461504 | AW24: 0 | AX24: 0.1296 | AY24: 1.5552 | AZ24: 0.4142769231 | BA24: 1.6848 | BB24: 55.46831258 | BC24: 432 | BD24: 0.8862114498 | BE24: 1174.078676 | BF24: 98.86272312 | BH24: 88.62114498 | BI24: 8.180098653 | BJ24: 41.85039328 | BK24: 0.513216 | BL24: 0.9754461504
A25: RCoutEsr | B25: =CoutEsr*1000 -> 10 | C25: mW | D25: Output Capacitor ESR | G25: 16 | H25: 13.516 | I25: BOOST | J25: 2 | K25: 10 | L25: 33.29387393 | M25: 32.48751038 | N25: 1 | O25: 0.692189402 | P25: 13.93252208 | Q25: 33.53592559 | R25: 3.261675958 | S25: 4.916886985 | T25: 8.178562943 | U25: 16.16327612 | V25: 2.61251495 | W25: 2.61251495 | X25: 4.021972687 | Y25: 0.1617626429 | Z25: 0.1617626429 | AA25: 33.53592559 | AB25: 3.823838238 | AC25: 0 | AD25: 0 | AE25: 16.25557964 | AF25: 0 | AG25: 0 | AH25: 0 | AI25: 0 | AJ25: 27.9011928 | AK25: 2.646820303 | AL25: 7.630460769 | AM25: 0 | AN25: 21.83700864 | AO25: 18.60595995 | AP25: 1.177017935 | AQ25: 0.3329387393 | AR25: 1.974841431 | AS25: 3.823838238 | AT25: 0 | AU25: 1.5552 | AV25: 0.9730956998 | AW25: 0 | AX25: 0.1296 | AY25: 1.5552 | AZ25: 0.4142769231 | BA25: 1.6848 | BB25: 55.23336595 | BC25: 432 | BD25: 0.8866387858 | BE25: 1169.610432 | BF25: 98.74207154 | BH25: 88.66387858 | BI25: 8.178562943 | BJ25: 41.62262971 | BK25: 0.513216 | BL25: 0.9730956998 | BP25: EFF_1 @ 25°C | BQ25: Vin | BR25: Iout | BS25: Vout | BT25: Efficiency | BU25: Pdis
A26: Top Driver | B26: Input Value | C26: Units | D26: Description | G26: 17 | H26: 13.5295 | I26: BOOST | J26: 2 | K26: 10 | L26: 33.26065265 | M26: 32.45399739 | N26: 1 | O26: 0.6918715473 | P26: 13.9405182 | Q26: 33.50322151 | R26: 3.25366246 | S26: 4.923391045 | T26: 8.177053505 | U26: 16.15251861 | V26: 2.609038574 | W26: 2.609038574 | X26: 4.024280967 | Y26: 0.161948373 | Z26: 0.161948373 | AA26: 33.50322151 | AB26: 3.816383896 | AC26: 0 | AD26: 0 | AE26: 16.1217133 | AF26: 0 | AG26: 0 | AH26: 0 | AI26: 0 | AJ26: 27.86758306 | AK26: 2.640447432 | AL26: 7.622846946 | AM26: 0 | AN26: 21.74839102 | AO26: 18.5974102 | AP26: 1.175936465 | AQ26: 0.3326065265 | AR26: 1.972434529 | AS26: 3.816383896 | AT26: 0 | AU26: 1.5552 | AV26: 0.9707527322 | AW26: 0 | AX26: 0.1296 | AY26: 1.5552 | AZ26: 0.4142769231 | BA26: 1.6848 | BB26: 55.00133203 | BC26: 432 | BD26: 0.8870612288 | BE26: 1165.179551 | BF26: 98.62172643 | BH26: 88.70612288 | BI26: 8.177053505 | BJ26: 41.39773885 | BK26: 0.513216 | BL26: 0.9707527322 | BP26: Vin=10V | BQ26: 9.998964 | BR26: 0.1027 | BS26: 5.121136 | BT26: 61.87068324 | BU26: 324.123657
A27: RdsonDRT | B27: =RdsonDRT -> 1.5 | C27: W | D27: Drain to Source Resistance of pullup Top FET Driver | G27: 18 | H27: 13.543 | I27: BOOST | J27: 2 | K27: 10 | L27: 33.2274976 | M27: 32.4205546 | N27: 1 | O27: 0.6915537034 | P27: 13.94850082 | Q27: 33.4705839 | R27: 3.245681149 | S27: 4.929888984 | T27: 8.175570134 | U27: 16.1417739 | V27: 2.605568646 | W27: 2.605568646 | X27: 4.026585352 | Y27: 0.1621338959 | Z27: 0.1621338959 | AA27: 33.4705839 | AB27: 3.808951954 | AC27: 0 | AD27: 0 | AE27: 15.98991731 | AF27: 0 | AG27: 0 | AH27: 0 | AI27: 0 | AJ27: 27.83403983 | AK27: 2.634094829 | AL27: 7.615248302 | AM27: 0 | AN27: 21.66051129 | AO27: 18.58887337 | AP27: 1.174857124 | AQ27: 0.332274976 | AR27: 1.970033734 | AS27: 3.808951954 | AT27: 0 | AU27: 1.5552 | AV27: 0.9684172167 | AW27: 0 | AX27: 0.1296 | AY27: 1.5552 | AZ27: 0.4142769231 | BA27: 1.6848 | BB27: 54.77215222 | BC27: 432 | BD27: 0.8874788708 | BE27: 1160.785564 | BF27: 98.50168668 | BH27: 88.74788708 | BI27: 8.175570134 | BJ27: 41.17566233 | BK27: 0.513216 | BL27: 0.9684172167 | BP27: Vout=5.1V | BQ27: 9.998667 | BR27: 0.1166 | BS27: 5.121298 | BT27: 64.72942057 | BU27: 325.3788646
A28: RdsonDRT2 | B28: =RdsonDRT2 -> 1 | C28: W | D28: Drain to Source Resistance of pulldown Top FET Driver | G28: 19 | H28: 13.5565 | I28: BOOST | J28: 2 | K28: 10 | L28: 33.19440859 | M28: 32.38718177 | N28: 1 | O28: 0.6912358701 | P28: 13.95646995 | Q28: 33.43801254 | R28: 3.237731844 | S28: 4.936380781 | T28: 8.174112625 | U28: 16.13104196 | V28: 2.602105146 | W28: 2.602105146 | X28: 4.028885842 | Y28: 0.1623192113 | Z28: 0.1623192113 | AA28: 33.43801254 | AB28: 3.801542321 | AC28: 0 | AD28: 0 | AE28: 15.86014419 | AF28: 0 | AG28: 0 | AH28: 0 | AI28: 0 | AJ28: 27.80056291 | AK28: 2.627762414 | AL28: 7.607664792 | AM28: 0 | AN28: 21.57336024 | AO28: 18.58034942 | AP28: 1.173779907 | AQ28: 0.3319440859 | AR28: 1.967639023 | AS28: 3.801542321 | AT28: 0 | AU28: 1.5552 | AV28: 0.9660891226 | AW28: 0 | AX28: 0.1296 | AY28: 1.5552 | AZ28: 0.4142769231 | BA28: 1.6848 | BB28: 54.54576956 | BC28: 432 | BD28: 0.8878918018 | BE28: 1156.428012 | BF28: 98.38195114 | BH28: 88.78918018 | BI28: 8.174112625 | BJ28: 40.95634345 | BK28: 0.513216 | BL28: 0.9660891226 | BP28: L=3.3uH/30mOhm | BQ28: 9.998766 | BR28: 0.1466 | BS28: 5.121323 | BT28: 69.88537692 | BU28: 323.5244619
A29: Bottom Driver | B29: Input Value | C29: Units | D29: Description | G29: 20 | H29: 13.57 | I29: BOOST | J29: 2 | K29: 10 | L29: 33.16138541 | M29: 32.35387869 | N29: 1 | O29: 0.6909180474 | P29: 13.9644256 | Q29: 33.40550724 | R29: 3.229814363 | S29: 4.942866414 | T29: 8.172680777 | U29: 16.12032274 | V29: 2.598648051 | W29: 2.598648051 | X29: 4.031182439 | Y29: 0.1625043186 | Z29: 0.1625043186 | AA29: 33.40550724 | AB29: 3.794154908 | AC29: 0 | AD29: 0 | AE29: 15.73234793 | AF29: 0 | AG29: 0 | AH29: 0 | AI29: 0 | AJ29: 27.76715209 | AK29: 2.6214501 | AL29: 7.600096371 | AM29: 0 | AN29: 21.48692881 | AO29: 18.57183832 | AP29: 1.172704808 | AQ29: 0.3316138541 | AR29: 1.965250374 | AS29: 3.794154908 | AT29: 0 | AU29: 1.5552 | AV29: 0.9637684193 | AW29: 0 | AX29: 0.1296 | AY29: 1.5552 | AZ29: 0.4142769231 | BA29: 1.6848 | BB29: 54.32212868 | BC29: 432 | BD29: 0.8883001092 | BE29: 1152.10644 | BF29: 98.2625187 | BH29: 88.83001092 | BI29: 8.172680777 | BJ29: 40.73972711 | BK29: 0.513216 | BL29: 0.9637684193 | BP29: 4394 Top and Bottom Fets | BQ29: 9.99879 | BR29: 0.1958 | BS29: 5.12176 | BT29: 75.66251657 | BU29: 322.5719977
A30: RdsonDRB | B30: =RdsonDRB -> 1.5 | C30: W | D30: Drain to Source Resistance of pullup Bottom FET Driver | G30: 21 | H30: 13.5835 | I30: BOOST | J30: 2 | K30: 10 | L30: 33.12842787 | M30: 32.32064513 | N30: 1 | O30: 0.6906002353 | P30: 13.97236776 | Q30: 33.37306781 | R30: 3.22192853 | S30: 4.94934586 | T30: 8.17127439 | U30: 16.1096162 | V30: 2.595197342 | W30: 2.595197342 | X30: 4.033475143 | Y30: 0.1626892173 | Z30: 0.1626892173 | AA30: 33.37306781 | AB30: 3.786789627 | AC30: 0 | AD30: 0 | AE30: 15.60648388 | AF30: 0 | AG30: 0 | AH30: 0 | AI30: 0 | AJ30: 27.73380719 | AK30: 2.615157807 | AL30: 7.592542993 | AM30: 0 | AN30: 21.40120808 | AO30: 18.56334006 | AP30: 1.17163182 | AQ30: 0.3312842787 | AR30: 1.962867765 | AS30: 3.786789627 | AT30: 0 | AU30: 1.5552 | AV30: 0.9614550762 | AW30: 0 | AX30: 0.1296 | AY30: 1.5552 | AZ30: 0.4142769231 | BA30: 1.6848 | BB30: 54.10117576 | BC30: 432 | BD30: 0.888703878 | BE30: 1147.820404 | BF30: 98.14338823 | BH30: 88.8703878 | BI30: 8.17127439 | BJ30: 40.52575973 | BK30: 0.513216 | BL30: 0.9614550762 | BQ30: 9.998766 | BR30: 0.2681 | BS30: 5.122408 | BT30: 80.95755345 | BU30: 323.0250607
A31: RdsonDRB2 | B31: 1 | C31: W | D31: Drain to Source Resistance of pulldown Bottom FET Driver | G31: 22 | H31: 13.597 | I31: BOOST | J31: 2 | K31: 10 | L31: 33.09553578 | M31: 32.28748088 | N31: 1 | O31: 0.6902824337 | P31: 13.98029643 | Q31: 33.34069404 | R31: 3.214074164 | S31: 4.955819098 | T31: 8.169893262 | U31: 16.09892232 | V31: 2.591752997 | W31: 2.591752997 | X31: 4.035763955 | Y31: 0.162873907 | Z31: 0.162873907 | AA31: 33.34069404 | AB31: 3.779446389 | AC31: 0 | AD31: 0 | AE31: 15.48250874 | AF31: 0 | AG31: 0 | AH31: 0 | AI31: 0 | AJ31: 27.70052798 | AK31: 2.608885452 | AL31: 7.585004615 | AM31: 0 | AN31: 21.3161893 | AO31: 18.55485459 | AP31: 1.170560938 | AQ31: 0.3309553578 | AR31: 1.960491172 | AS31: 3.779446389 | AT31: 0 | AU31: 1.5552 | AV31: 0.9591490632 | AW31: 0 | AX31: 0.1296 | AY31: 1.5552 | AZ31: 0.4142769231 | BA31: 1.6848 | BB31: 53.88285844 | BC31: 432 | BD31: 0.8891031912 | BE31: 1143.569465 | BF31: 98.02455861 | BH31: 88.91031912 | BI31: 8.169893262 | BJ31: 40.31438921 | BK31: 0.513216 | BL31: 0.9591490632 | BQ31: 9.998704 | BR31: 0.3655 | BS31: 5.123094 | BT31: 85.41902227 | BU31: 319.6330069
A32: Deadtime | B32: Input Value | C32: Units | D32: Description | G32: 23 | H32: 13.6105 | I32: BOOST | J32: 2 | K32: 10 | L32: 33.06270894 | M32: 32.25438572 | N32: 1 | O32: 0.6899646427 | P32: 13.98821163 | Q32: 33.30838575 | R32: 3.206251092 | S32: 4.962286106 | T32: 8.168537197 | U32: 16.08824104 | V32: 2.588314996 | W32: 2.588314996 | X32: 4.038048874 | Y32: 0.1630583871 | Z32: 0.1630583871 | AA32: 33.30838575 | AB32: 3.772125107 | AC32: 0 | AD32: 0 | AE32: 15.36038049 | AF32: 0 | AG32: 0 | AH32: 0 | AI32: 0 | AJ32: 27.66731429 | AK32: 2.602632952 | AL32: 7.577481191 | AM32: 0 | AN32: 21.23186383 | AO32: 18.54638188 | AP32: 1.169492155 | AQ32: 0.3306270894 | AR32: 1.958120575 | AS32: 3.772125107 | AT32: 0 | AU32: 1.5552 | AV32: 0.9568503501 | AW32: 0 | AX32: 0.1296 | AY32: 1.5552 | AZ32: 0.4142769231 | BA32: 1.6848 | BB32: 53.66712582 | BC32: 432 | BD32: 0.8894981295 | BE32: 1139.353192 | BF32: 97.90602875 | BH32: 88.94981295 | BI32: 8.168537197 | BJ32: 40.10556489 | BK32: 0.513216 | BL32: 0.9568503501 | BQ32: 9.998729 | BR32: 0.4906 | BS32: 5.123817 | BT32: 88.55185027 | BU32: 324.9815318
A33: Deadtime | B33: =Deadtime*1000000000 -> 50 | C33: ns | D33: Total Deadtime | G33: 24 | H33: 13.624 | I33: BOOST | J33: 2 | K33: 10 | L33: 33.02994715 | M33: 32.22135942 | N33: 1 | O33: 0.6896468622 | P33: 13.99611334 | Q33: 33.27614272 | R33: 3.198459137 | S33: 4.968746861 | T33: 8.167205998 | U33: 16.07757232 | V33: 2.584883318 | W33: 2.584883318 | X33: 4.040329902 | Y33: 0.1632426572 | Z33: 0.1632426572 | AA33: 33.27614272 | AB33: 3.764825694 | AC33: 0 | AD33: 0 | AE33: 15.24005832 | AF33: 0 | AG33: 0 | AH33: 0 | AI33: 0 | AJ33: 27.63416591 | AK33: 2.596400226 | AL33: 7.569972677 | AM33: 0 | AN33: 21.14822321 | AO33: 18.53792192 | AP33: 1.168425467 | AQ33: 0.3302994715 | AR33: 1.955755951 | AS33: 3.764825694 | AT33: 0 | AU33: 1.5552 | AV33: 0.9545589068 | AW33: 0 | AX33: 0.1296 | AY33: 1.5552 | AZ33: 0.4142769231 | BA33: 1.6848 | BB33: 53.45392836 | BC33: 432 | BD33: 0.8898887716 | BE33: 1135.17116 | BF33: 97.78779754 | BH33: 88.98887716 | BI33: 8.167205998 | BJ33: 39.89923748 | BK33: 0.513216 | BL33: 0.9545589068 | BQ33: 9.998642 | BR33: 0.6455 | BS33: 5.12373 | BT33: 90.41893857 | BU33: 350.4584847
A34: IQ | B34: Input Value | C34: Units | D34: Description | G34: 25 | H34: 13.6375 | I34: BOOST | J34: 2 | K34: 10 | L34: 32.99725023 | M34: 32.18840177 | N34: 1 | O34: 0.6893290922 | P34: 14.00400158 | Q34: 33.24396478 | R34: 3.190698125 | S34: 4.975201343 | T34: 8.165899468 | U34: 16.06691614 | V34: 2.581457943 | W34: 2.581457943 | X34: 4.04260704 | Y34: 0.1634267168 | Z34: 0.1634267168 | AA34: 33.24396478 | AB34: 3.757548061 | AC34: 0 | AD34: 0 | AE34: 15.12150266 | AF34: 0 | AG34: 0 | AH34: 0 | AI34: 0 | AJ34: 27.60108264 | AK34: 2.590187194 | AL34: 7.562479029 | AM34: 0 | AN34: 21.06525908 | AO34: 18.52947467 | AP34: 1.167360867 | AQ34: 0.3299725023 | AR34: 1.953397278 | AS34: 3.757548061 | AT34: 0 | AU34: 1.5552 | AV34: 0.9522747035 | AW34: 0 | AX34: 0.1296 | AY34: 1.5552 | AZ34: 0.4142769231 | BA34: 1.6848 | BB34: 53.24321785 | BC34: 432 | BD34: 0.8902751942 | BE34: 1131.022954 | BF34: 97.66986388 | BH34: 89.02751942 | BI34: 8.165899468 | BJ34: 39.69535902 | BK34: 0.513216 | BL34: 0.9522747035 | BQ34: 9.998605 | BR34: 0.8324 | BS34: 5.123156 | BT34: 91.67894636 | BU34: 387.0599604
A35: IQ | B35: =Iq*1000 -> 3 | C35: mA | D35: Quiescent Current Of Controller (Not Switching!) | G35: 26 | H35: 13.651 | I35: BOOST | J35: 2 | K35: 10 | L35: 32.96461798 | M35: 32.15551255 | N35: 1 | O35: 0.6890113326 | P35: 14.01187634 | Q35: 33.21185172 | R35: 3.182967885 | S35: 4.981649529 | T35: 8.164617414 | U35: 16.05627245 | V35: 2.578038849 | W35: 2.578038849 | X35: 4.044880288 | Y35: 0.1636105654 | Z35: 0.1636105654 | AA35: 33.21185172 | AB35: 3.750292123 | AC35: 0 | AD35: 0 | AE35: 15.00467505 | AF35: 0 | AG35: 0 | AH35: 0 | AI35: 0 | AJ35: 27.56806429 | AK35: 2.583993773 | AL35: 7.555000202 | AM35: 0 | AN35: 20.98296325 | AO35: 18.5210401 | AP35: 1.16629835 | AQ35: 0.3296461798 | AR35: 1.951044533 | AS35: 3.750292123 | AT35: 0 | AU35: 1.5552 | AV35: 0.9499977106 | AW35: 0 | AX35: 0.1296 | AY35: 1.5552 | AZ35: 0.4142769231 | BA35: 1.6848 | BB35: 53.03494738 | BC35: 432 | BD35: 0.8906574719 | BE35: 1126.908162 | BF35: 97.55222667 | BH35: 89.06574719 | BI35: 8.164617414 | BJ35: 39.49388284 | BK35: 0.513216 | BL35: 0.9499977106 | BQ35: 9.998605 | BR35: 1.0529 | BS35: 5.121822 | BT35: 92.88993897 | BU35: 412.7776298
A36: High-side FET | B36: Input Value | C36: Units | D36: Description | G36: 27 | H36: 13.6645 | I36: BOOST | J36: 2 | K36: 10 | L36: 32.9320502 | M36: 32.12269155 | N36: 1 | O36: 0.6886935834 | P36: 14.01973763 | Q36: 33.17980336 | R36: 3.175268245 | S36: 4.988091398 | T36: 8.163359642 | U36: 16.04564121 | V36: 2.574626017 | W36: 2.574626017 | X36: 4.047149646 | Y36: 0.1637942026 | Z36: 0.1637942026 | AA36: 33.17980336 | AB36: 3.743057793 | AC36: 0 | AD36: 0 | AE36: 14.88953816 | AF36: 0 | AG36: 0 | AH36: 0 | AI36: 0 | AJ36: 27.53511066 | AK36: 2.577819884 | AL36: 7.547536152 | AM36: 0 | AN36: 20.90132763 | AO36: 18.51261818 | AP36: 1.165237909 | AQ36: 0.329320502 | AR36: 1.948697697 | AS36: 3.743057793 | AT36: 0 | AU36: 1.5552 | AV36: 0.9477278985 | AW36: 0 | AX36: 0.1296 | AY36: 1.5552 | AZ36: 0.4142769231 | BA36: 1.6848 | BB36: 52.82907125 | BC36: 432 | BD36: 0.8910356776 | BE36: 1122.826381 | BF36: 97.43488483 | BH36: 89.10356776 | BI36: 8.163359642 | BJ36: 39.29476349 | BK36: 0.513216 | BL36: 0.9477278985 | BQ36: 9.998667 | BR36: 1.3093 | BS36: 5.119565 | BT36: 93.69036421 | BU36: 451.4207279
A37: RdsonTop | B37: =Rdson1*1000 -> 3.4 | C37: mW | D37: Drain-Source Resistance of Top FET | G37: 28 | H37: 13.678 | I37: BOOST | J37: 2 | K37: 10 | L37: 32.89954672 | M37: 32.08993855 | N37: 1 | O37: 0.6883758445 | P37: 14.02758544 | Q37: 33.14781949 | R37: 3.167599035 | S37: 4.994526927 | T37: 8.162125962 | U37: 16.03502238 | V37: 2.571219427 | W37: 2.571219427 | X37: 4.049415115 | Y37: 0.1639776278 | Z37: 0.1639776278 | AA37: 33.14781949 | AB37: 3.735844986 | AC37: 0 | AD37: 0 | AE37: 14.77605572 | AF37: 0 | AG37: 0 | AH37: 0 | AI37: 0 | AJ37: 27.50222155 | AK37: 2.571665447 | AL37: 7.540086837 | AM37: 0 | AN37: 20.82034428 | AO37: 18.50420889 | AP37: 1.164179539 | AQ37: 0.3289954672 | AR37: 1.946356746 | AS37: 3.735844986 | AT37: 0 | AU37: 1.5552 | AV37: 0.9454652379 | AW37: 0 | AX37: 0.1296 | AY37: 1.5552 | AZ37: 0.4142769231 | BA37: 1.6848 | BB37: 52.625545 | BC37: 432 | BD37: 0.8914098822 | BE37: 1118.777214 | BF37: 97.31783728 | BH37: 89.14098822 | BI37: 8.162125962 | BJ37: 39.09795674 | BK37: 0.513216 | BL37: 0.9454652379 | BQ37: 9.998543 | BR37: 1.602 | BS37: 5.118281 | BT37: 93.86447333 | BU37: 535.9658972
A38: RdsonTopTc | B38: =RdsonTopTc*1000000 -> 4000 | C38: ppm | D38: Drain to Source Resistance Temp Co | G38: 29 | H38: 13.6915 | I38: BOOST | J38: 2 | K38: 10 | L38: 32.86710733 | M38: 32.05725333 | N38: 1 | O38: 0.688058116 | P38: 14.03541979 | Q38: 33.11589993 | R38: 3.159960086 | S38: 5.000956096 | T38: 8.160916181 | U38: 16.02441593 | V38: 2.567819058 | W38: 2.567819058 | X38: 4.051676696 | Y38: 0.1641608405 | Z38: 0.1641608405 | AA38: 33.11589993 | AB38: 3.728653616 | AC38: 0 | AD38: 0 | AE38: 14.66419248 | AF38: 0 | AG38: 0 | AH38: 0 | AI38: 0 | AJ38: 27.46939678 | AK38: 2.565530382 | AL38: 7.532652211 | AM38: 0 | AN38: 20.74000538 | AO38: 18.49581219 | AP38: 1.163123234 | AQ38: 0.3286710733 | AR38: 1.944021659 | AS38: 3.728653616 | AT38: 0 | AU38: 1.5552 | AV38: 0.9432096994 | AW38: 0 | AX38: 0.1296 | AY38: 1.5552 | AZ38: 0.4142769231 | BA38: 1.6848 | BB38: 52.4243253 | BC38: 432 | BD38: 0.8917801552 | BE38: 1114.760269 | BF38: 97.20108293 | BH38: 89.17801552 | BI38: 8.160916181 | BJ38: 38.90341952 | BK38: 0.513216 | BL38: 0.9432096994 | BQ38: 9.998543 | BR38: 1.935 | BS38: 5.117146 | BT38: 94.2245272 | BU38: 606.9211641
A39: QgTop | B39: =Qg_Q1*1000000000 -> 90 | C39: nC | D39: Gate Charge Of Top FET | G39: 30 | H39: 13.705 | I39: BOOST | J39: 2 | K39: 10 | L39: 32.83473185 | M39: 32.02463569 | N39: 1 | O39: 0.6877403978 | P39: 14.04324067 | Q39: 33.08404449 | R39: 3.15235123 | S39: 5.007378881 | T39: 8.159730112 | U39: 16.01382181 | V39: 2.56442489 | W39: 2.56442489 | X39: 4.05393439 | Y39: 0.1643438403 | Z39: 0.1643438403 | AA39: 33.08404449 | AB39: 3.721483599 | AC39: 0 | AD39: 0 | AE39: 14.55391419 | AF39: 0 | AG39: 0 | AH39: 0 | AI39: 0 | AJ39: 27.43663615 | AK39: 2.559414611 | AL39: 7.525232233 | AM39: 0 | AN39: 20.66030324 | AO39: 18.48742807 | AP39: 1.162068988 | AQ39: 0.3283473185 | AR39: 1.941692414 | AS39: 3.721483599 | AT39: 0 | AU39: 1.5552 | AV39: 0.940961254 | AW39: 0 | AX39: 0.1296 | AY39: 1.5552 | AZ39: 0.4142769231 | BA39: 1.6848 | BB39: 52.22536994 | BC39: 432 | BD39: 0.892146564 | BE39: 1110.775162 | BF39: 97.08462072 | BH39: 89.2146564 | BI39: 8.159730112 | BJ39: 38.71110984 | BK39: 0.513216 | BL39: 0.940961254 | BQ39: 9.998506 | BR39: 2.31 | BS39: 5.116635 | BT39: 94.4926635 | BU39: 688.8741306
A40: QgdTop | B40: =Qgd_Q1*1000000000 -> 32 | C40: nC | D40: Gate to Drain Charge | G40: 31 | H40: 13.7185 | I40: BOOST | J40: 2 | K40: 10 | L40: 32.80242009 | M40: 31.99208541 | N40: 1 | O40: 0.6874226899 | P40: 14.05104808 | Q40: 33.05225297 | R40: 3.144772302 | S40: 5.013795263 | T40: 8.158567566 | U40: 16.00323999 | V40: 2.561036903 | W40: 2.561036903 | X40: 4.056188196 | Y40: 0.1645266268 | Z40: 0.1645266268 | AA40: 33.05225297 | AB40: 3.71433485 | AC40: 0 | AD40: 0 | AE40: 14.44518757 | AF40: 0 | AG40: 0 | AH40: 0 | AI40: 0 | AJ40: 27.40393946 | AK40: 2.553318054 | AL40: 7.517826858 | AM40: 0 | AN40: 20.58123028 | AO40: 18.47905648 | AP40: 1.161016796 | AQ40: 0.3280242009 | AR40: 1.939368992 | AS40: 3.71433485 | AT40: 0 | AU40: 1.5552 | AV40: 0.9387198727 | AW40: 0 | AX40: 0.1296 | AY40: 1.5552 | AZ40: 0.4142769231 | BA40: 1.6848 | BB40: 52.02863781 | BC40: 432 | BD40: 0.8925091746 | BE40: 1106.821514 | BF40: 96.96844958 | BH40: 89.25091746 | BI40: 8.158567566 | BJ40: 38.52098684 | BK40: 0.513216 | BL40: 0.9387198727 | BQ40: 9.998432 | BR40: 2.727 | BS40: 5.115812 | BT40: 94.55877042 | BU40: 802.7769493
A41: QgsTop | B41: =Qgs_Q1*1000000000 -> 24 | C41: nC | G41: 32 | H41: 13.732 | I41: BOOST | J41: 2 | K41: 10 | L41: 32.77017186 | M41: 31.95960227 | N41: 1 | O41: 0.6871049923 | P41: 14.05884203 | Q41: 33.02052519 | R41: 3.137223137 | S41: 5.020205219 | T41: 8.157428356 | U41: 15.99267044 | V41: 2.557655078 | W41: 2.557655078 | X41: 4.058438115 | Y41: 0.1647091994 | Z41: 0.1647091994 | AA41: 33.02052519 | AB41: 3.707207285 | AC41: 0 | AD41: 0 | AE41: 14.33798025 | AF41: 0 | AG41: 0 | AH41: 0 | AI41: 0 | AJ41: 27.37130653 | AK41: 2.547240633 | AL41: 7.510436044 | AM41: 0 | AN41: 20.50277905 | AO41: 18.4706974 | AP41: 1.159966652 | AQ41: 0.3277017186 | AR41: 1.937051369 | AS41: 3.707207285 | AT41: 0 | AU41: 1.5552 | AV41: 0.9364855267 | AW41: 0 | AX41: 0.1296 | AY41: 1.5552 | AZ41: 0.4142769231 | BA41: 1.6848 | BB41: 51.83408884 | BC41: 432 | BD41: 0.8928680512 | BE41: 1102.898953 | BF41: 96.85256845 | BH41: 89.28680512 | BI41: 8.157428356 | BJ41: 38.33301068 | BK41: 0.513216 | BL41: 0.9364855267 | BQ41: 9.998518 | BR41: 3.186 | BS41: 5.114889 | BT41: 94.58411933 | BU41: 933.1099081
A42: RGateTop | B42: =Rgate1 -> 0.7 | C42: W | D42: Gate Resistance | G42: 33 | H42: 13.7455 | I42: BOOST | J42: 2 | K42: 10 | L42: 32.73798698 | M42: 31.92718607 | N42: 1 | O42: =CHOOSE(J42,0,(Vout+(Rdson3+Rdcr)*L42-H42)/(Vout+(Rdson3-Rdson4-Rs)*L42),IF(H42>Vout,D_min_boost_exitBB_to_buck,(Vout-H42*D_max_buck_BB)/Vout)) -> 0.6867873048 | P42: 14.06662252 | Q42: 32.98886095 | R42: 3.129703569 | S42: 5.026608727 | T42: 8.156312296 | U42: 15.98211311 | V42: 2.554279394 | W42: 2.554279394 | X42: 4.060684149 | Y42: 0.1648915576 | Z42: 0.1648915576 | AA42: 32.98886095 | AB42: 3.70010082 | AC42: 0 | AD42: 0 | AE42: 14.23226077 | AF42: 0 | AG42: 0 | AH42: 0 | AI42: 0 | AJ42: 27.33873717 | AK42: 2.54118227 | AL42: 7.503059747 | AM42: 0 | AN42: 20.42494223 | AO42: 18.4623508 | AP42: 1.15891855 | AQ42: 0.3273798698 | AR42: 1.934739525 | AS42: 3.70010082 | AT42: 0 | AU42: 1.5552 | AV42: 0.9342581874 | AW42: 0 | AX42: 0.1296 | AY42: 1.5552 | AZ42: 0.4142769231 | BA42: 1.6848 | BB42: 51.64168396 | BC42: 432 | BD42: 0.8932232567 | BE42: 1099.007111 | BF42: 96.73697626 | BH42: 89.32232567 | BI42: 8.156312296 | BJ42: 38.14714252 | BK42: 0.513216 | BL42: 0.9342581874 | BQ42: 9.998419 | BR42: 3.692 | BS42: 5.113754 | BT42: 94.44136337 | BU42: 1111.239121
A43: GfsTop | B43: =Gfs_Q1 -> 60 | C43: S | D43: Transconductance of Top FET | G43: 34 | H43: 13.759 | I43: BOOST | J43: 2 | K43: 10 | L43: 32.70586525 | M43: 31.89483661 | N43: 1 | O43: 0.6864696276 | P43: 14.07438955 | Q43: 32.95726008 | R43: 3.122213437 | S43: 5.033005767 | T43: 8.155219204 | U43: 15.97156796 | V43: 2.550909832 | W43: 2.550909832 | X43: 4.062926298 | Y43: 0.165073701 | Z43: 0.165073701 | AA43: 32.95726008 | AB43: 3.693015373 | AC43: 0 | AD43: 0 | AE43: 14.12799851 | AF43: 0 | AG43: 0 | AH43: 0 | AI43: 0 | AJ43: 27.30623118 | AK43: 2.535142887 | AL43: 7.495697925 | AM43: 0 | AN43: 20.34771257 | AO43: 18.45401666 | AP43: 1.157872485 | AQ43: 0.3270586525 | AR43: 1.93243344 | AS43: 3.693015373 | AT43: 0 | AU43: 1.5552 | AV43: 0.9320378263 | AW43: 0 | AX43: 0.1296 | AY43: 1.5552 | AZ43: 0.4142769231 | BA43: 1.6848 | BB43: 51.45138508 | BC43: 432 | BD43: 0.8935748523 | BE43: 1095.145629 | BF43: 96.62167198 | BH43: 89.35748523 | BI43: 8.155219204 | BJ43: 37.96334452 | BK43: 0.513216 | BL43: 0.9320378263 | BQ43: 9.998246 | BR43: 4.243 | BS43: 5.112059 | BT43: 94.26717862 | BU43: 1319.097078
A44: VthTop | B44: =Vth_Q1 -> 3 | C44: V | D44: Threshold Voltage of Top FET | G44: 35 | H44: 13.7725 | I44: BOOST | J44: 2 | K44: 10 | L44: 32.6738065 | M44: 31.86255366 | N44: 1 | O44: 0.6861519605 | P44: 14.08214312 | Q44: 32.92572238 | R44: 3.114752578 | S44: 5.039396316 | T44: 8.154148894 | U44: 15.96103497 | V44: 2.547546372 | W44: 2.547546372 | X44: 4.065164561 | Y44: 0.1652556291 | Z44: 0.1652556291 | AA44: 32.92572238 | AB44: 3.68595086 | AC44: 0 | AD44: 0 | AE44: 14.0251637 | AF44: 0 | AG44: 0 | AH44: 0 | AI44: 0 | AJ44: 27.27378837 | AK44: 2.529122409 | AL44: 7.488350536 | AM44: 0 | AN44: 20.27108299 | AO44: 18.44569495 | AP44: 1.156828451 | AQ44: 0.326738065 | AR44: 1.930133091 | AS44: 3.68595086 | AT44: 0 | AU44: 1.5552 | AV44: 0.9298244149 | AW44: 0 | AX44: 0.1296 | AY44: 1.5552 | AZ44: 0.4142769231 | BA44: 1.6848 | BB44: 51.26315509 | BC44: 432 | BD44: 0.8939228978 | BE44: 1091.31415 | BF44: 96.50665454 | BH44: 89.39228978 | BI44: 8.154148894 | BJ44: 37.78157978 | BK44: 0.513216 | BL44: 0.9298244149 | BQ44: 9.998147 | BR44: 4.849 | BS44: 5.110774 | BT44: 93.95381599 | BU44: 1594.798321
A45: VspTop | B45: =Vsp_Q1 -> 3.166666667 | C45: V | G45: 36 | H45: 13.786 | I45: BOOST | J45: 2 | K45: 10 | L45: 32.64181053 | M45: 31.83033702 | N45: 1 | O45: 0.6858343035 | P45: 14.08988324 | Q45: 32.89424766 | R45: 3.107320833 | S45: 5.045780353 | T45: 8.153101186 | U45: 15.95051408 | V45: 2.544188994 | W45: 2.544188994 | X45: 4.067398941 | Y45: 0.1654373414 | Z45: 0.1654373414 | AA45: 32.89424766 | AB45: 3.678907199 | AC45: 0 | AD45: 0 | AE45: 13.92372737 | AF45: 0 | AG45: 0 | AH45: 0 | AI45: 0 | AJ45: 27.24140855 | AK45: 2.523120756 | AL45: 7.481017536 | AM45: 0 | AN45: 20.19504648 | AO45: 18.43738563 | AP45: 1.155786442 | AQ45: 0.3264181053 | AR45: 1.927838458 | AS45: 3.678907199 | AT45: 0 | AU45: 1.5552 | AV45: 0.9276179251 | AW45: 0 | AX45: 0.1296 | AY45: 1.5552 | AZ45: 0.4142769231 | BA45: 1.6848 | BB45: 51.07695775 | BC45: 432 | BD45: 0.8942674517 | BE45: 1087.512324 | BF45: 96.39192291 | BH45: 89.42674517 | BI45: 8.153101186 | BJ45: 37.60181231 | BK45: 0.513216 | BL45: 0.9276179251 | BQ45: 9.997986 | BR45: 5.496 | BS45: 5.109789 | BT45: 93.59977136 | BU45: 1920.305692
A46: VsdTop | B46: =Vsd_Q1 -> 0.5 | C46: V | G46: 37 | H46: 13.7995 | I46: BOOST | J46: 2 | K46: 10 | L46: 32.60987717 | M46: 31.79818649 | N46: 1 | O46: 0.6855166567 | P46: 14.0976099 | Q46: 32.86283574 | R46: 3.099918042 | S46: 5.052157856 | T46: 8.152075898 | U46: 15.94000527 | V46: 2.54083768 | W46: 2.54083768 | X46: 4.069629436 | Y46: 0.1656188375 | Z46: 0.1656188375 | AA46: 32.86283574 | AB46: 3.671884307 | AC46: 0 | AD46: 0 | AE46: 13.82366133 | AF46: 0 | AG46: 0 | AH46: 0 | AI46: 0 | AJ46: 27.20909155 | AK46: 2.517137854 | AL46: 7.473698884 | AM46: 0 | AN46: 20.11959616 | AO46: 18.42908869 | AP46: 1.154746453 | AQ46: 0.3260987717 | AR46: 1.925549521 | AS46: 3.671884307 | AT46: 0 | AU46: 1.5552 | AV46: 0.9254183287 | AW46: 0 | AX46: 0.1296 | AY46: 1.5552 | AZ46: 0.4142769231 | BA46: 1.6848 | BB46: 50.89275775 | BC46: 432 | BD46: 0.8946085711 | BE46: 1083.739808 | BF46: 96.27747606 | BH46: 89.46085711 | BI46: 8.152075898 | BJ46: 37.424007 | BK46: 0.513216 | BL46: 0.9254183287 | BQ46: 9.9979 | BR46: 6.195 | BS46: 5.109191 | BT46: 93.15665167 | BU46: 2325.135176
A47: θJATop | B47: =ThetaJA_Q1 -> 50 | C47: °C/W | D47: Junction to Ambient Resistance | G47: 38 | H47: 13.813 | I47: BOOST | J47: 2 | K47: 10 | L47: 32.57800623 | M47: 31.76610186 | N47: 1 | O47: 0.6851990199 | P47: 14.10532312 | Q47: 32.83148643 | R47: 3.092544046 | S47: 5.058528805 | T47: 8.151072851 | U47: 15.92950849 | V47: 2.537492409 | W47: 2.537492409 | X47: 4.071856049 | Y47: 0.1658001168 | Z47: 0.1658001168 | AA47: 32.83148643 | AB47: 3.664882105 | AC47: 0 | AD47: 0 | AE47: 13.72493814 | AF47: 0 | AG47: 0 | AH47: 0 | AI47: 0 | AJ47: 27.17683716 | AK47: 2.511173626 | AL47: 7.466394538 | AM47: 0 | AN47: 20.04472523 | AO47: 18.42080408 | AP47: 1.153708479 | AQ47: 0.3257800623 | AR47: 1.923266259 | AS47: 3.664882105 | AT47: 0 | AU47: 1.5552 | AV47: 0.9232255978 | AW47: 0 | AX47: 0.1296 | AY47: 1.5552 | AZ47: 0.4142769231 | BA47: 1.6848 | BB47: 50.71052061 | BC47: 432 | BD47: 0.8949463116 | BE47: 1079.996262 | BF47: 96.16331294 | BH47: 89.49463116 | BI47: 8.151072851 | BJ47: 37.24812963 | BK47: 0.513216 | BL47: 0.9232255978 | BQ47: 9.997627 | BR47: 6.947 | BS47: 5.108667 | BT47: 92.65680763 | BU47: 2812.629001
A48: Low-side FET | B48: Input Value | C48: Units | D48: Description | G48: 39 | H48: 13.8265 | I48: BOOST | J48: 2 | K48: 10 | L48: 32.54619752 | M48: 31.73408292 | N48: 1 | O48: 0.6848813931 | P48: 14.11302288 | Q48: 32.80019956 | R48: 3.085198689 | S48: 5.064893177 | T48: 8.150091867 | U48: 15.91902372 | V48: 2.534153162 | W48: 2.534153162 | X48: 4.074078779 | Y48: 0.165981179 | Z48: 0.165981179 | AA48: 32.80019956 | AB48: 3.657900509 | AC48: 0 | AD48: 0 | AE48: 13.62753109 | AF48: 0 | AG48: 0 | AH48: 0 | AI48: 0 | AJ48: 27.14464521 | AK48: 2.505227996 | AL48: 7.459104455 | AM48: 0 | AN48: 19.97042703 | AO48: 18.4125318 | AP48: 1.152672513 | AQ48: 0.3254619752 | AR48: 1.920988651 | AS48: 3.657900509 | AT48: 0 | AU48: 1.5552 | AV48: 0.9210397046 | AW48: 0 | AX48: 0.1296 | AY48: 1.5552 | AZ48: 0.4142769231 | BA48: 1.6848 | BB48: 50.53021269 | BC48: 432 | BD48: 0.8952807278 | BE48: 1076.281352 | BF48: 96.04943253 | BH48: 89.52807278 | BI48: 8.150091867 | BJ48: 37.07414678 | BK48: 0.513216 | BL48: 0.9210397046 | BQ48: 9.997528 | BR48: 7.753 | BS48: 5.10853 | BT48: 92.03433642 | BU48: 3427.976174
A49: RdsonBot | B49: =Rdson2*1000 -> 3.4 | C49: mW | D49: Drain-Source Resistance of Low-side FET | G49: 40 | H49: 13.84 | I49: BOOST | J49: 2 | K49: 10 | L49: 32.51445087 | M49: 31.70212947 | N49: 1 | O49: 0.6845637764 | P49: 14.1207092 | Q49: 32.76897492 | R49: 3.077881815 | S49: 5.071250952 | T49: 8.149132767 | U49: 15.90855091 | V49: 2.530819921 | W49: 2.530819921 | X49: 4.076297627 | Y49: 0.1661620235 | Z49: 0.1661620235 | AA49: 32.76897492 | AB49: 3.65093944 | AC49: 0 | AD49: 0 | AE49: 13.53141418 | AF49: 0 | AG49: 0 | AH49: 0 | AI49: 0 | AJ49: 27.11251551 | AK49: 2.49930089 | AL49: 7.451828595 | AM49: 0 | AN49: 19.89669498 | AO49: 18.4042718 | AP49: 1.15163855 | AQ49: 0.3251445087 | AR49: 1.918716676 | AS49: 3.65093944 | AT49: 0 | AU49: 1.5552 | AV49: 0.9188606213 | AW49: 0 | AX49: 0.1296 | AY49: 1.5552 | AZ49: 0.4142769231 | BA49: 1.6848 | BB49: 50.35180117 | BC49: 432 | BD49: 0.8956118728 | BE49: 1072.594749 | BF49: 95.93583381 | BH49: 89.56118728 | BI49: 8.149132767 | BJ49: 36.90202584 | BK49: 0.513216 | BL49: 0.9188606213 | BQ49: 9.997009 | BR49: 8.612 | BS49: 5.108542 | BT49: 91.34637826 | BU49: 4167.806561
A50: RdsonBotTc | B50: =RdsonBotTc*1000000 -> 4000 | C50: ppm | D50: Drain To Source Resitance Temp Co | G50: 41 | H50: 13.8535 | I50: BOOST | J50: 2 | K50: 10 | L50: 32.48276609 | M50: 31.6702413 | N50: 1 | O50: 0.6842461696 | P50: 14.12838207 | Q50: 32.73781235 | R50: 3.070593268 | S50: 5.077602108 | T50: 8.148195376 | U50: 15.89809003 | V50: 2.527492666 | W50: 2.527492666 | X50: 4.078512594 | Y50: 0.1663426498 | Z50: 0.1663426498 | AA50: 32.73781235 | AB50: 3.643998816 | AC50: 0 | AD50: 0 | AE50: 13.43656208 | AF50: 0 | AG50: 0 | AH50: 0 | AI50: 0 | AJ50: 27.08044786 | AK50: 2.493392232 | AL50: 7.444566915 | AM50: 0 | AN50: 19.8235226 | AO50: 18.39602406 | AP50: 1.150606584 | AQ50: 0.3248276609 | AR50: 1.916450315 | AS50: 3.643998816 | AT50: 0 | AU50: 1.5552 | AV50: 0.9166883206 | AW50: 0 | AX50: 0.1296 | AY50: 1.5552 | AZ50: 0.4142769231 | BA50: 1.6848 | BB50: 50.175254 | BC50: 432 | BD50: 0.8959397987 | BE50: 1068.93613 | BF50: 95.82251576 | BH50: 89.59397987 | BI50: 8.148195376 | BJ50: 36.73173499 | BK50: 0.513216 | BL50: 0.9166883206 | BQ50: 9.996959 | BR50: 9.523 | BS50: 5.108754 | BT50: 90.54782619 | BU50: 5078.581624
A51: QgBot | B51: =Qg_Q2*1000000000 -> 90 | C51: nC | D51: Gate Charge Of Top FET | G51: 42 | H51: 13.867 | I51: BOOST | J51: 2 | K51: 10 | L51: 32.451143 | M51: 31.63841822 | N51: 1 | O51: 0.6839285728 | P51: 14.13604149 | Q51: 32.70671166 | R51: 3.063332896 | S51: 5.083946623 | T51: 8.147279519 | U51: 15.88764104 | V51: 2.524171378 | W51: 2.524171378 | X51: 4.08072368 | Y51: 0.1665230576 | Z51: 0.1665230576 | AA51: 32.70671166 | AB51: 3.637078559 | AC51: 0 | AD51: 0 | AE51: 13.34295011 | AF51: 0 | AG51: 0 | AH51: 0 | AI51: 0 | AJ51: 27.0484421 | AK51: 2.487501948 | AL51: 7.437319373 | AM51: 0 | AN51: 19.75090351 | AO51: 18.38778855 | AP51: 1.149576611 | AQ51: 0.32451143 | AR51: 1.914189547 | AS51: 3.637078559 | AT51: 0 | AU51: 1.5552 | AV51: 0.9145227749 | AW51: 0 | AX51: 0.1296 | AY51: 1.5552 | AZ51: 0.4142769231 | BA51: 1.6848 | BB51: 50.0005399 | BC51: 432 | BD51: 0.8962645562 | BE51: 1065.305176 | BF51: 95.70947737 | BH51: 89.62645562 | BI51: 8.147279519 | BJ51: 36.56324317 | BK51: 0.513216 | BL51: 0.9145227749 | BQ51: 9.996464 | BR51: 10.493 | BS51: 5.109228 | BT51: 89.62666026 | BU51: 6204.922159
A52: RGateBot | B52: =Rgate2 -> 0.7 | C52: W | D52: Gate Resistance | G52: 43 | H52: 13.8805 | I52: BOOST | J52: 2 | K52: 10 | L52: 32.41958143 | M52: 31.60666001 | N52: 1 | O52: 0.6836109859 | P52: 14.14368748 | Q52: 32.67567267 | R52: 3.056100544 | S52: 5.090284477 | T52: 8.146385022 | U52: 15.8772039 | V52: 2.520856038 | W52: 2.520856038 | X52: 4.082930886 | Y52: 0.1667032462 | Z52: 0.1667032462 | AA52: 32.67567267 | AB52: 3.630178587 | AC52: 0 | AD52: 0 | AE52: 13.25055425 | AF52: 0 | AG52: 0 | AH52: 0 | AI52: 0 | AJ52: 27.01649803 | AK52: 2.481629963 | AL52: 7.43008593 | AM52: 0 | AN52: 19.67883144 | AO52: 18.37956525 | AP52: 1.148548624 | AQ52: 0.3241958143 | AR52: 1.911934353 | AS52: 3.630178587 | AT52: 0 | AU52: 1.5552 | AV52: 0.9123639571 | AW52: 0 | AX52: 0.1296 | AY52: 1.5552 | AZ52: 0.4142769231 | BA52: 1.6848 | BB52: 49.82762831 | BC52: 432 | BD52: 0.8965861952 | BE52: 1061.701572 | BF52: 95.59671763 | BH52: 89.65861952 | BI52: 8.146385022 | BJ52: 36.39652004 | BK52: 0.513216 | BL52: 0.9123639571 | BQ52: 9.995982 | BR52: 11.519 | BS52: 5.110126 | BT52: 88.59139042 | BU52: 7580.320731
A53: VsdBot | B53: =Vsd_Q2 -> 0.5 | C53: V | D53: Diode Forward Voltage of Bottom FET Body Diode | G53: 44 | H53: 13.894 | I53: BOOST | J53: 2 | K53: 10 | L53: 32.38808119 | M53: 31.57496649 | N53: 1 | O53: 0.6832934089 | P53: 14.15132002 | Q53: 32.6446952 | R53: 3.048896062 | S53: 5.096615649 | T53: 8.145511711 | U53: 15.86677859 | V53: 2.517546627 | W53: 2.517546627 | X53: 4.085134212 | Y53: 0.1668832153 | Z53: 0.1668832153 | AA53: 32.6446952 | AB53: 3.623298823 | AC53: 0 | AD53: 0 | AE53: 13.15935108 | AF53: 0 | AG53: 0 | AH53: 0 | AI53: 0 | AJ53: 26.98461547 | AK53: 2.475776204 | AL53: 7.422866543 | AM53: 0 | AN53: 19.6073002 | AO53: 18.37135413 | AP53: 1.147522619 | AQ53: 0.3238808119 | AR53: 1.909684711 | AS53: 3.623298823 | AT53: 0 | AU53: 1.5552 | AV53: 0.9102118399 | AW53: 0 | AX53: 0.1296 | AY53: 1.5552 | AZ53: 0.4142769231 | BA53: 1.6848 | BB53: 49.65648938 | BC53: 432 | BD53: 0.8969047641 | BE53: 1058.12501 | BF53: 95.48423553 | BH53: 89.69047641 | BI53: 8.145511711 | BJ53: 36.23153599 | BK53: 0.513216 | BL53: 0.9102118399 | BQ53: 9.995574 | BR53: 12.605 | BS53: 5.111198 | BT53: 87.3865081 | BU53: 9299.433596
A54: QrrBot | B54: =Qrr_Q2*1000000000 -> 180 | C54: nC | D54: Reverse Recovery Charge of Body Diode | G54: 45 | H54: 13.9075 | I54: BOOST | J54: 2 | K54: 10 | L54: 32.3566421 | M54: 31.54333744 | N54: 1 | O54: 0.6829758418 | P54: 14.15893913 | Q54: 32.61377906 | R54: 3.041719299 | S54: 5.102940116 | T54: 8.144659415 | U54: 15.85636505 | V54: 2.514243126 | W54: 2.514243126 | X54: 4.087333659 | Y54: 0.1670629644 | Z54: 0.1670629644 | AA54: 32.61377906 | AB54: 3.616439187 | AC54: 0 | AD54: 0 | AE54: 13.06931778 | AF54: 0 | AG54: 0 | AH54: 0 | AI54: 0 | AJ54: 26.95279424 | AK54: 2.469940598 | AL54: 7.415661172 | AM54: 0 | AN54: 19.5363037 | AO54: 18.36315516 | AP54: 1.146498589 | AQ54: 0.323566421 | AR54: 1.907440602 | AS54: 3.616439187 | AT54: 0 | AU54: 1.5552 | AV54: 0.9080663963 | AW54: 0 | AX54: 0.1296 | AY54: 1.5552 | AZ54: 0.4142769231 | BA54: 1.6848 | BB54: 49.48709398 | BC54: 432 | BD54: 0.8972203106 | BE54: 1054.575185 | BF54: 95.37203008 | BH54: 89.72203106 | BI54: 8.144659415 | BJ54: 36.06826208 | BK54: 0.513216 | BL54: 0.9080663963 | BQ54: 9.994967 | BR54: 13.75 | BS54: 5.112233 | BT54: 85.98511344 | BU54: 11457.23054
A55: TrrBot | B55: =Trr_Q2*1000000000 -> 40 | C55: ns | D55: Reverse Recovery Time of Body Diode | G55: 46 | H55: 13.921 | I55: BOOST | J55: 2 | K55: 10 | L55: 32.32526399 | M55: 31.51177268 | N55: 1 | O55: 0.6826582845 | P55: 14.1665448 | Q55: 32.58292408 | R55: 3.034570106 | S55: 5.109257858 | T55: 8.143827964 | U55: 15.84596326 | V55: 2.510945517 | W55: 2.510945517 | X55: 4.089529228 | Y55: 0.167242493 | Z55: 0.167242493 | AA55: 32.58292408 | AB55: 3.6095996 | AC55: 0 | AD55: 0 | AE55: 12.98043212 | AF55: 0 | AG55: 0 | AH55: 0 | AI55: 0 | AJ55: 26.92103415 | AK55: 2.464123071 | AL55: 7.408469776 | AM55: 0 | AN55: 19.46583593 | AO55: 18.35496831 | AP55: 1.145476529 | AQ55: 0.3232526399 | AR55: 1.905202005 | AS55: 3.6095996 | AT55: 0 | AU55: 1.5552 | AV55: 0.9059275996 | AW55: 0 | AX55: 0.1296 | AY55: 1.5552 | AZ55: 0.4142769231 | BA55: 1.6848 | BB55: 49.31941363 | BC55: 432 | BD55: 0.897532881 | BE55: 1051.051796 | BF55: 95.26010027 | BH55: 89.7532881 | BI55: 8.143827964 | BJ55: 35.90667005 | BK55: 0.513216 | BL55: 0.9059275996 | BQ55: 9.994386 | BR55: 14.954 | BS55: 5.113031 | BT55: 84.35265026 | BU55: 14183.31853
A56: θJABot | B56: =ThetaJA_Q2 -> 50 | C56: °C/W | D56: Junction to Ambient Resistance | G56: 47 | H56: 13.9345 | I56: BOOST | J56: 2 | K56: 10 | L56: 32.29394668 | M56: 31.480272 | N56: 1 | O56: 0.682340737 | P56: 14.17413704 | Q56: 32.55213007 | R56: 3.027448334 | S56: 5.115568854 | T56: 8.143017188 | U56: 15.83557319 | V56: 2.507653781 | W56: 2.507653781 | X56: 4.091720918 | Y56: 0.1674218007 | Z56: 0.1674218007 | AA56: 32.55213007 | AB56: 3.602779985 | AC56: 0 | AD56: 0 | AE56: 12.89267241 | AF56: 0 | AG56: 0 | AH56: 0 | AI56: 0 | AJ56: 26.88933503 | AK56: 2.458323551 | AL56: 7.401292314 | AM56: 0 | AN56: 19.39589098 | AO56: 18.34679356 | AP56: 1.144456435 | AQ56: 0.3229394668 | AR56: 1.902968903 | AS56: 3.602779985 | AT56: 0 | AU56: 1.5552 | AV56: 0.903795423 | AW56: 0 | AX56: 0.1296 | AY56: 1.5552 | AZ56: 0.4142769231 | BA56: 1.6848 | BB56: 49.15342048 | BC56: 432 | BD56: 0.8978425209 | BE56: 1047.554549 | BF56: 95.14844514 | BH56: 89.78425209 | BI56: 8.143017188 | BJ56: 35.74673229 | BK56: 0.513216 | BL56: 0.903795423
A57: Bottom Schottky | B57: Input Value | C57: Units | D57: Std Units | G57: 48 | H57: 13.948 | I57: BOOST | J57: 2 | K57: 10 | L57: 32.26268999 | M57: 31.4488352 | N57: 1 | O57: 0.6820231993 | P57: 14.18171585 | Q57: 32.52139687 | R57: 3.020353835 | S57: 5.121873083 | T57: 8.142226918 | U57: 15.82519479 | V57: 2.5043679 | W57: 2.5043679 | X57: 4.093908731 | Y57: 0.1676008869 | Z57: 0.1676008869 | AA57: 32.52139687 | AB57: 3.595980264 | AC57: 0 | AD57: 0 | AE57: 12.80601751 | AF57: 0 | AG57: 0 | AH57: 0 | AI57: 0 | AJ57: 26.8576967 | AK57: 2.452541965 | AL57: 7.394128746 | AM57: 0 | AN57: 19.32646303 | AO57: 18.33863087 | AP57: 1.1434383 | AQ57: 0.3226268999 | AR57: 1.900741273 | AS57: 3.595980264 | AT57: 0 | AU57: 1.5552 | AV57: 0.9016698399 | AW57: 0 | AX57: 0.1296 | AY57: 1.5552 | AZ57: 0.4142769231 | BA57: 1.6848 | BB57: 48.98908736 | BC57: 432 | BD57: 0.8981492748 | BE57: 1044.083152 | BF57: 95.03706367 | BH57: 89.81492748 | BI57: 8.142226918 | BJ57: 35.58842182 | BK57: 0.513216 | BL57: 0.9016698399
A58: VfdSky | B58: =VfdSky_Q2 -> 0 | C58: V | D58: Diode Forward Voltage | G58: 49 | H58: 13.9615 | I58: BOOST | J58: 2 | K58: 10 | L58: 32.23149375 | M58: 31.41746208 | N58: 1 | O58: 0.6817056714 | P58: 14.18928122 | Q58: 32.49072428 | R58: 3.013286464 | S58: 5.128170523 | T58: 8.141456986 | U58: 15.81482802 | V58: 2.501087855 | W58: 2.501087855 | X58: 4.096092666 | Y58: 0.1677797513 | Z58: 0.1677797513 | AA58: 32.49072428 | AB58: 3.589200359 | AC58: 0 | AD58: 0 | AE58: 12.72044682 | AF58: 0 | AG58: 0 | AH58: 0 | AI58: 0 | AJ58: 26.82611897 | AK58: 2.446778241 | AL58: 7.386979032 | AM58: 0 | AN58: 19.25754635 | AO58: 18.33048023 | AP58: 1.142422119 | AQ58: 0.3223149375 | AR58: 1.898519098 | AS58: 3.589200359 | AT58: 0 | AU58: 1.5552 | AV58: 0.8995508238 | AW58: 0 | AX58: 0.1296 | AY58: 1.5552 | AZ58: 0.4142769231 | BA58: 1.6848 | BB58: 48.82638768 | BC58: 432 | BD58: 0.8984531862 | BE58: 1040.637317 | BF58: 94.92595491 | BH58: 89.84531862 | BI58: 8.141456986 | BJ58: 35.43171226 | BK58: 0.513216 | BL58: 0.8995508238
A59: QrrSky | B59: =QrrSky_Q2*1000000000 -> 0 | C59: nC | D59: Diode Reverse Recovery Charge | G59: 50 | H59: 13.975 | I59: BOOST | J59: 2 | K59: 10 | L59: 32.20035778 | M59: 31.38615246 | N59: 1 | O59: 0.6813881532 | P59: 14.19683317 | Q59: 32.46011215 | R59: 3.006246074 | S59: 5.134461153 | T59: 8.140707227 | U59: 15.80447287 | V59: 2.497813627 | W59: 2.497813627 | X59: 4.098272726 | Y59: 0.1679583934 | Z59: 0.1679583934 | AA59: 32.46011215 | AB59: 3.582440194 | AC59: 0 | AD59: 0 | AE59: 12.63594022 | AF59: 0 | AG59: 0 | AH59: 0 | AI59: 0 | AJ59: 26.79460167 | AK59: 2.441032308 | AL59: 7.379843131 | AM59: 0 | AN59: 19.18913527 | AO59: 18.3223416 | AP59: 1.141407886 | AQ59: 0.3220035778 | AR59: 1.896302357 | AS59: 3.582440194 | AT59: 0 | AU59: 1.5552 | AV59: 0.8974383484 | AW59: 0 | AX59: 0.1296 | AY59: 1.5552 | AZ59: 0.4142769231 | BA59: 1.6848 | BB59: 48.66529544 | BC59: 432 | BD59: 0.8987542976 | BE59: 1037.216763 | BF59: 94.81511786 | BH59: 89.87542976 | BI59: 8.140707227 | BJ59: 35.27657785 | BK59: 0.513216 | BL59: 0.8974383484
A60: Ireverse | B60: =Ireverse -> 0 | C60: mA | D60: Reverse Leakage Current | G60: 51 | H60: 13.9885 | I60: BOOST | J60: 2 | K60: 10 | L60: 32.16928191 | M60: 31.35490613 | N60: 1 | O60: 0.6810706446 | P60: 14.20437169 | Q60: 32.42956028 | R60: 2.999232522 | S60: 5.140744953 | T60: 8.139977475 | U60: 15.79412928 | V60: 2.494545198 | W60: 2.494545198 | X60: 4.100448909 | Y60: 0.1681368126 | Z60: 0.1681368126 | AA60: 32.42956028 | AB60: 3.575699692 | AC60: 0 | AD60: 0 | AE60: 12.55247812 | AF60: 0 | AG60: 0 | AH60: 0 | AI60: 0 | AJ60: 26.76314462 | AK60: 2.435304094 | AL60: 7.372721003 | AM60: 0 | AN60: 19.12122422 | AO60: 18.31421497 | AP60: 1.140395598 | AQ60: 0.3216928191 | AR60: 1.894091031 | AS60: 3.575699692 | AT60: 0 | AU60: 1.5552 | AV60: 0.8953323875 | AW60: 0 | AX60: 0.1296 | AY60: 1.5552 | AZ60: 0.4142769231 | BA60: 1.6848 | BB60: 48.50578525 | BC60: 432 | BD60: 0.8990526509 | BE60: 1033.821211 | BF60: 94.70455157 | BH60: 89.90526509 | BI60: 8.139977475 | BJ60: 35.12299338 | BK60: 0.513216 | BL60: 0.8953323875
A61: Controller | B61: Input Value | C61: Units | D61: Std Units | G61: 52 | H61: 14.002 | I61: BOOST | J61: 2 | K61: 10 | L61: 32.13826596 | M61: 31.32372291 | N61: 1 | O61: 0.6807531458 | P61: 14.21189679 | Q61: 32.3990685 | R61: 2.992245664 | S61: 5.147021902 | T61: 8.139267566 | U61: 15.78379723 | V61: 2.491282551 | W61: 2.491282551 | X61: 4.102621218 | Y61: 0.1683150086 | Z61: 0.1683150086 | AA61: 32.3990685 | AB61: 3.568978776 | AC61: 0 | AD61: 0 | AE61: 12.47004138 | AF61: 0 | AG61: 0 | AH61: 0 | AI61: 0 | AJ61: 26.73174764 | AK61: 2.429593529 | AL61: 7.365612609 | AM61: 0 | AN61: 19.05380773 | AO61: 18.30610029 | AP61: 1.139385247 | AQ61: 0.3213826596 | AR61: 1.891885101 | AS61: 3.568978776 | AT61: 0 | AU61: 1.5552 | AV61: 0.893232915 | AW61: 0 | AX61: 0.1296 | AY61: 1.5552 | AZ61: 0.4142769231 | BA61: 1.6848 | BB61: 48.34783225 | BC61: 432 | BD61: 0.8993482868 | BE61: 1030.450386 | BF61: 94.59425505 | BH61: 89.93482868 | BI61: 8.139267566 | BJ61: 34.97093421 | BK61: 0.513216 | BL61: 0.893232915
A62: θJA | B62: 30 | C62: °C/W | D62: Junction to Ambient Resistance | G62: 53 | H62: 14.0155 | I62: BOOST | J62: 2 | K62: 10 | L62: 32.10730976 | M62: 31.29260259 | N62: 1 | O62: 0.6804356566 | P62: 14.21940846 | Q62: 32.36863665 | R62: 2.985285357 | S62: 5.153291978 | T62: 8.138577335 | U62: 15.77347668 | V62: 2.488025667 | W62: 2.488025667 | X62: 4.104789651 | Y62: 0.1684929808 | Z62: 0.1684929808 | AA62: 32.36863665 | AB62: 3.56227737 | AC62: 0 | AD62: 0 | AE62: 12.38861133 | AF62: 0 | AG62: 0 | AH62: 0 | AI62: 0 | AJ62: 26.70041056 | AK62: 2.423900541 | AL62: 7.358517909 | AM62: 0 | AN62: 18.98688037 | AO62: 18.29799755 | AP62: 1.138376829 | AQ62: 0.3210730976 | AR62: 1.889684547 | AS62: 3.56227737 | AT62: 0 | AU62: 1.5552 | AV62: 0.8911399049 | AW62: 0 | AX62: 0.1296 | AY62: 1.5552 | AZ62: 0.4142769231 | BA62: 1.6848 | BB62: 48.19141214 | BC62: 432 | BD62: 0.8996412453 | BE62: 1027.104019 | BF62: 94.48422736 | BH62: 89.96412453 | BI62: 8.138577335 | BJ62: 34.82037625 | BK62: 0.513216 | BL62: 0.8911399049
A63: Theta Ja | B63: 2 | C63: °C/W | D63: Junction to Ambient Resistance | G63: 54 | H63: 14.029 | I63: BOOST | J63: 2 | K63: 10 | L63: 32.07641314 | M63: 31.26154498 | N63: 1 | O63: 0.680118177 | P63: 14.22690671 | Q63: 32.33826453 | R63: 2.978351461 | S63: 5.159555161 | T63: 8.137906622 | U63: 15.7631676 | V63: 2.484774527 | W63: 2.484774527 | X63: 4.10695421 | Y63: 0.1686707289 | Z63: 0.1686707289 | AA63: 32.33826453 | AB63: 3.5555954 | AC63: 0 | AD63: 0 | AE63: 12.30816975 | AF63: 0 | AG63: 0 | AH63: 0 | AI63: 0 | AJ63: 26.66913319 | AK63: 2.418225062 | AL63: 7.351436863 | AM63: 0 | AN63: 18.92043683 | AO63: 18.28990672 | AP63: 1.137370339 | AQ63: 0.3207641314 | AR63: 1.887489351 | AS63: 3.5555954 | AT63: 0 | AU63: 1.5552 | AV63: 0.8890533315 | AW63: 0 | AX63: 0.1296 | AY63: 1.5552 | AZ63: 0.4142769231 | BA63: 1.6848 | BB63: 48.03650114 | BC63: 432 | BD63: 0.8999315656 | BE63: 1023.781841 | BF63: 94.37446753 | BH63: 89.99315656 | BI63: 8.137906622 | BJ63: 34.67129593 | BK63: 0.513216 | BL63: 0.8890533315
G64: 55 | H64: 14.0425 | I64: BOOST | J64: 2 | K64: 10 | L64: 32.04557593 | M64: 31.2305499 | N64: 1 | O64: 0.6798007069 | P64: 14.23439155 | Q64: 32.30795199 | R64: 2.971443835 | S64: 5.165811429 | T64: 8.137255264 | U64: 15.75286994 | V64: 2.481529114 | W64: 2.481529114 | X64: 4.109114896 | Y64: 0.1688482523 | Z64: 0.1688482523 | AA64: 32.30795199 | AB64: 3.548932791 | AC64: 0 | AD64: 0 | AE64: 12.22869888 | AF64: 0 | AG64: 0 | AH64: 0 | AI64: 0 | AJ64: 26.63791537 | AK64: 2.41256702 | AL64: 7.344369432 | AM64: 0 | AN64: 18.85447184 | AO64: 18.28182777 | AP64: 1.136365771 | AQ64: 0.3204557593 | AR64: 1.885299492 | AS64: 3.548932791 | AT64: 0 | AU64: 1.5552 | AV64: 0.8869731691 | AW64: 0 | AX64: 0.1296 | AY64: 1.5552 | AZ64: 0.4142769231 | BA64: 1.6848 | BB64: 47.88307601 | BC64: 432 | BD64: 0.9002192859 | BE64: 1020.483592 | BF64: 94.2649746 | BH64: 90.02192859 | BI64: 8.137255264 | BJ64: 34.52367021 | BK64: 0.513216 | BL64: 0.8869731691
G65: 56 | H65: 14.056 | I65: BOOST | J65: 2 | K65: 10 | L65: 32.01479795 | M65: 31.19961715 | N65: 1 | O65: 0.6794832465 | P65: 14.24186296 | Q65: 32.27769885 | R65: 2.964562339 | S65: 5.172060762 | T65: 8.136623102 | U65: 15.74258368 | V65: 2.478289411 | W65: 2.478289411 | X65: 4.111271708 | Y65: 0.1690255506 | Z65: 0.1690255506 | AA65: 32.27769885 | AB65: 3.542289466 | AC65: 0 | AD65: 0 | AE65: 12.15018134 | AF65: 0 | AG65: 0 | AH65: 0 | AI65: 0 | AJ65: 26.60675692 | AK65: 2.406926346 | AL65: 7.337315577 | AM65: 0 | AN65: 18.78898023 | AO65: 18.27376068 | AP65: 1.13536312 | AQ65: 0.3201479795 | AR65: 1.883114953 | AS65: 3.542289466 | AT65: 0 | AU65: 1.5552 | AV65: 0.884899392 | AW65: 0 | AX65: 0.1296 | AY65: 1.5552 | AZ65: 0.4142769231 | BA65: 1.6848 | BB65: 47.73111398 | BC65: 432 | BD65: 0.9005044439 | BE65: 1017.209011 | BF65: 94.15574764 | BH65: 90.05044439 | BI65: 8.136623102 | BJ65: 34.37747652 | BK65: 0.513216 | BL65: 0.884899392
A66: Outputs | G66: 57 | H66: 14.0695 | I66: BOOST | J66: 2 | K66: 10 | L66: 31.98407904 | M66: 31.16874654 | N66: 1 | O66: 0.6791657955 | P66: 14.24932097 | Q66: 32.24750493 | R66: 2.957706835 | S66: 5.17830314 | T66: 8.136009975 | U66: 15.73230879 | V66: 2.475055398 | W66: 2.475055398 | X66: 4.113424648 | Y66: 0.1692026233 | Z66: 0.1692026233 | AA66: 32.24750493 | AB66: 3.535665352 | AC66: 0 | AD66: 0 | AE66: 12.0726002 | AF66: 0 | AG66: 0 | AH66: 0 | AI66: 0 | AJ66: 26.57565766 | AK66: 2.401302971 | AL66: 7.330275259 | AM66: 0 | AN66: 18.7239569 | AO66: 18.26570541 | AP66: 1.134362381 | AQ66: 0.3198407904 | AR66: 1.880935714 | AS66: 3.535665352 | AT66: 0 | AU66: 1.5552 | AV66: 0.8828319748 | AW66: 0 | AX66: 0.1296 | AY66: 1.5552 | AZ66: 0.4142769231 | BA66: 1.6848 | BB66: 47.58059278 | BC66: 432 | BD66: 0.9007870763 | BE66: 1013.957845 | BF66: 94.04678568 | BH66: 90.07870763 | BI66: 8.136009975 | BJ66: 34.23269281 | BK66: 0.513216 | BL66: 0.8828319748
A67: Design | B67: Value | C67: Units | G67: 58 | H67: 14.083 | I67: BOOST | J67: 2 | K67: 10 | L67: 31.95341902 | M67: 31.13793788 | N67: 1 | O67: 0.6788483541 | P67: 14.25676555 | Q67: 32.21737006 | R67: 2.950877186 | S67: 5.184538541 | T67: 8.135415726 | U67: 15.72204522 | V67: 2.471827059 | W67: 2.471827059 | X67: 4.115573715 | Y67: 0.16937947 | Z67: 0.16937947 | AA67: 32.21737006 | AB67: 3.529060375 | AC67: 0 | AD67: 0 | AE67: 11.9959389 | AF67: 0 | AG67: 0 | AH67: 0 | AI67: 0 | AJ67: 26.54461742 | AK67: 2.395696827 | AL67: 7.323248438 | AM67: 0 | AN67: 18.65939681 | AO67: 18.25766195 | AP67: 1.133363548 | AQ67: 0.3195341902 | AR67: 1.878761756 | AS67: 3.529060375 | AT67: 0 | AU67: 1.5552 | AV67: 0.8807708923 | AW67: 0 | AX67: 0.1296 | AY67: 1.5552 | AZ67: 0.4142769231 | BA67: 1.6848 | BB67: 47.43149062 | BC67: 432 | BD67: 0.9010672191 | BE67: 1010.729841 | BF67: 93.93808781 | BH67: 90.10672191 | BI67: 8.135415726 | BJ67: 34.08929747 | BK67: 0.513216 | BL67: 0.8807708923
A68: Dmax | B68: =#REF! ->  | C68: index | G68: 59 | H68: 14.0965 | I68: BOOST | J68: 2 | K68: 10 | L68: 31.92281772 | M68: 31.10719098 | N68: 1 | O68: 0.6785309221 | P68: 14.26419673 | Q68: 32.18729408 | R68: 2.944073254 | S68: 5.190766944 | T68: 8.134840198 | U68: 15.71179295 | V68: 2.468604376 | W68: 2.468604376 | X68: 4.117718911 | Y68: 0.1695560903 | Z68: 0.1695560903 | AA68: 32.18729408 | AB68: 3.522474461 | AC68: 0 | AD68: 0 | AE68: 11.9201813 | AF68: 0 | AG68: 0 | AH68: 0 | AI68: 0 | AJ68: 26.51363603 | AK68: 2.390107844 | AL68: 7.316235076 | AM68: 0 | AN68: 18.59529502 | AO68: 18.24963027 | AP68: 1.132366617 | AQ68: 0.3192281772 | AR68: 1.876593061 | AS68: 3.522474461 | AT68: 0 | AU68: 1.5552 | AV68: 0.8787161191 | AW68: 0 | AX68: 0.1296 | AY68: 1.5552 | AZ68: 0.4142769231 | BA68: 1.6848 | BB68: 47.28378616 | BC68: 432 | BD68: 0.9013449077 | BE68: 1007.524751 | BF68: 93.82965306 | BH68: 90.13449077 | BI68: 8.134840198 | BJ68: 33.94726938 | BK68: 0.513216 | BL68: 0.8787161191
A69: Dprime | B69: =1-B68 ->  | C69: index | G69: 60 | H69: 14.11 | I69: BOOST | J69: 2 | K69: 10 | L69: 31.89227498 | M69: 31.07650565 | N69: 1 | O69: 0.6782134996 | P69: 14.2716145 | Q69: 32.15727681 | R69: 2.937294905 | S69: 5.196988329 | T69: 8.134283233 | U69: 15.70155193 | V69: 2.465387331 | W69: 2.465387331 | X69: 4.119860236 | Y69: 0.1697324836 | Z69: 0.1697324836 | AA69: 32.15727681 | AB69: 3.515907536 | AC69: 0 | AD69: 0 | AE69: 11.84531161 | AF69: 0 | AG69: 0 | AH69: 0 | AI69: 0 | AJ69: 26.48271331 | AK69: 2.384535955 | AL69: 7.309235135 | AM69: 0 | AN69: 18.53164662 | AO69: 18.24161034 | AP69: 1.131371582 | AQ69: 0.3189227498 | AR69: 1.874429611 | AS69: 3.515907536 | AT69: 0 | AU69: 1.5552 | AV69: 0.8766676303 | AW69: 0 | AX69: 0.1296 | AY69: 1.5552 | AZ69: 0.4142769231 | BA69: 1.6848 | BB69: 47.13745852 | BC69: 432 | BD69: 0.9016201767 | BE69: 1004.342331 | BF69: 93.72148053 | BH69: 90.16201767 | BI69: 8.134283233 | BJ69: 33.80658784 | BK69: 0.513216 | BL69: 0.8766676303
A70: Ipp | B70: =Iripple_Vinnom -> 14.4926312 | C70: A | G70: 61 | H70: 14.1235 | I70: BOOST | J70: 2 | K70: 10 | L70: 31.86179063 | M70: 31.04588172 | N70: 1 | O70: 0.6778960865 | P70: 14.27901885 | Q70: 32.12731808 | R70: 2.930542002 | S70: 5.203202675 | T70: 8.133744677 | U70: 15.69132214 | V70: 2.462175906 | W70: 2.462175906 | X70: 4.12199769 | Y70: 0.1699086495 | Z70: 0.1699086495 | AA70: 32.12731808 | AB70: 3.509359529 | AC70: 0 | AD70: 0 | AE70: 11.7713144 | AF70: 0 | AG70: 0 | AH70: 0 | AI70: 0 | AJ70: 26.4518491 | AK70: 2.378981091 | AL70: 7.302248575 | AM70: 0 | AN70: 18.46844681 | AO70: 18.23360213 | AP70: 1.130378438 | AQ70: 0.3186179063 | AR70: 1.872271385 | AS70: 3.509359529 | AT70: 0 | AU70: 1.5552 | AV70: 0.8746254009 | AW70: 0 | AX70: 0.1296 | AY70: 1.5552 | AZ70: 0.4142769231 | BA70: 1.6848 | BB70: 46.99248723 | BC70: 432 | BD70: 0.9018930599 | BE70: 1001.182341 | BF70: 93.61356927 | BH70: 90.18930599 | BI70: 8.133744677 | BJ70: 33.6672326 | BK70: 0.513216 | BL70: 0.8746254009
A71: Top FET | B71: Value | C71: Units | G71: 62 | H71: 14.137 | I71: BOOST | J71: 2 | K71: 10 | L71: 31.8313645 | M71: 31.01531898 | N71: 1 | O71: 0.6775786828 | P71: 14.28640981 | Q71: 32.09741773 | R71: 2.923814414 | S71: 5.209409961 | T71: 8.133224375 | U71: 15.68110355 | V71: 2.458970084 | W71: 2.458970084 | X71: 4.124131274 | Y71: 0.1700845876 | Z71: 0.1700845876 | AA71: 32.09741773 | AB71: 3.502830365 | AC71: 0 | AD71: 0 | AE71: 11.69817462 | AF71: 0 | AG71: 0 | AH71: 0 | AI71: 0 | AJ71: 26.42104322 | AK71: 2.373443185 | AL71: 7.295275359 | AM71: 0 | AN71: 18.40569084 | AO71: 18.22560562 | AP71: 1.12938718 | AQ71: 0.318313645 | AR71: 1.870118367 | AS71: 3.502830365 | AT71: 0 | AU71: 1.5552 | AV71: 0.8725894061 | AW71: 0 | AX71: 0.1296 | AY71: 1.5552 | AZ71: 0.4142769231 | BA71: 1.6848 | BB71: 46.84885228 | BC71: 432 | BD71: 0.9021635908 | BE71: 998.044542 | BF71: 93.50591837 | BH71: 90.21635908 | BI71: 8.133224375 | BJ71: 33.52918383 | BK71: 0.513216 | BL71: 0.8725894061
A72: Tr | B72: =(Qgd_Q1+Qgs_Q1/2)*(RdsonDRT+Rgate1)/(Vdd-Vsp_Q1)*1000000000 -> 22.33846154 | C72: ns | D72: Turn on of MOSFET -> Rise time of current | G72: 63 | H72: 14.1505 | I72: BOOST | J72: 2 | K72: 10 | L72: 31.80099643 | M72: 30.98481726 | N72: 1 | O72: 0.6772612884 | P72: 14.29378735 | Q72: 32.06757558 | R72: 2.917112006 | S72: 5.215610168 | T72: 8.132722174 | U72: 15.67089611 | V72: 2.455769848 | W72: 2.455769848 | X72: 4.126260989 | Y72: 0.1702602975 | Z72: 0.1702602975 | AA72: 32.06757558 | AB72: 3.496319973 | AC72: 0 | AD72: 0 | AE72: 11.62587755 | AF72: 0 | AG72: 0 | AH72: 0 | AI72: 0 | AJ72: 26.39029551 | AK72: 2.367922169 | AL72: 7.288315448 | AM72: 0 | AN72: 18.34337402 | AO72: 18.21762078 | AP72: 1.128397803 | AQ72: 0.3180099643 | AR72: 1.867970538 | AS72: 3.496319973 | AT72: 0 | AU72: 1.5552 | AV72: 0.8705596211 | AW72: 0 | AX72: 0.1296 | AY72: 1.5552 | AZ72: 0.4142769231 | BA72: 1.6848 | BB72: 46.70653404 | BC72: 432 | BD72: 0.9024318017 | BE72: 994.9287009 | BF72: 93.3985269 | BH72: 90.24318017 | BI72: 8.132722174 | BJ72: 33.3924221 | BK72: 0.513216 | BL72: 0.8705596211
A73: Tf | B73: =(Qgd_Q1+Qgs_Q1/2)*(RdsonDRT2+Rgate1)/(Vsp_Q1)*1000000000 -> 23.62105263 | C73: ns | D73: Turn off of MOSFET -> Fall time of current | G73: 64 | H73: =VIN_min+(VIN_max-VIN_min)*(G73/200) -> 14.164 | I73: =IF(H73>VIN_BB_to_buck,"BUCK",IF(H73<VIN_boost_to_BB,"BOOST","BUCK-BST")) -> BOOST | J73: 2 | K73: =Iout -> 10 | L73: =Vout*K73/(H73*Efficiency) -> 31.77068625 | M73: =Iout/(1-O73) -> 30.95437636 | N73: =CHOOSE(J73,(Vout+(Rdson2+Rs+Rdcr)*K73)/(H73+(Rs+Rdson2-Rdson1)*K73),1,IF(H73<Vout,D_max_buck_BB,Vout/H73*(1-D_min_boost_exitBB_to_buck))) -> 1 | O73: 0.6769439034 | P73: =MAX(0,CHOOSE(J73,(H73-(Rdson1+Rdcr)*K73-Vout)*N73/(Fsw*Lf),(H73-(Rdson4+Rdcr+Rs)*L73)*O73/(Fsw*Lf),IF(H73<Vout,(H73-(Rdson4+Rdcr+Rs)*L73)*O73/(0.5*Fsw*Lf),(H73-(Rdson1+Rdcr)*K73-Vout)*N73/(0.5*Fsw*Lf)))) -> 14.3011515 | Q73: =CHOOSE(J73,SQRT(K73^2+(P73^2)/12),SQRT(L73^2+(P73^2)/12),SQRT(M73^2+(P73^2)/12)) -> 32.03779147 | R73: 2.910434646 | S73: =7.759*10^-3*Fsw^0.9458*(0.00787*P73)^2.304 -> 5.221803273 | T73: 8.13223792 | U73: =IF(H73>Vout,P73/SQRT(12),SQRT(O73/(1-O73))*SQRT(K73^2+(P73^2)/12)) -> 15.6606998 | V73: 2.452575181 | W73: 2.452575181 | X73: =IF(H73>Vout,SQRT(N73*(1-N73))*SQRT(K73^2+(P73^2)/12),P73/SQRT(12)) -> 4.128386834 | Y73: 0.1704357785 | Z73: 0.1704357785 | AA73: =CHOOSE(J73,SQRT(N73)*SQRT(K73^2+(P73^2)/12),SQRT(L73^2+(P73^2)/12),SQRT(N73)*SQRT(M73^2+(P73^2)/12)) -> 32.03779147 | AB73: =Rdson1*AA73^2 -> 3.48982828 | AC73: =CHOOSE(J73,(H73*K73/2)*(Fsw)*(Tr_buck+Tf_buck),0,(H73*M73/2)*(Fsw/2)*(Tr_buck+Tf_buck)) -> 0 | AD73: =IF(H73>Vout,IF(K73>P73/2,0,ABS(K73-P73/2)*Vsd_Q1*Deadtime*Fsw),0) -> 0 | AE73: =(AD73+AC73+AB73*(1+RdsonTopTc*Ta-RdsonTopTc*25))/(1-AB73*RdsonTopTc*ThetaJA_Q1) -> 11.5544088 | AF73: =CHOOSE(J73,SQRT((1-N73))*SQRT(K73^2+(P73^2)/12),0,SQRT((1-N73))*SQRT(M73^2+(P73^2)/12)) -> 0 | AG73: =Rdson2*AF73^2 -> 0 | AH73: =CHOOSE(J73,IF(K73<P73/2,Deadtime*Fsw*IF(VfdSky_Q2>0,0,Vsd_Q2)*(K73+P73/2),2*Deadtime*Fsw*IF(VfdSky_Q2>0,0,Vsd_Q2)*K73),0,IF(K73<P73/2,Deadtime*Fsw/2*IF(VfdSky_Q2>0,0,Vsd_Q2)*(K73+P73/2),2*Deadtime*Fsw/2*IF(VfdSky_Q2>0,0,Vsd_Q2)*K73)) -> 0 | AI73: =(AH73+AG73*(1+RdsonBotTc*Ta-RdsonBotTc*25))/(1-AG73*RdsonBotTc*ThetaJA_Q2) -> 0 | AJ73: =CHOOSE(J73,0,SQRT(O73)*SQRT(L73^2+(P73^2)/12),SQRT(O73)*SQRT(M73^2+(P73^2)/12)) -> 26.35960579 | AK73: =Rdson4*AJ73^2 -> 2.362417978 | AL73: =CHOOSE(J73,0,(Vout*L73/2)*(Fsw)*(Tr_boost+Tf_boost),(Vout*Iout/2)*(Fsw/2)*(Tr_boost+Tf_boost)) -> 7.281368805 | AM73: =IF(H73>Vout,0,IF(L73>P73/2,0,ABS(L73-P73/2)*Vsd_Q4*Deadtime*Fsw)) -> 0 | AN73: =(AM73+AL73+AK73*(1+RdsonTopTc*Ta-RdsonTopTc*25))/(1-AK73*RdsonTopTc*ThetaJA_Q4) -> 18.28149173 | AO73: =CHOOSE(J73,SQRT(Iout^2+(P73^2)/12),SQRT(1-O73)*SQRT(L73^2+(P73^2)/12),SQRT(1-O73)*SQRT(M73^2+(P73^2)/12)) -> 18.20964759 | AP73: =Rdson3*AO73^2 -> 1.127410302 | AQ73: =CHOOSE(J73,0,IF(L73<P73/2,Deadtime*Fsw*IF(VfdSky_Q3>0,0,Vsd_Q3)*(L73+P73/2),2*Deadtime*Fsw*IF(VfdSky_Q3>0,0,Vsd_Q3)*L73),IF(L73<P73/2,Deadtime*Fsw/2*IF(VfdSky_Q3>0,0,Vsd_Q3)*(L73+P73/2),2*Deadtime*Fsw/2*IF(VfdSky_Q3>0,0,Vsd_Q3)*L73)) -> 0.3177068625 | AR73: =(AQ73+AP73*(1+RdsonBotTc*Ta-RdsonBotTc*25))/(1-AP73*RdsonBotTc*ThetaJA_Q3) -> 1.865827879 | AS73: =CHOOSE(J73,Rdson3*Q73^2,Rdson1*Q73^2,0) -> 3.48982828 | AT73: =CHOOSE(J73,2*Deadtime*Fsw*IF(VfdSky_Q2>0,VfdSky_Q2,0)*K73,2*Deadtime*Fsw*IF(VfdSky_Q3>0,VfdSky_Q3,0)*L73,2*Deadtime*Fsw/2*IF(VfdSky_Q2>0,VfdSky_Q2,0)*K73+2*Deadtime*Fsw/2*IF(VfdSky_Q3>0,VfdSky_Q3,0)*L73) -> 0 | AU73: =CHOOSE(J73,IF(QrrSky_Q2>0,QrrSky_Q2,Qrr_Q2)*Fsw*(H73-K73*Rdson1),IF(QrrSky_Q3>0,QrrSky_Q3,Qrr_Q3)*Fsw*Vout,IF(QrrSky_Q2>0,QrrSky_Q2,Qrr_Q2)*Fsw/2*(H73-K73*Rdson1)+IF(QrrSky_Q3>0,QrrSky_Q3,Qrr_Q3)*Fsw/2*Vout) -> 1.5552 | AV73: =CHOOSE(J73,Rs*AF73^2,Rs*AJ73^2,Rs*(AF73^2+AJ73^2)) -> 0.8685360214 | AW73: =Rshunt_std/1000*Iout^2 -> 0 | AX73: =IF(Vout>8,Iq*Vout,Iq*H73) -> 0.1296 | AY73: =CHOOSE(J73,(Qg_Q1+Qg_Q2)*Fsw,(Qg_Q3+Qg_Q4)*Fsw,(Qg_Q1+Qg_Q2+Qg_Q3+Qg_Q4)*Fsw/2)*IF(Vout>8,Vout,H73) -> 1.5552 | AZ73: =(Vin-Vdd)*Fsw*(Qg_Q1+Qg_Q2)+(RdsonDRT+RdsonDRT2)*Fsw*Qg_Q1*Vdd/(RdsonDRT+2*Rgate1+RdsonDRT2)+(RdsonDRB+RdsonDRB2)*Fsw*Qg_Q2*Vdd/(RdsonDRB+2*Rgate2+RdsonDRB2) -> 0.4142769231 | BA73: 1.6848 | BB73: 46.56551331 | BC73: =Vout*K73 -> 432 | BD73: 0.9026977247 | BE73: =IF(H73>Vout,ThetaJA_Q1*(AE73+AU73),ThetaJA_Q4*(AN73+AU73)) -> 991.8345865 | BF73: =IF(H73>Vout,AI73*ThetaJA_Q2,ThetaJA_Q3*AR73) -> 93.29139395 | BH73: 90.26977247 | BI73: 8.13223792 | BJ73: 33.2569284 | BK73: 0.513216 | BL73: 0.8685360214
A74: Part Power | B74: Value | C74: Units | G74: 65 | H74: 14.1775 | I74: BOOST | J74: =IF(I74="BOOST",2,IF(I74="BUCK",1,3)) -> 2 | K74: 10 | L74: 31.74043379 | M74: 30.92399611 | N74: 1 | O74: =CHOOSE(J74,0,(Vout+(Rdson3+Rdcr)*L74-H74)/(Vout+(Rdson3-Rdson4-Rs)*L74),IF(H74>Vout,D_min_boost_exitBB_to_buck,(Vout-H74*D_max_buck_BB)/Vout)) -> 0.6766265277 | P74: 14.30850224 | Q74: 32.00806523 | R74: =(Q74^2*Rdcr*(1+Ltc*Ta-Ltc*25))/(1-Q74^2*Rdcr*Ltc*ThetaCa) -> 2.903782205 | S74: 5.227989258 | T74: =R74+S74 -> 8.131771462 | U74: 15.65051458 | V74: =RCoutEsr*U74^2 -> 2.449386065 | W74: =V74 -> 2.449386065 | X74: 4.130508811 | Y74: =RCinEsr*X74^2 -> 0.1706110304 | Z74: =Y74 -> 0.1706110304 | AA74: 32.00806523 | AB74: 3.483355216 | AC74: 0 | AD74: 0 | AE74: 11.48375431 | AF74: 0 | AG74: 0 | AH74: 0 | AI74: 0 | AJ74: 26.32897389 | AK74: 2.356930544 | AL74: 7.274435391 | AM74: 0 | AN74: 18.22003942 | AO74: 18.20168602 | AP74: 1.126424671 | AQ74: 0.3174043379 | AR74: 1.863690372 | AS74: 3.483355216 | AT74: 0 | AU74: 1.5552 | AV74: 0.8665185825 | AW74: 0 | AX74: 0.1296 | AY74: 1.5552 | AZ74: 0.4142769231 | BA74: 1.6848 | BB74: 46.42577125 | BC74: 432 | BD74: =BC74/(BC74+BB74) -> 0.9029613912 | BE74: 988.7619711 | BF74: 93.18451861 | BH74: =BD74*100 -> 90.29613912 | BI74: =T74 -> 8.131771462 | BJ74: =AE74+AI74+AN74+AR74+AU74 -> 33.12268411 | BK74: =AI74+AU74*0.33 -> 0.513216 | BL74: =AV74 -> 0.8665185825
A75: Power Dis | B75: =BA9 -> 1.6848 | C75: W | G75: 66 | H75: 14.191 | I75: BOOST | J75: 2 | K75: 10 | L75: 31.71023888 | M75: 30.89367632 | N75: 1 | O75: 0.6763091613 | P75: 14.31583959 | Q75: 31.9783967 | R75: 2.89715455 | S75: 5.2341681 | T75: 8.13132265 | U75: 15.64034041 | V75: 2.446202483 | W75: 2.446202483 | X75: 4.13262692 | Y75: 0.1707860526 | Z75: 0.1707860526 | AA75: 31.9783967 | AB75: 3.476900708 | AC75: 0 | AD75: 0 | AE75: 11.41390035 | AF75: 0 | AG75: 0 | AH75: 0 | AI75: 0 | AJ75: 26.29839965 | AK75: 2.351459802 | AL75: 7.267515168 | AM75: 0 | AN75: 18.15901261 | AO75: 18.19373604 | AP75: 1.125440906 | AQ75: 0.3171023888 | AR75: 1.861558 | AS75: 3.476900708 | AT75: 0 | AU75: 1.5552 | AV75: 0.8645072801 | AW75: 0 | AX75: 0.1296 | AY75: 1.5552 | AZ75: 0.4142769231 | BA75: =SUM(AX75:AY75) -> 1.6848 | BB75: =SUM(T75,W75,Z75,AE75,AI75,AN75,AR75,AT75,AU75,BA75,AV75,AW75) -> 46.28728942 | BC75: 432 | BD75: 0.9032228319 | BE75: 985.7106304 | BF75: 93.07789998 | BH75: 90.32228319 | BI75: 8.13132265 | BJ75: 32.98967096 | BK75: 0.513216 | BL75: 0.8645072801
A76: Temp rise | B76: =B75*B62 -> 50.544 | C76: °C | G76: 67 | H76: 14.2045 | I76: BOOST | J76: 2 | K76: 10 | L76: 31.68010138 | M76: 30.86341681 | N76: 1 | O76: 0.6759918041 | P76: 14.32316354 | Q76: 31.9487857 | R76: 2.890551554 | S76: 5.24033978 | T76: 8.130891334 | U76: 15.63017728 | V76: 2.443024418 | W76: 2.443024418 | X76: 4.134741162 | Y76: 0.1709608447 | Z76: 0.1709608447 | AA76: 31.9487857 | AB76: 3.470464686 | AC76: 0 | AD76: 0 | AE76: 11.34483348 | AF76: 0 | AG76: 0 | AH76: 0 | AI76: 0 | AJ76: 26.2678829 | AK76: 2.346005684 | AL76: 7.2606081 | AM76: 0 | AN76: 18.09840686 | AO76: 18.18579764 | AP76: 1.124459002 | AQ76: 0.3168010138 | AR76: 1.859430743 | AS76: 3.470464686 | AT76: 0 | AU76: 1.5552 | AV76: 0.8625020899 | AW76: 0 | AX76: 0.1296 | AY76: 1.5552 | AZ76: 0.4142769231 | BA76: 1.6848 | BB76: 46.15004976 | BC76: 432 | BD76: 0.9034820768 | BE76: 982.6803429 | BF76: 92.97153715 | BH76: 90.34820768 | BI76: 8.130891334 | BJ76: 32.85787108 | BK76: 0.513216 | BL76: 0.8625020899
A77: Current (switching) | B77: =(Qg_Q1+Qg_Q2)*Fsw+Iq -> 0.039 | C77: A | G77: 68 | H77: 14.218 | I77: BOOST | J77: 2 | K77: 10 | L77: 31.6500211 | M77: 30.8332174 | N77: 1 | O77: 0.6756744562 | P77: 14.33047409 | Q77: 31.91923208 | R77: 2.883973087 | S77: 5.246504277 | T77: 8.130477364 | U77: 15.62002514 | V77: 2.439851853 | W77: 2.439851853 | X77: 4.136851536 | Y77: 0.1711354063 | Z77: 0.1711354063 | AA77: 31.91923208 | AB77: 3.464047079 | AC77: 0 | AD77: 0 | AE77: 11.27654055 | AF77: 0 | AG77: 0 | AH77: 0 | AI77: 0 | AJ77: 26.23742347 | AK77: 2.340568127 | AL77: 7.253714148 | AM77: 0 | AN77: 18.03821781 | AO77: 18.17787078 | AP77: 1.123478953 | AQ77: 0.316500211 | AR77: 1.857308584 | AS77: 3.464047079 | AT77: 0 | AU77: 1.5552 | AV77: 0.8605029877 | AW77: 0 | AX77: 0.1296 | AY77: 1.5552 | AZ77: 0.4142769231 | BA77: 1.6848 | BB77: 46.01403455 | BC77: 432 | BD77: 0.9037391557 | BE77: 979.6708903 | BF77: 92.86542921 | BH77: 90.37391557 | BI77: 8.130477364 | BJ77: 32.72726694 | BK77: 0.513216 | BL77: 0.8605029877
A78: Qrr Current | B78: =Qrr_Q2*Fsw -> 0.036 | C78: A | G78: 69 | H78: 14.2315 | I78: BOOST | J78: 2 | K78: 10 | L78: 31.61999789 | M78: 30.8030779 | N78: 1 | O78: 0.6753571175 | P78: 14.33777125 | Q78: 31.88973566 | R78: 2.877419022 | S78: 5.252661571 | T78: 8.130080592 | U78: 15.60988395 | V78: 2.436684771 | W78: 2.436684771 | X78: 4.138958044 | Y78: 0.1713097369 | Z78: 0.1713097369 | AA78: 31.88973566 | AB78: 3.457647817 | AC78: 0 | AD78: 0 | AE78: 11.20900873 | AF78: 0 | AG78: 0 | AH78: 0 | AI78: 0 | AJ78: 26.20702119 | AK78: 2.335147063 | AL78: 7.246833275 | AM78: 0 | AN78: 17.97844115 | AO78: 18.16995544 | AP78: 1.122500754 | AQ78: 0.3161999789 | AR78: 1.855191506 | AS78: 3.457647817 | AT78: 0 | AU78: 1.5552 | AV78: 0.8585099497 | AW78: 0 | AX78: 0.1296 | AY78: 1.5552 | AZ78: 0.4142769231 | BA78: 1.6848 | BB78: 45.87922644 | BC78: 432 | BD78: 0.9039940975 | BE78: 976.6820574 | BF78: 92.75957529 | BH78: 90.39940975 | BI78: 8.130080592 | BJ78: 32.59784139 | BK78: 0.513216 | BL78: 0.8585099497
A79: Diode Current | B79: =C79/Vin ->  | C79: =Deadtime*Fsw*(Iripple_Vinnom/2)*(VsdTop+VsdBot) ->  | G79: 70 | H79: 14.245 | I79: BOOST | J79: 2 | K79: 10 | L79: 31.59003159 | M79: 30.77299814 | N79: 1 | O79: 0.675039788 | P79: 14.34505501 | Q79: 31.86029629 | R79: 2.870889232 | S79: 5.258811641 | T79: 8.129700873 | U79: 15.5997537 | V79: 2.433523155 | W79: 2.433523155 | X79: 4.141060687 | Y79: 0.1714838361 | Z79: 0.1714838361 | AA79: 31.86029629 | AB79: 3.45126683 | AC79: 0 | AD79: 0 | AE79: 11.14222546 | AF79: 0 | AG79: 0 | AH79: 0 | AI79: 0 | AJ79: 26.17667591 | AK79: 2.329742429 | AL79: 7.239965444 | AM79: 0 | AN79: 17.91907264 | AO79: 18.16205159 | AP79: 1.121524401 | AQ79: 0.3159003159 | AR79: 1.85307949 | AS79: 3.45126683 | AT79: 0 | AU79: 1.5552 | AV79: 0.8565229519 | AW79: 0 | AX79: 0.1296 | AY79: 1.5552 | AZ79: 0.4142769231 | BA79: 1.6848 | BB79: 45.7456084 | BC79: 432 | BD79: 0.9042469306 | BE79: 973.7136318 | BF79: 92.65397449 | BH79: 90.42469306 | BI79: 8.129700873 | BJ79: 32.46957758 | BK79: 0.513216 | BL79: 0.8565229519
A80: Total | B80: =SUM(B77:B79) ->  | C80: A | G80: 71 | H80: 14.2585 | I80: BOOST | J80: 2 | K80: 10 | L80: 31.56012203 | M80: 30.74297793 | N80: 1 | O80: 0.6747224676 | P80: 14.35232539 | Q80: 31.8309138 | R80: 2.864383592 | S80: 5.264954467 | T80: 8.129338058 | U80: 15.58963434 | V80: 2.430366988 | W80: 2.430366988 | X80: 4.143159463 | Y80: 0.1716577034 | Z80: 0.1716577034 | AA80: 31.8309138 | AB80: 3.444904048 | AC80: 0 | AD80: 0 | AE80: 11.07617843 | AF80: 0 | AG80: 0 | AH80: 0 | AI80: 0 | AJ80: 26.14638745 | AK80: 2.32435416 | AL80: 7.233110618 | AM80: 0 | AN80: 17.86010808 | AO80: 18.15415921 | AP80: 1.120549888 | AQ80: 0.3156012203 | AR80: 1.850972518 | AS80: 3.444904048 | AT80: 0 | AU80: 1.5552 | AV80: 0.8545419706 | AW80: 0 | AX80: 0.1296 | AY80: 1.5552 | AZ80: 0.4142769231 | BA80: 1.6848 | BB80: 45.61316376 | BC80: 432 | BD80: 0.904497683 | BE80: 970.7654042 | BF80: 92.54862591 | BH80: 90.4497683 | BI80: 8.129338058 | BJ80: 32.34245903 | BK80: 0.513216 | BL80: 0.8545419706
G81: 72 | H81: 14.272 | I81: BOOST | J81: 2 | K81: 10 | L81: 31.53026906 | M81: 30.7130171 | N81: 1 | O81: 0.6744051563 | P81: 14.35958238 | Q81: 31.80158802 | R81: 2.857901975 | S81: 5.271090028 | T81: 8.128992004 | U81: 15.57952584 | V81: 2.427216255 | W81: 2.427216255 | X81: 4.145254375 | Y81: 0.1718313383 | Z81: 0.1718313383 | AA81: 31.80158802 | AB81: 3.438559402 | AC81: 0 | AD81: 0 | AE81: 11.01085564 | AF81: 0 | AG81: 0 | AH81: 0 | AI81: 0 | AJ81: 26.11615565 | AK81: 2.318982191 | AL81: 7.226268761 | AM81: 0 | AN81: 17.80154336 | AO81: 18.14627827 | AP81: 1.119577211 | AQ81: 0.3153026906 | AR81: 1.848870574 | AS81: 3.438559402 | AT81: 0 | AU81: 1.5552 | AV81: 0.8525669821 | AW81: 0 | AX81: 0.1296 | AY81: 1.5552 | AZ81: 0.4142769231 | BA81: 1.6848 | BB81: 45.48187615 | BC81: 432 | BD81: 0.9047463822 | BE81: 967.8371678 | BF81: 92.44352869 | BH81: 90.47463822 | BI81: 8.128992004 | BJ81: 32.21646957 | BK81: 0.513216 | BL81: 0.8525669821
G82: 73 | H82: 14.2855 | I82: BOOST | J82: 2 | K82: 10 | L82: 31.50047251 | M82: 30.68311546 | N82: 1 | O82: 0.6740878542 | P82: 14.36682598 | Q82: 31.7723188 | R82: 2.851444259 | S82: 5.277218305 | T82: 8.128662564 | U82: 15.56942817 | V82: 2.424070937 | W82: 2.424070937 | X82: 4.147345422 | Y82: 0.1720047405 | Z82: 0.1720047405 | AA82: 31.7723188 | AB82: 3.432232824 | AC82: 0 | AD82: 0 | AE82: 10.94624532 | AF82: 0 | AG82: 0 | AH82: 0 | AI82: 0 | AJ82: 26.08598034 | AK82: 2.313626459 | AL82: 7.219439834 | AM82: 0 | AN82: 17.74337438 | AO82: 18.13840875 | AP82: 1.118606364 | AQ82: 0.3150047251 | AR82: 1.846773639 | AS82: 3.432232824 | AT82: 0 | AU82: 1.5552 | AV82: 0.8505979629 | AW82: 0 | AX82: 0.1296 | AY82: 1.5552 | AZ82: 0.4142769231 | BA82: 1.6848 | BB82: 45.35172955 | BC82: 432 | BD82: 0.9049930549 | BE82: 964.9287191 | BF82: 92.33868194 | BH82: 90.49930549 | BI82: 8.128662564 | BJ82: 32.09159334 | BK82: 0.513216 | BL82: 0.8505979629
G83: 74 | H83: 14.299 | I83: BOOST | J83: 2 | K83: 10 | L83: 31.47073222 | M83: 30.65327284 | N83: 1 | O83: 0.6737705611 | P83: 14.37405619 | Q83: 31.74310598 | R83: 2.84501032 | S83: 5.283339277 | T83: 8.128349597 | U83: 15.55934131 | V83: 2.420931019 | W83: 2.420931019 | X83: 4.149432605 | Y83: 0.1721779095 | Z83: 0.1721779095 | AA83: 31.74310598 | AB83: 3.425924243 | AC83: 0 | AD83: 0 | AE83: 10.88233596 | AF83: 0 | AG83: 0 | AH83: 0 | AI83: 0 | AJ83: 26.05586137 | AK83: 2.3082869 | AL83: 7.212623803 | AM83: 0 | AN83: 17.68559714 | AO83: 18.13055062 | AP83: 1.117637343 | AQ83: 0.3147073222 | AR83: 1.844681696 | AS83: 3.425924243 | AT83: 0 | AU83: 1.5552 | AV83: 0.8486348895 | AW83: 0 | AX83: 0.1296 | AY83: 1.5552 | AZ83: 0.4142769231 | BA83: 1.6848 | BB83: 45.22270821 | BC83: 432 | BD83: 0.9052377277 | BE83: 962.039857 | BF83: 92.23408478 | BH83: 90.52377277 | BI83: 8.128349597 | BJ83: 31.9678148 | BK83: 0.513216 | BL83: 0.8486348895
G84: 75 | H84: 14.3125 | I84: BOOST | J84: 2 | K84: 10 | L84: 31.44104803 | M84: 30.62348907 | N84: 1 | O84: 0.6734532771 | P84: 14.38127302 | Q84: 31.71394939 | R84: 2.838600034 | S84: 5.289452924 | T84: 8.128052958 | U84: 15.5492652 | V84: 2.417796483 | W84: 2.417796483 | X84: 4.151515925 | Y84: 0.1723508448 | Z84: 0.1723508448 | AA84: 31.71394939 | AB84: 3.419633592 | AC84: 0 | AD84: 0 | AE84: 10.8191163 | AF84: 0 | AG84: 0 | AH84: 0 | AI84: 0 | AJ84: 26.02579857 | AK84: 2.302963449 | AL84: 7.205820629 | AM84: 0 | AN84: 17.62820766 | AO84: 18.12270386 | AP84: 1.116670143 | AQ84: 0.3144104803 | AR84: 1.842594727 | AS84: 3.419633592 | AT84: 0 | AU84: 1.5552 | AV84: 0.8466777387 | AW84: 0 | AX84: 0.1296 | AY84: 1.5552 | AZ84: 0.4142769231 | BA84: 1.6848 | BB84: 45.09479672 | BC84: 432 | BD84: 0.9054804265 | BE84: 959.1703831 | BF84: 92.12973636 | BH84: 90.54804265 | BI84: 8.128052958 | BJ84: 31.84511869 | BK84: 0.513216 | BL84: 0.8466777387
G85: 76 | H85: 14.326 | I85: BOOST | J85: 2 | K85: 10 | L85: 31.4114198 | M85: 30.59376396 | N85: 1 | O85: 0.6731360021 | P85: 14.38847647 | Q85: 31.68484887 | R85: 2.832213281 | S85: 5.295559225 | T85: 8.127772507 | U85: 15.53919983 | V85: 2.414667315 | W85: 2.414667315 | X85: 4.153595382 | Y85: 0.172523546 | Z85: 0.172523546 | AA85: 31.68484887 | AB85: 3.413360804 | AC85: 0 | AD85: 0 | AE85: 10.75657532 | AF85: 0 | AG85: 0 | AH85: 0 | AI85: 0 | AJ85: 25.99579177 | AK85: 2.297656045 | AL85: 7.199030277 | AM85: 0 | AN85: 17.57120204 | AO85: 18.11486844 | AP85: 1.115704759 | AQ85: 0.314114198 | AR85: 1.840512716 | AS85: 3.413360804 | AT85: 0 | AU85: 1.5552 | AV85: 0.8447264872 | AW85: 0 | AX85: 0.1296 | AY85: 1.5552 | AZ85: 0.4142769231 | BA85: 1.6848 | BB85: 44.96797993 | BC85: 432 | BD85: 0.9057211766 | BE85: 956.320102 | BF85: 92.02563579 | BH85: 90.57211766 | BI85: 8.127772507 | BJ85: 31.72349008 | BK85: 0.513216 | BL85: 0.8447264872
G86: 77 | H86: 14.3395 | I86: BOOST | J86: 2 | K86: 10 | L86: 31.38184734 | M86: 30.56409734 | N86: 1 | O86: 0.6728187361 | P86: 14.39566654 | Q86: 31.65580427 | R86: 2.82584994 | S86: 5.301658161 | T86: 8.127508101 | U86: 15.52914517 | V86: 2.411543496 | W86: 2.411543496 | X86: 4.155670976 | Y86: 0.1726960126 | Z86: 0.1726960126 | AA86: 31.65580427 | AB86: 3.40710581 | AC86: 0 | AD86: 0 | AE86: 10.69470223 | AF86: 0 | AG86: 0 | AH86: 0 | AI86: 0 | AJ86: 25.96584082 | AK86: 2.292364625 | AL86: 7.192252711 | AM86: 0 | AN86: 17.51457641 | AO86: 18.10704433 | AP86: 1.114741185 | AQ86: 0.3138184734 | AR86: 1.838435644 | AS86: 3.40710581 | AT86: 0 | AU86: 1.5552 | AV86: 0.842781112 | AW86: 0 | AX86: 0.1296 | AY86: 1.5552 | AZ86: 0.4142769231 | BA86: 1.6848 | BB86: 44.84224301 | BC86: 432 | BD86: 0.9059600032 | BE86: 953.4888206 | BF86: 91.92178222 | BH86: 90.59600032 | BI86: 8.127508101 | BJ86: 31.60291429 | BK86: 0.513216 | BL86: 0.842781112
G87: 78 | H87: 14.353 | I87: BOOST | J87: 2 | K87: 10 | L87: 31.35233052 | M87: 30.53448904 | N87: 1 | O87: 0.672501479 | P87: 14.40284323 | Q87: 31.62681542 | R87: 2.81950989 | S87: 5.307749711 | T87: 8.127259601 | U87: 15.51910117 | V87: 2.408425011 | W87: 2.408425011 | X87: 4.157742708 | Y87: 0.1728682443 | Z87: 0.1728682443 | AA87: 31.62681542 | AB87: 3.400868542 | AC87: 0 | AD87: 0 | AE87: 10.63348647 | AF87: 0 | AG87: 0 | AH87: 0 | AI87: 0 | AJ87: 25.93594556 | AK87: 2.287089125 | AL87: 7.185487895 | AM87: 0 | AN87: 17.45832697 | AO87: 18.09923152 | AP87: 1.113779418 | AQ87: 0.3135233052 | AR87: 1.836363496 | AS87: 3.400868542 | AT87: 0 | AU87: 1.5552 | AV87: 0.84084159 | AW87: 0 | AX87: 0.1296 | AY87: 1.5552 | AZ87: 0.4142769231 | BA87: 1.6848 | BB87: 44.71757138 | BC87: 432 | BD87: 0.9061969307 | BE87: 950.6763485 | BF87: 91.81817479 | BH87: 90.61969307 | BI87: 8.127259601 | BJ87: 31.48337693 | BK87: 0.513216 | BL87: 0.84084159
G88: 79 | H88: 14.3665 | I88: BOOST | J88: 2 | K88: 10 | L88: 31.32286917 | M88: 30.50493889 | N88: 1 | O88: 0.672184231 | P88: 14.41000655 | Q88: 31.59788217 | R88: 2.813193012 | S88: 5.313833855 | T88: 8.127026867 | U88: 15.50906781 | V88: 2.405311844 | W88: 2.405311844 | X88: 4.159810579 | Y88: 0.1730402405 | Z88: 0.1730402405 | AA88: 31.59788217 | AB88: 3.394648935 | AC88: 0 | AD88: 0 | AE88: 10.57291769 | AF88: 0 | AG88: 0 | AH88: 0 | AI88: 0 | AJ88: 25.90610582 | AK88: 2.281829484 | AL88: 7.178735792 | AM88: 0 | AN88: 17.40244996 | AO88: 18.09142998 | AP88: 1.112819451 | AQ88: 0.3132286917 | AR88: 1.834296253 | AS88: 3.394648935 | AT88: 0 | AU88: 1.5552 | AV88: 0.8389078985 | AW88: 0 | AX88: 0.1296 | AY88: 1.5552 | AZ88: 0.4142769231 | BA88: 1.6848 | BB88: 44.59395075 | BC88: 432 | BD88: 0.9064319833 | BE88: 947.8824978 | BF88: 91.71481265 | BH88: 90.64319833 | BI88: 8.127026867 | BJ88: 31.3648639 | BK88: 0.513216 | BL88: 0.8389078985
G89: 80 | H89: 14.38 | I89: BOOST | J89: 2 | K89: 10 | L89: 31.29346314 | M89: 30.47544669 | N89: 1 | O89: 0.6718669918 | P89: 14.41715648 | Q89: 31.56900435 | R89: 2.806899188 | S89: 5.319910573 | T89: 8.126809761 | U89: 15.49904506 | V89: 2.402203979 | W89: 2.402203979 | X89: 4.161874589 | Y89: 0.1732120009 | Z89: 0.1732120009 | AA89: 31.56900435 | AB89: 3.388446921 | AC89: 0 | AD89: 0 | AE89: 10.51298578 | AF89: 0 | AG89: 0 | AH89: 0 | AI89: 0 | AJ89: 25.87632145 | AK89: 2.27658564 | AL89: 7.171996367 | AM89: 0 | AN89: 17.34694166 | AO89: 18.08363968 | AP89: 1.111861281 | AQ89: 0.3129346314 | AR89: 1.832233899 | AS89: 3.388446921 | AT89: 0 | AU89: 1.5552 | AV89: 0.8369800146 | AW89: 0 | AX89: 0.1296 | AY89: 1.5552 | AZ89: 0.4142769231 | BA89: 1.6848 | BB89: 44.4713671 | BC89: 432 | BD89: 0.9066651846 | BE89: 945.1070831 | BF89: 91.61169494 | BH89: 90.66651846 | BI89: 8.126809761 | BJ89: 31.24736134 | BK89: 0.513216 | BL89: 0.8369800146
G90: 81 | H90: 14.3935 | I90: BOOST | J90: 2 | K90: 10 | L90: 31.26411227 | M90: 30.4460123 | N90: 1 | O90: 0.6715497615 | P90: 14.42429305 | Q90: 31.54018181 | R90: 2.800628299 | S90: 5.325979845 | T90: 8.126608144 | U90: 15.48903289 | V90: 2.399101399 | W90: 2.399101399 | X90: 4.163934738 | Y90: 0.173383525 | Z90: 0.173383525 | AA90: 31.54018181 | AB90: 3.382262434 | AC90: 0 | AD90: 0 | AE90: 10.45368082 | AF90: 0 | AG90: 0 | AH90: 0 | AI90: 0 | AJ90: 25.84659228 | AK90: 2.271357531 | AL90: 7.165269584 | AM90: 0 | AN90: 17.29179843 | AO90: 18.07586059 | AP90: 1.110904903 | AQ90: 0.3126411227 | AR90: 1.830176416 | AS90: 3.382262434 | AT90: 0 | AU90: 1.5552 | AV90: 0.8350579157 | AW90: 0 | AX90: 0.1296 | AY90: 1.5552 | AZ90: 0.4142769231 | BA90: 1.6848 | BB90: 44.34980665 | BC90: 432 | BD90: 0.9068965579 | BE90: 942.3499216 | BF90: 91.50882082 | BH90: 90.68965579 | BI90: 8.126608144 | BJ90: 31.13085567 | BK90: 0.513216 | BL90: 0.8350579157
G91: 82 | H91: 14.407 | I91: BOOST | J91: 2 | K91: 10 | L91: 31.23481641 | M91: 30.41663553 | N91: 1 | O91: 0.6712325402 | P91: 14.43141624 | Q91: 31.5114144 | R91: 2.794380229 | S91: 5.332041652 | T91: 8.126421881 | U91: 15.47903126 | V91: 2.396004088 | W91: 2.396004088 | X91: 4.165991027 | Y91: 0.1735548123 | Z91: 0.1735548123 | AA91: 31.5114144 | AB91: 3.376095407 | AC91: 0 | AD91: 0 | AE91: 10.3949931 | AF91: 0 | AG91: 0 | AH91: 0 | AI91: 0 | AJ91: 25.81691816 | AK91: 2.266145096 | AL91: 7.158555407 | AM91: 0 | AN91: 17.23701665 | AO91: 18.0680927 | AP91: 1.109950311 | AQ91: 0.3123481641 | AR91: 1.828123789 | AS91: 3.376095407 | AT91: 0 | AU91: 1.5552 | AV91: 0.8331415793 | AW91: 0 | AX91: 0.1296 | AY91: 1.5552 | AZ91: 0.4142769231 | BA91: 1.6848 | BB91: 44.2292559 | BC91: 432 | BD91: 0.907126126 | BE91: 939.6108327 | BF91: 91.40618944 | BH91: 90.7126126 | BI91: 8.126421881 | BJ91: 31.01533354 | BK91: 0.513216 | BL91: 0.8331415793
G92: 83 | H92: 14.4205 | I92: BOOST | J92: 2 | K92: 10 | L92: 31.2055754 | M92: 30.38731621 | N92: 1 | O92: 0.6709153276 | P92: 14.43852607 | Q92: 31.48270195 | R92: 2.788154862 | S92: 5.338095972 | T92: 8.126250834 | U92: 15.46904015 | V92: 2.392912031 | W92: 2.392912031 | X92: 4.168043456 | Y92: 0.1737258625 | Z92: 0.1737258625 | AA92: 31.48270195 | AB92: 3.369945775 | AC92: 0 | AD92: 0 | AE92: 10.3369131 | AF92: 0 | AG92: 0 | AH92: 0 | AI92: 0 | AJ92: 25.78729894 | AK92: 2.260948274 | AL92: 7.151853802 | AM92: 0 | AN92: 17.18259277 | AO92: 18.06033598 | AP92: 1.108997501 | AQ92: 0.312055754 | AR92: 1.826075999 | AS92: 3.369945775 | AT92: 0 | AU92: 1.5552 | AV92: 0.831230983 | AW92: 0 | AX92: 0.1296 | AY92: 1.5552 | AZ92: 0.4142769231 | BA92: 1.6848 | BB92: 44.10970158 | BC92: 432 | BD92: 0.9073539114 | BE92: 936.8896383 | BF92: 91.30379997 | BH92: 90.73539114 | BI92: 8.126250834 | BJ92: 30.90078187 | BK92: 0.513216 | BL92: 0.831230983
G93: 84 | H93: 14.434 | I93: BOOST | J93: 2 | K93: 10 | L93: 31.17638908 | M93: 30.35805418 | N93: 1 | O93: 0.6705981239 | P93: 14.44562252 | Q93: 31.45404431 | R93: 2.781952082 | S93: 5.344142786 | T93: 8.126094868 | U93: 15.45905951 | V93: 2.389825211 | W93: 2.389825211 | X93: 4.170092026 | Y93: 0.1738966751 | Z93: 0.1738966751 | AA93: 31.45404431 | AB93: 3.363813472 | AC93: 0 | AD93: 0 | AE93: 10.27943152 | AF93: 0 | AG93: 0 | AH93: 0 | AI93: 0 | AJ93: 25.75773444 | AK93: 2.255767004 | AL93: 7.145164733 | AM93: 0 | AN93: 17.12852325 | AO93: 18.0525904 | AP93: 1.108046469 | AQ93: 0.3117638908 | AR93: 1.824033031 | AS93: 3.363813472 | AT93: 0 | AU93: 1.5552 | AV93: 0.8293261043 | AW93: 0 | AX93: 0.1296 | AY93: 1.5552 | AZ93: 0.4142769231 | BA93: 1.6848 | BB93: 43.99113066 | BC93: 432 | BD93: 0.9075799362 | BE93: 934.1861626 | BF93: 91.20165156 | BH93: 90.75799362 | BI93: 8.126094868 | BJ93: 30.7871878 | BK93: 0.513216 | BL93: 0.8293261043
G94: 85 | H94: 14.4475 | I94: BOOST | J94: 2 | K94: 10 | L94: 31.14725731 | M94: 30.32884925 | N94: 1 | O94: 0.670280929 | P94: 14.45270561 | Q94: 31.42544133 | R94: 2.775771775 | S94: 5.350182075 | T94: 8.125953849 | U94: 15.44908934 | V94: 2.386743613 | W94: 2.386743613 | X94: 4.172136738 | Y94: 0.1740672496 | Z94: 0.1740672496 | AA94: 31.42544133 | AB94: 3.357698434 | AC94: 0 | AD94: 0 | AE94: 10.22253922 | AF94: 0 | AG94: 0 | AH94: 0 | AI94: 0 | AJ94: 25.72822452 | AK94: 2.250601226 | AL94: 7.138488164 | AM94: 0 | AN94: 17.07480464 | AO94: 18.04485594 | AP94: 1.107097208 | AQ94: 0.3114725731 | AR94: 1.821994868 | AS94: 3.357698434 | AT94: 0 | AU94: 1.5552 | AV94: 0.8274269212 | AW94: 0 | AX94: 0.1296 | AY94: 1.5552 | AZ94: 0.4142769231 | BA94: 1.6848 | BB94: 43.87353036 | BC94: 432 | BD94: 0.907804222 | BE94: 931.500232 | BF94: 91.0997434 | BH94: 90.7804222 | BI94: 8.125953849 | BJ94: 30.67453873 | BK94: 0.513216 | BL94: 0.8274269212
G95: 86 | H95: 14.461 | I95: BOOST | J95: 2 | K95: 10 | L95: 31.11817993 | M95: 30.29970127 | N95: 1 | O95: 0.6699637428 | P95: 14.45977534 | Q95: 31.39689285 | R95: 2.769613826 | S95: 5.356213817 | T95: 8.125827643 | U95: 15.43912958 | V95: 2.383667221 | W95: 2.383667221 | X95: 4.174177591 | Y95: 0.1742375856 | Z95: 0.1742375856 | AA95: 31.39689285 | AB95: 3.351600595 | AC95: 0 | AD95: 0 | AE95: 10.16622726 | AF95: 0 | AG95: 0 | AH95: 0 | AI95: 0 | AJ95: 25.69876902 | AK95: 2.245450879 | AL95: 7.131824061 | AM95: 0 | AN95: 17.02143351 | AO95: 18.03713258 | AP95: 1.106149716 | AQ95: 0.3111817993 | AR95: 1.819961493 | AS95: 3.351600595 | AT95: 0 | AU95: 1.5552 | AV95: 0.8255334114 | AW95: 0 | AX95: 0.1296 | AY95: 1.5552 | AZ95: 0.4142769231 | BA95: 1.6848 | BB95: 43.75688813 | BC95: 432 | BD95: 0.9080267901 | BE95: 928.8316753 | BF95: 90.99807464 | BH95: 90.80267901 | BI95: 8.125827643 | BJ95: 30.56282226 | BK95: 0.513216 | BL95: 0.8255334114
G96: 87 | H96: 14.4745 | I96: BOOST | J96: 2 | K96: 10 | L96: 31.08915679 | M96: 30.27061006 | N96: 1 | O96: 0.6696465655 | P96: 14.4668317 | Q96: 31.36839872 | R96: 2.763478123 | S96: 5.362237995 | T96: 8.125716117 | U96: 15.42918021 | V96: 2.380596019 | W96: 2.380596019 | X96: 4.176214587 | Y96: 0.1744076828 | Z96: 0.1744076828 | AA96: 31.36839872 | AB96: 3.34551989 | AC96: 0 | AD96: 0 | AE96: 10.11048689 | AF96: 0 | AG96: 0 | AH96: 0 | AI96: 0 | AJ96: 25.66936778 | AK96: 2.240315904 | AL96: 7.12517239 | AM96: 0 | AN96: 16.96840647 | AO96: 18.02942029 | AP96: 1.105203986 | AQ96: 0.3108915679 | AR96: 1.817932889 | AS96: 3.34551989 | AT96: 0 | AU96: 1.5552 | AV96: 0.8236455531 | AW96: 0 | AX96: 0.1296 | AY96: 1.5552 | AZ96: 0.4142769231 | BA96: 1.6848 | BB96: 43.64119162 | BC96: 432 | BD96: 0.9082476615 | BE96: 926.1803236 | BF96: 90.89664446 | BH96: 90.82476615 | BI96: 8.125716117 | BJ96: 30.45202625 | BK96: 0.513216 | BL96: 0.8236455531
G97: 88 | H97: 14.488 | I97: BOOST | J97: 2 | K97: 10 | L97: 31.06018774 | M97: 30.24157546 | N97: 1 | O97: 0.6693293968 | P97: 14.47387469 | Q97: 31.33995878 | R97: 2.757364552 | S97: 5.368254586 | T97: 8.125619139 | U97: 15.4192412 | V97: 2.377529992 | W97: 2.377529992 | X97: 4.178247726 | Y97: 0.1745775406 | Z97: 0.1745775406 | AA97: 31.33995878 | AB97: 3.339456256 | AC97: 0 | AD97: 0 | AE97: 10.0553095 | AF97: 0 | AG97: 0 | AH97: 0 | AI97: 0 | AJ97: 25.64002066 | AK97: 2.235196242 | AL97: 7.118533114 | AM97: 0 | AN97: 16.9157202 | AO97: 18.02171904 | AP97: 1.104260015 | AQ97: 0.3106018774 | AR97: 1.815909041 | AS97: 3.339456256 | AT97: 0 | AU97: 1.5552 | AV97: 0.8217633242 | AW97: 0 | AX97: 0.1296 | AY97: 1.5552 | AZ97: 0.4142769231 | BA97: 1.6848 | BB97: 43.52642874 | BC97: 432 | BD97: 0.9084668567 | BE97: 923.5460099 | BF97: 90.79545205 | BH97: 90.84668567 | BI97: 8.125619139 | BJ97: 30.34213874 | BK97: 0.513216 | BL97: 0.8217633242
G98: 89 | H98: 14.5015 | I98: BOOST | J98: 2 | K98: 10 | L98: 31.03127263 | M98: 30.2125973 | N98: 1 | O98: 0.6690122368 | P98: 14.48090433 | Q98: 31.31157289 | R98: 2.751273003 | S98: 5.374263573 | T98: 8.125536577 | U98: 15.40931252 | V98: 2.374469124 | W98: 2.374469124 | X98: 4.180277007 | Y98: 0.1747471586 | Z98: 0.1747471586 | AA98: 31.31157289 | AB98: 3.333409629 | AC98: 0 | AD98: 0 | AE98: 10.00068669 | AF98: 0 | AG98: 0 | AH98: 0 | AI98: 0 | AJ98: 25.61072749 | AK98: 2.230091832 | AL98: 7.1119062 | AM98: 0 | AN98: 16.86337139 | AO98: 18.01402882 | AP98: 1.103317797 | AQ98: 0.3103127263 | AR98: 1.813889932 | AS98: 3.333409629 | AT98: 0 | AU98: 1.5552 | AV98: 0.8198867029 | AW98: 0 | AX98: 0.1296 | AY98: 1.5552 | AZ98: 0.4142769231 | BA98: 1.6848 | BB98: 43.41258758 | BC98: 432 | BD98: 0.908684396 | BE98: 920.9285696 | BF98: 90.69449659 | BH98: 90.8684396 | BI98: 8.125536577 | BJ98: 30.23314801 | BK98: 0.513216 | BL98: 0.8198867029
G99: 90 | H99: 14.515 | I99: BOOST | J99: 2 | K99: 10 | L99: 31.0024113 | M99: 30.18367541 | N99: 1 | O99: 0.6686950855 | P99: 14.48792061 | Q99: 31.28324088 | R99: 2.745203365 | S99: 5.380264935 | T99: 8.1254683 | U99: 15.39939414 | V99: 2.3714134 | W99: 2.3714134 | X99: 4.182302433 | Y99: 0.1749165364 | Z99: 0.1749165364 | AA99: 31.28324088 | AB99: 3.327379944 | AC99: 0 | AD99: 0 | AE99: 9.946610205 | AF99: 0 | AG99: 0 | AH99: 0 | AI99: 0 | AJ99: 25.58148811 | AK99: 2.225002616 | AL99: 7.105291612 | AM99: 0 | AN99: 16.8113568 | AO99: 18.0063496 | AP99: 1.102377328 | AQ99: 0.310024113 | AR99: 1.811875545 | AS99: 3.327379944 | AT99: 0 | AU99: 1.5552 | AV99: 0.8180156677 | AW99: 0 | AX99: 0.1296 | AY99: 1.5552 | AZ99: 0.4142769231 | BA99: 1.6848 | BB99: 43.29965646 | BC99: 432 | BD99: 0.9089002993 | BE99: 918.3278401 | BF99: 90.59377725 | BH99: 90.89002993 | BI99: 8.1254683 | BJ99: 30.12504255 | BK99: 0.513216 | BL99: 0.8180156677
G100: 91 | H100: 14.5285 | I100: BOOST | J100: 2 | K100: 10 | L100: 30.97360361 | M100: 30.15480963 | N100: 1 | O100: 0.6683779429 | P100: 14.49492353 | Q100: 31.25496261 | R100: 2.739155527 | S100: 5.386258652 | T100: 8.125414179 | U100: 15.38948604 | V100: 2.368362804 | W100: 2.368362804 | X100: 4.184324002 | Y100: 0.1750856736 | Z100: 0.1750856736 | AA100: 31.25496261 | AB100: 3.321367138 | AC100: 0 | AD100: 0 | AE100: 9.893071958 | AF100: 0 | AG100: 0 | AH100: 0 | AI100: 0 | AJ100: 25.55230239 | AK100: 2.219928535 | AL100: 7.098689318 | AM100: 0 | AN100: 16.75967322 | AO100: 17.99868135 | AP100: 1.101438603 | AQ100: 0.3097360361 | AR100: 1.809865865 | AS100: 3.321367138 | AT100: 0 | AU100: 1.5552 | AV100: 0.8161501969 | AW100: 0 | AX100: 0.1296 | AY100: 1.5552 | AZ100: 0.4142769231 | BA100: 1.6848 | BB100: 43.18762389 | BC100: 432 | BD100: 0.9091145861 | BE100: 915.7436609 | BF100: 90.49329324 | BH100: 90.91145861 | BI100: 8.125414179 | BJ100: 30.01781104 | BK100: 0.513216 | BL100: 0.8161501969
G101: 92 | H101: 14.542 | I101: BOOST | J101: 2 | K101: 10 | L101: 30.9448494 | M101: 30.12599978 | N101: 1 | O101: 0.6680608089 | P101: 14.5019131 | Q101: 31.22673793 | R101: 2.733129379 | S101: 5.392244705 | T101: 8.125374084 | U101: 15.37958817 | V101: 2.365317321 | W101: 2.365317321 | X101: 4.186341716 | Y101: 0.1752545697 | Z101: 0.1752545697 | AA101: 31.22673793 | AB101: 3.315371149 | AC101: 0 | AD101: 0 | AE101: 9.84006402 | AF101: 0 | AG101: 0 | AH101: 0 | AI101: 0 | AJ101: 25.52317016 | AK101: 2.214869531 | AL101: 7.092099282 | AM101: 0 | AN101: 16.70831747 | AO101: 17.99102405 | AP101: 1.100501617 | AQ101: 0.309448494 | AR101: 1.807860875 | AS101: 3.315371149 | AT101: 0 | AU101: 1.5552 | AV101: 0.8142902689 | AW101: 0 | AX101: 0.1296 | AY101: 1.5552 | AZ101: 0.4142769231 | BA101: 1.6848 | BB101: 43.07647861 | BC101: 432 | BD101: 0.9093272756 | BE101: 913.1758735 | BF101: 90.39304375 | BH101: 90.93272756 | BI101: 8.125374084 | BJ101: 29.91144237 | BK101: 0.513216 | BL101: 0.8142902689
G102: 93 | H102: 14.5555 | I102: BOOST | J102: 2 | K102: 10 | L102: 30.91614853 | M102: 30.09724572 | N102: 1 | O102: 0.6677436835 | P102: 14.50888931 | Q102: 31.19856668 | R102: 2.727124813 | S102: 5.398223074 | T102: 8.125347887 | U102: 15.3697005 | V102: 2.362276936 | W102: 2.362276936 | X102: 4.188355576 | Y102: 0.1754232243 | Z102: 0.1754232243 | AA102: 31.19856668 | AB102: 3.309391913 | AC102: 0 | AD102: 0 | AE102: 9.787578619 | AF102: 0 | AG102: 0 | AH102: 0 | AI102: 0 | AJ102: 25.49409128 | AK102: 2.209825546 | AL102: 7.08552147 | AM102: 0 | AN102: 16.65728643 | AO102: 17.98337768 | AP102: 1.099566367 | AQ102: 0.3091614853 | AR102: 1.805860559 | AS102: 3.309391913 | AT102: 0 | AU102: 1.5552 | AV102: 0.8124358625 | AW102: 0 | AX102: 0.1296 | AY102: 1.5552 | AZ102: 0.4142769231 | BA102: 1.6848 | BB102: 42.96620952 | BC102: 432 | BD102: 0.9095383868 | BE102: 910.6243217 | BF102: 90.29302796 | BH102: 90.95383868 | BI102: 8.125347887 | BJ102: 29.80592561 | BK102: 0.513216 | BL102: 0.8124358625
G103: 94 | H103: 14.569 | I103: BOOST | J103: 2 | K103: 10 | L103: 30.88750086 | M103: 30.06854726 | N103: 1 | O103: 0.6674265666 | P103: 14.51585218 | Q103: 31.17044871 | R103: 2.72114172 | S103: 5.404193739 | T103: 8.12533546 | U103: 15.35982302 | V103: 2.359241633 | W103: 2.359241633 | X103: 4.19036558 | Y103: 0.175591637 | Z103: 0.175591637 | AA103: 31.17044871 | AB103: 3.303429368 | AC103: 0 | AD103: 0 | AE103: 9.735608131 | AF103: 0 | AG103: 0 | AH103: 0 | AI103: 0 | AJ103: 25.46506558 | AK103: 2.204796521 | AL103: 7.078955848 | AM103: 0 | AN103: 16.60657702 | AO103: 17.97574221 | AP103: 1.098632847 | AQ103: 0.3088750086 | AR103: 1.803864902 | AS103: 3.303429368 | AT103: 0 | AU103: 1.5552 | AV103: 0.8105869563 | AW103: 0 | AX103: 0.1296 | AY103: 1.5552 | AZ103: 0.4142769231 | BA103: 1.6848 | BB103: 42.85680574 | BC103: 432 | BD103: 0.9097479383 | BE103: 908.0888508 | BF103: 90.1932451 | BH103: 90.97479383 | BI103: 8.12533546 | BJ103: 29.70125005 | BK103: 0.513216 | BL103: 0.8105869563
G104: 95 | H104: 14.5825 | I104: BOOST | J104: 2 | K104: 10 | L104: 30.85890622 | M104: 30.03990426 | N104: 1 | O104: 0.6671094584 | P104: 14.52280169 | Q104: 31.14238388 | R104: 2.715179995 | S104: 5.410156681 | T104: 8.125336676 | U104: 15.34995569 | V104: 2.356211397 | W104: 2.356211397 | X104: 4.192371731 | Y104: 0.1757598073 | Z104: 0.1757598073 | AA104: 31.14238388 | AB104: 3.297483452 | AC104: 0 | AD104: 0 | AE104: 9.684145082 | AF104: 0 | AG104: 0 | AH104: 0 | AI104: 0 | AJ104: 25.43609293 | AK104: 2.199782399 | AL104: 7.072402383 | AM104: 0 | AN104: 16.55618617 | AO104: 17.96811762 | AP104: 1.097701052 | AQ104: 0.3085890622 | AR104: 1.801873887 | AS104: 3.297483452 | AT104: 0 | AU104: 1.5552 | AV104: 0.8087435292 | AW104: 0 | AX104: 0.1296 | AY104: 1.5552 | AZ104: 0.4142769231 | BA104: 1.6848 | BB104: 42.74825655 | BC104: 432 | BD104: 0.9099559483 | BE104: 905.5693085 | BF104: 90.09369435 | BH104: 90.99559483 | BI104: 8.125336676 | BJ104: 29.59740514 | BK104: 0.513216 | BL104: 0.8087435292
G105: 96 | H105: 14.596 | I105: BOOST | J105: 2 | K105: 10 | L105: 30.83036448 | M105: 30.01131654 | N105: 1 | O105: 0.6667923586 | P105: 14.52973785 | Q105: 31.11437204 | R105: 2.709239528 | S105: 5.416111881 | T105: 8.125351409 | U105: 15.34009848 | V105: 2.353186213 | W105: 2.353186213 | X105: 4.194374028 | Y105: 0.1759277349 | Z105: 0.1759277349 | AA105: 31.11437204 | AB105: 3.291554102 | AC105: 0 | AD105: 0 | AE105: 9.63318214 | AF105: 0 | AG105: 0 | AH105: 0 | AI105: 0 | AJ105: 25.40717316 | AK105: 2.194783123 | AL105: 7.065861041 | AM105: 0 | AN105: 16.50611088 | AO105: 17.96050388 | AP105: 1.096770979 | AQ105: 0.3083036448 | AR105: 1.799887498 | AS105: 3.291554102 | AT105: 0 | AU105: 1.5552 | AV105: 0.80690556 | AW105: 0 | AX105: 0.1296 | AY105: 1.5552 | AZ105: 0.4142769231 | BA105: 1.6848 | BB105: 42.64055144 | BC105: 432 | BD105: 0.9101624349 | BE105: 903.0655442 | BF105: 89.99437492 | BH105: 91.01624349 | BI105: 8.125351409 | BJ105: 29.49438052 | BK105: 0.513216 | BL105: 0.80690556
G106: 97 | H106: 14.6095 | I106: BOOST | J106: 2 | K106: 10 | L106: 30.80187549 | M106: 29.98278395 | N106: 1 | O106: =CHOOSE(J106,0,(Vout+(Rdson3+Rdcr)*L106-H106)/(Vout+(Rdson3-Rdson4-Rs)*L106),IF(H106>Vout,D_min_boost_exitBB_to_buck,(Vout-H106*D_max_buck_BB)/Vout)) -> 0.6664752674 | P106: 14.53666066 | Q106: 31.08641304 | R106: 2.703320215 | S106: 5.422059318 | T106: 8.125379533 | U106: 15.33025136 | V106: 2.350166067 | W106: 2.350166067 | X106: 4.196372473 | Y106: 0.1760954193 | Z106: 0.1760954193 | AA106: 31.08641304 | AB106: 3.285641258 | AC106: 0 | AD106: 0 | AE106: 9.582712113 | AF106: 0 | AG106: 0 | AH106: 0 | AI106: 0 | AJ106: 25.37830613 | AK106: 2.189798636 | AL106: 7.059331788 | AM106: 0 | AN106: 16.45634818 | AO106: 17.95290098 | AP106: 1.095842622 | AQ106: 0.3080187549 | AR106: 1.797905721 | AS106: 3.285641258 | AT106: 0 | AU106: 1.5552 | AV106: 0.8050730278 | AW106: 0 | AX106: 0.1296 | AY106: 1.5552 | AZ106: 0.4142769231 | BA106: 1.6848 | BB106: 42.53368006 | BC106: 432 | BD106: 0.9103674157 | BE106: 900.5774092 | BF106: 89.89528603 | BH106: 91.03674157 | BI106: 8.125379533 | BJ106: 29.39216602 | BK106: 0.513216 | BL106: 0.8050730278
G107: 98 | H107: 14.623 | I107: BOOST | J107: 2 | K107: 10 | L107: 30.7734391 | M107: 29.95430632 | N107: 1 | O107: 0.6661581846 | P107: 14.54357013 | Q107: 31.05850673 | R107: 2.697421951 | S107: 5.427998973 | T107: 8.125420924 | U107: 15.3204143 | V107: 2.347150942 | W107: 2.347150942 | X107: 4.198367064 | Y107: 0.1762628601 | Z107: 0.1762628601 | AA107: 31.05850673 | AB107: 3.279744857 | AC107: 0 | AD107: 0 | AE107: 9.532727949 | AF107: 0 | AG107: 0 | AH107: 0 | AI107: 0 | AJ107: 25.3494917 | AK107: 2.18482888 | AL107: 7.05281459 | AM107: 0 | AN107: 16.40689513 | AO107: 17.94530888 | AP107: 1.094915977 | AQ107: 0.307734391 | AR107: 1.795928538 | AS107: 3.279744857 | AT107: 0 | AU107: 1.5552 | AV107: 0.8032459117 | AW107: 0 | AX107: 0.1296 | AY107: 1.5552 | AZ107: 0.4142769231 | BA107: 1.6848 | BB107: 42.42763226 | BC107: 432 | BD107: 0.9105709082 | BE107: 898.1047566 | BF107: 89.79642689 | BH107: 91.05709082 | BI107: 8.125420924 | BJ107: 29.29075162 | BK107: 0.513216 | BL107: 0.8032459117
G108: 99 | H108: 14.6365 | I108: BOOST | J108: 2 | K108: 10 | L108: 30.74505517 | M108: 29.92588349 | N108: 1 | O108: 0.6658411103 | P108: 14.55046625 | Q108: 31.03065296 | R108: 2.691544629 | S108: 5.433930828 | T108: 8.125475457 | U108: 15.31058727 | V108: 2.344140825 | W108: 2.344140825 | X108: 4.200357803 | Y108: 0.1764300568 | Z108: 0.1764300568 | AA108: 31.03065296 | AB108: 3.273864839 | AC108: 0 | AD108: 0 | AE108: 9.483222727 | AF108: 0 | AG108: 0 | AH108: 0 | AI108: 0 | AJ108: 25.3207297 | AK108: 2.179873799 | AL108: 7.046309415 | AM108: 0 | AN108: 16.35774883 | AO108: 17.93772757 | AP108: 1.093991039 | AQ108: 0.3074505517 | AR108: 1.793955935 | AS108: 3.273864839 | AT108: 0 | AU108: 1.5552 | AV108: 0.8014241909 | AW108: 0 | AX108: 0.1296 | AY108: 1.5552 | AZ108: 0.4142769231 | BA108: 1.6848 | BB108: 42.32239802 | BC108: 432 | BD108: 0.9107729296 | BE108: 895.6474417 | BF108: 89.69779673 | BH108: 91.07729296 | BI108: 8.125475457 | BJ108: 29.19012749 | BK108: 0.513216 | BL108: 0.8014241909
G109: 100 | H109: 14.65 | I109: BOOST | J109: 2 | K109: 10 | L109: 30.71672355 | M109: 29.89751531 | N109: 1 | O109: 0.6655240445 | P109: 14.55734903 | Q109: 31.00285159 | R109: 2.685688148 | S109: 5.439854861 | T109: 8.125543009 | U109: 15.30077024 | V109: 2.3411357 | W109: 2.3411357 | X109: 4.202344691 | Y109: 0.176597009 | Z109: 0.176597009 | AA109: 31.00285159 | AB109: 3.268001142 | AC109: 0 | AD109: 0 | AE109: 9.434189657 | AF109: 0 | AG109: 0 | AH109: 0 | AI109: 0 | AJ109: 25.29202 | AK109: 2.174933338 | AL109: 7.039816229 | AM109: 0 | AN109: 16.30890642 | AO109: 17.93015702 | AP109: 1.093067805 | AQ109: 0.3071672355 | AR109: 1.791987895 | AS109: 3.268001142 | AT109: 0 | AU109: 1.5552 | AV109: 0.7996078447 | AW109: 0 | AX109: 0.1296 | AY109: 1.5552 | AZ109: 0.4142769231 | BA109: 1.6848 | BB109: 42.21796754 | BC109: 432 | BD109: 0.9109734965 | BE109: 893.2053211 | BF109: 89.59939475 | BH109: 91.09734965 | BI109: 8.125543009 | BJ109: 29.09028397 | BK109: 0.513216 | BL109: 0.7996078447
G110: 101 | H110: 14.6635 | I110: BOOST | J110: 2 | K110: 10 | L110: 30.6884441 | M110: 29.86920161 | N110: 1 | O110: 0.6652069871 | P110: 14.56421847 | Q110: 30.97510246 | R110: =(Q110^2*Rdcr*(1+Ltc*Ta-Ltc*25))/(1-Q110^2*Rdcr*Ltc*ThetaCa) -> 2.679852403 | S110: =7.759*10^-3*Fsw^0.9458*(0.00787*P110)^2.304 -> 5.445771055 | T110: =R110+S110 -> 8.125623458 | U110: 15.29096319 | V110: =RCoutEsr*U110^2 -> 2.338135552 | W110: =V110 -> 2.338135552 | X110: 4.204327727 | Y110: =RCinEsr*X110^2 -> 0.1767637164 | Z110: =Y110 -> 0.1767637164 | AA110: 30.97510246 | AB110: 3.262153707 | AC110: 0 | AD110: 0 | AE110: 9.385622078 | AF110: 0 | AG110: 0 | AH110: 0 | AI110: 0 | AJ110: 25.26336244 | AK110: 2.170007439 | AL110: 7.033334999 | AM110: 0 | AN110: 16.26036507 | AO110: 17.92259721 | AP110: 1.092146268 | AQ110: 0.306884441 | AR110: 1.790024404 | AS110: 3.262153707 | AT110: 0 | AU110: 1.5552 | AV110: 0.7977968525 | AW110: 0 | AX110: 0.1296 | AY110: 1.5552 | AZ110: 0.4142769231 | BA110: =SUM(AX110:AY110) -> 1.6848 | BB110: =SUM(T110,W110,Z110,AE110,AI110,AN110,AR110,AT110,AU110,BA110,AV110,AW110) -> 42.11433113 | BC110: 432 | BD110: =BC110/(BC110+BB110) -> 0.9111726257 | BE110: 890.7782534 | BF110: 89.50122019 | BH110: =BD110*100 -> 91.11726257 | BI110: =T110 -> 8.125623458 | BJ110: =AE110+AI110+AN110+AR110+AU110 -> 28.99121155 | BK110: =AI110+AU110*0.33 -> 0.513216 | BL110: =AV110 -> 0.7977968525
G111: 102 | H111: 14.677 | I111: BOOST | J111: 2 | K111: 10 | L111: 30.66021667 | M111: 29.84094223 | N111: 1 | O111: 0.664889938 | P111: 14.57107457 | Q111: 30.94740545 | R111: 2.674037291 | S111: 5.45167939 | T111: 8.125716681 | U111: 15.28116608 | V111: 2.335140368 | W111: 2.335140368 | X111: 4.206306913 | Y111: 0.1769301785 | Z111: 0.1769301785 | AA111: 30.94740545 | AB111: 3.256322473 | AC111: 0 | AD111: 0 | AE111: 9.337513452 | AF111: 0 | AG111: 0 | AH111: 0 | AI111: 0 | AJ111: 25.23475689 | AK111: 2.165096047 | AL111: 7.026865691 | AM111: 0 | AN111: 16.21212198 | AO111: 17.91504811 | AP111: 1.091226426 | AQ111: 0.3066021667 | AR111: 1.788065445 | AS111: 3.256322473 | AT111: 0 | AU111: 1.5552 | AV111: 0.7959911938 | AW111: 0 | AX111: 0.1296 | AY111: 1.5552 | AZ111: 0.4142769231 | BA111: 1.6848 | BB111: 42.0114793 | BC111: 432 | BD111: 0.9113703336 | BE111: 888.3660992 | BF111: 89.40327227 | BH111: 91.13703336 | BI111: 8.125716681 | BJ111: 28.89290088 | BK111: 0.513216 | BL111: 0.7959911938
G112: 103 | H112: 14.6905 | I112: BOOST | J112: 2 | K112: 10 | L112: 30.63204112 | M112: 29.81273702 | N112: 1 | O112: 0.6645728973 | P112: 14.57791733 | Q112: 30.91976039 | R112: 2.668242711 | S112: 5.457579845 | T112: 8.125822556 | U112: 15.27137889 | V112: 2.332150131 | W112: 2.332150131 | X112: 4.208282248 | Y112: 0.1770963948 | Z112: 0.1770963948 | AA112: 30.91976039 | AB112: 3.25050738 | AC112: 0 | AD112: 0 | AE112: 9.289857364 | AF112: 0 | AG112: 0 | AH112: 0 | AI112: 0 | AJ112: 25.20620318 | AK112: 2.160199107 | AL112: 7.020408274 | AM112: 0 | AN112: 16.16417441 | AO112: 17.9075097 | AP112: 1.090308273 | AQ112: 0.3063204112 | AR112: 1.786111005 | AS112: 3.25050738 | AT112: 0 | AU112: 1.5552 | AV112: 0.7941908483 | AW112: 0 | AX112: 0.1296 | AY112: 1.5552 | AZ112: 0.4142769231 | BA112: 1.6848 | BB112: 41.90940271 | BC112: 432 | BD112: 0.911566636 | BE112: 885.9687203 | BF112: 89.30555023 | BH112: 91.1566636 | BI112: 8.125822556 | BJ112: 28.79534278 | BK112: 0.513216 | BL112: 0.7941908483
G113: 104 | H113: 14.704 | I113: BOOST | J113: 2 | K113: 10 | L113: 30.6039173 | M113: 29.78458581 | N113: 1 | O113: 0.664255865 | P113: 14.58474676 | Q113: 30.89216714 | R113: 2.662468561 | S113: 5.463472403 | T113: 8.125940964 | U113: 15.26160158 | V113: 2.329164828 | W113: 2.329164828 | X113: 4.210253733 | Y113: 0.177262365 | Z113: 0.177262365 | AA113: 30.89216714 | AB113: 3.244708368 | AC113: 0 | AD113: 0 | AE113: 9.242647517 | AF113: 0 | AG113: 0 | AH113: 0 | AI113: 0 | AJ113: 25.17770117 | AK113: 2.155316564 | AL113: 7.013962714 | AM113: 0 | AN113: 16.11651961 | AO113: 17.89998196 | AP113: 1.089391804 | AQ113: 0.306039173 | AR113: 1.784161066 | AS113: 3.244708368 | AT113: 0 | AU113: 1.5552 | AV113: 0.7923957955 | AW113: 0 | AX113: 0.1296 | AY113: 1.5552 | AZ113: 0.4142769231 | BA113: 1.6848 | BB113: 41.80809215 | BC113: 432 | BD113: 0.9117615489 | BE113: 883.5859807 | BF113: 89.20805331 | BH113: 91.17615489 | BI113: 8.125940964 | BJ113: 28.6985282 | BK113: 0.513216 | BL113: 0.7923957955
G114: 105 | H114: 14.7175 | I114: BOOST | J114: 2 | K114: 10 | L114: 30.57584508 | M114: 29.75648846 | N114: 1 | O114: 0.663938841 | P114: 14.59156285 | Q114: 30.86462557 | R114: 2.65671474 | S114: 5.469357044 | T114: 8.126071784 | U114: 15.25183413 | V114: 2.326184445 | W114: 2.326184445 | X114: 4.212221369 | Y114: 0.1774280886 | Z114: 0.1774280886 | AA114: 30.86462557 | AB114: 3.238925379 | AC114: 0 | AD114: 0 | AE114: 9.195877731 | AF114: 0 | AG114: 0 | AH114: 0 | AI114: 0 | AJ114: 25.14925073 | AK114: 2.150448362 | AL114: 7.007528979 | AM114: 0 | AN114: 16.06915491 | AO114: 17.89246487 | AP114: 1.088477017 | AQ114: 0.3057584508 | AR114: 1.782215615 | AS114: 3.238925379 | AT114: 0 | AU114: 1.5552 | AV114: 0.7906060154 | AW114: 0 | AX114: 0.1296 | AY114: 1.5552 | AZ114: 0.4142769231 | BA114: 1.6848 | BB114: 41.70753859 | BC114: 432 | BD114: 0.9119550879 | BE114: 881.2177457 | BF114: 89.11078073 | BH114: 91.19550879 | BI114: 8.126071784 | BJ114: 28.60244826 | BK114: 0.513216 | BL114: 0.7906060154
G115: 106 | H115: 14.731 | I115: BOOST | J115: 2 | K115: 10 | L115: 30.54782432 | M115: 29.7284448 | N115: 1 | O115: 0.6636218253 | P115: 14.5983656 | Q115: 30.83713552 | R115: 2.650981149 | S115: 5.475233748 | T115: 8.126214898 | U115: 15.24207652 | V115: 2.323208965 | W115: 2.323208965 | X115: 4.214185155 | Y115: 0.1775935652 | Z115: 0.1775935652 | AA115: 30.83713552 | AB115: 3.233158352 | AC115: 0 | AD115: 0 | AE115: 9.149541938 | AF115: 0 | AG115: 0 | AH115: 0 | AI115: 0 | AJ115: 25.1208517 | AK115: 2.145594447 | AL115: 7.001107036 | AM115: 0 | AN115: 16.02207765 | AO115: 17.88495839 | AP115: 1.087563905 | AQ115: 0.3054782432 | AR115: 1.780274635 | AS115: 3.233158352 | AT115: 0 | AU115: 1.5552 | AV115: 0.7888214878 | AW115: 0 | AX115: 0.1296 | AY115: 1.5552 | AZ115: 0.4142769231 | BA115: 1.6848 | BB115: 41.60773314 | BC115: 432 | BD115: 0.9121472682 | BE115: 878.8638825 | BF115: 89.01373174 | BH115: 91.21472682 | BI115: 8.126214898 | BJ115: 28.50709422 | BK115: 0.513216 | BL115: 0.7888214878
G116: 107 | H116: 14.7445 | I116: BOOST | J116: 2 | K116: 10 | L116: 30.51985486 | M116: 29.70045468 | N116: 1 | O116: 0.6633048179 | P116: 14.60515503 | Q116: 30.80969685 | R116: 2.645267688 | S116: 5.481102497 | T116: 8.126370186 | U116: 15.2323287 | V116: 2.320238376 | W116: 2.320238376 | X116: 4.216145093 | Y116: 0.1777587945 | Z116: 0.1777587945 | AA116: 30.80969685 | AB116: 3.227407229 | AC116: 0 | AD116: 0 | AE116: 9.103634182 | AF116: 0 | AG116: 0 | AH116: 0 | AI116: 0 | AJ116: 25.09250394 | AK116: 2.140754764 | AL116: 6.994696853 | AM116: 0 | AN116: 15.97528519 | AO116: 17.87746252 | AP116: 1.086652465 | AQ116: 0.3051985486 | AR116: 1.778338112 | AS116: 3.227407229 | AT116: 0 | AU116: 1.5552 | AV116: 0.7870421926 | AW116: 0 | AX116: 0.1296 | AY116: 1.5552 | AZ116: 0.4142769231 | BA116: 1.6848 | BB116: 41.50866704 | BC116: 432 | BD116: 0.912338105 | BE116: 876.5242597 | BF116: 88.91690559 | BH116: 91.2338105 | BI116: 8.126370186 | BJ116: 28.41245749 | BK116: 0.513216 | BL116: 0.7870421926
G117: 108 | H117: 14.758 | I117: BOOST | J117: 2 | K117: 10 | L117: 30.49193658 | M117: 29.67251795 | N117: 1 | O117: 0.6629878187 | P117: 14.61193112 | Q117: 30.78230943 | R117: 2.639574259 | S117: 5.486963271 | T117: 8.12653753 | U117: 15.22259066 | V117: 2.317272663 | W117: 2.317272663 | X117: 4.218101183 | Y117: 0.1779237759 | Z117: 0.1779237759 | AA117: 30.78230943 | AB117: 3.221671951 | AC117: 0 | AD117: 0 | AE117: 9.058148615 | AF117: 0 | AG117: 0 | AH117: 0 | AI117: 0 | AJ117: 25.06420731 | AK117: 2.135929259 | AL117: 6.988298398 | AM117: 0 | AN117: 15.92877495 | AO117: 17.86997722 | AP117: 1.085742692 | AQ117: 0.3049193658 | AR117: 1.77640603 | AS117: 3.221671951 | AT117: 0 | AU117: 1.5552 | AV117: 0.78526811 | AW117: 0 | AX117: 0.1296 | AY117: 1.5552 | AZ117: 0.4142769231 | BA117: 1.6848 | BB117: 41.41033168 | BC117: 432 | BD117: 0.9125276131 | BE117: 874.1987477 | BF117: 88.82030152 | BH117: 91.25276131 | BI117: 8.12653753 | BJ117: 28.3185296 | BK117: 0.513216 | BL117: 0.78526811
G118: 109 | H118: 14.7715 | I118: BOOST | J118: 2 | K118: 10 | L118: 30.46406932 | M118: 29.64463445 | N118: 1 | O118: 0.6626708277 | P118: 14.61869388 | Q118: 30.7549731 | R118: 2.633900762 | S118: 5.492816051 | T118: 8.126716813 | U118: 15.21286236 | V118: 2.314311811 | W118: 2.314311811 | X118: 4.220053425 | Y118: 0.1780885091 | Z118: 0.1780885091 | AA118: 30.7549731 | AB118: 3.21595246 | AC118: 0 | AD118: 0 | AE118: 9.013079495 | AF118: 0 | AG118: 0 | AH118: 0 | AI118: 0 | AJ118: 25.03596166 | AK118: 2.131117879 | AL118: 6.981911637 | AM118: 0 | AN118: 15.88254437 | AO118: 17.86250247 | AP118: 1.084834581 | AQ118: 0.3046406932 | AR118: 1.774478376 | AS118: 3.21595246 | AT118: 0 | AU118: 1.5552 | AV118: 0.7834992201 | AW118: 0 | AX118: 0.1296 | AY118: 1.5552 | AZ118: 0.4142769231 | BA118: 1.6848 | BB118: 41.31271859 | BC118: 432 | BD118: 0.9127158072 | BE118: 871.8872184 | BF118: 88.72391879 | BH118: 91.27158072 | BI118: 8.126716813 | BJ118: 28.22530224 | BK118: 0.513216 | BL118: 0.7834992201
G119: 110 | H119: 14.785 | I119: BOOST | J119: 2 | K119: 10 | L119: 30.43625296 | M119: 29.61680402 | N119: 1 | O119: 0.662353845 | P119: 14.62544332 | Q119: 30.72768774 | R119: 2.628247101 | S119: 5.498660818 | T119: 8.126907919 | U119: 15.20314377 | V119: 2.311355806 | W119: 2.311355806 | X119: 4.222001819 | Y119: 0.1782529936 | Z119: 0.1782529936 | AA119: 30.72768774 | AB119: 3.210248698 | AC119: 0 | AD119: 0 | AE119: 8.968421184 | AF119: 0 | AG119: 0 | AH119: 0 | AI119: 0 | AJ119: 25.00776684 | AK119: 2.126320569 | AL119: 6.975536541 | AM119: 0 | AN119: 15.8365909 | AO119: 17.85503825 | AP119: 1.08392813 | AQ119: 0.3043625296 | AR119: 1.772555133 | AS119: 3.210248698 | AT119: 0 | AU119: 1.5552 | AV119: 0.7817355031 | AW119: 0 | AX119: 0.1296 | AY119: 1.5552 | AZ119: 0.4142769231 | BA119: 1.6848 | BB119: 41.21581944 | BC119: 432 | BD119: 0.9129027016 | BE119: 869.5895452 | BF119: 88.62775666 | BH119: 91.29027016 | BI119: 8.126907919 | BJ119: 28.13276722 | BK119: 0.513216 | BL119: 0.7817355031
G120: 111 | H120: 14.7985 | I120: BOOST | J120: 2 | K120: 10 | L120: 30.40848735 | M120: 29.58902651 | N120: 1 | O120: 0.6620368704 | P120: 14.63217943 | Q120: 30.70045318 | R120: 2.622613178 | S120: 5.504497554 | T120: 8.127110732 | U120: 15.19343488 | V120: 2.308404634 | W120: 2.308404634 | X120: 4.223946367 | Y120: 0.1784172291 | Z120: 0.1784172291 | AA120: 30.70045318 | AB120: 3.204560607 | AC120: 0 | AD120: 0 | AE120: 8.924168145 | AF120: 0 | AG120: 0 | AH120: 0 | AI120: 0 | AJ120: 24.97962273 | AK120: 2.121537275 | AL120: 6.969173075 | AM120: 0 | AN120: 15.79091206 | AO120: 17.84758454 | AP120: 1.083023332 | AQ120: 0.3040848735 | AR120: 1.770636287 | AS120: 3.204560607 | AT120: 0 | AU120: 1.5552 | AV120: 0.7799769395 | AW120: 0 | AX120: 0.1296 | AY120: 1.5552 | AZ120: 0.4142769231 | BA120: 1.6848 | BB120: 41.11962603 | BC120: 432 | BD120: 0.9130883105 | BE120: 867.305603 | BF120: 88.53181437 | BH120: 91.30883105 | BI120: 8.127110732 | BJ120: 28.04091649 | BK120: 0.513216 | BL120: 0.7799769395
G121: 112 | H121: 14.812 | I121: BOOST | J121: 2 | K121: 10 | L121: 30.38077235 | M121: 29.56130177 | N121: 1 | O121: 0.661719904 | P121: 14.63890222 | Q121: 30.67326931 | R121: 2.616998898 | S121: 5.510326238 | T121: 8.127325136 | U121: 15.18373564 | V121: 2.305458281 | W121: 2.305458281 | X121: 4.225887068 | Y121: 0.1785812151 | Z121: 0.1785812151 | AA121: 30.67326931 | AB121: 3.19888813 | AC121: 0 | AD121: 0 | AE121: 8.880314939 | AF121: 0 | AG121: 0 | AH121: 0 | AI121: 0 | AJ121: 24.95152917 | AK121: 2.116767946 | AL121: 6.962821209 | AM121: 0 | AN121: 15.74550537 | AO121: 17.84014132 | AP121: 1.082120183 | AQ121: 0.3038077235 | AR121: 1.768721824 | AS121: 3.19888813 | AT121: 0 | AU121: 1.5552 | AV121: 0.7782235096 | AW121: 0 | AX121: 0.1296 | AY121: 1.5552 | AZ121: 0.4142769231 | BA121: 1.6848 | BB121: 41.02413027 | BC121: 432 | BD121: 0.913272648 | BE121: 865.0352683 | BF121: 88.43609119 | BH121: 91.3272648 | BI121: 8.127325136 | BJ121: 27.94974213 | BK121: 0.513216 | BL121: 0.7782235096
G122: 113 | H122: 14.8255 | I122: BOOST | J122: 2 | K122: 10 | L122: 30.35310782 | M122: 29.53362965 | N122: 1 | O122: 0.6614029458 | P122: 14.64561168 | Q122: 30.64613596 | R122: 2.611404164 | S122: 5.516146852 | T122: 8.127551016 | U122: 15.17404604 | V122: 2.302516733 | W122: 2.302516733 | X122: 4.227823924 | Y122: 0.1787449513 | Z122: 0.1787449513 | AA122: 30.64613596 | AB122: 3.193231208 | AC122: 0 | AD122: 0 | AE122: 8.836856224 | AF122: 0 | AG122: 0 | AH122: 0 | AI122: 0 | AJ122: 24.92348602 | AK122: 2.112012528 | AL122: 6.956480911 | AM122: 0 | AN122: 15.70036838 | AO122: 17.83270855 | AP122: 1.081218681 | AQ122: 0.3035310782 | AR122: 1.766811728 | AS122: 3.193231208 | AT122: 0 | AU122: 1.5552 | AV122: 0.776475194 | AW122: 0 | AX122: 0.1296 | AY122: 1.5552 | AZ122: 0.4142769231 | BA122: 1.6848 | BB122: 40.92932423 | BC122: 432 | BD122: 0.9134557277 | BE122: 862.7784191 | BF122: 88.34058639 | BH122: 91.34557277 | BI122: 8.127551016 | BJ122: 27.85923633 | BK122: 0.513216 | BL122: 0.776475194
G123: 114 | H123: 14.839 | I123: BOOST | J123: 2 | K123: 10 | L123: 30.32549363 | M123: 29.50601 | N123: 1 | O123: 0.6610859957 | P123: 14.65230782 | Q123: 30.61905302 | R123: 2.605828882 | S123: 5.521959378 | T123: 8.127788259 | U123: 15.16436605 | V123: 2.299579976 | W123: 2.299579976 | X123: 4.229756933 | Y123: 0.1789084371 | Z123: 0.1789084371 | AA123: 30.61905302 | AB123: 3.187589786 | AC123: 0 | AD123: 0 | AE123: 8.793786754 | AF123: 0 | AG123: 0 | AH123: 0 | AI123: 0 | AJ123: 24.89549314 | AK123: 2.107270968 | AL123: 6.95015215 | AM123: 0 | AN123: 15.65549869 | AO123: 17.82528623 | AP123: 1.080318819 | AQ123: 0.3032549363 | AR123: 1.764905985 | AS123: 3.187589786 | AT123: 0 | AU123: 1.5552 | AV123: 0.7747319734 | AW123: 0 | AX123: 0.1296 | AY123: 1.5552 | AZ123: 0.4142769231 | BA123: 1.6848 | BB123: 40.83520008 | BC123: 432 | BD123: 0.9136375632 | BE123: 860.5349347 | BF123: 88.24529923 | BH123: 91.36375632 | BI123: 8.127788259 | BJ123: 27.76939143 | BK123: 0.513216 | BL123: 0.7747319734
G124: 115 | H124: 14.8525 | I124: BOOST | J124: 2 | K124: 10 | L124: 30.29792964 | M124: 29.47844266 | N124: 1 | O124: 0.6607690536 | P124: 14.65899064 | Q124: 30.59202033 | R124: 2.600272956 | S124: 5.527763795 | T124: 8.128036751 | U124: 15.15469563 | V124: 2.296647996 | W124: 2.296647996 | X124: 4.231686097 | Y124: 0.1790716723 | Z124: 0.1790716723 | AA124: 30.59202033 | AB124: 3.181963806 | AC124: 0 | AD124: 0 | AE124: 8.751101375 | AF124: 0 | AG124: 0 | AH124: 0 | AI124: 0 | AJ124: 24.8675504 | AK124: 2.102543213 | AL124: 6.943834893 | AM124: 0 | AN124: 15.61089392 | AO124: 17.81787432 | AP124: 1.079420593 | AQ124: 0.3029792964 | AR124: 1.76300458 | AS124: 3.181963806 | AT124: 0 | AU124: 1.5552 | AV124: 0.7729938283 | AW124: 0 | AX124: 0.1296 | AY124: 1.5552 | AZ124: 0.4142769231 | BA124: 1.6848 | BB124: 40.74175012 | BC124: 432 | BD124: 0.9138181679 | BE124: 858.3046959 | BF124: 88.15022899 | BH124: 91.38181679 | BI124: 8.128036751 | BJ124: 27.68019987 | BK124: 0.513216 | BL124: 0.7729938283
G125: 116 | H125: 14.866 | I125: BOOST | J125: 2 | K125: 10 | L125: 30.27041571 | M125: 29.45092748 | N125: 1 | O125: 0.6604521197 | P125: 14.66566015 | Q125: 30.56503776 | R125: 2.594736293 | S125: 5.533560086 | T125: 8.128296379 | U125: 15.14503476 | V125: 2.293720778 | W125: 2.293720778 | X125: 4.233611417 | Y125: 0.1792346563 | Z125: 0.1792346563 | AA125: 30.56503776 | AB125: 3.176353213 | AC125: 0 | AD125: 0 | AE125: 8.708795021 | AF125: 0 | AG125: 0 | AH125: 0 | AI125: 0 | AJ125: 24.83965764 | AK125: 2.097829212 | AL125: 6.93752911 | AM125: 0 | AN125: 15.5665517 | AO125: 17.8104728 | AP125: 1.078524001 | AQ125: 0.3027041571 | AR125: 1.761107499 | AS125: 3.176353213 | AT125: 0 | AU125: 1.5552 | AV125: 0.7712607397 | AW125: 0 | AX125: 0.1296 | AY125: 1.5552 | AZ125: 0.4142769231 | BA125: 1.6848 | BB125: 40.64896677 | BC125: 432 | BD125: 0.913997555 | BE125: 856.087585 | BF125: 88.05537493 | BH125: 91.3997555 | BI125: 8.128296379 | BJ125: 27.59165422 | BK125: 0.513216 | BL125: 0.7712607397
G126: 117 | H126: 14.8795 | I126: BOOST | J126: 2 | K126: 10 | L126: 30.24295171 | M126: 29.42346432 | N126: 1 | O126: 0.6601351938 | P126: 14.67231633 | Q126: 30.53810517 | R126: 2.589218801 | S126: 5.539348231 | T126: 8.128567031 | U126: 15.13538341 | V126: 2.29079831 | W126: 2.29079831 | X126: 4.235532892 | Y126: 0.1793973888 | Z126: 0.1793973888 | AA126: 30.53810517 | AB126: 3.170757948 | AC126: 0 | AD126: 0 | AE126: 8.666862719 | AF126: 0 | AG126: 0 | AH126: 0 | AI126: 0 | AJ126: 24.81181474 | AK126: 2.093128913 | AL126: 6.931234769 | AM126: 0 | AN126: 15.52246971 | AO126: 17.80308165 | AP126: 1.077629036 | AQ126: 0.3024295171 | AR126: 1.759214727 | AS126: 3.170757948 | AT126: 0 | AU126: 1.5552 | AV126: 0.7695326884 | AW126: 0 | AX126: 0.1296 | AY126: 1.5552 | AZ126: 0.4142769231 | BA126: 1.6848 | BB126: 40.55684258 | BC126: 432 | BD126: 0.9141757373 | BE126: 853.8834856 | BF126: 87.96073634 | BH126: 91.41757373 | BI126: 8.128567031 | BJ126: 27.50374716 | BK126: 0.513216 | BL126: 0.7695326884
G127: 118 | H127: 14.893 | I127: BOOST | J127: 2 | K127: 10 | L127: 30.2155375 | M127: 29.39605303 | N127: 1 | O127: 0.6598182759 | P127: 14.6789592 | Q127: 30.51122242 | R127: 2.583720385 | S127: 5.545128212 | T127: 8.128848596 | U127: 15.12574156 | V127: 2.287880577 | W127: 2.287880577 | X127: 4.237450524 | Y127: 0.1795598694 | Z127: 0.1795598694 | AA127: 30.51122242 | AB127: 3.165177958 | AC127: 0 | AD127: 0 | AE127: 8.625299578 | AF127: 0 | AG127: 0 | AH127: 0 | AI127: 0 | AJ127: 24.78402155 | AK127: 2.088442263 | AL127: 6.92495184 | AM127: 0 | AN127: 15.47864565 | AO127: 17.79570086 | AP127: 1.076735695 | AQ127: 0.302155375 | AR127: 1.75732625 | AS127: 3.165177958 | AT127: 0 | AU127: 1.5552 | AV127: 0.7678096555 | AW127: 0 | AX127: 0.1296 | AY127: 1.5552 | AZ127: 0.4142769231 | BA127: 1.6848 | BB127: 40.46537018 | BC127: 432 | BD127: 0.9143527278 | BE127: 851.6922827 | BF127: 87.86631249 | BH127: 91.43527278 | BI127: 8.128848596 | BJ127: 27.41647148 | BK127: 0.513216 | BL127: 0.7678096555
G128: 119 | H128: 14.9065 | I128: BOOST | J128: 2 | K128: 10 | L128: 30.18817294 | M128: 29.36869345 | N128: 1 | O128: 0.659501366 | P128: 14.68558876 | Q128: 30.48438937 | R128: 2.578240953 | S128: 5.550900009 | T128: 8.129140962 | U128: 15.11610918 | V128: 2.284967566 | W128: 2.284967566 | X128: 4.239364312 | Y128: 0.1797220977 | Z128: 0.1797220977 | AA128: 30.48438937 | AB128: 3.159613185 | AC128: 0 | AD128: 0 | AE128: 8.584100795 | AF128: 0 | AG128: 0 | AH128: 0 | AI128: 0 | AJ128: 24.75627794 | AK128: 2.083769211 | AL128: 6.918680291 | AM128: 0 | AN128: 15.43507725 | AO128: 17.78833039 | AP128: 1.075843973 | AQ128: 0.3018817294 | AR128: 1.755442053 | AS128: 3.159613185 | AT128: 0 | AU128: 1.5552 | AV128: 0.7660916219 | AW128: 0 | AX128: 0.1296 | AY128: 1.5552 | AZ128: 0.4142769231 | BA128: 1.6848 | BB128: 40.37454235 | BC128: 432 | BD128: 0.9145285388 | BE128: 849.5138627 | BF128: 87.77210267 | BH128: 91.45285388 | BI128: 8.129140962 | BJ128: 27.3298201 | BK128: 0.513216 | BL128: 0.7660916219
G129: 120 | H129: 14.92 | I129: BOOST | J129: 2 | K129: 10 | L129: 30.16085791 | M129: 29.34138544 | N129: 1 | O129: 0.6591844641 | P129: 14.692205 | Q129: 30.4576059 | R129: 2.572780415 | S129: 5.556663605 | T129: 8.12944402 | U129: 15.10648623 | V129: 2.282059263 | W129: 2.282059263 | X129: 4.241274256 | Y129: 0.1798840732 | Z129: 0.1798840732 | AA129: 30.4576059 | AB129: 3.154063574 | AC129: 0 | AD129: 0 | AE129: 8.543261648 | AF129: 0 | AG129: 0 | AH129: 0 | AI129: 0 | AJ129: 24.72858376 | AK129: 2.079109707 | AL129: 6.912420091 | AM129: 0 | AN129: 15.39176226 | AO129: 17.78097022 | AP129: 1.074953867 | AQ129: 0.3016085791 | AR129: 1.753562123 | AS129: 3.154063574 | AT129: 0 | AU129: 1.5552 | AV129: 0.7643785688 | AW129: 0 | AX129: 0.1296 | AY129: 1.5552 | AZ129: 0.4142769231 | BA129: 1.6848 | BB129: 40.28435196 | BC129: 432 | BD129: 0.914703183 | BE129: 847.3481132 | BF129: 87.67810617 | BH129: 91.4703183 | BI129: 8.12944402 | BJ129: 27.24378604 | BK129: 0.513216 | BL129: 0.7643785688
G130: 121 | H130: 14.9335 | I130: BOOST | J130: 2 | K130: 10 | L130: 30.13359226 | M130: 29.31412885 | N130: 1 | O130: 0.6588675702 | P130: 14.69880793 | Q130: 30.43087186 | R130: 2.567338679 | S130: 5.56241898 | T130: 8.129757658 | U130: 15.0968727 | V130: 2.279155654 | W130: 2.279155654 | X130: 4.243180358 | Y130: 0.1800457955 | Z130: 0.1800457955 | AA130: 30.43087186 | AB130: 3.148529071 | AC130: 0 | AD130: 0 | AE130: 8.502777497 | AF130: 0 | AG130: 0 | AH130: 0 | AI130: 0 | AJ130: 24.70093889 | AK130: 2.074463699 | AL130: 6.906171209 | AM130: 0 | AN130: 15.34869847 | AO130: 17.77362034 | AP130: 1.074065372 | AQ130: 0.3013359226 | AR130: 1.751686445 | AS130: 3.148529071 | AT130: 0 | AU130: 1.5552 | AV130: 0.7626704775 | AW130: 0 | AX130: 0.1296 | AY130: 1.5552 | AZ130: 0.4142769231 | BA130: 1.6848 | BB130: 40.19479199 | BC130: 432 | BD130: 0.9148766723 | BE130: 845.1949233 | BF130: 87.58432227 | BH130: 91.48766723 | BI130: 8.129757658 | BJ130: 27.15836241 | BK130: 0.513216 | BL130: 0.7626704775
G131: 122 | H131: 14.947 | I131: BOOST | J131: 2 | K131: 10 | L131: 30.10637586 | M131: 29.28692353 | N131: 1 | O131: 0.6585506843 | P131: 14.70539755 | Q131: 30.40418711 | R131: 2.561915654 | S131: 5.568166115 | T131: 8.13008177 | U131: 15.08726856 | V131: 2.276256726 | W131: 2.276256726 | X131: 4.245082618 | Y131: 0.1802072643 | Z131: 0.1802072643 | AA131: 30.40418711 | AB131: 3.143009619 | AC131: 0 | AD131: 0 | AE131: 8.462643782 | AF131: 0 | AG131: 0 | AH131: 0 | AI131: 0 | AJ131: 24.67334317 | AK131: 2.069831136 | AL131: 6.899933616 | AM131: 0 | AN131: 15.30588366 | AO131: 17.76628072 | AP131: 1.073178484 | AQ131: 0.3010637586 | AR131: 1.749815005 | AS131: 3.143009619 | AT131: 0 | AU131: 1.5552 | AV131: 0.7609673292 | AW131: 0 | AX131: 0.1296 | AY131: 1.5552 | AZ131: 0.4142769231 | BA131: 1.6848 | BB131: 40.10585554 | BC131: 432 | BD131: 0.9150490191 | BE131: 843.0541832 | BF131: 87.49075027 | BH131: 91.50490191 | BI131: 8.13008177 | BJ131: 27.07354245 | BK131: 0.513216 | BL131: 0.7609673292
G132: 123 | H132: 14.9605 | I132: BOOST | J132: 2 | K132: 10 | L132: 30.07920858 | M132: 29.25976935 | N132: 1 | O132: 0.6582338062 | P132: 14.71197387 | Q132: 30.37755153 | R132: 2.556511252 | S132: 5.573904993 | T132: 8.130416244 | U132: 15.07767378 | V132: 2.273362465 | W132: 2.273362465 | X132: 4.246981036 | Y132: 0.1803684792 | Z132: 0.1803684792 | AA132: 30.37755153 | AB132: 3.137505165 | AC132: 0 | AD132: 0 | AE132: 8.422856018 | AF132: 0 | AG132: 0 | AH132: 0 | AI132: 0 | AJ132: 24.64579649 | AK132: 2.065211967 | AL132: 6.893707279 | AM132: 0 | AN132: 15.26331569 | AO132: 17.75895133 | AP132: 1.072293198 | AQ132: 0.3007920858 | AR132: 1.747947789 | AS132: 3.137505165 | AT132: 0 | AU132: 1.5552 | AV132: 0.7592691055 | AW132: 0 | AX132: 0.1296 | AY132: 1.5552 | AZ132: 0.4142769231 | BA132: 1.6848 | BB132: 40.01753579 | BC132: 432 | BD132: 0.9152202349 | BE132: 840.9257845 | BF132: 87.39738946 | BH132: 91.52202349 | BI132: 8.130416244 | BJ132: 26.9893195 | BK132: 0.513216 | BL132: 0.7592691055
G133: 124 | H133: 14.974 | I133: BOOST | J133: 2 | K133: 10 | L133: 30.05209029 | M133: 29.23266614 | N133: 1 | O133: 0.6579169361 | P133: 14.71853687 | Q133: 30.35096497 | R133: 2.551125381 | S133: 5.579635594 | T133: 8.130760975 | U133: 15.06808833 | V133: 2.270472858 | W133: 2.270472858 | X133: 4.248875613 | Y133: 0.1805294397 | Z133: 0.1805294397 | AA133: 30.35096497 | AB133: 3.132015654 | AC133: 0 | AD133: 0 | AE133: 8.3834098 | AF133: 0 | AG133: 0 | AH133: 0 | AI133: 0 | AJ133: 24.61829869 | AK133: 2.060606143 | AL133: 6.88749217 | AM133: 0 | AN133: 15.2209924 | AO133: 17.75163216 | AP133: 1.071409511 | AQ133: 0.3005209029 | AR133: 1.746084783 | AS133: 3.132015654 | AT133: 0 | AU133: 1.5552 | AV133: 0.7575757878 | AW133: 0 | AX133: 0.1296 | AY133: 1.5552 | AZ133: 0.4142769231 | BA133: 1.6848 | BB133: 39.92982605 | BC133: 432 | BD133: 0.9153903317 | BE133: 838.8096201 | BF133: 87.30423914 | BH133: 91.53903317 | BI133: 8.130760975 | BJ133: 26.90568698 | BK133: 0.513216 | BL133: 0.7575757878
G134: 125 | H134: 14.9875 | I134: BOOST | J134: 2 | K134: 10 | L134: 30.02502085 | M134: 29.20561377 | N134: 1 | O134: 0.6576000738 | P134: 14.72508657 | Q134: 30.32442731 | R134: 2.545757955 | S134: 5.5853579 | T134: 8.131115854 | U134: 15.05851218 | V134: 2.267587892 | W134: 2.267587892 | X134: 4.250766348 | Y134: 0.1806901455 | Z134: 0.1806901455 | AA134: 30.32442731 | AB134: 3.126541032 | AC134: 0 | AD134: 0 | AE134: 8.344300794 | AF134: 0 | AG134: 0 | AH134: 0 | AI134: 0 | AJ134: 24.59084964 | AK134: 2.056013613 | AL134: 6.881288257 | AM134: 0 | AN134: 15.17891168 | AO134: 17.74432319 | AP134: 1.070527418 | AQ134: 0.3002502085 | AR134: 1.744225972 | AS134: 3.126541032 | AT134: 0 | AU134: 1.5552 | AV134: 0.7558873578 | AW134: 0 | AX134: 0.1296 | AY134: 1.5552 | AZ134: 0.4142769231 | BA134: 1.6848 | BB134: 39.84271969 | BC134: 432 | BD134: 0.9155593209 | BE134: 836.705584 | BF134: 87.21129862 | BH134: 91.55593209 | BI134: 8.131115854 | BJ134: 26.82263845 | BK134: 0.513216 | BL134: 0.7558873578
G135: 126 | H135: 15.001 | I135: BOOST | J135: 2 | K135: 10 | L135: 29.99800013 | M135: 29.1786121 | N135: 1 | O135: 0.6572832194 | P135: 14.73162297 | Q135: 30.29793841 | R135: 2.540408883 | S135: 5.591071892 | T135: 8.131480775 | U135: 15.04894532 | V135: 2.264707553 | W135: 2.264707553 | X135: 4.252653243 | Y135: 0.1808505961 | Z135: 0.1808505961 | AA135: 30.29793841 | AB135: 3.121081243 | AC135: 0 | AD135: 0 | AE135: 8.30552474 | AF135: 0 | AG135: 0 | AH135: 0 | AI135: 0 | AJ135: 24.56344922 | AK135: 2.051434328 | AL135: 6.87509551 | AM135: 0 | AN135: 15.13707143 | AO135: 17.73702439 | AP135: 1.069646916 | AQ135: 0.2999800013 | AR135: 1.742371344 | AS135: 3.121081243 | AT135: 0 | AU135: 1.5552 | AV135: 0.754203797 | AW135: 0 | AX135: 0.1296 | AY135: 1.5552 | AZ135: 0.4142769231 | BA135: 1.6848 | BB135: 39.75621023 | BC135: 432 | BD135: 0.9157272138 | BE135: 834.6135714 | BF135: 87.11856719 | BH135: 91.57272138 | BI135: 8.131480775 | BJ135: 26.74016751 | BK135: 0.513216 | BL135: 0.754203797
G136: 127 | H136: 15.0145 | I136: BOOST | J136: 2 | K136: 10 | L136: 29.97102801 | M136: 29.15166097 | N136: 1 | O136: 0.6569663728 | P136: 14.73814606 | Q136: 30.27149813 | R136: 2.535078079 | S136: 5.596777552 | T136: 8.131855631 | U136: 15.03938771 | V136: 2.261831827 | W136: 2.261831827 | X136: 4.254536298 | Y136: 0.1810107911 | Z136: 0.1810107911 | AA136: 30.27149813 | AB136: 3.115636236 | AC136: 0 | AD136: 0 | AE136: 8.26707745 | AF136: 0 | AG136: 0 | AH136: 0 | AI136: 0 | AJ136: 24.53609728 | AK136: 2.046868237 | AL136: 6.8689139 | AM136: 0 | AN136: 15.09546958 | AO136: 17.72973573 | AP136: 1.068767999 | AQ136: 0.2997102801 | AR136: 1.740520883 | AS136: 3.115636236 | AT136: 0 | AU136: 1.5552 | AV136: 0.7525250872 | AW136: 0 | AX136: 0.1296 | AY136: 1.5552 | AZ136: 0.4142769231 | BA136: 1.6848 | BB136: 39.67029125 | BC136: 432 | BD136: 0.9158940218 | BE136: 832.5334789 | BF136: 87.02604417 | BH136: 91.58940218 | BI136: 8.131855631 | BJ136: 26.65826791 | BK136: 0.513216 | BL136: 0.7525250872
G137: 128 | H137: =VIN_min+(VIN_max-VIN_min)*(G137/200) -> 15.028 | I137: =IF(H137>VIN_BB_to_buck,"BUCK",IF(H137<VIN_boost_to_BB,"BOOST","BUCK-BST")) -> BOOST | J137: 2 | K137: =Iout -> 10 | L137: =Vout*K137/(H137*Efficiency) -> 29.94410434 | M137: =Iout/(1-O137) -> 29.12476025 | N137: =CHOOSE(J137,(Vout+(Rdson2+Rs+Rdcr)*K137)/(H137+(Rs+Rdson2-Rdson1)*K137),1,IF(H137<Vout,D_max_buck_BB,Vout/H137*(1-D_min_boost_exitBB_to_buck))) -> 1 | O137: 0.6566495341 | P137: =MAX(0,CHOOSE(J137,(H137-(Rdson1+Rdcr)*K137-Vout)*N137/(Fsw*Lf),(H137-(Rdson4+Rdcr+Rs)*L137)*O137/(Fsw*Lf),IF(H137<Vout,(H137-(Rdson4+Rdcr+Rs)*L137)*O137/(0.5*Fsw*Lf),(H137-(Rdson1+Rdcr)*K137-Vout)*N137/(0.5*Fsw*Lf)))) -> 14.74465585 | Q137: =CHOOSE(J137,SQRT(K137^2+(P137^2)/12),SQRT(L137^2+(P137^2)/12),SQRT(M137^2+(P137^2)/12)) -> 30.24510634 | R137: 2.529765456 | S137: 5.602474861 | T137: 8.132240317 | U137: =IF(H137>Vout,P137/SQRT(12),SQRT(O137/(1-O137))*SQRT(K137^2+(P137^2)/12)) -> 15.02983933 | V137: 2.258960702 | W137: 2.258960702 | X137: =IF(H137>Vout,SQRT(N137*(1-N137))*SQRT(K137^2+(P137^2)/12),P137/SQRT(12)) -> 4.256415513 | Y137: 0.1811707302 | Z137: 0.1811707302 | AA137: =CHOOSE(J137,SQRT(N137)*SQRT(K137^2+(P137^2)/12),SQRT(L137^2+(P137^2)/12),SQRT(N137)*SQRT(M137^2+(P137^2)/12)) -> 30.24510634 | AB137: =Rdson1*AA137^2 -> 3.110205956 | AC137: =CHOOSE(J137,(H137*K137/2)*(Fsw)*(Tr_buck+Tf_buck),0,(H137*M137/2)*(Fsw/2)*(Tr_buck+Tf_buck)) -> 0 | AD137: =IF(H137>Vout,IF(K137>P137/2,0,ABS(K137-P137/2)*Vsd_Q1*Deadtime*Fsw),0) -> 0 | AE137: =(AD137+AC137+AB137*(1+RdsonTopTc*Ta-RdsonTopTc*25))/(1-AB137*RdsonTopTc*ThetaJA_Q1) -> 8.228954806 | AF137: =CHOOSE(J137,SQRT((1-N137))*SQRT(K137^2+(P137^2)/12),0,SQRT((1-N137))*SQRT(M137^2+(P137^2)/12)) -> 0 | AG137: =Rdson2*AF137^2 -> 0 | AH137: =CHOOSE(J137,IF(K137<P137/2,Deadtime*Fsw*IF(VfdSky_Q2>0,0,Vsd_Q2)*(K137+P137/2),2*Deadtime*Fsw*IF(VfdSky_Q2>0,0,Vsd_Q2)*K137),0,IF(K137<P137/2,Deadtime*Fsw/2*IF(VfdSky_Q2>0,0,Vsd_Q2)*(K137+P137/2),2*Deadtime*Fsw/2*IF(VfdSky_Q2>0,0,Vsd_Q2)*K137)) -> 0 | AI137: =(AH137+AG137*(1+RdsonBotTc*Ta-RdsonBotTc*25))/(1-AG137*RdsonBotTc*ThetaJA_Q2) -> 0 | AJ137: =CHOOSE(J137,0,SQRT(O137)*SQRT(L137^2+(P137^2)/12),SQRT(O137)*SQRT(M137^2+(P137^2)/12)) -> 24.50879369 | AK137: =Rdson4*AJ137^2 -> 2.042315292 | AL137: =CHOOSE(J137,0,(Vout*L137/2)*(Fsw)*(Tr_boost+Tf_boost),(Vout*Iout/2)*(Fsw/2)*(Tr_boost+Tf_boost)) -> 6.862743396 | AM137: =IF(H137>Vout,0,IF(L137>P137/2,0,ABS(L137-P137/2)*Vsd_Q4*Deadtime*Fsw)) -> 0 | AN137: =(AM137+AL137+AK137*(1+RdsonTopTc*Ta-RdsonTopTc*25))/(1-AK137*RdsonTopTc*ThetaJA_Q4) -> 15.05410408 | AO137: =CHOOSE(J137,SQRT(Iout^2+(P137^2)/12),SQRT(1-O137)*SQRT(L137^2+(P137^2)/12),SQRT(1-O137)*SQRT(M137^2+(P137^2)/12)) -> 17.72245721 | AP137: =Rdson3*AO137^2 -> 1.067890664 | AQ137: =CHOOSE(J137,0,IF(L137<P137/2,Deadtime*Fsw*IF(VfdSky_Q3>0,0,Vsd_Q3)*(L137+P137/2),2*Deadtime*Fsw*IF(VfdSky_Q3>0,0,Vsd_Q3)*L137),IF(L137<P137/2,Deadtime*Fsw/2*IF(VfdSky_Q3>0,0,Vsd_Q3)*(L137+P137/2),2*Deadtime*Fsw/2*IF(VfdSky_Q3>0,0,Vsd_Q3)*L137)) -> 0.2994410434 | AR137: =(AQ137+AP137*(1+RdsonBotTc*Ta-RdsonBotTc*25))/(1-AP137*RdsonBotTc*ThetaJA_Q3) -> 1.738674577 | AS137: =CHOOSE(J137,Rdson3*Q137^2,Rdson1*Q137^2,0) -> 3.110205956 | AT137: =CHOOSE(J137,2*Deadtime*Fsw*IF(VfdSky_Q2>0,VfdSky_Q2,0)*K137,2*Deadtime*Fsw*IF(VfdSky_Q3>0,VfdSky_Q3,0)*L137,2*Deadtime*Fsw/2*IF(VfdSky_Q2>0,VfdSky_Q2,0)*K137+2*Deadtime*Fsw/2*IF(VfdSky_Q3>0,VfdSky_Q3,0)*L137) -> 0 | AU137: =CHOOSE(J137,IF(QrrSky_Q2>0,QrrSky_Q2,Qrr_Q2)*Fsw*(H137-K137*Rdson1),IF(QrrSky_Q3>0,QrrSky_Q3,Qrr_Q3)*Fsw*Vout,IF(QrrSky_Q2>0,QrrSky_Q2,Qrr_Q2)*Fsw/2*(H137-K137*Rdson1)+IF(QrrSky_Q3>0,QrrSky_Q3,Qrr_Q3)*Fsw/2*Vout) -> 1.5552 | AV137: =CHOOSE(J137,Rs*AF137^2,Rs*AJ137^2,Rs*(AF137^2+AJ137^2)) -> 0.7508512103 | AW137: =Rshunt_std/1000*Iout^2 -> 0 | AX137: =IF(Vout>8,Iq*Vout,Iq*H137) -> 0.1296 | AY137: =CHOOSE(J137,(Qg_Q1+Qg_Q2)*Fsw,(Qg_Q3+Qg_Q4)*Fsw,(Qg_Q1+Qg_Q2+Qg_Q3+Qg_Q4)*Fsw/2)*IF(Vout>8,Vout,H137) -> 1.5552 | AZ137: =(Vin-Vdd)*Fsw*(Qg_Q1+Qg_Q2)+(RdsonDRT+RdsonDRT2)*Fsw*Qg_Q1*Vdd/(RdsonDRT+2*Rgate1+RdsonDRT2)+(RdsonDRB+RdsonDRB2)*Fsw*Qg_Q2*Vdd/(RdsonDRB+2*Rgate2+RdsonDRB2) -> 0.4142769231 | BA137: 1.6848 | BB137: 39.58495643 | BC137: =Vout*K137 -> 432 | BD137: 0.9160597558 | BE137: =IF(H137>Vout,ThetaJA_Q1*(AE137+AU137),ThetaJA_Q4*(AN137+AU137)) -> 830.4652041 | BF137: =IF(H137>Vout,AI137*ThetaJA_Q2,ThetaJA_Q3*AR137) -> 86.93372886 | BH137: 91.60597558 | BI137: 8.132240317 | BJ137: 26.57693347 | BK137: 0.513216 | BL137: 0.7508512103
G138: 129 | H138: 15.0415 | I138: BOOST | J138: =IF(I138="BOOST",2,IF(I138="BUCK",1,3)) -> 2 | K138: 10 | L138: 29.917229 | M138: 29.09790978 | N138: 1 | O138: =CHOOSE(J138,0,(Vout+(Rdson3+Rdcr)*L138-H138)/(Vout+(Rdson3-Rdson4-Rs)*L138),IF(H138>Vout,D_min_boost_exitBB_to_buck,(Vout-H138*D_max_buck_BB)/Vout)) -> 0.6563327031 | P138: 14.75115234 | Q138: 30.21876292 | R138: 2.524470927 | S138: 5.608163801 | T138: 8.132634728 | U138: 15.02030015 | V138: 2.256094165 | W138: 2.256094165 | X138: 4.258290888 | Y138: 0.1813304129 | Z138: 0.1813304129 | AA138: 30.21876292 | AB138: 3.10479035 | AC138: 0 | AD138: 0 | AE138: 8.191152756 | AF138: 0 | AG138: 0 | AH138: 0 | AI138: 0 | AJ138: 24.48153832 | AK138: 2.037775443 | AL138: 6.856583968 | AM138: 0 | AN138: 15.01297292 | AO138: 17.71518879 | AP138: 1.067014907 | AQ138: 0.29917229 | AR138: 1.736832412 | AS138: 3.10479035 | AT138: 0 | AU138: 1.5552 | AV138: 0.7491821481 | AW138: 0 | AX138: 0.1296 | AY138: 1.5552 | AZ138: 0.4142769231 | BA138: 1.6848 | BB138: 39.50019954 | BC138: 432 | BD138: 0.9162244267 | BE138: 828.4086459 | BF138: 86.84162059 | BH138: 91.62244267 | BI138: 8.132634728 | BJ138: 26.49615809 | BK138: 0.513216 | BL138: 0.7491821481
G139: 130 | H139: 15.055 | I139: BOOST | J139: 2 | K139: 10 | L139: 29.89040186 | M139: 29.07110944 | N139: 1 | O139: 0.6560158799 | P139: 14.75763554 | Q139: 30.19246772 | R139: 2.519194405 | S139: 5.613844353 | T139: 8.133038759 | U139: 15.01077014 | V139: 2.253232202 | W139: 2.253232202 | X139: 4.260162425 | Y139: 0.1814898388 | Z139: 0.1814898388 | AA139: 30.19246772 | AB139: 3.099389365 | AC139: 0 | AD139: 0 | AE139: 8.153667318 | AF139: 0 | AG139: 0 | AH139: 0 | AI139: 0 | AJ139: 24.45433103 | AK139: 2.033248641 | AL139: 6.850435586 | AM139: 0 | AN139: 14.97207409 | AO139: 17.70793045 | AP139: 1.066140723 | AQ139: 0.2989040186 | AR139: 1.734994373 | AS139: 3.099389365 | AT139: 0 | AU139: 1.5552 | AV139: 0.7475178828 | AW139: 0 | AX139: 0.1296 | AY139: 1.5552 | AZ139: 0.4142769231 | BA139: 1.6848 | BB139: 39.41601446 | BC139: 432 | BD139: 0.9163880453 | BE139: 826.3637043 | BF139: 86.74971865 | BH139: 91.63880453 | BI139: 8.133038759 | BJ139: 26.41593578 | BK139: 0.513216 | BL139: 0.7475178828
G140: 131 | H140: 15.0685 | I140: BOOST | J140: 2 | K140: 10 | L140: 29.86362279 | M140: 29.04435907 | N140: 1 | O140: 0.6556990645 | P140: 14.76410543 | Q140: 30.16622063 | R140: 2.513935806 | S140: 5.6195165 | T140: 8.133452306 | U140: 15.00124928 | V140: 2.2503748 | W140: 2.2503748 | X140: 4.262030122 | Y140: 0.1816490076 | Z140: 0.1816490076 | AA140: 30.16622063 | AB140: 3.094002947 | AC140: 0 | AD140: 0 | AE140: 8.116494574 | AF140: 0 | AG140: 0 | AH140: 0 | AI140: 0 | AJ140: 24.4271717 | AK140: 2.028734838 | AL140: 6.844298222 | AM140: 0 | AN140: 14.93140561 | AO140: 17.70068218 | AP140: 1.065268109 | AQ140: 0.2986362279 | AR140: 1.733160448 | AS140: 3.094002947 | AT140: 0 | AU140: 1.5552 | AV140: 0.7458583964 | AW140: 0 | AX140: 0.1296 | AY140: 1.5552 | AZ140: 0.4142769231 | BA140: 1.6848 | BB140: 39.33239514 | BC140: 432 | BD140: 0.9165506221 | BE140: 824.3302804 | BF140: 86.65802238 | BH140: 91.65506221 | BI140: 8.133452306 | BJ140: 26.33626063 | BK140: 0.513216 | BL140: 0.7458583964
G141: 132 | H141: 15.082 | I141: BOOST | J141: 2 | K141: 10 | L141: 29.83689166 | M141: 29.01765854 | N141: 1 | O141: 0.6553822568 | P141: 14.77056203 | Q141: 30.1400215 | R141: 2.508695044 | S141: 5.625180222 | T141: 8.133875266 | U141: 14.99173755 | V141: 2.247521947 | W141: 2.247521947 | X141: 4.263893982 | Y141: 0.1818079189 | Z141: 0.1818079189 | AA141: 30.1400215 | AB141: 3.088631046 | AC141: 0 | AD141: 0 | AE141: 8.079630671 | AF141: 0 | AG141: 0 | AH141: 0 | AI141: 0 | AJ141: 24.40006018 | AK141: 2.024233985 | AL141: 6.838171844 | AM141: 0 | AN141: 14.89096553 | AO141: 17.69344395 | AP141: 1.06439706 | AQ141: 0.2983689166 | AR141: 1.731330622 | AS141: 3.088631046 | AT141: 0 | AU141: 1.5552 | AV141: 0.744203671 | AW141: 0 | AX141: 0.1296 | AY141: 1.5552 | AZ141: 0.4142769231 | BA141: 1.6848 | BB141: 39.24933562 | BC141: 432 | BD141: 0.9167121677 | BE141: 822.3082764 | BF141: 86.5665311 | BH141: 91.67121677 | BI141: 8.133875266 | BJ141: 26.25712682 | BK141: 0.513216 | BL141: 0.744203671
G142: 133 | H142: 15.0955 | I142: BOOST | J142: 2 | K142: 10 | L142: 29.81020834 | M142: 28.99100771 | N142: 1 | O142: 0.6550654568 | P142: 14.77700534 | Q142: 30.1138702 | R142: 2.503472035 | S142: 5.630835502 | T142: 8.134307536 | U142: 14.98223491 | V142: 2.244673628 | W142: 2.244673628 | X142: 4.265754004 | Y142: 0.1819665722 | Z142: 0.1819665722 | AA142: 30.1138702 | AB142: 3.083273607 | AC142: 0 | AD142: 0 | AE142: 8.043071818 | AF142: 0 | AG142: 0 | AH142: 0 | AI142: 0 | AJ142: 24.37299635 | AK142: 2.019746034 | AL142: 6.832056424 | AM142: 0 | AN142: 14.85075191 | AO142: 17.68621575 | AP142: 1.063527573 | AQ142: 0.2981020834 | AR142: 1.729504883 | AS142: 3.083273607 | AT142: 0 | AU142: 1.5552 | AV142: 0.7425536889 | AW142: 0 | AX142: 0.1296 | AY142: 1.5552 | AZ142: 0.4142769231 | BA142: 1.6848 | BB142: 39.16683004 | BC142: 432 | BD142: 0.9168726923 | BE142: 820.2975957 | BF142: 86.47524413 | BH142: 91.68726923 | BI142: 8.134307536 | BJ142: 26.17852861 | BK142: 0.513216 | BL142: 0.7425536889
G143: 134 | H143: 15.109 | I143: BOOST | J143: 2 | K143: 10 | L143: 29.78357271 | M143: 28.96440643 | N143: 1 | O143: 0.6547486645 | P143: 14.78343535 | Q143: 30.08776661 | R143: 2.498266694 | S143: 5.63648232 | T143: 8.134749014 | U143: 14.97274134 | V143: 2.241829833 | W143: 2.241829833 | X143: 4.267610188 | Y143: 0.1821249672 | Z143: 0.1821249672 | AA143: 30.08776661 | AB143: 3.077930579 | AC143: 0 | AD143: 0 | AE143: 8.006814286 | AF143: 0 | AG143: 0 | AH143: 0 | AI143: 0 | AJ143: 24.34598008 | AK143: 2.015270936 | AL143: 6.825951933 | AM143: 0 | AN143: 14.81076285 | AO143: 17.67899753 | AP143: 1.062659643 | AQ143: 0.2978357271 | AR143: 1.727683216 | AS143: 3.077930579 | AT143: 0 | AU143: 1.5552 | AV143: 0.7409084325 | AW143: 0 | AX143: 0.1296 | AY143: 1.5552 | AZ143: 0.4142769231 | BA143: 1.6848 | BB143: 39.0848726 | BC143: 432 | BD143: 0.9170322061 | BE143: 818.2981427 | BF143: 86.3841608 | BH143: 91.70322061 | BI143: 8.134749014 | BJ143: 26.10046036 | BK143: 0.513216 | BL143: 0.7409084325
G144: 135 | H144: 15.1225 | I144: BOOST | J144: 2 | K144: 10 | L144: 29.75698463 | M144: 28.93785456 | N144: 1 | O144: 0.6544318799 | P144: 14.78985207 | Q144: 30.0617106 | R144: 2.493078939 | S144: 5.64212066 | T144: 8.135199599 | U144: 14.96325682 | V144: 2.238990546 | W144: 2.238990546 | X144: 4.269462536 | Y144: 0.1822831035 | Z144: 0.1822831035 | AA144: 30.0617106 | AB144: 3.072601911 | AC144: 0 | AD144: 0 | AE144: 7.970854407 | AF144: 0 | AG144: 0 | AH144: 0 | AI144: 0 | AJ144: 24.31901123 | AK144: 2.010808645 | AL144: 6.81985834 | AM144: 0 | AN144: 14.77099646 | AO144: 17.6717893 | AP144: 1.061793266 | AQ144: 0.2975698463 | AR144: 1.725865609 | AS144: 3.072601911 | AT144: 0 | AU144: 1.5552 | AV144: 0.7392678841 | AW144: 0 | AX144: 0.1296 | AY144: 1.5552 | AZ144: 0.4142769231 | BA144: 1.6848 | BB144: 39.00345761 | BC144: 432 | BD144: 0.9171907191 | BE144: 816.309823 | BF144: 86.29328044 | BH144: 91.71907191 | BI144: 8.135199599 | BJ144: 26.02291648 | BK144: 0.513216 | BL144: 0.7392678841
G145: 136 | H145: 15.136 | I145: BOOST | J145: 2 | K145: 10 | L145: 29.73044397 | M145: 28.91135197 | N145: 1 | O145: 0.6541151029 | P145: 14.7962555 | Q145: 30.03570204 | R145: 2.487908685 | S145: 5.647750502 | T145: 8.135659188 | U145: 14.95378132 | V145: 2.236155757 | W145: 2.236155757 | X145: 4.271311047 | Y145: 0.1824409806 | Z145: 0.1824409806 | AA145: 30.03570204 | AB145: 3.06728755 | AC145: 0 | AD145: 0 | AE145: 7.935188572 | AF145: 0 | AG145: 0 | AH145: 0 | AI145: 0 | AJ145: 24.29208968 | AK145: 2.006359111 | AL145: 6.813775618 | AM145: 0 | AN145: 14.73145086 | AO145: 17.66459102 | AP145: 1.060928438 | AQ145: 0.2973044397 | AR145: 1.724052048 | AS145: 3.06728755 | AT145: 0 | AU145: 1.5552 | AV145: 0.7376320262 | AW145: 0 | AX145: 0.1296 | AY145: 1.5552 | AZ145: 0.4142769231 | BA145: 1.6848 | BB145: 38.92257943 | BC145: 432 | BD145: 0.9173482412 | BE145: 814.332543 | BF145: 86.20260238 | BH145: 91.73482412 | BI145: 8.135659188 | BJ145: 25.94589148 | BK145: 0.513216 | BL145: 0.7376320262
G146: 137 | H146: 15.1495 | I146: BOOST | J146: 2 | K146: 10 | L146: 29.70395063 | M146: 28.88489851 | N146: 1 | O146: 0.6537983336 | P146: 14.80264564 | Q146: 30.00974079 | R146: 2.482755852 | S146: 5.653371829 | T146: 8.136127681 | U146: 14.94431481 | V146: 2.233325451 | W146: 2.233325451 | X146: 4.273155722 | Y146: 0.1825985982 | Z146: 0.1825985982 | AA146: 30.00974079 | AB146: 3.061987445 | AC146: 0 | AD146: 0 | AE146: 7.89981323 | AF146: 0 | AG146: 0 | AH146: 0 | AI146: 0 | AJ146: 24.26521529 | AK146: 2.001922289 | AL146: 6.807703736 | AM146: 0 | AN146: 14.69212421 | AO146: 17.65740268 | AP146: 1.060065156 | AQ146: 0.2970395063 | AR146: 1.722242519 | AS146: 3.061987445 | AT146: 0 | AU146: 1.5552 | AV146: 0.7360008415 | AW146: 0 | AX146: 0.1296 | AY146: 1.5552 | AZ146: 0.4142769231 | BA146: 1.6848 | BB146: 38.84223253 | BC146: 432 | BD146: 0.9175047822 | BE146: 812.3662105 | BF146: 86.11212596 | BH146: 91.75047822 | BI146: 8.136127681 | BJ146: 25.86937996 | BK146: 0.513216 | BL146: 0.7360008415
G147: 138 | H147: 15.163 | I147: BOOST | J147: 2 | K147: 10 | L147: 29.67750445 | M147: 28.85849406 | N147: 1 | O147: 0.6534815718 | P147: 14.80902249 | Q147: 29.98382674 | R147: 2.477620356 | S147: 5.658984623 | T147: 8.136604979 | U147: 14.93485727 | V147: 2.230499617 | W147: 2.230499617 | X147: 4.27499656 | Y147: 0.1827559559 | Z147: 0.1827559559 | AA147: 29.98382674 | AB147: 3.056701545 | AC147: 0 | AD147: 0 | AE147: 7.864724886 | AF147: 0 | AG147: 0 | AH147: 0 | AI147: 0 | AJ147: 24.23838794 | AK147: 1.99749813 | AL147: 6.801642666 | AM147: 0 | AN147: 14.65301468 | AO147: 17.65022425 | AP147: 1.059203415 | AQ147: 0.2967750445 | AR147: 1.72043701 | AS147: 3.056701545 | AT147: 0 | AU147: 1.5552 | AV147: 0.7343743125 | AW147: 0 | AX147: 0.1296 | AY147: 1.5552 | AZ147: 0.4142769231 | BA147: 1.6848 | BB147: 38.76241144 | BC147: 432 | BD147: 0.9176603516 | BE147: 810.4107341 | BF147: 86.02185052 | BH147: 91.76603516 | BI147: 8.136604979 | BJ147: 25.79337658 | BK147: 0.513216 | BL147: 0.7343743125
G148: 139 | H148: 15.1765 | I148: BOOST | J148: 2 | K148: 10 | L148: 29.65110533 | M148: 28.83213846 | N148: 1 | O148: 0.6531648177 | P148: 14.81538606 | Q148: 29.95795975 | R148: 2.472502117 | S148: 5.664588864 | T148: 8.137090981 | U148: 14.92540867 | V148: 2.227678241 | W148: 2.227678241 | X148: 4.276833564 | Y148: 0.1829130533 | Z148: 0.1829130533 | AA148: 29.95795975 | AB148: 3.051429798 | AC148: 0 | AD148: 0 | AE148: 7.829920102 | AF148: 0 | AG148: 0 | AH148: 0 | AI148: 0 | AJ148: 24.2116075 | AK148: 1.993086588 | AL148: 6.79559238 | AM148: 0 | AN148: 14.61412047 | AO148: 17.64305571 | AP148: 1.05834321 | AQ148: 0.2965110533 | AR148: 1.718635508 | AS148: 3.051429798 | AT148: 0 | AU148: 1.5552 | AV148: 0.732752422 | AW148: 0 | AX148: 0.1296 | AY148: 1.5552 | AZ148: 0.4142769231 | BA148: 1.6848 | BB148: 38.68311077 | BC148: 432 | BD148: 0.917814959 | BE148: 808.4660234 | BF148: 85.9317754 | BH148: 91.7814959 | BI148: 8.137090981 | BJ148: 25.71787608 | BK148: 0.513216 | BL148: 0.732752422
G149: 140 | H149: 15.19 | I149: BOOST | J149: 2 | K149: 10 | L149: 29.62475313 | M149: 28.80583159 | N149: 1 | O149: 0.6528480711 | P149: 14.82173634 | Q149: 29.9321397 | R149: 2.467401053 | S149: 5.670184536 | T149: 8.137585589 | U149: 14.915969 | V149: 2.224861311 | W149: 2.224861311 | X149: 4.278666732 | Y149: 0.18306989 | Z149: 0.18306989 | AA149: 29.9321397 | AB149: 3.046172155 | AC149: 0 | AD149: 0 | AE149: 7.795395494 | AF149: 0 | AG149: 0 | AH149: 0 | AI149: 0 | AJ149: 24.18487383 | AK149: 1.988687616 | AL149: 6.789552847 | AM149: 0 | AN149: 14.57543978 | AO149: 17.63589704 | AP149: 1.057484539 | AQ149: 0.2962475313 | AR149: 1.716837999 | AS149: 3.046172155 | AT149: 0 | AU149: 1.5552 | AV149: 0.7311351529 | AW149: 0 | AX149: 0.1296 | AY149: 1.5552 | AZ149: 0.4142769231 | BA149: 1.6848 | BB149: 38.60432522 | BC149: 432 | BD149: 0.9179686137 | BE149: 806.531989 | BF149: 85.84189994 | BH149: 91.79686137 | BI149: 8.137585589 | BJ149: 25.64287327 | BK149: 0.513216 | BL149: 0.7311351529
G150: 141 | H150: 15.2035 | I150: BOOST | J150: 2 | K150: 10 | L150: 29.59844773 | M150: 28.7795733 | N150: 1 | O150: 0.6525313321 | P150: 14.82807334 | Q150: 29.90636645 | R150: 2.462317084 | S150: 5.67577162 | T150: 8.138088703 | U150: 14.90653821 | V150: 2.222048815 | W150: 2.222048815 | X150: 4.280496066 | Y150: 0.1832264657 | Z150: 0.1832264657 | AA150: 29.90636645 | AB150: 3.040928565 | AC150: 0 | AD150: 0 | AE150: 7.761147731 | AF150: 0 | AG150: 0 | AH150: 0 | AI150: 0 | AJ150: 24.15818682 | AK150: 1.984301167 | AL150: 6.783524041 | AM150: 0 | AN150: 14.53697085 | AO150: 17.62874823 | AP150: 1.056627398 | AQ150: 0.2959844773 | AR150: 1.71504447 | AS150: 3.040928565 | AT150: 0 | AU150: 1.5552 | AV150: 0.7295224879 | AW150: 0 | AX150: 0.1296 | AY150: 1.5552 | AZ150: 0.4142769231 | BA150: 1.6848 | BB150: 38.52604953 | BC150: 432 | BD150: 0.9181213249 | BE150: 804.6085427 | BF150: 85.7522235 | BH150: 91.81213249 | BI150: 8.138088703 | BJ150: 25.56836305 | BK150: 0.513216 | BL150: 0.7295224879
G151: 142 | H151: 15.217 | I151: BOOST | J151: 2 | K151: 10 | L151: 29.572189 | M151: 28.75336347 | N151: 1 | O151: 0.6522146006 | P151: 14.83439705 | Q151: 29.88063989 | R151: 2.457250129 | S151: 5.681350098 | T151: 8.138600227 | U151: 14.8971163 | V151: 2.21924074 | W151: 2.21924074 | X151: 4.282321565 | Y151: 0.1833827799 | Z151: 0.1833827799 | AA151: 29.88063989 | AB151: 3.035698977 | AC151: 0 | AD151: 0 | AE151: 7.727173535 | AF151: 0 | AG151: 0 | AH151: 0 | AI151: 0 | AJ151: 24.13154633 | AK151: 1.979927195 | AL151: 6.777505931 | AM151: 0 | AN151: 14.49871194 | AO151: 17.62160924 | AP151: 1.055771781 | AQ151: 0.29572189 | AR151: 1.713254908 | AS151: 3.035698977 | AT151: 0 | AU151: 1.5552 | AV151: 0.7279144101 | AW151: 0 | AX151: 0.1296 | AY151: 1.5552 | AZ151: 0.4142769231 | BA151: 1.6848 | BB151: 38.44827854 | BC151: 432 | BD151: 0.9182731019 | BE151: 802.695597 | BF151: 85.66274542 | BH151: 91.82731019 | BI151: 8.138600227 | BJ151: 25.49434038 | BK151: 0.513216 | BL151: 0.7279144101
G152: 143 | H152: 15.2305 | I152: BOOST | J152: 2 | K152: 10 | L152: 29.54597682 | M152: 28.72720195 | N152: 1 | O152: 0.6518978766 | P152: 14.84070748 | Q152: 29.85495988 | R152: 2.45220011 | S152: 5.686919952 | T152: 8.139120062 | U152: 14.88770322 | V152: 2.216437073 | W152: 2.216437073 | X152: 4.284143231 | Y152: 0.1835388322 | Z152: 0.1835388322 | AA152: 29.85495988 | AB152: 3.030483341 | AC152: 0 | AD152: 0 | AE152: 7.693469681 | AF152: 0 | AG152: 0 | AH152: 0 | AI152: 0 | AJ152: 24.10495223 | AK152: 1.975565655 | AL152: 6.77149849 | AM152: 0 | AN152: 14.46066131 | AO152: 17.61448006 | AP152: 1.054917686 | AQ152: 0.2954597682 | AR152: 1.711469301 | AS152: 3.030483341 | AT152: 0 | AU152: 1.5552 | AV152: 0.7263109025 | AW152: 0 | AX152: 0.1296 | AY152: 1.5552 | AZ152: 0.4142769231 | BA152: 1.6848 | BB152: 38.37100716 | BC152: 432 | BD152: 0.9184239535 | BE152: 800.7930656 | BF152: 85.57346506 | BH152: 91.84239535 | BI152: 8.139120062 | BJ152: 25.42080029 | BK152: 0.513216 | BL152: 0.7263109025
G153: 144 | H153: 15.244 | I153: BOOST | J153: 2 | K153: 10 | L153: 29.51981107 | M153: 28.70108861 | N153: 1 | O153: 0.65158116 | P153: 14.84700464 | Q153: 29.82932631 | R153: 2.447166948 | S153: 5.692481164 | T153: 8.139648112 | U153: 14.87829897 | V153: 2.213637802 | W153: 2.213637802 | X153: 4.285961063 | Y153: 0.1836946223 | Z153: 0.1836946223 | AA153: 29.82932631 | AB153: 3.025281607 | AC153: 0 | AD153: 0 | AE153: 7.660032991 | AF153: 0 | AG153: 0 | AH153: 0 | AI153: 0 | AJ153: 24.0784044 | AK153: 1.971216499 | AL153: 6.765501689 | AM153: 0 | AN153: 14.42281726 | AO153: 17.60736066 | AP153: 1.054065108 | AQ153: 0.2951981107 | AR153: 1.709687635 | AS153: 3.025281607 | AT153: 0 | AU153: 1.5552 | AV153: 0.7247119482 | AW153: 0 | AX153: 0.1296 | AY153: 1.5552 | AZ153: 0.4142769231 | BA153: 1.6848 | BB153: 38.29423037 | BC153: 432 | BD153: 0.9185738887 | BE153: 798.9008628 | BF153: 85.48438177 | BH153: 91.85738887 | BI153: 8.139648112 | BJ153: 25.34773788 | BK153: 0.513216 | BL153: 0.7247119482
G154: 145 | H154: 15.2575 | I154: BOOST | J154: 2 | K154: 10 | L154: 29.49369163 | M154: 28.67502332 | N154: 1 | O154: 0.651264451 | P154: 14.85328852 | Q154: 29.80373904 | R154: 2.442150562 | S154: 5.698033717 | T154: 8.14018428 | U154: 14.86890351 | V154: 2.210842915 | W154: 2.210842915 | X154: 4.287775062 | Y154: 0.1838501498 | Z154: 0.1838501498 | AA154: 29.80373904 | AB154: 3.020093727 | AC154: 0 | AD154: 0 | AE154: 7.62686034 | AF154: 0 | AG154: 0 | AH154: 0 | AI154: 0 | AJ154: 24.05190272 | AK154: 1.966879683 | AL154: 6.759515501 | AM154: 0 | AN154: 14.38517809 | AO154: 17.60025103 | AP154: 1.053214044 | AQ154: 0.2949369163 | AR154: 1.707909898 | AS154: 3.020093727 | AT154: 0 | AU154: 1.5552 | AV154: 0.7231175305 | AW154: 0 | AX154: 0.1296 | AY154: 1.5552 | AZ154: 0.4142769231 | BA154: 1.6848 | BB154: 38.2179432 | BC154: 432 | BD154: 0.9187229161 | BE154: 797.0189043 | BF154: 85.3954949 | BH154: 91.87229161 | BI154: 8.14018428 | BJ154: 25.27514832 | BK154: 0.513216 | BL154: 0.7231175305
G155: 146 | H155: 15.271 | I155: BOOST | J155: 2 | K155: 10 | L155: 29.46761836 | M155: 28.64900594 | N155: 1 | O155: 0.6509477494 | P155: 14.85955912 | Q155: 29.77819795 | R155: 2.437150877 | S155: 5.703577593 | T155: 8.14072847 | U155: 14.85951682 | V155: 2.2080524 | W155: 2.2080524 | X155: 4.289585228 | Y155: 0.1840054143 | Z155: 0.1840054143 | AA155: 29.77819795 | AB155: 3.014919649 | AC155: 0 | AD155: 0 | AE155: 7.593948649 | AF155: 0 | AG155: 0 | AH155: 0 | AI155: 0 | AJ155: 24.02544705 | AK155: 1.96255516 | AL155: 6.753539896 | AM155: 0 | AN155: 14.34774213 | AO155: 17.59315115 | AP155: 1.052364489 | AQ155: 0.2946761836 | AR155: 1.706136077 | AS155: 3.014919649 | AT155: 0 | AU155: 1.5552 | AV155: 0.7215276325 | AW155: 0 | AX155: 0.1296 | AY155: 1.5552 | AZ155: 0.4142769231 | BA155: 1.6848 | BB155: 38.14214077 | BC155: 432 | BD155: 0.9188710446 | BE155: 795.1471063 | BF155: 85.30680383 | BH155: 91.88710446 | BI155: 8.14072847 | BJ155: 25.20302685 | BK155: 0.513216 | BL155: 0.7215276325
G156: 147 | H156: 15.2845 | I156: BOOST | J156: 2 | K156: 10 | L156: 29.44159115 | M156: 28.62303633 | N156: 1 | O156: 0.6506310552 | P156: 14.86581644 | Q156: 29.75270292 | R156: 2.432167814 | S156: 5.709112773 | T156: 8.141280586 | U156: 14.85013887 | V156: 2.205266244 | W156: 2.205266244 | X156: 4.291391561 | Y156: 0.1841604153 | Z156: 0.1841604153 | AA156: 29.75270292 | AB156: 3.009759326 | AC156: 0 | AD156: 0 | AE156: 7.561294887 | AF156: 0 | AG156: 0 | AH156: 0 | AI156: 0 | AJ156: 23.99903728 | AK156: 1.958242886 | AL156: 6.747574847 | AM156: 0 | AN156: 14.31050772 | AO156: 17.58606099 | AP156: 1.05151644 | AQ156: 0.2944159115 | AR156: 1.704366158 | AS156: 3.009759326 | AT156: 0 | AU156: 1.5552 | AV156: 0.7199422377 | AW156: 0 | AX156: 0.1296 | AY156: 1.5552 | AZ156: 0.4142769231 | BA156: 1.6848 | BB156: 38.06681825 | BC156: 432 | BD156: 0.9190182826 | BE156: 793.2853862 | BF156: 85.21830791 | BH156: 91.90182826 | BI156: 8.141280586 | BJ156: 25.13136877 | BK156: 0.513216 | BL156: 0.7199422377
G157: 148 | H157: 15.298 | I157: BOOST | J157: 2 | K157: 10 | L157: 29.41560988 | M157: 28.59711438 | N157: 1 | O157: 0.6503143685 | P157: 14.87206049 | Q157: 29.72725383 | R157: 2.427201295 | S157: 5.71463924 | T157: 8.141840535 | U157: 14.84076964 | V157: 2.202484435 | W157: 2.202484435 | X157: 4.293194063 | Y157: 0.1843151526 | Z157: 0.1843151526 | AA157: 29.72725383 | AB157: 3.004612708 | AC157: 0 | AD157: 0 | AE157: 7.528896072 | AF157: 0 | AG157: 0 | AH157: 0 | AI157: 0 | AJ157: 23.97267327 | AK157: 1.953942816 | AL157: 6.741620326 | AM157: 0 | AN157: 14.27347324 | AO157: 17.57898053 | AP157: 1.050669892 | AQ157: 0.2941560988 | AR157: 1.70260013 | AS157: 3.004612708 | AT157: 0 | AU157: 1.5552 | AV157: 0.7183613294 | AW157: 0 | AX157: 0.1296 | AY157: 1.5552 | AZ157: 0.4142769231 | BA157: 1.6848 | BB157: 37.9919709 | BC157: 432 | BD157: 0.9191646384 | BE157: 791.4336621 | BF157: 85.13000652 | BH157: 91.91646384 | BI157: 8.141840535 | BJ157: 25.06016944 | BK157: 0.513216 | BL157: 0.7183613294
G158: 149 | H158: 15.3115 | I158: BOOST | J158: 2 | K158: 10 | L158: 29.38967443 | M158: 28.57123993 | N158: 1 | O158: 0.6499976891 | P158: 14.87829126 | Q158: 29.70185054 | R158: 2.422251244 | S158: 5.720156976 | T158: 8.14240822 | U158: 14.83140911 | V158: 2.199706961 | W158: 2.199706961 | X158: 4.294992733 | Y158: 0.1844696258 | Z158: 0.1844696258 | AA158: 29.70185054 | AB158: 2.999479747 | AC158: 0 | AD158: 0 | AE158: 7.496749263 | AF158: 0 | AG158: 0 | AH158: 0 | AI158: 0 | AJ158: 23.9463549 | AK158: 1.949654904 | AL158: 6.735676306 | AM158: 0 | AN158: 14.23663706 | AO158: 17.57190976 | AP158: 1.049824843 | AQ158: 0.2938967443 | AR158: 1.70083798 | AS158: 2.999479747 | AT158: 0 | AU158: 1.5552 | AV158: 0.7167848912 | AW158: 0 | AX158: 0.1296 | AY158: 1.5552 | AZ158: 0.4142769231 | BA158: 1.6848 | BB158: 37.917594 | BC158: 432 | BD158: 0.9193101206 | BE158: 789.5918531 | BF158: 85.04189901 | BH158: 91.93101206 | BI158: 8.14240822 | BJ158: 24.98942431 | BK158: 0.513216 | BL158: 0.7167848912
G159: 150 | H159: 15.325 | I159: BOOST | J159: 2 | K159: 10 | L159: 29.36378467 | M159: 28.54541286 | N159: 1 | O159: 0.6496810171 | P159: 14.88450877 | Q159: 29.67649294 | R159: 2.417317586 | S159: 5.725665963 | T159: 8.142983549 | U159: 14.82205724 | V159: 2.19693381 | W159: 2.19693381 | X159: 4.296787572 | Y159: 0.1846238344 | Z159: 0.1846238344 | AA159: 29.67649294 | AB159: 2.994360393 | AC159: 0 | AD159: 0 | AE159: 7.46485157 | AF159: 0 | AG159: 0 | AH159: 0 | AI159: 0 | AJ159: 23.92008205 | AK159: 1.945379106 | AL159: 6.729742757 | AM159: 0 | AN159: 14.19999758 | AO159: 17.56484865 | AP159: 1.048981287 | AQ159: 0.2936378467 | AR159: 1.699079695 | AS159: 2.994360393 | AT159: 0 | AU159: 1.5552 | AV159: 0.7152129066 | AW159: 0 | AX159: 0.1296 | AY159: 1.5552 | AZ159: 0.4142769231 | BA159: 1.6848 | BB159: 37.84368295 | BC159: 432 | BD159: 0.9194547371 | BE159: 787.7598792 | BF159: 84.95398476 | BH159: 91.94547371 | BI159: 8.142983549 | BJ159: 24.91912885 | BK159: 0.513216 | BL159: 0.7152129066
G160: 151 | H160: 15.3385 | I160: BOOST | J160: 2 | K160: 10 | L160: 29.33794048 | M160: 28.51963304 | N160: 1 | O160: 0.6493643525 | P160: 14.890713 | Q160: 29.65118091 | R160: 2.412400243 | S160: 5.731166184 | T160: 8.143566427 | U160: 14.81271403 | V160: 2.194164969 | W160: 2.194164969 | X160: 4.29857858 | Y160: 0.1847777781 | Z160: 0.1847777781 | AA160: 29.65118091 | AB160: 2.989254599 | AC160: 0 | AD160: 0 | AE160: 7.433200142 | AF160: 0 | AG160: 0 | AH160: 0 | AI160: 0 | AJ160: 23.8938546 | AK160: 1.941115377 | AL160: 6.723819653 | AM160: 0 | AN160: 14.16355322 | AO160: 17.55779718 | AP160: 1.048139222 | AQ160: 0.2933794048 | AR160: 1.697325263 | AS160: 2.989254599 | AT160: 0 | AU160: 1.5552 | AV160: 0.7136453593 | AW160: 0 | AX160: 0.1296 | AY160: 1.5552 | AZ160: 0.4142769231 | BA160: 1.6848 | BB160: 37.77023316 | BC160: 432 | BD160: 0.9195984963 | BE160: 785.9376611 | BF160: 84.86626315 | BH160: 91.95984963 | BI160: 8.143566427 | BJ160: 24.84927863 | BK160: 0.513216 | BL160: 0.7136453593
G161: 152 | H161: 15.352 | I161: BOOST | J161: 2 | K161: 10 | L161: 29.31214174 | M161: 28.49390034 | N161: 1 | O161: 0.6490476951 | P161: 14.89690397 | Q161: 29.62591432 | R161: 2.407499141 | S161: 5.736657622 | T161: 8.144156763 | U161: 14.80337944 | V161: 2.191400427 | W161: 2.191400427 | X161: 4.300365758 | Y161: 0.1849314565 | Z161: 0.1849314565 | AA161: 29.62591432 | AB161: 2.984162317 | AC161: 0 | AD161: 0 | AE161: 7.401792172 | AF161: 0 | AG161: 0 | AH161: 0 | AI161: 0 | AJ161: 23.86767241 | AK161: 1.936863674 | AL161: 6.717906967 | AM161: 0 | AN161: 14.12730241 | AO161: 17.55075533 | AP161: 1.047298643 | AQ161: 0.2931214174 | AR161: 1.695574671 | AS161: 2.984162317 | AT161: 0 | AU161: 1.5552 | AV161: 0.712082233 | AW161: 0 | AX161: 0.1296 | AY161: 1.5552 | AZ161: 0.4142769231 | BA161: 1.6848 | BB161: 37.69724013 | BC161: 432 | BD161: 0.9197414059 | BE161: 784.1251204 | BF161: 84.77873355 | BH161: 91.97414059 | BI161: 8.144156763 | BJ161: 24.77986925 | BK161: 0.513216 | BL161: 0.712082233
G162: 153 | H162: 15.3655 | I162: BOOST | J162: 2 | K162: 10 | L162: 29.28638834 | M162: 28.46821463 | N162: 1 | O162: 0.6487310451 | P162: 14.90308166 | Q162: 29.60069305 | R162: 2.402614205 | S162: 5.742140257 | T162: 8.144754462 | U162: 14.79405344 | V162: 2.188640172 | W162: 2.188640172 | X162: 4.302149105 | Y162: 0.1850848692 | Z162: 0.1850848692 | AA162: 29.60069305 | AB162: 2.979083498 | AC162: 0 | AD162: 0 | AE162: 7.370624899 | AF162: 0 | AG162: 0 | AH162: 0 | AI162: 0 | AJ162: 23.84153538 | AK162: 1.932623951 | AL162: 6.71200467 | AM162: 0 | AN162: 14.0912436 | AO162: 17.54372308 | AP162: 1.046459547 | AQ162: 0.2928638834 | AR162: 1.693827907 | AS162: 2.979083498 | AT162: 0 | AU162: 1.5552 | AV162: 0.7105235114 | AW162: 0 | AX162: 0.1296 | AY162: 1.5552 | AZ162: 0.4142769231 | BA162: 1.6848 | BB162: 37.62469942 | BC162: 432 | BD162: 0.9198834741 | BE162: 782.3221798 | BF162: 84.69139534 | BH162: 91.98834741 | BI162: 8.144754462 | BJ162: 24.7108964 | BK162: 0.513216 | BL162: 0.7105235114
G163: 154 | H163: 15.379 | I163: BOOST | J163: 2 | K163: 10 | L163: 29.26068015 | M163: 28.44257577 | N163: 1 | O163: 0.6484144024 | P163: 14.90924609 | Q163: 29.57551697 | R163: 2.397745361 | S163: 5.747614074 | T163: 8.145359434 | U163: 14.78473602 | V163: 2.185884192 | W163: 2.185884192 | X163: 4.303928623 | Y163: 0.1852380159 | Z163: 0.1852380159 | AA163: 29.57551697 | AB163: 2.974018095 | AC163: 0 | AD163: 0 | AE163: 7.339695599 | AF163: 0 | AG163: 0 | AH163: 0 | AI163: 0 | AJ163: 23.81544337 | AK163: 1.928396166 | AL163: 6.706112735 | AM163: 0 | AN163: 14.05537525 | AO163: 17.53670042 | AP163: 1.045621929 | AQ163: 0.2926068015 | AR163: 1.692084958 | AS163: 2.974018095 | AT163: 0 | AU163: 1.5552 | AV163: 0.7089691786 | AW163: 0 | AX163: 0.1296 | AY163: 1.5552 | AZ163: 0.4142769231 | BA163: 1.6848 | BB163: 37.55260663 | BC163: 432 | BD163: 0.9200247084 | BE163: 780.5287624 | BF163: 84.6042479 | BH163: 92.00247084 | BI163: 8.145359434 | BJ163: 24.6423558 | BK163: 0.513216 | BL163: 0.7089691786
G164: 155 | H164: 15.3925 | I164: BOOST | J164: 2 | K164: 10 | L164: 29.23501705 | M164: 28.41698364 | N164: 1 | O164: 0.648097767 | P164: 14.91539726 | Q164: 29.55038598 | R164: 2.392892533 | S164: 5.753079053 | T164: 8.145971587 | U164: 14.77542715 | V164: 2.183132475 | W164: 2.183132475 | X164: 4.305704311 | Y164: 0.1853908962 | Z164: 0.1853908962 | AA164: 29.55038598 | AB164: 2.96896606 | AC164: 0 | AD164: 0 | AE164: 7.309001591 | AF164: 0 | AG164: 0 | AH164: 0 | AI164: 0 | AJ164: 23.78939626 | AK164: 1.924180274 | AL164: 6.700231135 | AM164: 0 | AN164: 14.01969585 | AO164: 17.52968731 | AP164: 1.044785786 | AQ164: 0.2923501705 | AR164: 1.690345813 | AS164: 2.96896606 | AT164: 0 | AU164: 1.5552 | AV164: 0.7074192183 | AW164: 0 | AX164: 0.1296 | AY164: 1.5552 | AZ164: 0.4142769231 | BA164: 1.6848 | BB164: 37.48095743 | BC164: 432 | BD164: 0.9201651167 | BE164: 778.7447924 | BF164: 84.51729063 | BH164: 92.01651167 | BI164: 8.145971587 | BJ164: 24.57424325 | BK164: 0.513216 | BL164: 0.7074192183
G165: 156 | H165: 15.406 | I165: BOOST | J165: 2 | K165: 10 | L165: 29.20939894 | M165: 28.39143811 | N165: 1 | O165: 0.6477811388 | P165: 14.92153516 | Q165: 29.52529995 | R165: 2.38805565 | S165: 5.758535179 | T165: 8.146590829 | U165: 14.76612681 | V165: 2.180385009 | W165: 2.180385009 | X165: 4.307476171 | Y165: 0.1855435096 | Z165: 0.1855435096 | AA165: 29.52529995 | AB165: 2.963927346 | AC165: 0 | AD165: 0 | AE165: 7.278540235 | AF165: 0 | AG165: 0 | AH165: 0 | AI165: 0 | AJ165: 23.76339394 | AK165: 1.919976232 | AL165: 6.694359844 | AM165: 0 | AN165: 13.98420389 | AO165: 17.52268374 | AP165: 1.043951115 | AQ165: 0.2920939894 | AR165: 1.688610458 | AS165: 2.963927346 | AT165: 0 | AU165: 1.5552 | AV165: 0.7058736146 | AW165: 0 | AX165: 0.1296 | AY165: 1.5552 | AZ165: 0.4142769231 | BA165: 1.6848 | BB165: 37.40974755 | BC165: 432 | BD165: 0.9203047066 | BE165: 776.9701947 | BF165: 84.43052289 | BH165: 92.03047066 | BI165: 8.146590829 | BJ165: 24.50655459 | BK165: 0.513216 | BL165: 0.7058736146
G166: 157 | H166: 15.4195 | I166: BOOST | J166: 2 | K166: 10 | L166: 29.18382568 | M166: 28.36593905 | N166: 1 | O166: 0.6474645178 | P166: 14.9276598 | Q166: 29.50025876 | R166: 2.383234637 | S166: 5.763982433 | T166: 8.14721707 | U166: 14.75683497 | V166: 2.177641782 | W166: 2.177641782 | X166: 4.309244201 | Y166: 0.1856958559 | Z166: 0.1856958559 | AA166: 29.50025876 | AB166: 2.958901907 | AC166: 0 | AD166: 0 | AE166: 7.248308928 | AF166: 0 | AG166: 0 | AH166: 0 | AI166: 0 | AJ166: 23.73743628 | AK166: 1.915783996 | AL166: 6.688498833 | AM166: 0 | AN166: 13.9488979 | AO166: 17.51568969 | AP166: 1.04311791 | AQ166: 0.2918382568 | AR166: 1.686878882 | AS166: 2.958901907 | AT166: 0 | AU166: 1.5552 | AV166: 0.7043323516 | AW166: 0 | AX166: 0.1296 | AY166: 1.5552 | AZ166: 0.4142769231 | BA166: 1.6848 | BB166: 37.33897277 | BC166: 432 | BD166: 0.9204434855 | BE166: 775.2048951 | BF166: 84.34394409 | BH166: 92.04434855 | BI166: 8.14721707 | BJ166: 24.43928571 | BK166: 0.513216 | BL166: 0.7043323516
G167: 158 | H167: 15.433 | I167: BOOST | J167: 2 | K167: 10 | L167: 29.15829716 | M167: 28.34048633 | N167: 1 | O167: 0.6471479041 | P167: 14.93377117 | Q167: 29.47526228 | R167: 2.378429423 | S167: 5.769420797 | T167: 8.14785022 | U167: 14.7475516 | V167: 2.174902783 | W167: 2.174902783 | X167: 4.311008403 | Y167: 0.1858479345 | Z167: 0.1858479345 | AA167: 29.47526228 | AB167: 2.953889694 | AC167: 0 | AD167: 0 | AE167: 7.218305106 | AF167: 0 | AG167: 0 | AH167: 0 | AI167: 0 | AJ167: 23.71152316 | AK167: 1.911603524 | AL167: 6.682648076 | AM167: 0 | AN167: 13.9137764 | AO167: 17.50870514 | AP167: 1.04228617 | AQ167: 0.2915829716 | AR167: 1.685151072 | AS167: 2.953889694 | AT167: 0 | AU167: 1.5552 | AV167: 0.7027954134 | AW167: 0 | AX167: 0.1296 | AY167: 1.5552 | AZ167: 0.4142769231 | BA167: 1.6848 | BB167: 37.26862893 | BC167: 432 | BD167: 0.920581461 | BE167: 773.4488201 | BF167: 84.25755362 | BH167: 92.0581461 | BI167: 8.14785022 | BJ167: 24.37243258 | BK167: 0.513216 | BL167: 0.7027954134
G168: 159 | H168: 15.4465 | I168: BOOST | J168: 2 | K168: 10 | L168: 29.13281326 | M168: 28.31507982 | N168: 1 | O168: 0.6468312976 | P168: 14.93986929 | Q168: 29.4503104 | R168: 2.373639934 | S168: 5.774850255 | T168: 8.148490189 | U168: 14.7382767 | V168: 2.172168 | W168: 2.172168 | X168: 4.312768778 | Y168: 0.1859997453 | Z168: 0.1859997453 | AA168: 29.4503104 | AB168: 2.948890662 | AC168: 0 | AD168: 0 | AE168: 7.188526245 | AF168: 0 | AG168: 0 | AH168: 0 | AI168: 0 | AJ168: 23.68565446 | AK168: 1.907434773 | AL168: 6.676807546 | AM168: 0 | AN168: 13.87883794 | AO168: 17.50173007 | AP168: 1.041455889 | AQ168: 0.2913281326 | AR168: 1.683427017 | AS168: 2.948890662 | AT168: 0 | AU168: 1.5552 | AV168: 0.7012627843 | AW168: 0 | AX168: 0.1296 | AY168: 1.5552 | AZ168: 0.4142769231 | BA168: 1.6848 | BB168: 37.19871192 | BC168: 432 | BD168: 0.9207186402 | BE168: 771.7018969 | BF168: 84.17135087 | BH168: 92.07186402 | BI168: 8.148490189 | BJ168: 24.3059912 | BK168: 0.513216 | BL168: 0.7012627843
G169: 160 | H169: 15.46 | I169: BOOST | J169: 2 | K169: 10 | L169: 29.10737387 | M169: 28.2897194 | N169: 1 | O169: 0.6465146982 | P169: 14.94595415 | Q169: 29.42540301 | R169: 2.368866099 | S169: 5.780270789 | T169: 8.149136888 | U169: 14.72901022 | V169: 2.169437422 | W169: 2.169437422 | X169: 4.314525325 | Y169: 0.1861512878 | Z169: 0.1861512878 | AA169: 29.42540301 | AB169: 2.943904764 | AC169: 0 | AD169: 0 | AE169: 7.158969857 | AF169: 0 | AG169: 0 | AH169: 0 | AI169: 0 | AJ169: 23.65983007 | AK169: 1.9032777 | AL169: 6.670977216 | AM169: 0 | AN169: 13.84408107 | AO169: 17.49476446 | AP169: 1.040627064 | AQ169: 0.2910737387 | AR169: 1.681706705 | AS169: 2.943904764 | AT169: 0 | AU169: 1.5552 | AV169: 0.6997344485 | AW169: 0 | AX169: 0.1296 | AY169: 1.5552 | AZ169: 0.4142769231 | BA169: 1.6848 | BB169: 37.12921768 | BC169: 432 | BD169: 0.9208550304 | BE169: 769.9640535 | BF169: 84.08533523 | BH169: 92.08550304 | BI169: 8.149136888 | BJ169: 24.23995763 | BK169: 0.513216 | BL169: 0.6997344485
G170: 161 | H170: 15.4735 | I170: BOOST | J170: 2 | K170: 10 | L170: 29.08197887 | M170: 28.26440494 | N170: 1 | O170: =CHOOSE(J170,0,(Vout+(Rdson3+Rdcr)*L170-H170)/(Vout+(Rdson3-Rdson4-Rs)*L170),IF(H170>Vout,D_min_boost_exitBB_to_buck,(Vout-H170*D_max_buck_BB)/Vout)) -> 0.646198106 | P170: 14.95202574 | Q170: 29.40053998 | R170: 2.364107846 | S170: 5.785682382 | T170: 8.149790228 | U170: 14.71975216 | V170: 2.166711036 | W170: 2.166711036 | X170: 4.316278044 | Y170: 0.1863025616 | Z170: 0.1863025616 | AA170: 29.40053998 | AB170: 2.938931953 | AC170: 0 | AD170: 0 | AE170: 7.129633488 | AF170: 0 | AG170: 0 | AH170: 0 | AI170: 0 | AJ170: 23.63404985 | AK170: 1.899132262 | AL170: 6.665157059 | AM170: 0 | AN170: 13.80950438 | AO170: 17.48780829 | AP170: 1.039799691 | AQ170: 0.2908197887 | AR170: 1.679990122 | AS170: 2.938931953 | AT170: 0 | AU170: 1.5552 | AV170: 0.6982103904 | AW170: 0 | AX170: 0.1296 | AY170: 1.5552 | AZ170: 0.4142769231 | BA170: 1.6848 | BB170: 37.0601422 | BC170: 432 | BD170: 0.9209906388 | BE170: 768.2352189 | BF170: 83.99950611 | BH170: 92.09906388 | BI170: 8.149790228 | BJ170: 24.17432799 | BK170: 0.513216 | BL170: 0.6982103904
G171: 162 | H171: 15.487 | I171: BOOST | J171: 2 | K171: 10 | L171: 29.05662814 | M171: 28.23913631 | N171: 1 | O171: 0.6458815209 | P171: 14.95808409 | Q171: 29.37572119 | R171: 2.359365105 | S171: 5.791085016 | T171: 8.150450121 | U171: 14.71050248 | V171: 2.163988832 | W171: 2.163988832 | X171: 4.318026937 | Y171: 0.1864535663 | Z171: 0.1864535663 | AA171: 29.37572119 | AB171: 2.933972185 | AC171: 0 | AD171: 0 | AE171: 7.100514724 | AF171: 0 | AG171: 0 | AH171: 0 | AI171: 0 | AJ171: 23.6083137 | AK171: 1.894998417 | AL171: 6.659347049 | AM171: 0 | AN171: 13.77510645 | AO171: 17.48086153 | AP171: 1.038973768 | AQ171: 0.2905662814 | AR171: 1.678277258 | AS171: 2.933972185 | AT171: 0 | AU171: 1.5552 | AV171: 0.6966905945 | AW171: 0 | AX171: 0.1296 | AY171: 1.5552 | AZ171: 0.4142769231 | BA171: 1.6848 | BB171: 36.99148155 | BC171: 432 | BD171: 0.9211254724 | BE171: 766.5153225 | BF171: 83.91386291 | BH171: 92.11254724 | BI171: 8.150450121 | BJ171: 24.10909843 | BK171: 0.513216 | BL171: 0.6966905945
G172: 163 | H172: 15.5005 | I172: BOOST | J172: 2 | K172: 10 | L172: 29.03132157 | M172: 28.21391339 | N172: 1 | O172: 0.645564943 | P172: 14.96412917 | Q172: 29.35094653 | R172: 2.354637805 | S172: 5.796478675 | T172: 8.151116479 | U172: 14.70126116 | V172: 2.161270798 | W172: 2.161270798 | X172: 4.319772003 | Y172: 0.1866043016 | Z172: 0.1866043016 | AA172: 29.35094653 | AB172: 2.929025412 | AC172: 0 | AD172: 0 | AE172: 7.071611183 | AF172: 0 | AG172: 0 | AH172: 0 | AI172: 0 | AJ172: 23.58262149 | AK172: 1.890876123 | AL172: 6.65354716 | AM172: 0 | AN172: 13.74088589 | AO172: 17.47392418 | AP172: 1.038149289 | AQ172: 0.2903132157 | AR172: 1.676568101 | AS172: 2.929025412 | AT172: 0 | AU172: 1.5552 | AV172: 0.6951750452 | AW172: 0 | AX172: 0.1296 | AY172: 1.5552 | AZ172: 0.4142769231 | BA172: 1.6848 | BB172: 36.9232318 | BC172: 432 | BD172: 0.9212595382 | BE172: 764.8042945 | BF172: 83.82840504 | BH172: 92.12595382 | BI172: 8.151116479 | BJ172: 24.04426517 | BK172: 0.513216 | BL172: 0.6951750452
G173: 164 | H173: 15.514 | I173: BOOST | J173: 2 | K173: 10 | L173: 29.00605904 | M173: 28.18873605 | N173: 1 | O173: 0.6452483722 | P173: 14.97016101 | Q173: 29.32621588 | R173: 2.349925875 | S173: 5.80186334 | T173: 8.151789215 | U173: 14.69202818 | V173: 2.158556921 | W173: 2.158556921 | X173: 4.321513244 | Y173: 0.1867547671 | Z173: 0.1867547671 | AA173: 29.32621588 | AB173: 2.924091589 | AC173: 0 | AD173: 0 | AE173: 7.04292052 | AF173: 0 | AG173: 0 | AH173: 0 | AI173: 0 | AJ173: 23.5569731 | AK173: 1.886765338 | AL173: 6.647757364 | AM173: 0 | AN173: 13.70684132 | AO173: 17.4669962 | AP173: 1.037326251 | AQ173: 0.2900605904 | AR173: 1.674862638 | AS173: 2.924091589 | AT173: 0 | AU173: 1.5552 | AV173: 0.6936637271 | AW173: 0 | AX173: 0.1296 | AY173: 1.5552 | AZ173: 0.4142769231 | BA173: 1.6848 | BB173: 36.85538911 | BC173: 432 | BD173: 0.9213928432 | BE173: 763.1020661 | BF173: 83.74313189 | BH173: 92.13928432 | BI173: 8.151789215 | BJ173: 23.97982448 | BK173: 0.513216 | BL173: 0.6936637271
G174: 165 | H174: 15.5275 | I174: BOOST | J174: 2 | K174: 10 | L174: 28.98084044 | M174: 28.16360417 | N174: 1 | O174: 0.6449318084 | P174: 14.97617959 | Q174: 29.30152913 | R174: =(Q174^2*Rdcr*(1+Ltc*Ta-Ltc*25))/(1-Q174^2*Rdcr*Ltc*ThetaCa) -> 2.345229247 | S174: =7.759*10^-3*Fsw^0.9458*(0.00787*P174)^2.304 -> 5.807238994 | T174: =R174+S174 -> 8.152468241 | U174: 14.68280352 | V174: =RCoutEsr*U174^2 -> 2.155847192 | W174: =V174 -> 2.155847192 | X174: 4.323250658 | Y174: =RCinEsr*X174^2 -> 0.1869049625 | Z174: =Y174 -> 0.1869049625 | AA174: 29.30152913 | AB174: 2.919170671 | AC174: 0 | AD174: 0 | AE174: 7.014440421 | AF174: 0 | AG174: 0 | AH174: 0 | AI174: 0 | AJ174: 23.53136843 | AK174: 1.88266602 | AL174: 6.641977637 | AM174: 0 | AN174: 13.67297138 | AO174: 17.46007758 | AP174: 1.036504651 | AQ174: 0.2898084044 | AR174: 1.673160858 | AS174: 2.919170671 | AT174: 0 | AU174: 1.5552 | AV174: 0.692156625 | AW174: 0 | AX174: 0.1296 | AY174: 1.5552 | AZ174: 0.4142769231 | BA174: =SUM(AX174:AY174) -> 1.6848 | BB174: =SUM(T174,W174,Z174,AE174,AI174,AN174,AR174,AT174,AU174,BA174,AV174,AW174) -> 36.78794968 | BC174: 432 | BD174: =BC174/(BC174+BB174) -> 0.9215253939 | BE174: 761.4085688 | BF174: 83.65804289 | BH174: =BD174*100 -> 92.15253939 | BI174: =T174 -> 8.152468241 | BJ174: =AE174+AI174+AN174+AR174+AU174 -> 23.91577266 | BK174: =AI174+AU174*0.33 -> 0.513216 | BL174: =AV174 -> 0.692156625
G175: 166 | H175: 15.541 | I175: BOOST | J175: 2 | K175: 10 | L175: 28.95566566 | M175: 28.13851762 | N175: 1 | O175: 0.6446152517 | P175: 14.98218492 | Q175: 29.27688615 | R175: 2.34054785 | S175: 5.812605622 | T175: 8.153153471 | U175: 14.67358715 | V175: 2.153141598 | W175: 2.153141598 | X175: 4.324984247 | Y175: 0.1870548874 | Z175: 0.1870548874 | AA175: 29.27688615 | AB175: 2.914262612 | AC175: 0 | AD175: 0 | AE175: 6.986168608 | AF175: 0 | AG175: 0 | AH175: 0 | AI175: 0 | AJ175: 23.50580734 | AK175: 1.878578127 | AL175: 6.63620795 | AM175: 0 | AN175: 13.6392747 | AO175: 17.4531683 | AP175: 1.035684485 | AQ175: 0.2895566566 | AR175: 1.671462749 | AS175: 2.914262612 | AT175: 0 | AU175: 1.5552 | AV175: 0.6906537233 | AW175: 0 | AX175: 0.1296 | AY175: 1.5552 | AZ175: 0.4142769231 | BA175: 1.6848 | BB175: 36.72090974 | BC175: 432 | BD175: 0.9216571973 | BE175: 759.7237352 | BF175: 83.57313744 | BH175: 92.16571973 | BI175: 8.153153471 | BJ175: 23.85210606 | BK175: 0.513216 | BL175: 0.6906537233
G176: 167 | H176: 15.5545 | I176: BOOST | J176: 2 | K176: 10 | L176: 28.93053457 | M176: 28.11347627 | N176: 1 | O176: 0.6442987021 | P176: 14.98817699 | Q176: 29.25228683 | R176: 2.335881615 | S176: 5.817963204 | T176: 8.15384482 | U176: 14.66437905 | V176: 2.150440129 | W176: 2.150440129 | X176: 4.326714011 | Y176: 0.1872045413 | Z176: 0.1872045413 | AA176: 29.25228683 | AB176: 2.909367368 | AC176: 0 | AD176: 0 | AE176: 6.958102834 | AF176: 0 | AG176: 0 | AH176: 0 | AI176: 0 | AJ176: 23.48028973 | AK176: 1.874501619 | AL176: 6.630448279 | AM176: 0 | AN176: 13.60574997 | AO176: 17.44626834 | AP176: 1.034865749 | AQ176: 0.2893053457 | AR176: 1.669768299 | AS176: 2.909367368 | AT176: 0 | AU176: 1.5552 | AV176: 0.689155007 | AW176: 0 | AX176: 0.1296 | AY176: 1.5552 | AZ176: 0.4142769231 | BA176: 1.6848 | BB176: 36.6542656 | BC176: 432 | BD176: 0.9217882599 | BE176: 758.0474983 | BF176: 83.48841495 | BH176: 92.17882599 | BI176: 8.15384482 | BJ176: 23.7888211 | BK176: 0.513216 | BL176: 0.689155007
G177: 168 | H177: 15.568 | I177: BOOST | J177: 2 | K177: 10 | L177: 28.90544707 | M177: 28.08848002 | N177: 1 | O177: 0.6439821595 | P177: 14.99415582 | Q177: 29.22773106 | R177: 2.331230475 | S177: 5.823311725 | T177: 8.1545422 | U177: 14.6551792 | V177: 2.147742773 | W177: 2.147742773 | X177: 4.32843995 | Y177: 0.187353924 | Z177: 0.187353924 | AA177: 29.22773106 | AB177: 2.904484893 | AC177: 0 | AD177: 0 | AE177: 6.930240885 | AF177: 0 | AG177: 0 | AH177: 0 | AI177: 0 | AJ177: 23.45481547 | AK177: 1.870436454 | AL177: 6.624698597 | AM177: 0 | AN177: 13.57239584 | AO177: 17.43937768 | AP177: 1.03404844 | AQ177: 0.2890544707 | AR177: 1.668077497 | AS177: 2.904484893 | AT177: 0 | AU177: 1.5552 | AV177: 0.6876604609 | AW177: 0 | AX177: 0.1296 | AY177: 1.5552 | AZ177: 0.4142769231 | BA177: 1.6848 | BB177: 36.58801358 | BC177: 432 | BD177: 0.9219185884 | BE177: 756.3797919 | BF177: 83.40387485 | BH177: 92.19185884 | BI177: 8.1545422 | BJ177: 23.72591422 | BK177: 0.513216 | BL177: 0.6876604609
G178: 169 | H178: 15.5815 | I178: BOOST | J178: 2 | K178: 10 | L178: 28.88040304 | M178: 28.06352872 | N178: 1 | O178: 0.6436656239 | P178: 15.0001214 | Q178: 29.20321872 | R178: 2.326594361 | S178: 5.828651167 | T178: 8.155245528 | U178: 14.64598757 | V178: 2.145049518 | W178: 2.145049518 | X178: 4.330162065 | Y178: 0.1875030351 | Z178: 0.1875030351 | AA178: 29.20321872 | AB178: 2.899615143 | AC178: 0 | AD178: 0 | AE178: 6.902580578 | AF178: 0 | AG178: 0 | AH178: 0 | AI178: 0 | AJ178: 23.42938446 | AK178: 1.86638259 | AL178: 6.618958878 | AM178: 0 | AN178: 13.53921101 | AO178: 17.4324963 | AP178: 1.033232553 | AQ178: 0.2888040304 | AR178: 1.666390331 | AS178: 2.899615143 | AT178: 0 | AU178: 1.5552 | AV178: 0.68617007 | AW178: 0 | AX178: 0.1296 | AY178: 1.5552 | AZ178: 0.4142769231 | BA178: 1.6848 | BB178: 36.52215007 | BC178: 432 | BD178: 0.922048189 | BE178: 754.7205506 | BF178: 83.31951654 | BH178: 92.2048189 | BI178: 8.155245528 | BJ178: 23.66338192 | BK178: 0.513216 | BL178: 0.68617007
G179: 170 | H179: 15.595 | I179: BOOST | J179: 2 | K179: 10 | L179: 28.85540237 | M179: 28.03862227 | N179: 1 | O179: 0.6433490952 | P179: 15.00607374 | Q179: 29.17874969 | R179: 2.321973204 | S179: 5.833981513 | T179: 8.155954717 | U179: 14.63680414 | V179: 2.142360354 | W179: 2.142360354 | X179: 4.331880356 | Y179: 0.1876518742 | Z179: 0.1876518742 | AA179: 29.17874969 | AB179: 2.894758074 | AC179: 0 | AD179: 0 | AE179: 6.875119762 | AF179: 0 | AG179: 0 | AH179: 0 | AI179: 0 | AJ179: 23.40399657 | AK179: 1.862339988 | AL179: 6.613229096 | AM179: 0 | AN179: 13.50619419 | AO179: 17.42562419 | AP179: 1.032418086 | AQ179: 0.2885540237 | AR179: 1.664706789 | AS179: 2.894758074 | AT179: 0 | AU179: 1.5552 | AV179: 0.684683819 | AW179: 0 | AX179: 0.1296 | AY179: 1.5552 | AZ179: 0.4142769231 | BA179: 1.6848 | BB179: 36.4566715 | BC179: 432 | BD179: 0.9221770684 | BE179: 753.0697094 | BF179: 83.23533946 | BH179: 92.21770684 | BI179: 8.155954717 | BJ179: 23.60122074 | BK179: 0.513216 | BL179: 0.684683819
G180: 171 | H180: 15.6085 | I180: BOOST | J180: 2 | K180: 10 | L180: 28.83044495 | M180: 28.01376053 | N180: 1 | O180: 0.6430325736 | P180: 15.01201283 | Q180: 29.15432387 | R180: 2.317366939 | S180: 5.839302746 | T180: 8.156669685 | U180: 14.62762889 | V180: 2.13967527 | W180: 2.13967527 | X180: 4.333594823 | Y180: 0.1878004409 | Z180: 0.1878004409 | AA180: 29.15432387 | AB180: 2.88991364 | AC180: 0 | AD180: 0 | AE180: 6.847856314 | AF180: 0 | AG180: 0 | AH180: 0 | AI180: 0 | AJ180: 23.37865168 | AK180: 1.858308606 | AL180: 6.607509226 | AM180: 0 | AN180: 13.47334408 | AO180: 17.41876131 | AP180: 1.031605035 | AQ180: 0.2883044495 | AR180: 1.663026861 | AS180: 2.88991364 | AT180: 0 | AU180: 1.5552 | AV180: 0.6832016933 | AW180: 0 | AX180: 0.1296 | AY180: 1.5552 | AZ180: 0.4142769231 | BA180: 1.6848 | BB180: 36.39157435 | BC180: 432 | BD180: 0.9223052328 | BE180: 751.4272041 | BF180: 83.15134303 | BH180: 92.23052328 | BI180: 8.156669685 | BJ180: 23.53942726 | BK180: 0.513216 | BL180: 0.6832016933
G181: 172 | H181: 15.622 | I181: BOOST | J181: 2 | K181: 10 | L181: 28.80553066 | M181: 27.98894339 | N181: 1 | O181: 0.6427160589 | P181: 15.01793867 | Q181: 29.12994113 | R181: 2.312775498 | S181: 5.84461485 | T181: 8.157390347 | U181: 14.6184618 | V181: 2.136994254 | W181: 2.136994254 | X181: 4.335305467 | Y181: 0.1879487349 | Z181: 0.1879487349 | AA181: 29.12994113 | AB181: 2.885081799 | AC181: 0 | AD181: 0 | AE181: 6.820788144 | AF181: 0 | AG181: 0 | AH181: 0 | AI181: 0 | AJ181: 23.3533497 | AK181: 1.854288403 | AL181: 6.601799242 | AM181: 0 | AN181: 13.44065943 | AO181: 17.41190765 | AP181: 1.030793395 | AQ181: 0.2880553066 | AR181: 1.661350533 | AS181: 2.885081799 | AT181: 0 | AU181: 1.5552 | AV181: 0.6817236777 | AW181: 0 | AX181: 0.1296 | AY181: 1.5552 | AZ181: 0.4142769231 | BA181: 1.6848 | BB181: 36.32685512 | BC181: 432 | BD181: 0.9224326884 | BE181: 749.7929713 | BF181: 83.06752667 | BH181: 92.24326884 | BI181: 8.157390347 | BJ181: 23.4779981 | BK181: 0.513216 | BL181: 0.6817236777
G182: 173 | H182: 15.6355 | I182: BOOST | J182: 2 | K182: 10 | L182: 28.7806594 | M182: 27.96417072 | N182: 1 | O182: 0.6423995512 | P182: 15.02385127 | Q182: 29.10560137 | R182: 2.308198813 | S182: 5.849917806 | T182: 8.15811662 | U182: 14.60930284 | V182: 2.134317295 | W182: 2.134317295 | X182: 4.337012287 | Y182: 0.1880967558 | Z182: 0.1880967558 | AA182: 29.10560137 | AB182: 2.880262505 | AC182: 0 | AD182: 0 | AE182: 6.79391319 | AF182: 0 | AG182: 0 | AH182: 0 | AI182: 0 | AJ182: 23.32809049 | AK182: 1.850279341 | AL182: 6.596099118 | AM182: 0 | AN182: 13.40813896 | AO182: 17.4050632 | AP182: 1.029983164 | AQ182: 0.287806594 | AR182: 1.659677796 | AS182: 2.880262505 | AT182: 0 | AU182: 1.5552 | AV182: 0.6802497576 | AW182: 0 | AX182: 0.1296 | AY182: 1.5552 | AZ182: 0.4142769231 | BA182: 1.6848 | BB182: 36.26251038 | BC182: 432 | BD182: 0.9225594414 | BE182: 748.1669481 | BF182: 82.98388981 | BH182: 92.25594414 | BI182: 8.15811662 | BJ182: 23.41692995 | BK182: 0.513216 | BL182: 0.6802497576
G183: 174 | H183: 15.649 | I183: BOOST | J183: 2 | K183: 10 | L183: 28.75583104 | M183: 27.93944241 | N183: 1 | O183: 0.6420830504 | P183: 15.02975063 | Q183: 29.08130446 | R183: 2.30363682 | S183: 5.855211599 | T183: 8.158848419 | U183: 14.600152 | V183: 2.131644383 | W183: 2.131644383 | X183: 4.338715286 | Y183: 0.1882445033 | Z183: 0.1882445033 | AA183: 29.08130446 | AB183: 2.875455716 | AC183: 0 | AD183: 0 | AE183: 6.767229417 | AF183: 0 | AG183: 0 | AH183: 0 | AI183: 0 | AJ183: 23.30287395 | AK183: 1.846281377 | AL183: 6.590408828 | AM183: 0 | AN183: 13.37578144 | AO183: 17.39822792 | AP183: 1.029174339 | AQ183: 0.2875583104 | AR183: 1.658008638 | AS183: 2.875455716 | AT183: 0 | AU183: 1.5552 | AV183: 0.6787799181 | AW183: 0 | AX183: 0.1296 | AY183: 1.5552 | AZ183: 0.4142769231 | BA183: 1.6848 | BB183: 36.19853672 | BC183: 432 | BD183: 0.922685498 | BE183: 746.5490721 | BF183: 82.90043188 | BH183: 92.2685498 | BI183: 8.158848419 | BJ183: 23.3562195 | BK183: 0.513216 | BL183: 0.6787799181
G184: 175 | H184: 15.6625 | I184: BOOST | J184: 2 | K184: 10 | L184: 28.73104549 | M184: 27.91475832 | N184: 1 | O184: 0.6417665565 | P184: 15.03563675 | Q184: 29.05705031 | R184: 2.299089452 | S184: 5.860496212 | T184: 8.159585664 | U184: 14.59100924 | V184: 2.128975506 | W184: 2.128975506 | X184: 4.340414462 | Y184: 0.188391977 | Z184: 0.188391977 | AA184: 29.05705031 | AB184: 2.870661387 | AC184: 0 | AD184: 0 | AE184: 6.740734822 | AF184: 0 | AG184: 0 | AH184: 0 | AI184: 0 | AJ184: 23.27769996 | AK184: 1.842294473 | AL184: 6.584728348 | AM184: 0 | AN184: 13.34358564 | AO184: 17.39140181 | AP184: 1.028366914 | AQ184: 0.2873104549 | AR184: 1.656343046 | AS184: 2.870661387 | AT184: 0 | AU184: 1.5552 | AV184: 0.6773141446 | AW184: 0 | AX184: 0.1296 | AY184: 1.5552 | AZ184: 0.4142769231 | BA184: 1.6848 | BB184: 36.1349308 | BC184: 432 | BD184: 0.9228108641 | BE184: 744.9392818 | BF184: 82.81715231 | BH184: 92.28108641 | BI184: 8.159585664 | BJ184: 23.2958635 | BK184: 0.513216 | BL184: 0.6773141446
G185: 176 | H185: 15.676 | I185: BOOST | J185: 2 | K185: 10 | L185: 28.70630263 | M185: 27.89011836 | N185: 1 | O185: 0.6414500694 | P185: 15.04150963 | Q185: 29.03283879 | R185: 2.294556644 | S185: 5.865771627 | T185: 8.160328271 | U185: 14.58187455 | V185: 2.126310654 | W185: 2.126310654 | X185: 4.342109816 | Y185: 0.1885391765 | Z185: 0.1885391765 | AA185: 29.03283879 | AB185: 2.865879476 | AC185: 0 | AD185: 0 | AE185: 6.714427428 | AF185: 0 | AG185: 0 | AH185: 0 | AI185: 0 | AJ185: 23.25256842 | AK185: 1.838318589 | AL185: 6.579057652 | AM185: 0 | AN185: 13.31155032 | AO185: 17.38458485 | AP185: 1.027560887 | AQ185: 0.2870630263 | AR185: 1.654681011 | AS185: 2.865879476 | AT185: 0 | AU185: 1.5552 | AV185: 0.6758524224 | AW185: 0 | AX185: 0.1296 | AY185: 1.5552 | AZ185: 0.4142769231 | BA185: 1.6848 | BB185: 36.07168928 | BC185: 432 | BD185: 0.9229355458 | BE185: 743.3375161 | BF185: 82.73405054 | BH185: 92.29355458 | BI185: 8.160328271 | BJ185: 23.23585876 | BK185: 0.513216 | BL185: 0.6758524224
G186: 177 | H186: 15.6895 | I186: BOOST | J186: 2 | K186: 10 | L186: 28.68160235 | M186: 27.86552238 | N186: 1 | O186: 0.6411335893 | P186: 15.04736927 | Q186: 29.00866979 | R186: 2.29003833 | S186: 5.871037828 | T186: 8.161076158 | U186: 14.57274791 | V186: 2.123649815 | W186: 2.123649815 | X186: 4.343801348 | Y186: 0.1886861015 | Z186: 0.1886861015 | AA186: 29.00866979 | AB186: 2.861109939 | AC186: 0 | AD186: 0 | AE186: 6.688305284 | AF186: 0 | AG186: 0 | AH186: 0 | AI186: 0 | AJ186: 23.22747919 | AK186: 1.834353685 | AL186: 6.573396714 | AM186: 0 | AN186: 13.27967429 | AO186: 17.37777701 | AP186: 1.026756255 | AQ186: 0.2868160235 | AR186: 1.65302252 | AS186: 2.861109939 | AT186: 0 | AU186: 1.5552 | AV186: 0.674394737 | AW186: 0 | AX186: 0.1296 | AY186: 1.5552 | AZ186: 0.4142769231 | BA186: 1.6848 | BB186: 36.00880891 | BC186: 432 | BD186: 0.9230595488 | BE186: 741.7437146 | BF186: 82.65112601 | BH186: 92.30595488 | BI186: 8.161076158 | BJ186: 23.1762021 | BK186: 0.513216 | BL186: 0.674394737
G187: 178 | H187: 15.703 | I187: BOOST | J187: 2 | K187: 10 | L187: 28.65694453 | M187: 27.84097028 | N187: 1 | O187: 0.640817116 | P187: 15.05321567 | Q187: 28.98454321 | R187: 2.285534447 | S187: 5.876294798 | T187: 8.161829245 | U187: 14.56362928 | V187: 2.120992979 | W187: 2.120992979 | X187: 4.345489059 | Y187: 0.1888327516 | Z187: 0.1888327516 | AA187: 28.98454321 | AB187: 2.856352733 | AC187: 0 | AD187: 0 | AE187: 6.662366468 | AF187: 0 | AG187: 0 | AH187: 0 | AI187: 0 | AJ187: 23.20243218 | AK187: 1.830399721 | AL187: 6.567745511 | AM187: 0 | AN187: 13.24795635 | AO187: 17.37097827 | AP187: 1.025953013 | AQ187: 0.2865694453 | AR187: 1.651367563 | AS187: 2.856352733 | AT187: 0 | AU187: 1.5552 | AV187: 0.6729410738 | AW187: 0 | AX187: 0.1296 | AY187: 1.5552 | AZ187: 0.4142769231 | BA187: 1.6848 | BB187: 35.94628643 | BC187: 432 | BD187: 0.9231828792 | BE187: 740.1578177 | BF187: 82.56837816 | BH187: 92.31828792 | BI187: 8.161829245 | BJ187: 23.11689038 | BK187: 0.513216 | BL187: 0.6729410738
G188: 179 | H188: 15.7165 | I188: BOOST | J188: 2 | K188: 10 | L188: 28.63232908 | M188: 27.81646194 | N188: 1 | O188: 0.6405006495 | P188: 15.05904884 | Q188: 28.96045893 | R188: 2.281044929 | S188: 5.881542521 | T188: 8.16258745 | U188: 14.55451866 | V188: 2.118340135 | W188: 2.118340135 | X188: 4.347172949 | Y188: 0.1889791265 | Z188: 0.1889791265 | AA188: 28.96045893 | AB188: 2.851607816 | AC188: 0 | AD188: 0 | AE188: 6.636609083 | AF188: 0 | AG188: 0 | AH188: 0 | AI188: 0 | AJ188: 23.17742727 | AK188: 1.826456658 | AL188: 6.562104015 | AM188: 0 | AN188: 13.21639532 | AO188: 17.36418862 | AP188: 1.025151158 | AQ188: 0.2863232908 | AR188: 1.649716129 | AS188: 2.851607816 | AT188: 0 | AU188: 1.5552 | AV188: 0.6714914185 | AW188: 0 | AX188: 0.1296 | AY188: 1.5552 | AZ188: 0.4142769231 | BA188: 1.6848 | BB188: 35.88411866 | BC188: 432 | BD188: 0.9233055425 | BE188: 738.579766 | BF188: 82.48580643 | BH188: 92.33055425 | BI188: 8.16258745 | BJ188: 23.05792053 | BK188: 0.513216 | BL188: 0.6714914185
G189: 180 | H189: 15.73 | I189: BOOST | J189: 2 | K189: 10 | L189: 28.60775588 | M189: 27.79199723 | N189: 1 | O189: 0.6401841898 | P189: 15.06486877 | Q189: 28.93641683 | R189: 2.276569713 | S189: 5.886780979 | T189: 8.163350692 | U189: 14.54541602 | V189: 2.115691272 | W189: 2.115691272 | X189: 4.348853019 | Y189: 0.1891252258 | Z189: 0.1891252258 | AA189: 28.93641683 | AB189: 2.846875145 | AC189: 0 | AD189: 0 | AE189: 6.611031261 | AF189: 0 | AG189: 0 | AH189: 0 | AI189: 0 | AJ189: 23.15246435 | AK189: 1.822524458 | AL189: 6.556472203 | AM189: 0 | AN189: 13.18499002 | AO189: 17.35740804 | AP189: 1.024350687 | AQ189: 0.2860775588 | AR189: 1.648068205 | AS189: 2.846875145 | AT189: 0 | AU189: 1.5552 | AV189: 0.6700457567 | AW189: 0 | AX189: 0.1296 | AY189: 1.5552 | AZ189: 0.4142769231 | BA189: 1.6848 | BB189: 35.82230243 | BC189: 432 | BD189: 0.9234275445 | BE189: 737.009501 | BF189: 82.40341026 | BH189: 92.34275445 | BI189: 8.163350692 | BJ189: 22.99928948 | BK189: 0.513216 | BL189: 0.6700457567
G190: 181 | H190: 15.7435 | I190: BOOST | J190: 2 | K190: 10 | L190: 28.58322482 | M190: 27.76757604 | N190: 1 | O190: 0.6398677369 | P190: 15.07067547 | Q190: 28.91241682 | R190: 2.272108735 | S190: 5.892010157 | T190: 8.164118892 | U190: 14.53632134 | V190: 2.11304638 | W190: 2.11304638 | X190: 4.350529268 | Y190: 0.1892710491 | Z190: 0.1892710491 | AA190: 28.91241682 | AB190: 2.842154677 | AC190: 0 | AD190: 0 | AE190: 6.585631154 | AF190: 0 | AG190: 0 | AH190: 0 | AI190: 0 | AJ190: 23.1275433 | AK190: 1.818603081 | AL190: 6.550850049 | AM190: 0 | AN190: 13.15373929 | AO190: 17.3506365 | AP190: 1.023551596 | AQ190: 0.2858322482 | AR190: 1.646423782 | AS190: 2.842154677 | AT190: 0 | AU190: 1.5552 | AV190: 0.668604074 | AW190: 0 | AX190: 0.1296 | AY190: 1.5552 | AZ190: 0.4142769231 | BA190: 1.6848 | BB190: 35.76083462 | BC190: 432 | BD190: 0.9235488909 | BE190: 735.4469646 | BF190: 82.3211891 | BH190: 92.35488909 | BI190: 8.164118892 | BJ190: 22.94099423 | BK190: 0.513216 | BL190: 0.668604074
G191: 182 | H191: 15.757 | I191: BOOST | J191: 2 | K191: 10 | L191: 28.5587358 | M191: 27.74319826 | N191: 1 | O191: 0.6395512908 | P191: 15.07646893 | Q191: 28.88845877 | R191: 2.267661932 | S191: 5.897230037 | T191: 8.164891969 | U191: 14.52723459 | V191: 2.110405448 | W191: 2.110405448 | X191: 4.352201698 | Y191: 0.1894165962 | Z191: 0.1894165962 | AA191: 28.88845877 | AB191: 2.83744637 | AC191: 0 | AD191: 0 | AE191: 6.560406946 | AF191: 0 | AG191: 0 | AH191: 0 | AI191: 0 | AJ191: 23.10266402 | AK191: 1.814692489 | AL191: 6.545237529 | AM191: 0 | AN191: 13.12264199 | AO191: 17.34387399 | AP191: 1.022753881 | AQ191: 0.285587358 | AR191: 1.644782848 | AS191: 2.83744637 | AT191: 0 | AU191: 1.5552 | AV191: 0.6671663562 | AW191: 0 | AX191: 0.1296 | AY191: 1.5552 | AZ191: 0.4142769231 | BA191: 1.6848 | BB191: 35.69971215 | BC191: 432 | BD191: 0.9236695871 | BE191: 733.8920994 | BF191: 82.23914239 | BH191: 92.36695871 | BI191: 8.164891969 | BJ191: 22.88303178 | BK191: 0.513216 | BL191: 0.6671663562
G192: 183 | H192: 15.7705 | I192: BOOST | J192: 2 | K192: 10 | L192: 28.5342887 | M192: 27.71886376 | N192: 1 | O192: 0.6392348515 | P192: 15.08224916 | Q192: 28.86454258 | R192: 2.263229242 | S192: 5.902440603 | T192: 8.165669844 | U192: 14.51815575 | V192: 2.107768465 | W192: 2.107768465 | X192: 4.353870308 | Y192: 0.1895618666 | Z192: 0.1895618666 | AA192: 28.86454258 | AB192: 2.832750183 | AC192: 0 | AD192: 0 | AE192: 6.535356839 | AF192: 0 | AG192: 0 | AH192: 0 | AI192: 0 | AJ192: 23.0778264 | AK192: 1.810792642 | AL192: 6.539634619 | AM192: 0 | AN192: 13.09169697 | AO192: 17.3371205 | AP192: 1.02195754 | AQ192: 0.285342887 | AR192: 1.643145392 | AS192: 2.832750183 | AT192: 0 | AU192: 1.5552 | AV192: 0.6657325891 | AW192: 0 | AX192: 0.1296 | AY192: 1.5552 | AZ192: 0.4142769231 | BA192: 1.6848 | BB192: 35.63893197 | BC192: 432 | BD192: 0.9237896387 | BE192: 732.3448486 | BF192: 82.1572696 | BH192: 92.37896387 | BI192: 8.165669844 | BJ192: 22.8253992 | BK192: 0.513216 | BL192: 0.6657325891
G193: 184 | H193: 15.784 | I193: BOOST | J193: 2 | K193: 10 | L193: 28.50988343 | M193: 27.69457243 | N193: 1 | O193: 0.6389184189 | P193: 15.08801617 | Q193: 28.84066814 | R193: 2.2588106 | S193: 5.907641838 | T193: 8.166452438 | U193: 14.50908481 | V193: 2.10513542 | W193: 2.10513542 | X193: 4.355535098 | Y193: 0.1897068599 | Z193: 0.1897068599 | AA193: 28.84066814 | AB193: 2.828066073 | AC193: 0 | AD193: 0 | AE193: 6.510479064 | AF193: 0 | AG193: 0 | AH193: 0 | AI193: 0 | AJ193: 23.05303032 | AK193: 1.806903504 | AL193: 6.534041292 | AM193: 0 | AN193: 13.06090312 | AO193: 17.33037599 | AP193: 1.021162569 | AQ193: 0.2850988343 | AR193: 1.641511403 | AS193: 2.828066073 | AT193: 0 | AU193: 1.5552 | AV193: 0.6643027587 | AW193: 0 | AX193: 0.1296 | AY193: 1.5552 | AZ193: 0.4142769231 | BA193: 1.6848 | BB193: 35.57849106 | BC193: 432 | BD193: 0.9239090511 | BE193: 730.8051558 | BF193: 82.07557017 | BH193: 92.39090511 | BI193: 8.166452438 | BJ193: 22.76809358 | BK193: 0.513216 | BL193: 0.6643027587
G194: 185 | H194: 15.7975 | I194: BOOST | J194: 2 | K194: 10 | L194: 28.48551986 | M194: 27.67032415 | N194: 1 | O194: 0.6386019931 | P194: 15.09376994 | Q194: 28.81683535 | R194: 2.254405947 | S194: 5.912833726 | T194: 8.167239673 | U194: 14.50002174 | V194: 2.102506304 | W194: 2.102506304 | X194: 4.35719607 | Y194: 0.1898515759 | Z194: 0.1898515759 | AA194: 28.81683535 | AB194: 2.823393998 | AC194: 0 | AD194: 0 | AE194: 6.485771873 | AF194: 0 | AG194: 0 | AH194: 0 | AI194: 0 | AJ194: 23.02827568 | AK194: 1.803025034 | AL194: 6.528457525 | AM194: 0 | AN194: 13.0302593 | AO194: 17.32364046 | AP194: 1.020368964 | AQ194: 0.2848551986 | AR194: 1.639880871 | AS194: 2.823393998 | AT194: 0 | AU194: 1.5552 | AV194: 0.6628768508 | AW194: 0 | AX194: 0.1296 | AY194: 1.5552 | AZ194: 0.4142769231 | BA194: 1.6848 | BB194: 35.51838645 | BC194: 432 | BD194: 0.9240278297 | BE194: 729.2729652 | BF194: 81.99404356 | BH194: 92.40278297 | BI194: 8.167239673 | BJ194: 22.71111205 | BK194: 0.513216 | BL194: 0.6628768508
G195: 186 | H195: 15.811 | I195: BOOST | J195: 2 | K195: 10 | L195: 28.4611979 | M195: 27.64611881 | N195: 1 | O195: 0.6382855739 | P195: 15.09951049 | Q195: 28.79304408 | R195: 2.250015219 | S195: 5.91801625 | T195: 8.168031469 | U195: 14.49096651 | V195: 2.099881105 | W195: 2.099881105 | X195: 4.358853223 | Y195: 0.1899960142 | Z195: 0.1899960142 | AA195: 28.79304408 | AB195: 2.818733917 | AC195: 0 | AD195: 0 | AE195: 6.461233544 | AF195: 0 | AG195: 0 | AH195: 0 | AI195: 0 | AJ195: 23.00356236 | AK195: 1.799157196 | AL195: 6.522883293 | AM195: 0 | AN195: 12.99976443 | AO195: 17.31691388 | AP195: 1.019576721 | AQ195: 0.284611979 | AR195: 1.638253784 | AS195: 2.818733917 | AT195: 0 | AU195: 1.5552 | AV195: 0.6614548514 | AW195: 0 | AX195: 0.1296 | AY195: 1.5552 | AZ195: 0.4142769231 | BA195: 1.6848 | BB195: 35.4586152 | BC195: 432 | BD195: 0.9241459799 | BE195: 727.7482217 | BF195: 81.91268922 | BH195: 92.41459799 | BI195: 8.168031469 | BJ195: 22.65445176 | BK195: 0.513216 | BL195: 0.6614548514
G196: 187 | H196: 15.8245 | I196: BOOST | J196: 2 | K196: 10 | L196: 28.43691744 | M196: 27.6219563 | N196: 1 | O196: 0.6379691615 | P196: 15.10523781 | Q196: 28.76929424 | R196: 2.245638355 | S196: 5.923189395 | T196: 8.16882775 | U196: 14.48191912 | V196: 2.097259814 | W196: 2.097259814 | X196: 4.360506558 | Y196: 0.1901401744 | Z196: 0.1901401744 | AA196: 28.76929424 | AB196: 2.814085789 | AC196: 0 | AD196: 0 | AE196: 6.436862376 | AF196: 0 | AG196: 0 | AH196: 0 | AI196: 0 | AJ196: 22.97889025 | AK196: 1.795299951 | AL196: 6.517318573 | AM196: 0 | AN196: 12.96941741 | AO196: 17.31019623 | AP196: 1.018785838 | AQ196: 0.2843691744 | AR196: 1.636630132 | AS196: 2.814085789 | AT196: 0 | AU196: 1.5552 | AV196: 0.6600367467 | AW196: 0 | AX196: 0.1296 | AY196: 1.5552 | AZ196: 0.4142769231 | BA196: 1.6848 | BB196: 35.39917441 | BC196: 432 | BD196: 0.9242635068 | BE196: 726.2308706 | BF196: 81.83150662 | BH196: 92.42635068 | BI196: 8.16882775 | BJ196: 22.59810992 | BK196: 0.513216 | BL196: 0.6600367467
G197: 188 | H197: 15.838 | I197: BOOST | J197: 2 | K197: 10 | L197: 28.41267837 | M197: 27.59783649 | N197: 1 | O197: 0.6376527557 | P197: 15.1109519 | Q197: 28.74558571 | R197: 2.241275294 | S197: 5.928353143 | T197: 8.169628437 | U197: 14.47287953 | V197: 2.094642419 | W197: 2.094642419 | X197: 4.362156075 | Y197: 0.1902840562 | Z197: 0.1902840562 | AA197: 28.74558571 | AB197: 2.809449572 | AC197: 0 | AD197: 0 | AE197: 6.412656692 | AF197: 0 | AG197: 0 | AH197: 0 | AI197: 0 | AJ197: 22.95425926 | AK197: 1.791453262 | AL197: 6.511763338 | AM197: 0 | AN197: 12.93921715 | AO197: 17.3034875 | AP197: 1.017996311 | AQ197: 0.2841267837 | AR197: 1.635009904 | AS197: 2.809449572 | AT197: 0 | AU197: 1.5552 | AV197: 0.6586225226 | AW197: 0 | AX197: 0.1296 | AY197: 1.5552 | AZ197: 0.4142769231 | BA197: 1.6848 | BB197: 35.34006119 | BC197: 432 | BD197: 0.9243804156 | BE197: 724.7208577 | BF197: 81.75049521 | BH197: 92.43804156 | BI197: 8.169628437 | BJ197: 22.54208375 | BK197: 0.513216 | BL197: 0.6586225226
G198: 189 | H198: 15.8515 | I198: BOOST | J198: 2 | K198: 10 | L198: 28.38848059 | M198: 27.57375927 | N198: 1 | O198: 0.6373363565 | P198: 15.11665277 | Q198: 28.72191839 | R198: 2.236925976 | S198: 5.933507478 | T198: 8.170433454 | U198: 14.46384773 | V198: 2.092028911 | W198: 2.092028911 | X198: 4.363801774 | Y198: 0.1904276592 | Z198: 0.1904276592 | AA198: 28.72191839 | AB198: 2.804825226 | AC198: 0 | AD198: 0 | AE198: 6.388614836 | AF198: 0 | AG198: 0 | AH198: 0 | AI198: 0 | AJ198: 22.92966926 | AK198: 1.78761709 | AL198: 6.506217566 | AM198: 0 | AN198: 12.90916259 | AO198: 17.29678766 | AP198: 1.017208136 | AQ198: 0.2838848059 | AR198: 1.633393089 | AS198: 2.804825226 | AT198: 0 | AU198: 1.5552 | AV198: 0.6572121655 | AW198: 0 | AX198: 0.1296 | AY198: 1.5552 | AZ198: 0.4142769231 | BA198: 1.6848 | BB198: 35.28127271 | BC198: 432 | BD198: 0.9244967116 | BE198: 723.2181295 | BF198: 81.66965447 | BH198: 92.44967116 | BI198: 8.170433454 | BJ198: 22.48637052 | BK198: 0.513216 | BL198: 0.6572121655
G199: 190 | H199: 15.865 | I199: BOOST | J199: 2 | K199: 10 | L199: 28.36432398 | M199: 27.54972453 | N199: 1 | O199: 0.6370199641 | P199: 15.12234042 | Q199: 28.69829217 | R199: 2.23259034 | S199: 5.938652384 | T199: 8.171242723 | U199: 14.45482369 | V199: 2.089419279 | W199: 2.089419279 | X199: 4.365443656 | Y199: 0.1905709832 | Z199: 0.1905709832 | AA199: 28.69829217 | AB199: 2.800212709 | AC199: 0 | AD199: 0 | AE199: 6.364735176 | AF199: 0 | AG199: 0 | AH199: 0 | AI199: 0 | AJ199: 22.90512015 | AK199: 1.7837914 | AL199: 6.500681232 | AM199: 0 | AN199: 12.87925266 | AO199: 17.29009671 | AP199: 1.01642131 | AQ199: 0.2836432398 | AR199: 1.631779677 | AS199: 2.800212709 | AT199: 0 | AU199: 1.5552 | AV199: 0.6558056616 | AW199: 0 | AX199: 0.1296 | AY199: 1.5552 | AZ199: 0.4142769231 | BA199: 1.6848 | BB199: 35.22280616 | BC199: 432 | BD199: 0.9246123997 | BE199: 721.7226328 | BF199: 81.58898386 | BH199: 92.46123997 | BI199: 8.171242723 | BJ199: 22.43096751 | BK199: 0.513216 | BL199: 0.6558056616
G200: 191 | H200: 15.8785 | I200: BOOST | J200: 2 | K200: 10 | L200: 28.34020846 | M200: 27.52573216 | N200: 1 | O200: 0.6367035782 | P200: 15.12801484 | Q200: 28.67470694 | R200: 2.228268325 | S200: 5.943787844 | T200: 8.17205617 | U200: 14.44580739 | V200: 2.086813512 | W200: 2.086813512 | X200: 4.367081721 | Y200: 0.1907140276 | Z200: 0.1907140276 | AA200: 28.67470694 | AB200: 2.795611982 | AC200: 0 | AD200: 0 | AE200: 6.341016098 | AF200: 0 | AG200: 0 | AH200: 0 | AI200: 0 | AJ200: 22.88061183 | AK200: 1.779976152 | AL200: 6.495154313 | AM200: 0 | AN200: 12.8494863 | AO200: 17.28341461 | AP200: 1.01563583 | AQ200: 0.2834020846 | AR200: 1.630169657 | AS200: 2.795611982 | AT200: 0 | AU200: 1.5552 | AV200: 0.6544029971 | AW200: 0 | AX200: 0.1296 | AY200: 1.5552 | AZ200: 0.4142769231 | BA200: 1.6848 | BB200: 35.16465876 | BC200: 432 | BD200: 0.924727485 | BE200: 720.2343151 | BF200: 81.50848284 | BH200: 92.4727485 | BI200: 8.17205617 | BJ200: 22.37587206 | BK200: 0.513216 | BL200: 0.6544029971
G201: 192 | H201: =VIN_min+(VIN_max-VIN_min)*(G201/200) -> 15.892 | I201: =IF(H201>VIN_BB_to_buck,"BUCK",IF(H201<VIN_boost_to_BB,"BOOST","BUCK-BST")) -> BOOST | J201: 2 | K201: =Iout -> 10 | L201: =Vout*K201/(H201*Efficiency) -> 28.3161339 | M201: =Iout/(1-O201) -> 27.50178204 | N201: =CHOOSE(J201,(Vout+(Rdson2+Rs+Rdcr)*K201)/(H201+(Rs+Rdson2-Rdson1)*K201),1,IF(H201<Vout,D_max_buck_BB,Vout/H201*(1-D_min_boost_exitBB_to_buck))) -> 1 | O201: 0.636387199 | P201: =MAX(0,CHOOSE(J201,(H201-(Rdson1+Rdcr)*K201-Vout)*N201/(Fsw*Lf),(H201-(Rdson4+Rdcr+Rs)*L201)*O201/(Fsw*Lf),IF(H201<Vout,(H201-(Rdson4+Rdcr+Rs)*L201)*O201/(0.5*Fsw*Lf),(H201-(Rdson1+Rdcr)*K201-Vout)*N201/(0.5*Fsw*Lf)))) -> 15.13367605 | Q201: =CHOOSE(J201,SQRT(K201^2+(P201^2)/12),SQRT(L201^2+(P201^2)/12),SQRT(M201^2+(P201^2)/12)) -> 28.6511626 | R201: 2.223959873 | S201: 5.948913843 | T201: 8.172873716 | U201: =IF(H201>Vout,P201/SQRT(12),SQRT(O201/(1-O201))*SQRT(K201^2+(P201^2)/12)) -> 14.43679882 | V201: 2.084211601 | W201: 2.084211601 | X201: =IF(H201>Vout,SQRT(N201*(1-N201))*SQRT(K201^2+(P201^2)/12),P201/SQRT(12)) -> 4.36871597 | Y201: 0.1908567922 | Z201: 0.1908567922 | AA201: =CHOOSE(J201,SQRT(N201)*SQRT(K201^2+(P201^2)/12),SQRT(L201^2+(P201^2)/12),SQRT(N201)*SQRT(M201^2+(P201^2)/12)) -> 28.6511626 | AB201: =Rdson1*AA201^2 -> 2.791023003 | AC201: =CHOOSE(J201,(H201*K201/2)*(Fsw)*(Tr_buck+Tf_buck),0,(H201*M201/2)*(Fsw/2)*(Tr_buck+Tf_buck)) -> 0 | AD201: =IF(H201>Vout,IF(K201>P201/2,0,ABS(K201-P201/2)*Vsd_Q1*Deadtime*Fsw),0) -> 0 | AE201: =(AD201+AC201+AB201*(1+RdsonTopTc*Ta-RdsonTopTc*25))/(1-AB201*RdsonTopTc*ThetaJA_Q1) -> 6.317456013 | AF201: =CHOOSE(J201,SQRT((1-N201))*SQRT(K201^2+(P201^2)/12),0,SQRT((1-N201))*SQRT(M201^2+(P201^2)/12)) -> 0 | AG201: =Rdson2*AF201^2 -> 0 | AH201: =CHOOSE(J201,IF(K201<P201/2,Deadtime*Fsw*IF(VfdSky_Q2>0,0,Vsd_Q2)*(K201+P201/2),2*Deadtime*Fsw*IF(VfdSky_Q2>0,0,Vsd_Q2)*K201),0,IF(K201<P201/2,Deadtime*Fsw/2*IF(VfdSky_Q2>0,0,Vsd_Q2)*(K201+P201/2),2*Deadtime*Fsw/2*IF(VfdSky_Q2>0,0,Vsd_Q2)*K201)) -> 0 | AI201: =(AH201+AG201*(1+RdsonBotTc*Ta-RdsonBotTc*25))/(1-AG201*RdsonBotTc*ThetaJA_Q2) -> 0 | AJ201: =CHOOSE(J201,0,SQRT(O201)*SQRT(L201^2+(P201^2)/12),SQRT(O201)*SQRT(M201^2+(P201^2)/12)) -> 22.85614418 | AK201: =Rdson4*AJ201^2 -> 1.776171311 | AL201: =CHOOSE(J201,0,(Vout*L201/2)*(Fsw)*(Tr_boost+Tf_boost),(Vout*Iout/2)*(Fsw/2)*(Tr_boost+Tf_boost)) -> 6.489636783 | AM201: =IF(H201>Vout,0,IF(L201>P201/2,0,ABS(L201-P201/2)*Vsd_Q4*Deadtime*Fsw)) -> 0 | AN201: =(AM201+AL201+AK201*(1+RdsonTopTc*Ta-RdsonTopTc*25))/(1-AK201*RdsonTopTc*ThetaJA_Q4) -> 12.81986249 | AO201: =CHOOSE(J201,SQRT(Iout^2+(P201^2)/12),SQRT(1-O201)*SQRT(L201^2+(P201^2)/12),SQRT(1-O201)*SQRT(M201^2+(P201^2)/12)) -> 17.27674135 | AP201: =Rdson3*AO201^2 -> 1.014851692 | AQ201: =CHOOSE(J201,0,IF(L201<P201/2,Deadtime*Fsw*IF(VfdSky_Q3>0,0,Vsd_Q3)*(L201+P201/2),2*Deadtime*Fsw*IF(VfdSky_Q3>0,0,Vsd_Q3)*L201),IF(L201<P201/2,Deadtime*Fsw/2*IF(VfdSky_Q3>0,0,Vsd_Q3)*(L201+P201/2),2*Deadtime*Fsw/2*IF(VfdSky_Q3>0,0,Vsd_Q3)*L201)) -> 0.283161339 | AR201: =(AQ201+AP201*(1+RdsonBotTc*Ta-RdsonBotTc*25))/(1-AP201*RdsonBotTc*ThetaJA_Q3) -> 1.628563018 | AS201: =CHOOSE(J201,Rdson3*Q201^2,Rdson1*Q201^2,0) -> 2.791023003 | AT201: =CHOOSE(J201,2*Deadtime*Fsw*IF(VfdSky_Q2>0,VfdSky_Q2,0)*K201,2*Deadtime*Fsw*IF(VfdSky_Q3>0,VfdSky_Q3,0)*L201,2*Deadtime*Fsw/2*IF(VfdSky_Q2>0,VfdSky_Q2,0)*K201+2*Deadtime*Fsw/2*IF(VfdSky_Q3>0,VfdSky_Q3,0)*L201) -> 0 | AU201: =CHOOSE(J201,IF(QrrSky_Q2>0,QrrSky_Q2,Qrr_Q2)*Fsw*(H201-K201*Rdson1),IF(QrrSky_Q3>0,QrrSky_Q3,Qrr_Q3)*Fsw*Vout,IF(QrrSky_Q2>0,QrrSky_Q2,Qrr_Q2)*Fsw/2*(H201-K201*Rdson1)+IF(QrrSky_Q3>0,QrrSky_Q3,Qrr_Q3)*Fsw/2*Vout) -> 1.5552 | AV201: =CHOOSE(J201,Rs*AF201^2,Rs*AJ201^2,Rs*(AF201^2+AJ201^2)) -> 0.6530041585 | AW201: =Rshunt_std/1000*Iout^2 -> 0 | AX201: =IF(Vout>8,Iq*Vout,Iq*H201) -> 0.1296 | AY201: =CHOOSE(J201,(Qg_Q1+Qg_Q2)*Fsw,(Qg_Q3+Qg_Q4)*Fsw,(Qg_Q1+Qg_Q2+Qg_Q3+Qg_Q4)*Fsw/2)*IF(Vout>8,Vout,H201) -> 1.5552 | AZ201: =(Vin-Vdd)*Fsw*(Qg_Q1+Qg_Q2)+(RdsonDRT+RdsonDRT2)*Fsw*Qg_Q1*Vdd/(RdsonDRT+2*Rgate1+RdsonDRT2)+(RdsonDRB+RdsonDRB2)*Fsw*Qg_Q2*Vdd/(RdsonDRB+2*Rgate2+RdsonDRB2) -> 0.4142769231 | BA201: 1.6848 | BB201: 35.10682778 | BC201: =Vout*K201 -> 432 | BD201: 0.9248419726 | BE201: =IF(H201>Vout,ThetaJA_Q1*(AE201+AU201),ThetaJA_Q4*(AN201+AU201)) -> 718.7531243 | BF201: =IF(H201>Vout,AI201*ThetaJA_Q2,ThetaJA_Q3*AR201) -> 81.42815088 | BH201: 92.48419726 | BI201: 8.172873716 | BJ201: 22.32108152 | BK201: 0.513216 | BL201: 0.6530041585
... 8 more rows

Sheet Efficiency vs Load Calculations (hidden)
A1: BUCK-BOOST CONTROLLER POWER TOOL
H2: =BD19 -> 0.8089212565 | I2: 10% load
H3: =BD59 -> 0.927469932 | I3: 50% load
H4: =BD109 -> 0.903395904 | I4: 100% load
A6: Enter the values of your design and MOSFET datasheet specifications below. Note that thermal resistance (θJA) will change when components are placed on the PCB | BV6: 80 | BW6: 100 | BX6: 120 | BY6: 140 | BZ6: 160 | CA6: 180 | CB6: 20 | CC6: 30 | CD6: 40 | CE6: 50
G7: Operating Point Condtions | Q7: Filter Inductor | U7: Cout | X7: Cin | AA7: High-side BUCK "Control" MOSFET Losses | AF7: Low-side BUCK "Sync" MOSFET Losses | AJ7: Low-side BOOST "Control" MOSFET Losses | AO7: High-side BOOST "Sync" MOSFET Losses | AS7: Pass FET | AT7: External Diode | AU7: Diode/FET | AV7: Sense Rs | AW7: Output Rs | AX7: Controller IC Losses | BB7: RESULTS | BH7: Consolidated Buck/Boost Efficiency & Losses
A8: Input Parameters | G8: Step | H8: Vin | I8: Mode | J8: Mode Digit | K8: Iout | L8: Iin | M8: Avg IL | N8: Duty Cycle BUCK Leg | O8: Duty Cycle BOOST Leg | P8: Ripple Current pk-pk | Q8: Irms Lf | R8: DCR Loss | S8: Core Loss | T8: Total Inductor Loss | U8: Irms Cout | V8: Cout ESR Loss | W8: Total Cout Loss | X8: Irms Cin | Y8: Cin ESR Loss | Z8: Total Cin Loss | AA8: Irms | AB8: RDS(on) Loss | AC8: Transition Loss | AD8: Dead Time Loss | AE8: Total Control MOSFET Loss | AF8: Irms | AG8: RDS(on) Loss | AH8: Deadtime Loss | AI8: Total Sync MOSFET Loss | AJ8: Irms | AK8: RDS(on) Loss | AL8: Transition Loss | AM8: Dead Time Loss | AN8: Total Control MOSFET Loss | AO8: Irms | AP8: RDS(on) Loss | AQ8: Deadtime Loss | AR8: Total Sync MOSFET Loss | AS8: Q1/Q3 RDS(on) Loss @ D = 100% | AT8: Deadtime Loss | AU8: Reverse Recovery Loss | AV8: Isense Shunt Loss | AW8: Iout Shunt Loss | AX8: IQ Loss | AY8: Switching Current Loss | AZ8: Switching Current Diss | BA8: Total IC Loss | BB8: Total Loss | BC8: Pout | BD8: EFF, h | BE8: =IF(Vin>Vout,"Buck ''CONTROL'' MOSFET Temp Rise","Boost ''CONTROL'' MOSFET Temp Rise") -> Boost ''CONTROL'' MOSFET Temp Rise | BF8: =IF(Vin>Vout,"Buck ''SYNC'' MOSFET Temp Rise","Boost ''SYNC'' MOSFET Temp Rise") -> Boost ''SYNC'' MOSFET Temp Rise | BH8: h | BI8: Inductor Cu & Core Loss | BJ8: Total MOSFET Loss | BK8: =IF(Vin>Vout,"Buck ''Control'' MOSFET Loss","Boost ''Control'' MOSFET Loss") -> Boost ''Control'' MOSFET Loss | BL8: =IF(Vin>Vout,"Buck ''SYNC'' MOSFET Loss","Boost ''SYNC'' MOSFET Loss") -> Boost ''SYNC'' MOSFET Loss | BM8: Shunt Loss | BT8: Qg | BV8: θJA=80 | BW8: θJA=100 | BX8: θJA=120 | BY8: θJA=140 | BZ8: θJA=160 | CA8: θJA=180 | CB8: θJA=20 | CC8: θJA=30 | CD8: θJA=40 | CE8: θJA=50
A9: Design | B9: Input Value | C9: Units | D9: Description | G9: 0 | H9: =Vin -> 14.2 | I9: =IF(H9>VIN_BB_to_buck,"BUCK",IF(H9<VIN_boost_to_BB,"BOOST","BUCK-BST")) -> BOOST | J9: =IF(I9="BOOST",2,IF(I9="BUCK",1,3)) -> 2 | K9: 0 | L9: =Vout*K9/(Vin*Efficiency) -> 0 | M9: =K9/(1-O9) -> 0 | N9: =CHOOSE(J9,(Vout+(Rdson2+Rs+Rdcr)*K9)/(Vin+(Rs+Rdson2-Rdson1)*K9),1,IF(Vin<Vout,D_max_buck_BB,Vout/Vin*(1-D_min_boost_exitBB_to_buck))) -> 1 | O9: =CHOOSE(J9,0,(Vout+(Rdson3+Rdcr)*L9-Vin)/(Vout+(Rdson3-Rdson4-Rs)*L9),IF(Vin>Vout,D_min_boost_exitBB_to_buck,(Vout-Vin*D_max_buck_BB)/Vout)) -> 0.6712962963 | P9: =MAX(0,CHOOSE(J9,(Vin-(Rdson1+Rdcr)*K9-Vout)*N9/(Fsw*Lf),(Vin-(Rdson4+Rdcr+Rs)*L9)*O9/(Fsw*Lf),IF(Vin<Vout,(Vin-(Rdson4+Rdcr+Rs)*L9)*O9/(0.5*Fsw*Lf),(Vin-(Rdson1+Rdcr)*K9-Vout)*N9/(0.5*Fsw*Lf)))) -> 14.44304153 | Q9: =CHOOSE(J9,SQRT(K9^2+(P9^2)/12),SQRT(L9^2+(P9^2)/12),SQRT(M9^2+(P9^2)/12)) -> 4.169346957 | R9: =(Q9^2*Rdcr*(1+Ltc*Ta-Ltc*25))/(1-Q9^2*Rdcr*Ltc*ThetaCa) -> 0.04011023913 | S9: =ABS(7.759*10^-3*Fsw^0.9458*(0.00787*P9)^2.304) -> 5.341943097 | T9: =R9+S9 -> 5.382053337 | U9: =IF(Vin>Vout,P9/SQRT(12),SQRT(O9/(1-O9))*SQRT(K9^2+(P9^2)/12)) -> 5.958306826 | V9: =RCoutEsr*U9^2 -> 0.3550142023 | W9: =V9 -> 0.3550142023 | X9: =IF(Vin>Vout,SQRT(N9*(1-N9))*SQRT(K9^2+(P9^2)/12),P9/SQRT(12)) -> 4.169346957 | Y9: =RCinEsr*X9^2 -> 0.1738345404 | Z9: =Y9 -> 0.1738345404 | AA9: =CHOOSE(J9,SQRT(N9)*SQRT(K9^2+(P9^2)/12),SQRT(L9^2+(P9^2)/12),SQRT(N9)*SQRT(M9^2+(P9^2)/12)) -> 4.169346957 | AB9: =Rdson1*AA9^2 -> 0.05910374375 | AC9: =CHOOSE(J9,(Vin*K9/2)*(Fsw)*(Tr_buck+Tf_buck),0,(Vin*K9/2)*(Fsw/2)*(Tr_buck+Tf_buck)) -> 0 | AD9: =CHOOSE(J9,IF(K9>P9/2,0,ABS(K9-P9/2)*Vsd_Q1*Deadtime*Fsw),0,IF(K9>P9/2,0,ABS(K9-P9/2)*Vsd_Q1*Deadtime*Fsw/2)) -> 0 | AE9: =(AD9+AC9+AB9*(1+RdsonTopTc*Ta-RdsonTopTc*25))/(1-AB9*RdsonTopTc*ThetaJA_Q1) -> 0.05981075162 | AF9: =CHOOSE(J9,SQRT((1-N9))*SQRT(K9^2+(P9^2)/12),0,SQRT((1-N9))*SQRT(M9^2+(P9^2)/12)) -> 0 | AG9: =Rdson2*AF9^2 -> 0 | AH9: =CHOOSE(J9,IF(K9<P9/2,Deadtime*Fsw*IF(VfdSky_Q2>0,0,Vsd_Q2)*(K9+P9/2),2*Deadtime*Fsw*IF(VfdSky_Q2>0,0,Vsd_Q2)*K9),0,IF(K9<P9/2,Deadtime*Fsw/2*IF(VfdSky_Q2>0,0,Vsd_Q2)*(K9+P9/2),2*Deadtime*Fsw/2*IF(VfdSky_Q2>0,0,Vsd_Q2)*K9)) -> 0 | AI9: =(AH9+AG9*(1+RdsonBotTc*Ta-RdsonBotTc*25))/(1-AG9*RdsonBotTc*ThetaJA_Q2) -> 0 | AJ9: =CHOOSE(J9,0,SQRT(O9)*SQRT(L9^2+(P9^2)/12),SQRT(O9)*SQRT(M9^2+(P9^2)/12)) -> 3.416057423 | AK9: =Rdson4*AJ9^2 -> 0.03967612428 | AL9: =CHOOSE(J9,0,(Vout*L9/2)*(Fsw)*(Tr_boost+Tf_boost),(Vout*Iout/2)*(Fsw/2)*(Tr_boost+Tf_boost)) -> 0 | AM9: =IF(H9>Vout,0,IF(L9>P9/2,0,ABS(L9-P9/2)*Vsd_Q4*Deadtime*Fsw)) -> 0.03610760382 | AN9: =(AM9+AL9+AK9*(1+RdsonTopTc*Ta-RdsonTopTc*25))/(1-AK9*RdsonTopTc*ThetaJA_Q4) -> 0.07638989912 | AO9: =CHOOSE(J9,SQRT(K9^2+(P9^2)/12),SQRT(1-O9)*SQRT(L9^2+(P9^2)/12),SQRT(1-O9)*SQRT(M9^2+(P9^2)/12)) -> 2.390398655 | AP9: =Rdson3*AO9^2 -> 0.01942761947 | AQ9: =CHOOSE(J9,0,IF(L9<P9/2,Deadtime*Fsw*IF(VfdSky_Q3>0,0,Vsd_Q3)*(L9+P9/2),2*Deadtime*Fsw*IF(VfdSky_Q3>0,0,Vsd_Q3)*L9),IF(L9<P9/2,Deadtime*Fsw/2*IF(VfdSky_Q3>0,0,Vsd_Q3)*(L9+P9/2),2*Deadtime*Fsw/2*IF(VfdSky_Q3>0,0,Vsd_Q3)*L9)) -> 0.03610760382 | AR9: =(AQ9+AP9*(1+RdsonBotTc*Ta-RdsonBotTc*25))/(1-AP9*RdsonBotTc*ThetaJA_Q3) -> 0.05575184843 | AS9: =CHOOSE(J9,Rdson3*Q9^2,Rdson1*Q9^2,0) -> 0.05910374375 | AT9: =CHOOSE(J9,2*Deadtime*Fsw*IF(VfdSky_Q2>0,VfdSky_Q2,0)*K9,2*Deadtime*Fsw*IF(VfdSky_Q3>0,VfdSky_Q3,0)*L9,2*Deadtime*Fsw/2*IF(VfdSky_Q2>0,VfdSky_Q2,0)*K9+2*Deadtime*Fsw/2*IF(VfdSky_Q3>0,VfdSky_Q3,0)*L9) -> 0 | AU9: =CHOOSE(J9,IF(QrrSky_Q2>0,QrrSky_Q2,Qrr_Q2*K9/Iout)*Fsw*(Vin-K9*Rdson1),IF(QrrSky_Q3>0,QrrSky_Q3,Qrr_Q3)*Fsw*Vout,IF(QrrSky_Q2>0,QrrSky_Q2,Qrr_Q2*K9/Iout)*Fsw/2*(Vin-K9*Rdson1)+IF(QrrSky_Q3>0,QrrSky_Q3,Qrr_Q3)*Fsw/2*Vout) -> 1.5552 | AV9: =CHOOSE(J9,Rs*AF9^2,Rs*AJ9^2,Rs*(AF9^2+AJ9^2)) -> 0.0145868104 | AW9: =Rshunt_std/1000*Iout^2 -> 0 | AX9: =IF(Vout>8,Iq*Vout,Iq*Vin) -> 0.1296 | AY9: =CHOOSE(J9,(Qg_Q1+Qg_Q2)*Fsw,(Qg_Q3+Qg_Q4)*Fsw,(Qg_Q1+Qg_Q2+Qg_Q3+Qg_Q4)*Fsw/2)*IF(Vout>8,Vout,Vin) -> 1.5552 | AZ9: =(Vin-Vdd)*Fsw*(Qg_Q1+Qg_Q2)+(RdsonDRT+RdsonDRT2)*Fsw*Qg_Q1*Vdd/(RdsonDRT+2*Rgate1+RdsonDRT2)+(RdsonDRB+RdsonDRB2)*Fsw*Qg_Q2*Vdd/(RdsonDRB+2*Rgate2+RdsonDRB2) -> 0.4142769231 | BA9: =SUM(AX9:AY9) -> 1.6848 | BB9: =SUM(T9,W9,Z9,AE9,AI9,AN9,AR9,AT9,AU9,BA9,AV9,AW9) -> 9.357441389 | BC9: =Vout*K9 -> 0 | BD9: =BC9/(BC9+BB9) -> 0 | BE9: =IF(Vin>Vout,ThetaJA_Q1*BK9,ThetaJA_Q4*BK9) -> 55.14109496 | BF9: =IF(Vin>Vout,ThetaJA_Q2*BL9,ThetaJA_Q3*BL9) -> 28.44839242 | BH9: =BD9*100 -> 0 | BI9: =T9 -> 5.382053337 | BJ9: =AE9+AI9+AN9+AR9+AU9 -> 1.747152499 | BK9: =IF(Vin>Vout,AE9+AU9*0.66,AN9+AU9*0.66) -> 1.102821899 | BL9: =IF(Vin>Vout,AI9+AU9*0.33,AR9+AU9*0.33) -> 0.5689678484 | BM9: =AV9 -> 0.0145868104 | BQ9: 250kHz / 5-1.2V /25A | BR9: 70 | BS9: 70 | BT9: 70 | BU9: =250000*(5-Vdd)*BT9/1000000000+((250000*BT9/1000000000*Vdd)*2.5/(2*4)) -> -0.002734375 | BV9: =BV$6*$BU9 -> -0.21875 | BW9: -0.2734375 | BX9: -0.328125 | BY9: -0.3828125 | BZ9: -0.4375 | CA9: -0.4921875 | CB9: -0.0546875 | CC9: -0.08203125 | CD9: -0.109375 | CE9: -0.13671875
G10: 1 | H10: 14.2 | I10: BOOST | J10: =IF(I10="BOOST",2,IF(I10="BUCK",1,3)) -> 2 | K10: =Iout*G10/100 -> 0.1 | L10: 0.3169014085 | M10: =K10/(1-O10) -> 0.3042697557 | N10: 1 | O10: 0.6713442656 | P10: 14.44183327 | Q10: 4.181025256 | R10: 0.04033597667 | S10: =7.759*10^-3*Fsw^0.9458*(0.00787*P10)^2.304 -> 5.340913523 | T10: =R10+S10 -> 5.3812495 | U10: 5.960169896 | V10: 0.3552362519 | W10: =V10 -> 0.3552362519 | X10: 4.168998164 | Y10: 0.1738054569 | Z10: =Y10 -> 0.1738054569 | AA10: 4.181025256 | AB10: 0.05943530545 | AC10: 0 | AD10: 0 | AE10: 0.06015031593 | AF10: 0 | AG10: 0 | AH10: 0 | AI10: 0 | AJ10: 3.425748158 | AK10: 0.03990155149 | AL10: 0.07262908997 | AM10: 0.03452007614 | AN10: 0.1482336683 | AO10: =CHOOSE(J10,SQRT(K10^2+(P10^2)/12),SQRT(1-O10)*SQRT(L10^2+(P10^2)/12),SQRT(1-O10)*SQRT(M10^2+(P10^2)/12)) -> 2.396919221 | AP10: 0.01953375396 | AQ10: 0.03768909022 | AR10: 0.05744727638 | AS10: 0.05943530545 | AT10: 0 | AU10: 1.5552 | AV10: 0.01466968805 | AW10: 0 | AX10: 0.1296 | AY10: 1.5552 | AZ10: 0.4142769231 | BA10: =SUM(AX10:AY10) -> 1.6848 | BB10: =SUM(T10,W10,Z10,AE10,AI10,AN10,AR10,AT10,AU10,BA10,AV10,AW10) -> 9.430792158 | BC10: 4.32 | BD10: =BC10/(BC10+BB10) -> 0.3141637188 | BE10: 58.73328341 | BF10: 28.53316382 | BH10: =BD10*100 -> 31.41637188 | BI10: =T10 -> 5.3812495 | BJ10: =AE10+AI10+AN10+AR10+AU10 -> 1.821031261 | BK10: 1.174665668 | BL10: 0.5706632764 | BM10: =AV10 -> 0.01466968805
A11: Vin | B11: =Vin -> 14.2 | C11: V | D11: Vin | G11: 2 | H11: 14.2 | I11: BOOST | J11: 2 | K11: 0.2 | L11: 0.6338028169 | M11: =K11/(1-O11) -> 0.6086283461 | N11: 1 | O11: 0.6713922359 | P11: 14.44062472 | Q11: 4.216555806 | R11: 0.04102670331 | S11: 5.339883805 | T11: 5.380910509 | U11: 5.965458968 | V11: 0.355867007 | W11: 0.355867007 | X11: 4.168649284 | Y11: 0.1737763685 | Z11: 0.1737763685 | AA11: 4.216555806 | AB11: 0.06044976574 | AC11: 0 | AD11: 0 | AE11: 0.06118954446 | AF11: 0 | AG11: 0 | AH11: 0 | AI11: 0 | AJ11: 3.454983756 | AK11: 0.04058550337 | AL11: 0.1452581799 | AM11: 0.03293254771 | AN11: 0.2205665923 | AO11: 2.417111935 | AP11: 0.01986426236 | AQ11: 0.03927057588 | AR11: 0.05937070931 | AS11: 0.06044976574 | AT11: 0 | AU11: 1.5552 | AV11: 0.01492114095 | AW11: 0 | AX11: 0.1296 | AY11: 1.5552 | AZ11: 0.4142769231 | BA11: =SUM(AX11:AY11) -> 1.6848 | BB11: =SUM(T11,W11,Z11,AE11,AI11,AN11,AR11,AT11,AU11,BA11,AV11,AW11) -> 9.506601871 | BC11: 8.64 | BD11: 0.4761221997 | BE11: 62.34992961 | BF11: 28.62933547 | BH11: 47.61221997 | BI11: 5.380910509 | BJ11: 1.896326846 | BK11: 1.246998592 | BL11: 0.5725867093 | BM11: 0.01492114095 | BQ11: 250kHz / 12-5V / 30A | BR11: 90 | BS11: 90 | BT11: 90 | BU11: =250000*(12-Vdd)*BT11/1000000000+((250000*BT9/1000000000*Vdd)*2.5/(2*4)) -> 0.142265625 | BV11: 11.38125 | BW11: 14.2265625 | BX11: 17.071875 | BY11: 19.9171875 | BZ11: 22.7625 | CA11: 25.6078125 | CB11: 2.8453125 | CC11: 4.26796875 | CD11: 5.690625 | CE11: 7.11328125
A12: Vout | B12: =Vout -> 43.2 | C12: V | D12: Vout | G12: 3 | H12: 14.2 | I12: BOOST | J12: 2 | K12: 0.3 | L12: 0.9507042254 | M12: 0.9130758125 | N12: 1 | O12: 0.671440207 | P12: 14.43941586 | Q12: 4.27534397 | R12: 0.04218257273 | S12: 5.338853943 | T12: 5.381036515 | U12: 5.974167173 | V12: 0.3569067341 | W12: 0.3569067341 | X12: 4.168300317 | Y12: 0.1737472753 | Z12: 0.1737472753 | AA12: 4.27534397 | AB12: 0.0621471246 | AC12: 0 | AD12: 0 | AE12: 0.0629292996 | AF12: 0 | AG12: 0 | AH12: 0 | AI12: 0 | AJ12: 3.503279061 | AK12: 0.0417280782 | AL12: 0.2178872699 | AM12: 0.03134501853 | AN12: 0.2934090457 | AO12: 2.450632955 | AP12: 0.0204190464 | AQ12: 0.04085206078 | AR12: 0.06152235273 | AS12: 0.0621471246 | AT12: 0 | AU12: 1.5552 | AV12: 0.01534120522 | AW12: 0 | AX12: 0.1296 | AY12: 1.5552 | AZ12: 0.4142769231 | BA12: 1.6848 | BB12: 9.584892428 | BC12: 12.96 | BD12: 0.5748530423 | BE12: 65.99205229 | BF12: 28.73691764 | BH12: 57.48530423 | BI12: 5.381036515 | BJ12: 1.973060698 | BK12: 1.319841046 | BL12: 0.5747383527 | BM12: 0.01534120522 | BQ12: 250kHz / 18-1.2V / 20A | BR12: 60 | BS12: 60 | BT12: 60 | BU12: =250000*(18-Vdd)*BT12/1000000000+((250000*BT9/1000000000*Vdd)*2.5/(2*4)) -> 0.198515625 | BV12: 15.88125 | BW12: 19.8515625 | BX12: 23.821875 | BY12: 27.7921875 | BZ12: 31.7625 | CA12: 35.7328125 | CB12: 3.9703125 | CC12: 5.95546875 | CD12: 7.940625 | CE12: 9.92578125
A13: Fsw | B13: =Fsw/1000 -> 200 | C13: kHz | D13: Switching Frequency | G13: 4 | H13: 14.2 | I13: BOOST | J13: 2 | K13: 0.4 | L13: 1.267605634 | M13: 1.217612196 | N13: 1 | O13: 0.6714881789 | P13: 14.4382067 | Q13: 4.356448299 | R13: 0.04380384218 | S13: 5.337823936 | T13: 5.381627778 | U13: 5.986281819 | V13: 0.3583557001 | W13: 0.3583557001 | X13: 4.167951264 | Y13: 0.1737181774 | Z13: 0.1737181774 | AA13: 4.356448299 | AB13: 0.06452738205 | AC13: 0 | AD13: 0 | AE13: 0.06537102628 | AF13: 0 | AG13: 0 | AH13: 0 | AI13: 0 | AJ13: 3.569864648 | AK13: 0.04332937426 | AL13: 0.2905163599 | AM13: 0.02975748859 | AN13: 0.3667817071 | AO13: 2.496939761 | AP13: 0.02119800778 | AQ13: 0.04243354493 | AR13: 0.06390247374 | AS13: 0.06452738205 | AT13: 0 | AU13: 1.5552 | AV13: 0.01592991701 | AW13: 0 | AX13: 0.1296 | AY13: 1.5552 | AZ13: 0.4142769231 | BA13: 1.6848 | BB13: 9.66568678 | BC13: 17.28 | BD13: 0.6412900195 | BE13: 69.66068535 | BF13: 28.85592369 | BH13: 64.12900195 | BI13: 5.381627778 | BJ13: 2.051255207 | BK13: 1.393213707 | BL13: 0.5771184737 | BM13: 0.01592991701 | BQ13: 500kHz / 5-1.2V / 15A | BR13: 30 | BS13: 30 | BT13: 30 | BU13: =500000*(5-Vdd)*BT13/1000000000+((500000*BT9/1000000000*Vdd)*2.5/(2*4)) -> 0.04453125 | BV13: 3.5625 | BW13: 4.453125 | BX13: 5.34375 | BY13: 6.234375 | BZ13: 7.125 | CA13: 8.015625 | CB13: 0.890625 | CC13: 1.3359375 | CD13: 1.78125 | CE13: 2.2265625
A14: Iout | B14: =Iout -> 10 | C14: A | D14: Max Output Current | G14: 5 | H14: 14.2 | I14: BOOST | J14: 2 | K14: 0.5 | L14: 1.584507042 | M14: 1.522237539 | N14: 1 | O14: 0.6715361518 | P14: 14.43699725 | Q14: 4.458651144 | R14: 0.04589087256 | S14: 5.336793785 | T14: 5.382684658 | U14: 6.001784501 | V14: 0.360214172 | W14: 0.360214172 | X14: 4.167602123 | Y14: 0.1736890745 | Z14: 0.1736890745 | AA14: 4.458651144 | AB14: 0.06759053807 | AC14: 0 | AD14: 0 | AE14: 0.06851675494 | AF14: 0 | AG14: 0 | AH14: 0 | AI14: 0 | AJ14: 3.653744648 | AK14: 0.04538948984 | AL14: 0.3631454498 | AM14: 0.0281699579 | AN14: 0.4407055778 | AO14: 2.555331695 | AP14: 0.02220104824 | AQ14: 0.04401502832 | AR14: 0.06651140113 | AS14: 0.06759053807 | AT14: 0 | AU14: 1.5552 | AV14: 0.01668731244 | AW14: 0 | AX14: 0.1296 | AY14: 1.5552 | AZ14: 0.4142769231 | BA14: 1.6848 | BB14: 9.749008951 | BC14: 21.6 | BD14: 0.6890169968 | BE14: 73.35687889 | BF14: 28.98637006 | BH14: 68.90169968 | BI14: 5.382684658 | BJ14: 2.130933734 | BK14: 1.467137578 | BL14: 0.5797274011 | BM14: 0.01668731244 | BQ14: 500kHz / 12-5V / 15A | BR14: 45 | BS14: 45 | BT14: 45 | BU14: =500000*(12-Vdd)*BT14/1000000000+((500000*BT9/1000000000*Vdd)*2.5/(2*4)) -> 0.18328125 | BV14: 14.6625 | BW14: 18.328125 | BX14: 21.99375 | BY14: 25.659375 | BZ14: 29.325 | CA14: 32.990625 | CB14: 3.665625 | CC14: 5.4984375 | CD14: 7.33125 | CE14: 9.1640625
A15: Ta | B15: =Ta -> 25 | C15: °C | D15: Ambient Temperature | G15: 6 | H15: 14.2 | I15: BOOST | J15: 2 | K15: 0.6 | L15: 1.901408451 | M15: 1.826951882 | N15: 1 | O15: 0.6715841255 | P15: 14.43578749 | Q15: 4.580540447 | R15: 0.04844412869 | S15: 5.33576349 | T15: 5.384207619 | U15: 6.020651267 | V15: 0.3624824168 | W15: 0.3624824168 | X15: 4.167252895 | Y15: 0.1736599669 | Z15: 0.1736599669 | AA15: 4.580540447 | AB15: 0.07133659268 | AC15: 0 | AD15: 0 | AE15: 0.07236910577 | AF15: 0 | AG15: 0 | AH15: 0 | AI15: 0 | AJ15: 3.753763728 | AK15: 0.04790852322 | AL15: 0.4357745398 | AM15: 0.02658242646 | AN15: 0.5152020029 | AO15: 2.624996889 | AP15: 0.02342806947 | AQ15: 0.04559651097 | AR15: 0.06934952553 | AS15: 0.07133659268 | AT15: 0 | AU15: 1.5552 | AV15: 0.01761342765 | AW15: 0 | AX15: 0.1296 | AY15: 1.5552 | AZ15: 0.4142769231 | BA15: 1.6848 | BB15: 9.834884065 | BC15: 25.92 | BD15: 0.7249359263 | BE15: 77.08170014 | BF15: 29.12827628 | BH15: 72.49359263 | BI15: 5.384207619 | BJ15: 2.212120634 | BK15: 1.541634003 | BL15: 0.5825655255 | BM15: 0.01761342765 | BQ15: 1Mhz / 5-1.2V / 10A | BR15: 20 | BS15: 20 | BT15: 20 | BU15: =1000000*(5-Vdd)*BT15/1000000000+((1000000*BT9/1000000000*Vdd)*2.5/(2*4)) -> 0.1140625 | BV15: 9.125 | BW15: 11.40625 | BX15: 13.6875 | BY15: 15.96875 | BZ15: 18.25 | CA15: 20.53125 | CB15: 2.28125 | CC15: 3.421875 | CD15: 4.5625 | CE15: 5.703125
A16: Vcc | B16: =Vdd -> 7.5 | C16: V | D16: Subregulated VCC Voltage | G16: 7 | H16: 14.2 | I16: BOOST | J16: 2 | K16: 0.7 | L16: 2.218309859 | M16: 2.131755267 | N16: 1 | O16: 0.6716321001 | P16: 14.43457742 | Q16: 4.720591497 | R16: 0.05146417955 | S16: 5.334733052 | T16: 5.386197231 | U16: 6.042852818 | V16: 0.3651607018 | W16: 0.3651607018 | X16: 4.166903581 | Y16: 0.1736308545 | Z16: 0.1736308545 | AA16: 4.720591497 | AB16: 0.07576554588 | AC16: 0 | AD16: 0 | AE16: 0.07693129418 | AF16: 0 | AG16: 0 | AH16: 0 | AI16: 0 | AJ16: 3.868674066 | AK16: 0.0508865727 | AL16: 0.5084036298 | AM16: 0.02499489426 | AN16: 0.5902926911 | AO16: 2.705059159 | AP16: 0.02487897318 | AQ16: 0.04717799286 | AR16: 0.07241729965 | AS16: 0.07576554588 | AT16: 0 | AU16: 1.5552 | AV16: 0.01870829879 | AW16: 0 | AX16: 0.1296 | AY16: 1.5552 | AZ16: 0.4142769231 | BA16: 1.6848 | BB16: 9.923338371 | BC16: 30.24 | BD16: 0.7529254595 | BE16: 80.83623456 | BF16: 29.28166498 | BH16: 75.29254595 | BI16: 5.386197231 | BJ16: 2.294841285 | BK16: 1.616724691 | BL16: 0.5856332996 | BM16: 0.01870829879 | BQ16: 1Mhz / 12-1.2V/ 10A | BR16: 25 | BS16: 25 | BT16: 25 | BU16: =1000000*(12-Vdd)*BT16/1000000000+((1000000*BT9/1000000000*Vdd)*2.5/(2*4)) -> 0.2765625 | BV16: 22.125 | BW16: 27.65625 | BX16: 33.1875 | BY16: 38.71875 | BZ16: 44.25 | CA16: 49.78125 | CB16: 5.53125 | CC16: 8.296875 | CD16: 11.0625 | CE16: 13.828125
A17: Components | B17: Input Value | C17: Units | D17: Description | G17: 8 | H17: 14.2 | I17: BOOST | J17: 2 | K17: 0.8 | L17: 2.535211268 | M17: 2.436647735 | N17: 1 | O17: 0.6716800756 | P17: 14.43336706 | Q17: 4.877239988 | R17: 0.05495169855 | S17: 5.333702469 | T17: 5.388654167 | U17: 6.068354756 | V17: 0.3682492945 | W17: 0.3682492945 | X17: 4.166554179 | Y17: 0.1736017373 | Z17: 0.1736017373 | AA17: 4.877239988 | AB17: 0.08087739765 | AC17: 0 | AD17: 0 | AE17: 0.08220713753 | AF17: 0 | AG17: 0 | AH17: 0 | AI17: 0 | AJ17: 3.997195214 | AK17: 0.05432373657 | AL17: 0.5810327197 | AM17: 0.02340736132 | AN17: 0.6659997365 | AO17: 2.794619888 | AP17: 0.02655366108 | AQ17: 0.04875947399 | AR17: 0.07571523843 | AS17: 0.08087739765 | AT17: 0 | AU17: 1.5552 | AV17: 0.01997196198 | AW17: 0 | AX17: 0.1296 | AY17: 1.5552 | AZ17: 0.4142769231 | BA17: 1.6848 | BB17: 10.01439927 | BC17: 34.56 | BD17: 0.7753329392 | BE17: 84.62158682 | BF17: 29.44656192 | BH17: 77.53329392 | BI17: 5.388654167 | BJ17: 2.379122112 | BK17: 1.692431736 | BL17: 0.5889312384 | BM17: 0.01997196198 | BQ17: 500kHz / 18-1.2V / 20A | BR17: 50 | BS17: 50 | BT17: 50 | BU17: =500000*(18-Vdd)*BT17/1000000000+((500000*BT15/1000000000*Vdd)*2.5/(2*4)) -> 0.2859375 | BV17: 22.875 | BW17: 28.59375 | BX17: 34.3125 | BY17: 40.03125 | BZ17: 45.75 | CA17: 51.46875 | CB17: 5.71875 | CC17: 8.578125 | CD17: 11.4375 | CE17: 14.296875
A18: L | B18: =Lf*1000000 -> 3.3 | C18: uH | D18: Filter Inductance | G18: 9 | H18: 14.2 | I18: BOOST | J18: 2 | K18: 0.9 | L18: 2.852112676 | M18: 2.741629328 | N18: 1 | O18: 0.671728052 | P18: 14.4321564 | Q18: 5.048941299 | R18: 0.05890746398 | S18: 5.332671742 | T18: 5.391579206 | U18: 6.097117864 | V18: 0.3717484625 | W18: 0.3717484625 | X18: 4.166204691 | Y18: 0.1735726152 | Z18: 0.1735726152 | AA18: 5.048941299 | AB18: 0.08667214802 | AC18: 0 | AD18: 0 | AE18: 0.08820106314 | AF18: 0 | AG18: 0 | AH18: 0 | AI18: 0 | AJ18: 4.138062674 | AK18: 0.05822011315 | AL18: 0.6536618097 | AM18: 0.02181982761 | AN18: 0.7423456399 | AO18: 2.892791999 | AP18: 0.02845203486 | AQ18: 0.05034095437 | AR18: 0.07924391939 | AS18: 0.08667214802 | AT18: 0 | AU18: 1.5552 | AV18: 0.02140445336 | AW18: 0 | AX18: 0.1296 | AY18: 1.5552 | AZ18: 0.4142769231 | BA18: 1.6848 | BB18: 10.10809536 | BC18: 38.88 | BD18: 0.7936622094 | BE18: 88.43888199 | BF18: 29.62299597 | BH18: 79.36622094 | BI18: 5.391579206 | BJ18: 2.464990622 | BK18: 1.76877764 | BL18: 0.5924599194 | BM18: 0.02140445336 | BQ18: θJA=120°C/W - 160°C/W
A19: Rdcr | B19: =Rdcr*1000 -> 2.3 | C19: mW | D19: Inductor DCR at 25°C | G19: 10 | H19: 14.2 | I19: BOOST | J19: 2 | K19: 1 | L19: 3.169014085 | M19: 3.046700087 | N19: 1 | O19: 0.6717760293 | P19: 14.43094543 | Q19: 5.234214278 | R19: 0.0633323594 | S19: 5.331640872 | T19: 5.394973232 | U19: 6.129098413 | V19: 0.3756584736 | W19: 0.3756584736 | X19: 4.165855115 | Y19: 0.1735434884 | Z19: 0.1735434884 | AA19: 5.234214278 | AB19: 0.09314979696 | AC19: 0 | AD19: 0 | AE19: 0.09491811764 | AF19: 0 | AG19: 0 | AH19: 0 | AI19: 0 | AJ19: 4.290063784 | AK19: 0.06257580073 | AL19: 0.7262908997 | AM19: 0.02023229316 | AN19: 0.8193533317 | AO19: 2.998725035 | AP19: 0.03057399623 | AQ19: 0.051922434 | AR19: 0.08300398293 | AS19: 0.09314979696 | AT19: 0 | AU19: 1.5552 | AV19: 0.02300580909 | AW19: 0 | AX19: 0.1296 | AY19: 1.5552 | AZ19: 0.4142769231 | BA19: 1.6848 | BB19: 10.20445643 | BC19: 43.2 | BD19: 0.8089212565 | BE19: 92.28926659 | BF19: 29.81099915 | BH19: 80.89212565 | BI19: 5.394973232 | BJ19: 2.552475432 | BK19: 1.845785332 | BL19: 0.5962199829 | BM19: 0.02300580909 | BQ19: θJA=30°C/W - 50°C/W
A20: LTc | B20: =Ltc*1000000 -> 4000 | C20: ppm | D20: Inductor Series Resistance Temp Co | G20: 11 | H20: 14.2 | I20: BOOST | J20: 2 | K20: 1.1 | L20: 3.485915493 | M20: 3.351860053 | N20: 1 | O20: 0.6718240074 | P20: 14.42973417 | Q20: 5.431670323 | R20: 0.06822737413 | S20: 5.330609858 | T20: 5.398837233 | U20: 6.1642485 | V20: 0.3799795957 | W20: 0.3799795957 | X20: 4.165505452 | Y20: 0.1735143567 | Z20: 0.1735143567 | AA20: 5.431670323 | AB20: 0.1003103445 | AC20: 0 | AD20: 0 | AE20: 0.1023639777 | AF20: 0 | AG20: 0 | AH20: 0 | AI20: 0 | AJ20: 4.452061572 | AK20: 0.06739089762 | AL20: 0.7989199896 | AM20: 0.01864475795 | AN20: 0.8970461949 | AO20: 3.111621805 | AP20: 0.03291944687 | AQ20: 0.05350391288 | AR20: 0.08699613266 | AS20: 0.1003103445 | AT20: 0 | AU20: 1.5552 | AV20: 0.0247760653 | AW20: 0 | AX20: 0.1296 | AY20: 1.5552 | AZ20: 0.4142769231 | BA20: 1.6848 | BB20: 10.30351356 | BC20: 47.52 | BD20: 0.8218110087 | BE20: 96.17390974 | BF20: 30.01060663 | BH20: 82.18110087 | BI20: 5.398837233 | BJ20: 2.641606305 | BK20: 1.923478195 | BL20: 0.6002121327 | BM20: 0.0247760653
A21: ThetaCa | B21: =ThetaCa -> 20 | C21: °C/W | D21: Core to Ambient Thermal Resistance | G21: 12 | H21: 14.2 | I21: BOOST | J21: 2 | K21: 1.2 | L21: 3.802816901 | M21: 3.65710927 | N21: 1 | O21: 0.6718719864 | P21: 14.4285226 | Q21: 5.640030001 | R21: 0.07359360383 | S21: 5.329578701 | T21: 5.403172305 | U21: 6.202516401 | V21: 0.384712097 | W21: 0.384712097 | X21: 4.165155703 | Y21: 0.1734852203 | Z21: 0.1734852203 | AA21: 5.640030001 | AB21: 0.1081537906 | AC21: 0 | AD21: 0 | AE21: 0.1105449619 | AF21: 0 | AG21: 0 | AH21: 0 | AI21: 0 | AJ21: 4.623008383 | AK21: 0.07266550214 | AL21: 0.8715490796 | AM21: 0.01705722199 | AN21: 0.9754480888 | AO21: 3.230747886 | AP21: 0.03548828847 | AQ21: 0.055085391 | AR21: 0.09122113587 | AS21: 0.1081537906 | AT21: 0 | AU21: 1.5552 | AV21: 0.02671525814 | AW21: 0 | AX21: 0.1296 | AY21: 1.5552 | AZ21: 0.4142769231 | BA21: 1.6848 | BB21: 10.40529907 | BC21: 51.84 | BD21: 0.8328339775 | BE21: 100.0940044 | BF21: 30.22185679 | BH21: 83.28339775 | BI21: 5.403172305 | BJ21: 2.732414187 | BK21: 2.001880089 | BL21: 0.6044371359 | BM21: 0.02671525814
A22: Cin | B22: =Cin*1000000 -> 900 | C22: μF | D22: Input Capacitance | G22: 13 | H22: 14.2 | I22: BOOST | J22: 2 | K22: 1.3 | L22: 4.11971831 | M22: 3.962447777 | N22: 1 | O22: 0.6719199663 | P22: 14.42731073 | Q22: 5.85812998 | R22: 0.0794322511 | S22: 5.3285474 | T22: 5.407979651 | U22: 6.243846937 | V22: 0.3898562458 | W22: 0.3898562458 | X22: 4.164805867 | Y22: 0.1734560791 | Z22: 0.1734560791 | AA22: 5.85812998 | AB22: 0.1166801353 | AC22: 0 | AD22: 0 | AE22: 0.1194680448 | AF22: 0 | AG22: 0 | AH22: 0 | AI22: 0 | AJ22: 4.801951582 | AK22: 0.07839971259 | AL22: 0.9441781696 | AM22: 0.01546968527 | AN22: 1.054583374 | AO22: 3.355435569 | AP22: 0.03828042272 | AQ22: 0.05666686837 | AR22: 0.09567982392 | AS22: 0.1166801353 | AT22: 0 | AU22: 1.5552 | AV22: 0.02882342375 | AW22: 0 | AX22: 0.1296 | AY22: 1.5552 | AZ22: 0.4142769231 | BA22: 1.6848 | BB22: 10.50984664 | BC22: 56.16 | BD22: 0.8423598197 | BE22: 104.0507687 | BF22: 30.4447912 | BH22: 84.23598197 | BI22: 5.407979651 | BJ22: 2.824931243 | BK22: 2.081015374 | BL22: 0.6088958239 | BM22: 0.02882342375
A23: RCinEsr | B23: =RCinEsr*1000 -> 10 | C23: mW | D23: Input Capacitor ESR | G23: 14 | H23: 14.2 | I23: BOOST | J23: 2 | K23: 1.4 | L23: 4.436619718 | M23: 4.267875617 | N23: 1 | O23: 0.6719679471 | P23: 14.42609856 | Q23: 6.084922993 | R23: 0.08574462616 | S23: 5.327515956 | T23: 5.413260582 | U23: 6.288181855 | V23: 0.3954123104 | W23: 0.3954123104 | X23: 4.164455943 | Y23: 0.173426933 | Z23: 0.173426933 | AA23: 6.084922993 | AB23: 0.1258893786 | AC23: 0 | AD23: 0 | AE23: 0.1291408714 | AF23: 0 | AG23: 0 | AH23: 0 | AI23: 0 | AJ23: 4.988033542 | AK23: 0.08459362731 | AL23: 1.01680726 | AM23: 0.0138821478 | AN23: 1.134476939 | AO23: 3.485083816 | AP23: 0.0412957513 | AQ23: 0.05824834499 | AR23: 0.1003730927 | AS23: 0.1258893786 | AT23: 0 | AU23: 1.5552 | AV23: 0.03110059827 | AW23: 0 | AX23: 0.1296 | AY23: 1.5552 | AZ23: 0.4142769231 | BA23: 1.6848 | BB23: 10.61719133 | BC23: 60.48 | BD23: 0.8506665154 | BE23: 108.0454469 | BF23: 30.67945464 | BH23: 85.06665154 | BI23: 5.413260582 | BJ23: 2.919190903 | BK23: 2.160908939 | BL23: 0.6135890927 | BM23: 0.03110059827
A24: Cout | B24: =Cout*1000000 -> 1100 | C24: μF | D24: Output Capcitance | G24: 15 | H24: 14.2 | I24: BOOST | J24: 2 | K24: 1.5 | L24: 4.753521127 | M24: 4.573392831 | N24: 1 | O24: 0.6720159288 | P24: 14.42488609 | Q24: 6.319473184 | R24: 0.09253214758 | S24: 5.326484368 | T24: 5.419016515 | U24: 6.335460201 | V24: 0.4013805595 | W24: 0.4013805595 | X24: 4.164105933 | Y24: 0.1733977822 | Z24: 0.1733977822 | AA24: 6.319473184 | AB24: 0.1357815205 | AC24: 0 | AD24: 0 | AE24: 0.139571774 | AF24: 0 | AG24: 0 | AH24: 0 | AI24: 0 | AJ24: 5.180487843 | AK24: 0.0912473446 | AL24: 1.089436349 | AM24: 0.01229460958 | AN24: 1.215154223 | AO24: 3.619155568 | AP24: 0.04453417589 | AQ24: 0.05982982085 | AR24: 0.1053019034 | AS24: 0.1357815205 | AT24: 0 | AU24: 1.5552 | AV24: 0.03354681787 | AW24: 0 | AX24: 0.1296 | AY24: 1.5552 | AZ24: 0.4142769231 | BA24: 1.6848 | BB24: 10.72736958 | BC24: 64.8 | BD24: 0.8579671232 | BE24: 112.0793111 | BF24: 30.92589517 | BH24: 85.79671232 | BI24: 5.419016515 | BJ24: 3.0152279 | BK24: 2.241586223 | BL24: 0.6185179034 | BM24: 0.03354681787
A25: RCoutEsr | B25: =CoutEsr*1000 -> 10 | C25: mW | D25: Output Capacitor ESR | G25: 16 | H25: 14.2 | I25: BOOST | J25: 2 | K25: 1.6 | L25: 5.070422535 | M25: 4.878999461 | N25: 1 | O25: 0.6720639113 | P25: 14.42367331 | Q25: 6.560948662 | R25: 0.09979634309 | S25: 5.325452637 | T25: 5.42524898 | U25: 6.385618702 | V25: 0.407761262 | W25: 0.407761262 | X25: 4.163755835 | Y25: 0.1733686265 | Z25: 0.1733686265 | AA25: 6.560948662 | AB25: 0.146356561 | AC25: 0 | AD25: 0 | AE25: 0.1507697906 | AF25: 0 | AG25: 0 | AH25: 0 | AI25: 0 | AJ25: 5.378633185 | AK25: 0.0983609628 | AL25: 1.162065439 | AM25: 0.01070707061 | AN25: 1.296641249 | AO25: 3.757173459 | AP25: 0.04799559815 | AQ25: 0.06141129596 | AR25: 0.1104672828 | AS25: 0.146356561 | AT25: 0 | AU25: 1.5552 | AV25: 0.03616211868 | AW25: 0 | AX25: 0.1296 | AY25: 1.5552 | AZ25: 0.4142769231 | BA25: 1.6848 | BB25: 10.84041931 | BC25: 69.12 | BD25: 0.8644276831 | BE25: 116.1536625 | BF25: 31.18416414 | BH25: 86.44276831 | BI25: 5.42524898 | BJ25: 3.113078323 | BK25: 2.323073249 | BL25: 0.6236832828 | BM25: 0.03616211868 | BQ25: EFF_1 @ 25°C | BR25: Vin | BS25: Iout | BT25: Vout | BU25: Efficiency | BV25: Pdis
A26: Top Driver | B26: Input Value | C26: Units | D26: Description | G26: 17 | H26: 14.2 | I26: BOOST | J26: 2 | K26: 1.7 | L26: 5.387323944 | M26: 5.184695549 | N26: 1 | O26: 0.6721118947 | P26: 14.42246024 | Q26: 6.808612626 | R26: 0.1075388505 | S26: 5.324420763 | T26: 5.431959613 | U26: 6.438592134 | V26: 0.4145546867 | W26: 0.4145546867 | X26: 4.163405651 | Y26: 0.1733394661 | Z26: 0.1733394661 | AA26: 6.808612626 | AB26: 0.1576145 | AC26: 0 | AD26: 0 | AE26: 0.1627446844 | AF26: 0 | AG26: 0 | AH26: 0 | AI26: 0 | AJ26: 5.581866129 | AK26: 0.1059345802 | AL26: 1.234694529 | AM26: 0.009119530879 | AN26: 1.378964649 | AO26: 3.898714712 | AP26: 0.05167991977 | AQ26: 0.06299277032 | AR26: 0.1158703239 | AS26: 0.1576145 | AT26: 0 | AU26: 1.5552 | AV26: 0.03894653685 | AW26: 0 | AX26: 0.1296 | AY26: 1.5552 | AZ26: 0.4142769231 | BA26: 1.6848 | BB26: 10.95637996 | BC26: 73.44 | BD26: 0.8701795034 | BE26: 120.2698324 | BF26: 31.45431619 | BH26: 87.01795034 | BI26: 5.431959613 | BJ26: 3.212779657 | BK26: 2.405396649 | BL26: 0.6290863239 | BM26: 0.03894653685 | BQ26: Vin=10V | BR26: 9.998964 | BS26: 0.1027 | BT26: 5.121136 | BU26: 61.87068324 | BV26: 324.123657
A27: RdsonDRT | B27: =RdsonDRT -> 1.5 | C27: W | D27: Drain to Source Resistance of pullup Top FET Driver | G27: 18 | H27: 14.2 | I27: BOOST | J27: 2 | K27: 1.8 | L27: 5.704225352 | M27: 5.490481136 | N27: 1 | O27: 0.672159879 | P27: 14.42124686 | Q27: 7.061813999 | R27: 0.1157614184 | S27: 5.323388745 | T27: 5.439150164 | U27: 6.494313688 | V27: 0.4217611028 | W27: 0.4217611028 | X27: 4.163055379 | Y27: 0.1733103009 | Z27: 0.1733103009 | AA27: 7.061813999 | AB27: 0.1695553377 | AC27: 0 | AD27: 0 | AE27: 0.1755069662 | AF27: 0 | AG27: 0 | AH27: 0 | AI27: 0 | AJ27: 5.78965343 | AK27: 0.1139682952 | AL27: 1.307323619 | AM27: 0.007531990398 | AN27: 1.462151692 | AO27: 4.043405758 | AP27: 0.05558704241 | AQ27: 0.06457424392 | AR27: 0.1215121869 | AS27: 0.1695553377 | AT27: 0 | AU27: 1.5552 | AV27: 0.04190010855 | AW27: 0 | AX27: 0.1296 | AY27: 1.5552 | AZ27: 0.4142769231 | BA27: 1.6848 | BB27: 11.07529252 | BC27: 77.76 | BD27: 0.8753277869 | BE27: 124.4291846 | BF27: 31.73640935 | BH27: 87.53277869 | BI27: 5.439150164 | BJ27: 3.314370845 | BK27: 2.488583692 | BL27: 0.6347281869 | BM27: 0.04190010855 | BQ27: Vout=5.1V | BR27: 9.998667 | BS27: 0.1166 | BT27: 5.121298 | BU27: 64.72942057 | BV27: 325.3788646
A28: RdsonDRT2 | B28: =RdsonDRT2 -> 1 | C28: W | D28: Drain to Source Resistance of pulldown Top FET Driver | G28: 19 | H28: 14.2 | I28: BOOST | J28: 2 | K28: 1.9 | L28: 6.021126761 | M28: 5.796356265 | N28: 1 | O28: 0.6722078642 | P28: 14.42003319 | Q28: 7.31997818 | R28: 0.1244659075 | S28: 5.322356585 | T28: 5.446822492 | U28: 6.552715312 | V28: 0.4293807796 | W28: 0.4293807796 | X28: 4.162705021 | Y28: 0.1732811309 | Z28: 0.1732811309 | AA28: 7.31997818 | AB28: 0.1821790739 | AC28: 0 | AD28: 0 | AE28: 0.1890679175 | AF28: 0 | AG28: 0 | AH28: 0 | AI28: 0 | AJ28: 6.001524467 | AK28: 0.1224622062 | AL28: 1.379952709 | AM28: 0.005944449162 | AN28: 1.54623032 | AO28: 4.19091692 | AP28: 0.05971686773 | AQ28: 0.06615571677 | AR28: 0.1273940998 | AS28: 0.1821790739 | AT28: 0 | AU28: 1.5552 | AV28: 0.04502286991 | AW28: 0 | AX28: 0.1296 | AY28: 1.5552 | AZ28: 0.4142769231 | BA28: 1.6848 | BB28: 11.19719961 | BC28: 82.08 | BD28: 0.8799578069 | BE28: 128.633116 | BF28: 32.03050499 | BH28: 87.99578069 | BI28: 5.446822492 | BJ28: 3.417892337 | BK28: 2.57266232 | BL28: 0.6406100998 | BM28: 0.04502286991 | BQ28: L=3.3uH/30mOhm | BR28: 9.998766 | BS28: 0.1466 | BT28: 5.121323 | BU28: 69.88537692 | BV28: 323.5244619
A29: Bottom Driver | B29: Input Value | C29: Units | D29: Description | G29: 20 | H29: 14.2 | I29: BOOST | J29: 2 | K29: 2 | L29: 6.338028169 | M29: 6.102320977 | N29: 1 | O29: 0.6722558503 | P29: 14.41881921 | Q29: 7.58259828 | R29: 0.1336542914 | S29: 5.321324281 | T29: 5.454978573 | U29: 6.613728044 | V29: 0.4374139865 | W29: 0.4374139865 | X29: 4.162354575 | Y29: 0.1732519561 | Z29: 0.1732519561 | AA29: 7.58259828 | AB29: 0.1954857087 | AC29: 0 | AD29: 0 | AE29: 0.2034396162 | AF29: 0 | AG29: 0 | AH29: 0 | AI29: 0 | AJ29: 6.217064073 | AK29: 0.1314164113 | AL29: 1.452581799 | AM29: 0.004356907173 | AN29: 1.631229175 | AO29: 4.340957383 | AP29: 0.06406929739 | AQ29: 0.06773718886 | AR29: 0.1335173589 | AS29: 0.1954857087 | AT29: 0 | AU29: 1.5552 | AV29: 0.04831485711 | AW29: 0 | AX29: 0.1296 | AY29: 1.5552 | AZ29: 0.4142769231 | BA29: 1.6848 | BB29: 11.32214552 | BC29: 86.4 | BD29: 0.8841394091 | BE29: 132.8830587 | BF29: 32.33666795 | BH29: 88.41394091 | BI29: 5.454978573 | BJ29: 3.52338615 | BK29: 2.657661175 | BL29: 0.6467333589 | BM29: 0.04831485711 | BQ29: 4394 Top and Bottom Fets | BR29: 9.99879 | BS29: 0.1958 | BT29: 5.12176 | BU29: 75.66251657 | BV29: 322.5719977
A30: RdsonDRB | B30: =RdsonDRB -> 1.5 | C30: W | D30: Drain to Source Resistance of pullup Bottom FET Driver | G30: 21 | H30: 14.2 | I30: BOOST | J30: 2 | K30: 2.1 | L30: 6.654929577 | M30: 6.408375313 | N30: 1 | O30: 0.6723038372 | P30: 14.41760493 | Q30: 7.849227053 | R30: 0.143328658 | S30: 5.320291835 | T30: 5.463620493 | U30: 6.67728233 | V30: 0.4458609931 | W30: 0.4458609931 | X30: 4.162004043 | Y30: 0.1732227765 | Z30: 0.1732227765 | AA30: 7.849227053 | AB30: 0.2094752421 | AC30: 0 | AD30: 0 | AE30: 0.2186349646 | AF30: 0 | AG30: 0 | AH30: 0 | AI30: 0 | AJ30: 6.435905921 | AK30: 0.1408310091 | AL30: 1.525210889 | AM30: 0.002769364431 | AN30: 1.717177635 | AO30: 4.493270558 | AP30: 0.06864423305 | AQ30: 0.06931866021 | AR30: 0.13988333 | AS30: 0.2094752421 | AT30: 0 | AU30: 1.5552 | AV30: 0.05177610628 | AW30: 0 | AX30: 0.1296 | AY30: 1.5552 | AZ30: 0.4142769231 | BA30: 1.6848 | BB30: 11.4501763 | BC30: 90.72 | BD30: 0.8879303461 | BE30: 137.1804817 | BF30: 32.6549665 | BH30: 88.79303461 | BI30: 5.463620493 | BJ30: 3.630895929 | BK30: 2.743609635 | BL30: 0.65309933 | BM30: 0.05177610628 | BR30: 9.998766 | BS30: 0.2681 | BT30: 5.122408 | BU30: 80.95755345 | BV30: 323.0250607
A31: RdsonDRB2 | B31: 1 | C31: W | D31: Drain to Source Resistance of pulldown Bottom FET Driver | G31: 22 | H31: 14.2 | I31: BOOST | J31: 2 | K31: 2.2 | L31: 6.971830986 | M31: 6.714519317 | N31: 1 | O31: 0.672351825 | P31: 14.41639035 | Q31: 8.119469596 | R31: 0.1534912103 | S31: 5.319259246 | T31: 5.472750456 | U31: 6.743308307 | V31: 0.4547220692 | W31: 0.4547220692 | X31: 4.161653424 | Y31: 0.1731935922 | Z31: 0.1731935922 | AA31: 8.119469596 | AB31: 0.2241476741 | AC31: 0 | AD31: 0 | AE31: 0.2346677188 | AF31: 0 | AG31: 0 | AH31: 0 | AI31: 0 | AJ31: 6.657726555 | AK31: 0.1507060978 | AL31: 1.597839979 | AM31: 0.001181820936 | AN31: 1.804105848 | AO31: 4.647629894 | AP31: 0.07344157636 | AQ31: 0.07090013079 | AR31: 0.1464934491 | AS31: 0.2241476741 | AT31: 0 | AU31: 1.5552 | AV31: 0.0554066536 | AW31: 0 | AX31: 0.1296 | AY31: 1.5552 | AZ31: 0.4142769231 | BA31: 1.6848 | BB31: 11.58133979 | BC31: 95.04 | BD31: 0.891378782 | BE31: 141.5268924 | BF31: 32.98547246 | BH31: 89.1378782 | BI31: 5.472750456 | BJ31: 3.740467016 | BK31: 2.830537848 | BL31: 0.6597094491 | BM31: 0.0554066536 | BR31: 9.998704 | BS31: 0.3655 | BT31: 5.123094 | BU31: 85.41902227 | BV31: 319.6330069
A32: Deadtime | B32: Input Value | C32: Units | D32: Description | G32: 23 | H32: 14.2 | I32: BOOST | J32: 2 | K32: 2.3 | L32: 7.288732394 | M32: 7.020753029 | N32: 1 | O32: 0.6723998137 | P32: 14.41517546 | Q32: 8.392976839 | R32: 0.164144268 | S32: 5.318226514 | T32: 5.482370782 | U32: 6.811736085 | V32: 0.4639974849 | W32: 0.4639974849 | X32: 4.161302717 | Y32: 0.173164403 | Z32: 0.173164403 | AA32: 8.392976839 | AB32: 0.2395030047 | AC32: 0 | AD32: 0 | AE32: 0.2515525217 | AF32: 0 | AG32: 0 | AH32: 0 | AI32: 0 | AJ32: 6.882240055 | AK32: 0.1610417758 | AL32: 1.670469069 | AM32: 0 | AN32: 1.892463998 | AO32: 4.80383514 | AP32: 0.07846122897 | AQ32: 0.07288732394 | AR32: 0.1537614148 | AS32: 0.2395030047 | AT32: 0 | AU32: 1.5552 | AV32: 0.05920653521 | AW32: 0 | AX32: 0.1296 | AY32: 1.5552 | AZ32: 0.4142769231 | BA32: 1.6848 | BB32: 11.71651714 | BC32: 99.36 | BD32: 0.8945185045 | BE32: 145.9447999 | BF32: 33.34887074 | BH32: 89.45185045 | BI32: 5.482370782 | BJ32: 3.852977934 | BK32: 2.918895998 | BL32: 0.6669774148 | BM32: 0.05920653521 | BR32: 9.998729 | BS32: 0.4906 | BT32: 5.123817 | BU32: 88.55185027 | BV32: 324.9815318
A33: Deadtime | B33: =Deadtime*1000000000 -> 50 | C33: ns | D33: Total Deadtime | G33: 24 | H33: 14.2 | I33: BOOST | J33: 2 | K33: 2.4 | L33: 7.605633803 | M33: 7.327076491 | N33: 1 | O33: 0.6724478033 | P33: 14.41396028 | Q33: 8.6694398 | R33: 0.1752902689 | S33: 5.317193639 | T33: 5.492483908 | U33: 6.882495987 | V33: 0.4736875102 | W33: 0.4736875102 | X33: 4.160951924 | Y33: 0.1731352091 | Z33: 0.1731352091 | AA33: 8.6694398 | AB33: 0.2555412339 | AC33: 0 | AD33: 0 | AE33: 0.2693049371 | AF33: 0 | AG33: 0 | AH33: 0 | AI33: 0 | AJ33: 7.109193332 | AK33: 0.1718381414 | AL33: 1.743098159 | AM33: 0 | AN33: 1.983090415 | AO33: 4.961709043 | AP33: 0.08370309253 | AQ33: 0.07605633803 | AR33: 0.1624794368 | AS33: 0.2555412339 | AT33: 0 | AU33: 1.5552 | AV33: 0.06317578728 | AW33: 0 | AX33: 0.1296 | AY33: 1.5552 | AZ33: 0.4142769231 | BA33: 1.6848 | BB33: 11.8573572 | BC33: 103.68 | BD33: 0.8973720925 | BE33: 150.4761207 | BF33: 33.78477184 | BH33: 89.73720925 | BI33: 5.492483908 | BJ33: 3.970074789 | BK33: 3.009522415 | BL33: 0.6756954368 | BM33: 0.06317578728 | BR33: 9.998642 | BS33: 0.6455 | BT33: 5.12373 | BU33: 90.41893857 | BV33: 350.4584847
A34: IQ | B34: Input Value | C34: Units | D34: Description | G34: 25 | H34: 14.2 | I34: BOOST | J34: 2 | K34: 2.5 | L34: 7.922535211 | M34: 7.633489746 | N34: 1 | O34: 0.6724957938 | P34: 14.41274479 | Q34: 8.948584537 | R34: 0.1869317698 | S34: 5.316160622 | T34: 5.503092392 | U34: 6.955518783 | V34: 0.4837924154 | W34: 0.4837924154 | X34: 4.160601043 | Y34: 0.1731060104 | Z34: 0.1731060104 | AA34: 8.948584537 | AB34: 0.2722623617 | AC34: 0 | AD34: 0 | AE34: 0.2879414876 | AF34: 0 | AG34: 0 | AH34: 0 | AI34: 0 | AJ34: 7.338361996 | AK34: 0.1830952931 | AL34: 1.815727249 | AM34: 0 | AN34: 2.074799756 | AO34: 5.121094456 | AP34: 0.08916706867 | AQ34: 0.07922535211 | AR34: 0.1714499588 | AS34: 0.2722623617 | AT34: 0 | AU34: 1.5552 | AV34: 0.06731444598 | AW34: 0 | AX34: 0.1296 | AY34: 1.5552 | AZ34: 0.4142769231 | BA34: 1.6848 | BB34: 12.00149647 | BC34: 108 | BD34: 0.8999887766 | BE34: 155.0615878 | BF34: 34.23329794 | BH34: 89.99887766 | BI34: 5.503092392 | BJ34: 4.089391203 | BK34: 3.101231756 | BL34: 0.6846659588 | BM34: 0.06731444598 | BR34: 9.998605 | BS34: 0.8324 | BT34: 5.123156 | BU34: 91.67894636 | BV34: 387.0599604
A35: IQ | B35: =Iq*1000 -> 3 | C35: mA | D35: Quiescent Current Of Controller (Not Switching!) | G35: 26 | H35: 14.2 | I35: BOOST | J35: 2 | K35: 2.6 | L35: 8.23943662 | M35: 7.939992835 | N35: 1 | O35: 0.6725437851 | P35: 14.41152901 | Q35: 9.23016774 | R35: 0.1990714486 | S35: 5.315127462 | T35: 5.514198911 | U35: 7.030735886 | V35: 0.4943124709 | W35: 0.4943124709 | X35: 4.160250076 | Y35: 0.1730768069 | Z35: 0.1730768069 | AA35: 9.23016774 | AB35: 0.2896663881 | AC35: 0 | AD35: 0 | AE35: 0.3074796946 | AF35: 0 | AG35: 0 | AH35: 0 | AI35: 0 | AJ35: 7.569546747 | AK35: 0.1948133291 | AL35: 1.888356339 | AM35: 0 | AN35: 2.167626162 | AO35: 5.28185181 | AP35: 0.09485305903 | AQ35: 0.0823943662 | AR35: 0.1806749394 | AS35: 0.2896663881 | AT35: 0 | AU35: 1.5552 | AV35: 0.07162254745 | AW35: 0 | AX35: 0.1296 | AY35: 1.5552 | AZ35: 0.4142769231 | BA35: 1.6848 | BB35: 12.14899153 | BC35: 112.32 | BD35: 0.9023934284 | BE35: 159.7029081 | BF35: 34.69454697 | BH35: 90.23934284 | BI35: 5.514198911 | BJ35: 4.210980796 | BK35: 3.194058162 | BL35: 0.6938909394 | BM35: 0.07162254745 | BR35: 9.998605 | BS35: 1.0529 | BT35: 5.121822 | BU35: 92.88993897 | BV35: 412.7776298
A36: High-side FET | B36: Input Value | C36: Units | D36: Description | G36: 27 | H36: 14.2 | I36: BOOST | J36: 2 | K36: 2.7 | L36: 8.556338028 | M36: 8.2465858 | N36: 1 | O36: 0.6725917773 | P36: 14.41031292 | Q36: 9.513972899 | R36: 0.2117121055 | S36: 5.31409416 | T36: 5.525806265 | U36: 7.10807954 | V36: 0.5052479475 | W36: 0.5052479475 | X36: 4.159899021 | Y36: 0.1730475987 | Z36: 0.1730475987 | AA36: 9.513972899 | AB36: 0.3077533131 | AC36: 0 | AD36: 0 | AE36: 0.3279381218 | AF36: 0 | AG36: 0 | AH36: 0 | AI36: 0 | AJ36: 7.802570237 | AK36: 0.2069923478 | AL36: 1.960985429 | AM36: 0 | AN36: 2.261604752 | AO36: 5.443856906 | AP36: 0.1007609653 | AQ36: 0.08556338028 | AR36: 0.1901564143 | AS36: 0.3077533131 | AT36: 0 | AU36: 1.5552 | AV36: 0.07610012788 | AW36: 0 | AX36: 0.1296 | AY36: 1.5552 | AZ36: 0.4142769231 | BA36: 1.6848 | BB36: 12.29990123 | BC36: 116.64 | BD36: 0.9046074868 | BE36: 164.4018376 | BF36: 35.16862072 | BH36: 90.46074868 | BI36: 5.525806265 | BJ36: 4.334899289 | BK36: 3.288036752 | BL36: 0.7033724143 | BM36: 0.07610012788 | BR36: 9.998667 | BS36: 1.3093 | BT36: 5.119565 | BU36: 93.69036421 | BV36: 451.4207279
A37: RdsonTop | B37: =Rdson1*1000 -> 3.4 | C37: mW | D37: Drain-Source Resistance of Top FET | G37: 28 | H37: 14.2 | I37: BOOST | J37: 2 | K37: 2.8 | L37: 8.873239437 | M37: 8.553268684 | N37: 1 | O37: 0.6726397704 | P37: 14.40909653 | Q37: 9.799806971 | R37: 0.2248566649 | S37: 5.313060715 | T37: 5.53791738 | U37: 7.18748298 | V37: 0.5165991159 | W37: 0.5165991159 | X37: 4.15954788 | Y37: 0.1730183856 | Z37: 0.1730183856 | AA37: 9.799806971 | AB37: 0.3265231367 | AC37: 0 | AD37: 0 | AE37: 0.3493364215 | AF37: 0 | AG37: 0 | AH37: 0 | AI37: 0 | AJ37: 8.037274334 | AK37: 0.2196324477 | AL37: 2.033614519 | AM37: 0 | AN37: 2.356771673 | AO37: 5.606999013 | AP37: 0.106890689 | AQ37: 0.08873239437 | AR37: 0.1998964982 | AS37: 0.3265231367 | AT37: 0 | AU37: 1.5552 | AV37: 0.08074722341 | AW37: 0 | AX37: 0.1296 | AY37: 1.5552 | AZ37: 0.4142769231 | BA37: 1.6848 | BB37: 12.4542867 | BC37: 120.96 | BD37: 0.9066495275 | BE37: 169.1601836 | BF37: 35.65562491 | BH37: 90.66495275 | BI37: 5.53791738 | BJ37: 4.461204593 | BK37: 3.383203673 | BL37: 0.7131124982 | BM37: 0.08074722341 | BR37: 9.998543 | BS37: 1.602 | BT37: 5.118281 | BU37: 93.86447333 | BV37: 535.9658972
